Workbook

Sheet Deactivated (hidden)
F1: Program Deactivated
AV2: Deactivated
A6: This software is out of date and needs to be updated.
A7: You can download a new copy of this tool at https://www.leviton.com/en/products/commercial/network-solutions/cable/berktek/network-channel-extenders/
A8: You may also contact Technical Services at appeng@leviton.com for a new version of this tool.
A9: You can use the new version of this tool to recreate the BOMs you had previously generated.
A10: ="Program Version " & References!O2 -> Program Version 4.0

Sheet To Do (hidden)
A1: To Do | B1: Component | C1: Can Prohibit Release? | D1: Done? | E1: Release Prohibited | G1: Release Prohibited? | H1: =COUNTIF(Table1[Release Prohibited],TRUE)>0 -> TRUE | K1: Components for Release: | L1: General | M1: Cu Only | N1: OneReach | O1: EXT-100 | P1: PowerGIG-OAC | S1: General | T1: Cu Only | U1: OneReach | V1: EXT-100 | W1: PowerGIG-OAC | X1: Enclosure
A2: Add in NEMA enclosure | B2: Enclosure | D2: Done | E2: =IF(AND(Table1[[#This Row],[Can Prohibit Release?]]="Yes",IFERROR(ISNUMBER(MATCH(Table1[[#This Row],[Component]],$L$1:$Q$1,0)),FALSE),Table1[[#This Row],[Done?]]<>"Done",Table1[[#This Row],[Done?]]<>"Yes"),TRUE,FALSE) -> FALSE
A3: Show/hide TEK Support sheet as needed | B3: General | D3: Done | E3: =IF(AND(Table1[[#This Row],[Can Prohibit Release?]]="Yes",IFERROR(ISNUMBER(MATCH(Table1[[#This Row],[Component]],$L$1:$Q$1,0)),FALSE),Table1[[#This Row],[Done?]]<>"Done",Table1[[#This Row],[Done?]]<>"Yes"),TRUE,FALSE) -> FALSE
A4: TEK Support access sheet (buttons for each config type) | B4: General | D4: Done | E4: =IF(AND(Table1[[#This Row],[Can Prohibit Release?]]="Yes",IFERROR(ISNUMBER(MATCH(Table1[[#This Row],[Component]],$L$1:$Q$1,0)),FALSE),Table1[[#This Row],[Done?]]<>"Done",Table1[[#This Row],[Done?]]<>"Yes"),TRUE,FALSE) -> FALSE
A5: TEK Support sheet setup vs. not | B5: General | D5: Done | E5: =IF(AND(Table1[[#This Row],[Can Prohibit Release?]]="Yes",IFERROR(ISNUMBER(MATCH(Table1[[#This Row],[Component]],$L$1:$Q$1,0)),FALSE),Table1[[#This Row],[Done?]]<>"Done",Table1[[#This Row],[Done?]]<>"Yes"),TRUE,FALSE) -> FALSE
A6: Add back in the PowerGIG-OAC options | B6: PowerGIG-OAC | D6: Done | E6: =IF(AND(Table1[[#This Row],[Can Prohibit Release?]]="Yes",IFERROR(ISNUMBER(MATCH(Table1[[#This Row],[Component]],$L$1:$Q$1,0)),FALSE),Table1[[#This Row],[Done?]]<>"Done",Table1[[#This Row],[Done?]]<>"Yes"),TRUE,FALSE) -> FALSE
A7: Add in part number for reel items but no enclosure | B7: Enclosure | C7: No | E7: =IF(AND(Table1[[#This Row],[Can Prohibit Release?]]="Yes",IFERROR(ISNUMBER(MATCH(Table1[[#This Row],[Component]],$L$1:$Q$1,0)),FALSE),Table1[[#This Row],[Done?]]<>"Done",Table1[[#This Row],[Done?]]<>"Yes"),TRUE,FALSE) -> FALSE
A8: Update the PoE System Comparison table | B8: General | D8: Done | E8: =IF(AND(Table1[[#This Row],[Can Prohibit Release?]]="Yes",IFERROR(ISNUMBER(MATCH(Table1[[#This Row],[Component]],$L$1:$Q$1,0)),FALSE),Table1[[#This Row],[Done?]]<>"Done",Table1[[#This Row],[Done?]]<>"Yes"),TRUE,FALSE) -> FALSE
A9: Put in correct enclosure picture | B9: Enclosure | C9: Yes | E9: =IF(AND(Table1[[#This Row],[Can Prohibit Release?]]="Yes",IFERROR(ISNUMBER(MATCH(Table1[[#This Row],[Component]],$L$1:$Q$1,0)),FALSE),Table1[[#This Row],[Done?]]<>"Done",Table1[[#This Row],[Done?]]<>"Yes"),TRUE,FALSE) -> FALSE
A10: Password protect VBA project from Viewing | B10: General | C10: Yes | D10: Done | E10: =IF(AND(Table1[[#This Row],[Can Prohibit Release?]]="Yes",IFERROR(ISNUMBER(MATCH(Table1[[#This Row],[Component]],$L$1:$Q$1,0)),FALSE),Table1[[#This Row],[Done?]]<>"Done",Table1[[#This Row],[Done?]]<>"Yes"),TRUE,FALSE) -> FALSE
A11: Hide this sheet when BOM tool locked up | B11: General | D11: Done | E11: =IF(AND(Table1[[#This Row],[Can Prohibit Release?]]="Yes",IFERROR(ISNUMBER(MATCH(Table1[[#This Row],[Component]],$L$1:$Q$1,0)),FALSE),Table1[[#This Row],[Done?]]<>"Done",Table1[[#This Row],[Done?]]<>"Yes"),TRUE,FALSE) -> FALSE
A12: Transceiver part numbers | B12: PowerGIG-OAC | C12: Yes | D12: Done | E12: =IF(AND(Table1[[#This Row],[Can Prohibit Release?]]="Yes",IFERROR(ISNUMBER(MATCH(Table1[[#This Row],[Component]],$L$1:$Q$1,0)),FALSE),Table1[[#This Row],[Done?]]<>"Done",Table1[[#This Row],[Done?]]<>"Yes"),TRUE,FALSE) -> FALSE
A13: Enclosure Part Number | B13: Enclosure | C13: Yes | E13: =IF(AND(Table1[[#This Row],[Can Prohibit Release?]]="Yes",IFERROR(ISNUMBER(MATCH(Table1[[#This Row],[Component]],$L$1:$Q$1,0)),FALSE),Table1[[#This Row],[Done?]]<>"Done",Table1[[#This Row],[Done?]]<>"Yes"),TRUE,FALSE) -> FALSE
A14: Composite Surge Protector Part Number | B14: Enclosure | C14: Yes | E14: =IF(AND(Table1[[#This Row],[Can Prohibit Release?]]="Yes",IFERROR(ISNUMBER(MATCH(Table1[[#This Row],[Component]],$L$1:$Q$1,0)),FALSE),Table1[[#This Row],[Done?]]<>"Done",Table1[[#This Row],[Done?]]<>"Yes"),TRUE,FALSE) -> FALSE
A15: 1-Port Surge Protector Part Number | B15: Enclosure | C15: Yes | E15: =IF(AND(Table1[[#This Row],[Can Prohibit Release?]]="Yes",IFERROR(ISNUMBER(MATCH(Table1[[#This Row],[Component]],$L$1:$Q$1,0)),FALSE),Table1[[#This Row],[Done?]]<>"Done",Table1[[#This Row],[Done?]]<>"Yes"),TRUE,FALSE) -> FALSE
A16: 4-Port Surge Protector Part Number | B16: Enclosure | C16: Yes | E16: =IF(AND(Table1[[#This Row],[Can Prohibit Release?]]="Yes",IFERROR(ISNUMBER(MATCH(Table1[[#This Row],[Component]],$L$1:$Q$1,0)),FALSE),Table1[[#This Row],[Done?]]<>"Done",Table1[[#This Row],[Done?]]<>"Yes"),TRUE,FALSE) -> FALSE
A17: Enclosure Pole Mounting Bracket Part Number | B17: Enclosure | C17: Yes | E17: =IF(AND(Table1[[#This Row],[Can Prohibit Release?]]="Yes",IFERROR(ISNUMBER(MATCH(Table1[[#This Row],[Component]],$L$1:$Q$1,0)),FALSE),Table1[[#This Row],[Done?]]<>"Done",Table1[[#This Row],[Done?]]<>"Yes"),TRUE,FALSE) -> FALSE
A18: Enclosure Website | B18: Enclosure | C18: Yes | E18: =IF(AND(Table1[[#This Row],[Can Prohibit Release?]]="Yes",IFERROR(ISNUMBER(MATCH(Table1[[#This Row],[Component]],$L$1:$Q$1,0)),FALSE),Table1[[#This Row],[Done?]]<>"Done",Table1[[#This Row],[Done?]]<>"Yes"),TRUE,FALSE) -> FALSE
A19: Composite Surge Protector Website | B19: Enclosure | C19: Yes | E19: =IF(AND(Table1[[#This Row],[Can Prohibit Release?]]="Yes",IFERROR(ISNUMBER(MATCH(Table1[[#This Row],[Component]],$L$1:$Q$1,0)),FALSE),Table1[[#This Row],[Done?]]<>"Done",Table1[[#This Row],[Done?]]<>"Yes"),TRUE,FALSE) -> FALSE
A20: 1-Port Surge Protector Website | B20: Enclosure | C20: Yes | E20: =IF(AND(Table1[[#This Row],[Can Prohibit Release?]]="Yes",IFERROR(ISNUMBER(MATCH(Table1[[#This Row],[Component]],$L$1:$Q$1,0)),FALSE),Table1[[#This Row],[Done?]]<>"Done",Table1[[#This Row],[Done?]]<>"Yes"),TRUE,FALSE) -> FALSE
A21: 4-Port Surge Protector Website | B21: Enclosure | C21: Yes | E21: =IF(AND(Table1[[#This Row],[Can Prohibit Release?]]="Yes",IFERROR(ISNUMBER(MATCH(Table1[[#This Row],[Component]],$L$1:$Q$1,0)),FALSE),Table1[[#This Row],[Done?]]<>"Done",Table1[[#This Row],[Done?]]<>"Yes"),TRUE,FALSE) -> FALSE
A22: Enclosure Pole Mounting Bracket Website | B22: Enclosure | C22: Yes | E22: =IF(AND(Table1[[#This Row],[Can Prohibit Release?]]="Yes",IFERROR(ISNUMBER(MATCH(Table1[[#This Row],[Component]],$L$1:$Q$1,0)),FALSE),Table1[[#This Row],[Done?]]<>"Done",Table1[[#This Row],[Done?]]<>"Yes"),TRUE,FALSE) -> FALSE
A23: Enclosure w/ OR Stuff Website | B23: Enclosure | C23: Yes | E23: =IF(AND(Table1[[#This Row],[Can Prohibit Release?]]="Yes",IFERROR(ISNUMBER(MATCH(Table1[[#This Row],[Component]],$L$1:$Q$1,0)),FALSE),Table1[[#This Row],[Done?]]<>"Done",Table1[[#This Row],[Done?]]<>"Yes"),TRUE,FALSE) -> FALSE
A24: Enclosure w/ EXT Stuff Website | B24: Enclosure | C24: Yes | E24: =IF(AND(Table1[[#This Row],[Can Prohibit Release?]]="Yes",IFERROR(ISNUMBER(MATCH(Table1[[#This Row],[Component]],$L$1:$Q$1,0)),FALSE),Table1[[#This Row],[Done?]]<>"Done",Table1[[#This Row],[Done?]]<>"Yes"),TRUE,FALSE) -> FALSE
A25: PowerGIG-OAC (81001160) Website | B25: PowerGIG-OAC | C25: Yes | D25: Done | E25: =IF(AND(Table1[[#This Row],[Can Prohibit Release?]]="Yes",IFERROR(ISNUMBER(MATCH(Table1[[#This Row],[Component]],$L$1:$Q$1,0)),FALSE),Table1[[#This Row],[Done?]]<>"Done",Table1[[#This Row],[Done?]]<>"Yes"),TRUE,FALSE) -> FALSE
A26: PowerGIG-CPM (81001161) Website | B26: PowerGIG-OAC | C26: Yes | D26: Done | E26: =IF(AND(Table1[[#This Row],[Can Prohibit Release?]]="Yes",IFERROR(ISNUMBER(MATCH(Table1[[#This Row],[Component]],$L$1:$Q$1,0)),FALSE),Table1[[#This Row],[Done?]]<>"Done",Table1[[#This Row],[Done?]]<>"Yes"),TRUE,FALSE) -> FALSE
A27: PowerGIG-DIO (81001162) Website | B27: PowerGIG-OAC | C27: Yes | D27: Done | E27: =IF(AND(Table1[[#This Row],[Can Prohibit Release?]]="Yes",IFERROR(ISNUMBER(MATCH(Table1[[#This Row],[Component]],$L$1:$Q$1,0)),FALSE),Table1[[#This Row],[Done?]]<>"Done",Table1[[#This Row],[Done?]]<>"Yes"),TRUE,FALSE) -> FALSE
A28: PowerGIG-PMK (81001164) Website | B28: PowerGIG-OAC | C28: Yes | D28: Done | E28: =IF(AND(Table1[[#This Row],[Can Prohibit Release?]]="Yes",IFERROR(ISNUMBER(MATCH(Table1[[#This Row],[Component]],$L$1:$Q$1,0)),FALSE),Table1[[#This Row],[Done?]]<>"Done",Table1[[#This Row],[Done?]]<>"Yes"),TRUE,FALSE) -> FALSE
A29: PowerGIG-FMK (81001163) Website | B29: PowerGIG-OAC | C29: Yes | D29: Done | E29: =IF(AND(Table1[[#This Row],[Can Prohibit Release?]]="Yes",IFERROR(ISNUMBER(MATCH(Table1[[#This Row],[Component]],$L$1:$Q$1,0)),FALSE),Table1[[#This Row],[Done?]]<>"Done",Table1[[#This Row],[Done?]]<>"Yes"),TRUE,FALSE) -> FALSE
A30: SM Transceiver Website | B30: PowerGIG-OAC | C30: Future Yes | E30: =IF(AND(Table1[[#This Row],[Can Prohibit Release?]]="Yes",IFERROR(ISNUMBER(MATCH(Table1[[#This Row],[Component]],$L$1:$Q$1,0)),FALSE),Table1[[#This Row],[Done?]]<>"Done",Table1[[#This Row],[Done?]]<>"Yes"),TRUE,FALSE) -> FALSE
A31: MM Transceiver Website | B31: PowerGIG-OAC | C31: Future Yes | E31: =IF(AND(Table1[[#This Row],[Can Prohibit Release?]]="Yes",IFERROR(ISNUMBER(MATCH(Table1[[#This Row],[Component]],$L$1:$Q$1,0)),FALSE),Table1[[#This Row],[Done?]]<>"Done",Table1[[#This Row],[Done?]]<>"Yes"),TRUE,FALSE) -> FALSE
A32: Verify total number of EXT-100 remotes | B32: Enclosure | C32: Yes | D32: Done | E32: =IF(AND(Table1[[#This Row],[Can Prohibit Release?]]="Yes",IFERROR(ISNUMBER(MATCH(Table1[[#This Row],[Component]],$L$1:$Q$1,0)),FALSE),Table1[[#This Row],[Done?]]<>"Done",Table1[[#This Row],[Done?]]<>"Yes"),TRUE,FALSE) -> FALSE
A33: Change part numbers in the Enclosure instructions | B33: Enclosure | C33: Yes | E33: =IF(AND(Table1[[#This Row],[Can Prohibit Release?]]="Yes",IFERROR(ISNUMBER(MATCH(Table1[[#This Row],[Component]],$L$1:$Q$1,0)),FALSE),Table1[[#This Row],[Done?]]<>"Done",Table1[[#This Row],[Done?]]<>"Yes"),TRUE,FALSE) -> FALSE
A34: Thoroughly check all buttons/macros/etc. to ensure everything is working as expected | B34: General | C34: Yes | D34: Done | E34: =IF(AND(Table1[[#This Row],[Can Prohibit Release?]]="Yes",IFERROR(ISNUMBER(MATCH(Table1[[#This Row],[Component]],$L$1:$Q$1,0)),FALSE),Table1[[#This Row],[Done?]]<>"Done",Table1[[#This Row],[Done?]]<>"Yes"),TRUE,FALSE) -> FALSE
A35: Hide Enclosure Items for the BICSI Winter Release | B35: General | C35: Yes | D35: Done | E35: =IF(AND(Table1[[#This Row],[Can Prohibit Release?]]="Yes",IFERROR(ISNUMBER(MATCH(Table1[[#This Row],[Component]],$L$1:$Q$1,0)),FALSE),Table1[[#This Row],[Done?]]<>"Done",Table1[[#This Row],[Done?]]<>"Yes"),TRUE,FALSE) -> FALSE
A36: Unhide enclosure buttons on TEK Support sheet | B36: Enclosure | C36: Yes | E36: =IF(AND(Table1[[#This Row],[Can Prohibit Release?]]="Yes",IFERROR(ISNUMBER(MATCH(Table1[[#This Row],[Component]],$L$1:$Q$1,0)),FALSE),Table1[[#This Row],[Done?]]<>"Done",Table1[[#This Row],[Done?]]<>"Yes"),TRUE,FALSE) -> FALSE
A37: Fix formulas for enclosure buttons on the general question sheet | B37: Enclosure | C37: Yes | E37: =IF(AND(Table1[[#This Row],[Can Prohibit Release?]]="Yes",IFERROR(ISNUMBER(MATCH(Table1[[#This Row],[Component]],$L$1:$Q$1,0)),FALSE),Table1[[#This Row],[Done?]]<>"Done",Table1[[#This Row],[Done?]]<>"Yes"),TRUE,FALSE) -> FALSE
A38: Update OneReach instructions to include the enclosure question | B38: OneReach | C38: Yes | D38: Done | E38: =IF(AND(Table1[[#This Row],[Can Prohibit Release?]]="Yes",IFERROR(ISNUMBER(MATCH(Table1[[#This Row],[Component]],$L$1:$Q$1,0)),FALSE),Table1[[#This Row],[Done?]]<>"Done",Table1[[#This Row],[Done?]]<>"Yes"),TRUE,FALSE) -> FALSE
A39: Update EXT-100 with the quantity column | B39: EXT-100 | C39: Yes | D39: Done | E39: =IF(AND(Table1[[#This Row],[Can Prohibit Release?]]="Yes",IFERROR(ISNUMBER(MATCH(Table1[[#This Row],[Component]],$L$1:$Q$1,0)),FALSE),Table1[[#This Row],[Done?]]<>"Done",Table1[[#This Row],[Done?]]<>"Yes"),TRUE,FALSE) -> FALSE
A40: Update EXT-100 instructions to include the enclosure question | B40: EXT-100 | C40: Future Yes | E40: =IF(AND(Table1[[#This Row],[Can Prohibit Release?]]="Yes",IFERROR(ISNUMBER(MATCH(Table1[[#This Row],[Component]],$L$1:$Q$1,0)),FALSE),Table1[[#This Row],[Done?]]<>"Done",Table1[[#This Row],[Done?]]<>"Yes"),TRUE,FALSE) -> FALSE
A41: PowerGIG-OAC (81001160) General Website | B41: PowerGIG-OAC | C41: Yes | D41: Done | E41: =IF(AND(Table1[[#This Row],[Can Prohibit Release?]]="Yes",IFERROR(ISNUMBER(MATCH(Table1[[#This Row],[Component]],$L$1:$Q$1,0)),FALSE),Table1[[#This Row],[Done?]]<>"Done",Table1[[#This Row],[Done?]]<>"Yes"),TRUE,FALSE) -> FALSE
A42: PowerGIG-CPM (81001161) General Website | B42: PowerGIG-OAC | C42: Yes | D42: Done | E42: =IF(AND(Table1[[#This Row],[Can Prohibit Release?]]="Yes",IFERROR(ISNUMBER(MATCH(Table1[[#This Row],[Component]],$L$1:$Q$1,0)),FALSE),Table1[[#This Row],[Done?]]<>"Done",Table1[[#This Row],[Done?]]<>"Yes"),TRUE,FALSE) -> FALSE
A43: PowerGIG-DIO (81001162) General Website | B43: PowerGIG-OAC | C43: Yes | D43: Done | E43: =IF(AND(Table1[[#This Row],[Can Prohibit Release?]]="Yes",IFERROR(ISNUMBER(MATCH(Table1[[#This Row],[Component]],$L$1:$Q$1,0)),FALSE),Table1[[#This Row],[Done?]]<>"Done",Table1[[#This Row],[Done?]]<>"Yes"),TRUE,FALSE) -> FALSE
A44: PowerGIG-PMK (81001164) General Website | B44: PowerGIG-OAC | C44: Yes | D44: Done | E44: =IF(AND(Table1[[#This Row],[Can Prohibit Release?]]="Yes",IFERROR(ISNUMBER(MATCH(Table1[[#This Row],[Component]],$L$1:$Q$1,0)),FALSE),Table1[[#This Row],[Done?]]<>"Done",Table1[[#This Row],[Done?]]<>"Yes"),TRUE,FALSE) -> FALSE
A45: PowerGIG-FMK (81001163) General Website | B45: PowerGIG-OAC | C45: Yes | D45: Done | E45: =IF(AND(Table1[[#This Row],[Can Prohibit Release?]]="Yes",IFERROR(ISNUMBER(MATCH(Table1[[#This Row],[Component]],$L$1:$Q$1,0)),FALSE),Table1[[#This Row],[Done?]]<>"Done",Table1[[#This Row],[Done?]]<>"Yes"),TRUE,FALSE) -> FALSE
A46: SM Transceiver General Website | B46: PowerGIG-OAC | C46: Yes | D46: Done | E46: =IF(AND(Table1[[#This Row],[Can Prohibit Release?]]="Yes",IFERROR(ISNUMBER(MATCH(Table1[[#This Row],[Component]],$L$1:$Q$1,0)),FALSE),Table1[[#This Row],[Done?]]<>"Done",Table1[[#This Row],[Done?]]<>"Yes"),TRUE,FALSE) -> FALSE
A47: MM Transceiver General Website | B47: PowerGIG-OAC | C47: Yes | D47: Done | E47: =IF(AND(Table1[[#This Row],[Can Prohibit Release?]]="Yes",IFERROR(ISNUMBER(MATCH(Table1[[#This Row],[Component]],$L$1:$Q$1,0)),FALSE),Table1[[#This Row],[Done?]]<>"Done",Table1[[#This Row],[Done?]]<>"Yes"),TRUE,FALSE) -> FALSE
A48: Ensure that OneReach message includes the enclosure column as a requirement | B48: OneReach | C48: Future Yes | E48: =IF(AND(Table1[[#This Row],[Can Prohibit Release?]]="Yes",IFERROR(ISNUMBER(MATCH(Table1[[#This Row],[Component]],$L$1:$Q$1,0)),FALSE),Table1[[#This Row],[Done?]]<>"Done",Table1[[#This Row],[Done?]]<>"Yes"),TRUE,FALSE) -> FALSE
A49: Ensure that EXT-100 message includes the enclosure column as a requirement | B49: EXT-100 | C49: Yes | E49: =IF(AND(Table1[[#This Row],[Can Prohibit Release?]]="Yes",IFERROR(ISNUMBER(MATCH(Table1[[#This Row],[Component]],$L$1:$Q$1,0)),FALSE),Table1[[#This Row],[Done?]]<>"Done",Table1[[#This Row],[Done?]]<>"Yes"),TRUE,FALSE) -> TRUE
A50: Ensure that the OneReach message has all required columns listed | B50: OneReach | C50: Yes | D50: Done | E50: =IF(AND(Table1[[#This Row],[Can Prohibit Release?]]="Yes",IFERROR(ISNUMBER(MATCH(Table1[[#This Row],[Component]],$L$1:$Q$1,0)),FALSE),Table1[[#This Row],[Done?]]<>"Done",Table1[[#This Row],[Done?]]<>"Yes"),TRUE,FALSE) -> FALSE
A51: Ensure that the EXT-100 message has all required columns listed | B51: EXT-100 | C51: Yes | D51: Done | E51: =IF(AND(Table1[[#This Row],[Can Prohibit Release?]]="Yes",IFERROR(ISNUMBER(MATCH(Table1[[#This Row],[Component]],$L$1:$Q$1,0)),FALSE),Table1[[#This Row],[Done?]]<>"Done",Table1[[#This Row],[Done?]]<>"Yes"),TRUE,FALSE) -> FALSE
A52: Change the version number to a release value | B52: General | C52: Yes | D52: Done | E52: =IF(AND(Table1[[#This Row],[Can Prohibit Release?]]="Yes",IFERROR(ISNUMBER(MATCH(Table1[[#This Row],[Component]],$L$1:$Q$1,0)),FALSE),Table1[[#This Row],[Done?]]<>"Done",Table1[[#This Row],[Done?]]<>"Yes"),TRUE,FALSE) -> FALSE
A53: LANmark-SST CMP Website | B53: EXT-100 | C53: Yes | D53: Done | E53: =IF(AND(Table1[[#This Row],[Can Prohibit Release?]]="Yes",IFERROR(ISNUMBER(MATCH(Table1[[#This Row],[Component]],$L$1:$Q$1,0)),FALSE),Table1[[#This Row],[Done?]]<>"Done",Table1[[#This Row],[Done?]]<>"Yes"),TRUE,FALSE) -> FALSE
A54: LANmark-SST CMP Website | B54: Cu Only | C54: Yes | D54: Done | E54: =IF(AND(Table1[[#This Row],[Can Prohibit Release?]]="Yes",IFERROR(ISNUMBER(MATCH(Table1[[#This Row],[Component]],$L$1:$Q$1,0)),FALSE),Table1[[#This Row],[Done?]]<>"Done",Table1[[#This Row],[Done?]]<>"Yes"),TRUE,FALSE) -> FALSE
A55: LANmark-SST CMP Website | B55: EXT-100 | C55: Yes | D55: Done | E55: =IF(AND(Table1[[#This Row],[Can Prohibit Release?]]="Yes",IFERROR(ISNUMBER(MATCH(Table1[[#This Row],[Component]],$L$1:$Q$1,0)),FALSE),Table1[[#This Row],[Done?]]<>"Done",Table1[[#This Row],[Done?]]<>"Yes"),TRUE,FALSE) -> FALSE
A56: LANmark-SST CMP Website | B56: Cu Only | C56: Yes | D56: Done | E56: =IF(AND(Table1[[#This Row],[Can Prohibit Release?]]="Yes",IFERROR(ISNUMBER(MATCH(Table1[[#This Row],[Component]],$L$1:$Q$1,0)),FALSE),Table1[[#This Row],[Done?]]<>"Done",Table1[[#This Row],[Done?]]<>"Yes"),TRUE,FALSE) -> FALSE
A57: Turn off TS Sheet | B57: General | C57: Yes | D57: Done | E57: =IF(AND(Table1[[#This Row],[Can Prohibit Release?]]="Yes",IFERROR(ISNUMBER(MATCH(Table1[[#This Row],[Component]],$L$1:$Q$1,0)),FALSE),Table1[[#This Row],[Done?]]<>"Done",Table1[[#This Row],[Done?]]<>"Yes"),TRUE,FALSE) -> FALSE
A58: Delete Original Template Copy | B58: OneReach | C58: Yes | D58: Done | E58: =IF(AND(Table1[[#This Row],[Can Prohibit Release?]]="Yes",IFERROR(ISNUMBER(MATCH(Table1[[#This Row],[Component]],$L$1:$Q$1,0)),FALSE),Table1[[#This Row],[Done?]]<>"Done",Table1[[#This Row],[Done?]]<>"Yes"),TRUE,FALSE) -> FALSE
A59: Change Instructions to match new template | B59: OneReach | C59: Yes | D59: Done | E59: =IF(AND(Table1[[#This Row],[Can Prohibit Release?]]="Yes",IFERROR(ISNUMBER(MATCH(Table1[[#This Row],[Component]],$L$1:$Q$1,0)),FALSE),Table1[[#This Row],[Done?]]<>"Done",Table1[[#This Row],[Done?]]<>"Yes"),TRUE,FALSE) -> FALSE
A60: Add in LMIP CMP Yellow website; readjust ColorSet9 to include Yellow | B60: EXT-100 | C60: Future Yes | E60: =IF(AND(Table1[[#This Row],[Can Prohibit Release?]]="Yes",IFERROR(ISNUMBER(MATCH(Table1[[#This Row],[Component]],$L$1:$Q$1,0)),FALSE),Table1[[#This Row],[Done?]]<>"Done",Table1[[#This Row],[Done?]]<>"Yes"),TRUE,FALSE) -> FALSE
A61: Add in Solar Shield part Number | B61: Enclosure | C61: Yes | E61: =IF(AND(Table1[[#This Row],[Can Prohibit Release?]]="Yes",IFERROR(ISNUMBER(MATCH(Table1[[#This Row],[Component]],$L$1:$Q$1,0)),FALSE),Table1[[#This Row],[Done?]]<>"Done",Table1[[#This Row],[Done?]]<>"Yes"),TRUE,FALSE) -> FALSE
A62: Include Solar Shield as part of the smart part number system | B62: Enclosure | C62: Yes | E62: =IF(AND(Table1[[#This Row],[Can Prohibit Release?]]="Yes",IFERROR(ISNUMBER(MATCH(Table1[[#This Row],[Component]],$L$1:$Q$1,0)),FALSE),Table1[[#This Row],[Done?]]<>"Done",Table1[[#This Row],[Done?]]<>"Yes"),TRUE,FALSE) -> FALSE

Sheet Release Notes (hidden)
A1: Version | B1: Release Notes
A2: 1.0 | B2: •Initial Release
A3: 1.1 | B3: •Fixed EXT-100 website reference
A4: 1.2 | B4: •Changed EXT-100 Logo, added the Release Notes sheet, and adjusted the macros to hide this sheet.
A5: 1.3 | B5: •Removed PoE++ as an option. Added a note regarding not running this file from an Excel file.
A6: 1.3.1 | B6: •Changed the termination date to 2020-02-28
A7: 1.3.2 | B7: •Changed the termination date to 2020-06-30
A8: 1.4 | B8: •Added back in the PowerGIG-OAC option •Corrected naming issue for the HPoE length limitations for SM OneReach Remotes •Added an enclosure BOM generator •Not released to the public
A9: 2.0 | B9: •Added back in the PowerGIG-OAC option •Corrected naming issue for the HPoE length limitations for SM OneReach Remotes •Added an enclosure BOM generator, which is hidden from public view •Added a TEK Support quick-select button option for quick use (can be turned off in that sheet) •Added link to the PoE Extender page with the EXT-100 image •Added notes for OneReach/EXT-100 regarding the use of power at the remote end on the General Questions page •Added in transceiver part numbers; this resulted in a new max length of 20 km
A10: 2.0.1 | B10: •Fixed an issue where the HyperPlus 5e cable was shown regardless of whether indoor or outdoor was selected
A11: 2.1 | B11: •Changed the OneReach BOM tool portion to have less rows shown initially, and buttons to add rows as needed; instructions updated to reflect these changes. •OneReach components are now in the order of 1-Port Remotes, 2-Port Remotes, and 4-Port Remotes (latter two were previously flopped in version 2.0.1 and previous) •Added surge protection information at the bottom of the BOM for customer reference. •Added specific websites for the PowerGIG-OAC and accessories; the transceivers are still a generic website •Fixed issue with the cable length needed compared to the quantity entered for the EXT-100 BOM tool portion •If an OSP cable is selected in the EXT-100 BOM tool portion, the color will automatically be set for the user
A12: 2.2 | B12: •EXT-100 now has a sheet-based temperature setting instead of a per-line setting; these values are highlighted in blue •Adjusted the instructions to reflect the updated changes to the EXT-100 template •Changed the distance error message in the EXT-100 to reflect the selected temperature; it now provides the maximum distance for the sheet's overall temperature instead of just at 20°C •EXT-100 will show an error when the temperature is changed and there is a length that is beyond the maximum. •Default temp is 68°F instead of 20°C for OneReach and EXT-100 (same temp, different scale) •Formatted both the EXT-100 and OneReach distance message to have more line breaks, so it doesn't look as cramped, making it easier to read/process the data provided •The OneReach length error will now let the user know what the maximum supported length is for the first device found to be in error •EXT-100 provides the recommended surge protection, using similar language and RJ45 protectors as the OneReach units •Added a note for indoor surge protection use for an EXT-100 BOM; it may be needed due to certain environments •Corrected issue where the pole mount bracket and fiber splice kit for PowerGIG were switched. •Corrected an issue where the EXT-100 instructions return button was not assigned to a macro; the button previously did not do anything. •For EXT-100 BOMs, changed the maximum length for 1000-ft boxes to 1000 feet (was 998 ft) and the maximum length of 1500-ft boxes to 1500 feet (was 1498 feet) •Fixed an issue where it would add up all quantities and recommend (for example) two 2k reels instead of two 1.5k boxes •For the EXT-100 QTY column, expanded the width to fit "smartPAK Boxes" better (make it look less cramped) •For adding new OneReach remotes, fixed an issue where the new rows added incorporated information entered on a previous line •Added a note about the max length supported for transceivers and copper on the PowerGIG-OAC BOM portion •Added the max length supported to the transceiver selection options to the drop down selections in the PowerGIG-OAC BOM portion •For the PowerGIG-OAC fiber cable recommendations, changed ICP-I/O references to LTP/LTD-M2 references instead for PowerGIG's fiber recommendations. •Shrunk the PowerGIG-OAC instructions button in about half (to keep similar to other sheets) •Fixed an issue with some formatting on the PowerGIG BOM when incrementally making changes •Fixed an error that caused the EXT-100 to issue a macro running error when a new head end was created. •Added a hyperlink to the Deactivated sheet to allow customers to go to https://www.berktek.us/extendedPoE to download a new copy of the workbook. •Added a warning about a new revision coming within the next few months; this is a large note on the right side of the comparison table. •The general deactivation date is now displayed on the bottom of the "PoE System Comparison" sheet; the version and this message are now at standard size (previously smaller) •Added a note about derating the copper lengths due to gauge size and temperature to the PowerGIG-OAC BOM and to the commercial copper table •Fixed issue where the hitting the return button could cause Excel to lock up; it will now display the appropriate sheet on an error instead of looping endlessly •Fixed issue when renaming sheets where illegal characters (: \ / ? * [ ]) were entered into the Head End name •Fixed an issue where the length in meters gave an error that it was out of bounds, even when it was legal
A14: 3.0 | B14: •Changed the name from "PoE System Comparison Tool" to "uLAN Extender Series Comparison" reflecting the website; the main intro sheet was changed to reflect this as well. •Renamed "General Questions" to "Start Here." •Fixed an issue where putting in any length∈(3200 ft, 8200 ft] would not allow you to select OneReach from the general questions. •Added a logo header for each component on the Start Here page. •Added an option to get to the configuration buttons, bypassing the questions entirely. •Fixed an issue with the TS selection buttons; the environment is no longer placed on the questionnaire, but at an alternate location. •Added a message about cable/cords and attenuation issues due to temperature to the OneReach and EXT-100 BOMs. •Added a note about CMR/CMX Outdoor cables not being installed in areas that will be submerged. •Removed the note about a major version change in October. •Added a note that the TEK Support version is not intended for release to the general public. •Added a note on how to save the TEK Support version for customer use. •TEK Support option is now hidden in general, as there is a way from the "Start Here" page to get the same buttons. •Added the ability to show IE cables for Indoor and Indoor/Outdoor environments for EXT-100 installations. •Added information for IE cord sets (LANmark-C637) for the device connection to the EXT-100 BOM •Added "and industrial" to the indoor surge events warning •Fixed issue where it was possible to get an error saying a row in the EXT-100, with no selection, was outside the temperature selection. •Added a category and flame rating selector to the EXT-100 sheet; the environmental option was therefore removed from this sheet. •Sheet will automatically delete an invalid flame rating, cable family, and/or color selection if it is not available for the given category, flame rating, and cable family selections. •Added new SM 2-Port and 4-Port units •Made OneReach BOM section combine SM and MM into one chassis/BOM; the SM/MM question was removed. •Added information for IE cord sets (LANmark-C637), IE horizontal cable (LANmark-A689), and OSP horizontal cable (LANmark-1000, LANmark-6) for the device connection to the OneReach BOM •Changed the PowerGIG-OAC logo
A15: 3.1 | B15: •Changed all email addresses to the @leviton.com address. •Changed the appropriate logos to the Leviton logo.
A16: 3.2 | B16: •Changed the appropriate logos to the Leviton logo (non-registered version). •Fixed the conditional formatting on the EXT-100 template
A17: 3.3 | B17: •Updated the deactivation date to 2021-07-31 •Updated all links to reference the Leviton website •Changed "uLAN Extender Series" references to "Network Channel Extenders" instead •Updated text references to technical support in Bothell; made Berk-Tek references into Leviton references instead •Added LANmark-SST CMR to both the Cu Structured Cabling and EXT-100 templates •Fixed OneReach issue where adding more 2-Port and 4-Port Remotes left the device description for the second, third, and fourth device intact •OneReach Device location is now has wrapped text for 2-Port and 4-Port Remotes •This version was not released
A18: 4.0 | B18: •Based on Version 3.3 d1.3 •Removed PowerGIG-OAC code and sheets •Changed the maximum distance to reflect the removal of PowerGIG-OAC •Hid the managed and local power questions •Removed the TEK Support sheet, as its need was eliminated several versions ago •Rephrased some power verbiage since the power question is now hidden at all times •Redid the color scheme based on the Leviton principles •Changed a few logos to use the standard Berk-Tek logo instead of the alternate one •Changed Technical Support to Technical Services •Corrected the verbiage in the entire workbook to put Leviton first, so it is Leviton offering Berk-Tek product •Fixed issue with power levels: PoE++/HPoE is shown for ≤100 m, HPoE is shown for ≤1000 ft, PoE is shown for ≤2100 ft, and PoE/Data Only is shown for ≤8200 ft •Changed the highlighting on the OneReach and EXT-100 top parameters (temp, cable type, N+1) to be highlighted the same way as the general questions on the "Start Here" sheet •Added a disclaimer to the Network Channel Ext. Comparison sheet •Moved the version and deactivation notice on the Network Channel Ext. Comparison sheet to the right and below the main button/notes

Sheet Network Channel Ext. Comparison
AV2: Comparison | AW2: Keep
B8: Network Channel Extenders Comparison
J9: NOTE: Macros must be enabled to use this workbook.
J10: NOTE: This file must be extracted from the zip file in order to operate properly. If run from a zip file, please copy the file to a location of your choice and open it from there.
J16: ="Program version " & References!O2 & CHAR(10) & IF(References!$O$5=References!$D$3,"Program deactivates on " & TEXT(References!$O$15,"mmmm dd, yyyy"),"") -> Program version 4.0 Program deactivates on July 31, 2021

Sheet Start Here (hidden)
AV2: General
D8: Network Channel Extenders Selection Tool
C9: If you are having difficulty configuring your BOM or your system configuration does not seem to work for your design, please call 1-800-824-3005, call +1-425-486-2222, or email appeng@leviton.com. Other options may be available. Leviton recommends additional surge suppression if any device or cable assembly is outdoors. Contact Leviton for details. Technical Services is available Monday through Friday 6:30 AM to 5:00 PM Pacific (9:30 AM to 8:00 PM Eastern).
A14: Display Line | D14: General Questions | J14: Drop Down Menu Adjustments
A15: TRUE | D15: Show configuration buttons instead of questions? | E15: No
A16: =OR(E15=No, E15="") -> TRUE | D16: What is the max distance to any of your PoE devices? | F16: ft | J16: Max Distance Allowed: | K16: =IF(F16=References!$C$4,MAX(References!$Y$2:$Y$3),IF('Start Here'!F16=References!$C$3,MAX(References!$AA$2:$AA$3),0)) -> 8200 | L16: =IF(F16<>"",F16,"") -> ft
A17: =$A$16 -> TRUE | D17: What is the maximum power level needed: | J17: Power Level Option: | K17: =IF(E16<>"",IF(E21<=References!$Y$5,References!$X$5,IF(E21<=References!$Y$4,References!$X$4,IF(E21<=References!$Y$3,References!$X$3,References!$X$2))),"") ->  | L17: =IF(E17<>"",IFERROR(MATCH(E17,INDIRECT(K17),0)>=0,FALSE),"") -> 
A18: FALSE | D18: Do you want a managed or unmanaged solution? | J18: Managed Option: | K18: =IF(AND(E16<>"",E17<>""),"Unmanaged","") ->  | L18: =IF(K18<>"",IF(COUNTA(INDIRECT(K18))=1,INDIRECT(K18),""),"") -> 
A19: =$A$16 -> TRUE | D19: What is the installation environment: | J19: Installation Environment: | K19: =IF(AND(E16<>"",E17<>"",E18<>""),"InstallationEnvironments","") -> 
A20: =$A$16 -> TRUE | D20: How much bandwidth do you need? | J20: Bandwidth: | K20: =IF(AND(E16<>"",E17<>"",E18<>"",E19<>""),"AllDataRates","") -> 
A21: FALSE | D21: -In feet: | E21: =IF(F16<>References!C4,IFERROR(CONVERT(E16,F16,"ft"),""),E16) -> 0
A22: FALSE | D22: -In meters: | E22: =IF(F16<>References!C3,IFERROR(CONVERT(E16,F16,"m"),""),E16) -> 0
A23: FALSE | D23: Is power available at the PoE device location? | J23: Power Option: | K23: =IF(AND(E16<>"",E17<>"",E18<>"",E19<>"",E20<>""),"Yes","") ->  | L23: =IF(K23<>"",IF(COUNTA(INDIRECT(K23))=1,INDIRECT(K23),""),"") -> 
A24: =OR(A25,A38) -> FALSE
A25: =AND(E17<>"",E19<>"",E16<>"",F16<>"",E20<>"",IF(A23,E23<>"",TRUE),A16) -> FALSE | D25: Recommended Solution | J25: Copper | K25: =A26 -> FALSE
A26: =AND(A25,OR(E19=IndoorEnvironment,E19=OutdoorEnvironment),OR(AND(OR(E17=References!$A$3,E17=References!$A$4),E22<=References!$K$5),AND(E17=References!$A$5,E22<=References!$K$6),AND(E17=References!$A$6,E22<=References!$K$7),AND(E17=References!$A$7,E22<=References!$K$8))) -> FALSE | D26: =References!$J$3 -> Copper Structured Cabling | J26: EXT-100 | K26: =A29 -> FALSE
A27: =A26 -> FALSE | J27: OneReach | K27: =A32 -> FALSE
A28: =A26 -> FALSE | J28: None | K28: =A37 -> FALSE
A29: =AND(A25,NOT(A26),E20<>References!G4,OR(AND(OR(E17=References!A3,E17=References!A4),E21<=References!K11),AND(E17=References!A5,E21<=References!K12))) -> FALSE | D29: =References!J9 -> EXT-100
A30: =A29 -> FALSE
A31: =A29 -> FALSE
A32: =AND(A25,NOT(A26),NOT(A29),OR(AND(OR(E17=References!A3,E17=References!A4),E21<=References!K15),AND(E17=References!A5,E21<=References!K16),AND(E17=References!A6,E21<=References!K17))) -> FALSE | D32: =References!$J$13 -> OneReach
A33: =A32 -> FALSE
A34: =A33 -> FALSE
A35: =AND(A32,E23=Yes) -> FALSE | D35: NOTE: The OneReach remotes will not use local power at the PoE device location.
A36: =A29 -> FALSE | D36: NOTE: The EXT-100-Remote can be locally powered; please see EXT-100 Installation Configurations, under the Resources section of the EXT-100 page for more details.
A37: =AND(A25,NOT(A26),NOT(A29),NOT(A32)) -> FALSE | D37: No option available at this time
A38: =E15=Yes -> FALSE | D38: Configuration Buttons
A39: =$A$38 -> FALSE | D39: =References!J9 -> EXT-100
A40: FALSE
A41: FALSE
A42: FALSE
A43: FALSE | D43: =References!$J$13 -> OneReach
A44: FALSE
A45: FALSE
A46: FALSE

Sheet References (hidden)
A1: Lists | O1: Program Version | Q1: Colors | X1: Power Level Group | Y1: Max Distance | Z1: Unit | AA1: Max Distance | AB1: Unit | AD1: Managed Only | AE1: Unmanaged Only | AF1: Managed/Unamanged
A2: Power Levels | B2: Installation Environments | C2: Length Units | D2: Yes/No | E2: Managed / Unmanaged | F2: Bulk or preterm cable | G2: Data Rates | J2: Solution | K2: Max Supported Distance | L2: Unit | O2: 4.0 | Q2: Color | R2: R | S2: G | T2: B | U2: Sample | X2: =X7 -> GWPowerLevels1 | Y2: =MAX(CONVERT(K4,L4,Z2),CONVERT(K10,L10,Z2),CONVERT(K14,L14,Z2)) -> 8200 | Z2: ft | AA2: =_xlfn.FLOOR.MATH(CONVERT(Y2,Z2,AB2)) -> 2499 | AB2: m | AD2: =A7 -> PoE++ (802.3bt) | AE2: =A6 -> HPoE (60 W, Non-Standard) | AF2: All Other cases
A3: Data Only | B3: Indoor | C3: m | D3: Yes | E3: Managed | F3: Bulk Cable | G3: 10/100 Mbps | J3: Copper Structured Cabling | Q3: Berk-Tek Blue | R3: 0 | S3: 56 | T3: 117 | X3: =X11 -> GWPowerLevels2 | Y3: =MAX(CONVERT(K6,L6,Z3),CONVERT(K16,L16,Z3)) -> 2100 | Z3: ft | AA3: =_xlfn.FLOOR.MATH(CONVERT(Y3,Z3,AB3)) -> 640 | AB3: m
A4: PoE (802.3af) | B4: Indoor and Outdoor | C4: ft | D4: No | E4: Unmanaged | F4: Preterm Cable | G4: 1000 Mbps | J4: Data Only | K4: =K5 -> 100 | L4: m | O4: Use Time Bomb? | Q4: EXT-100 Background | R4: 26 | S4: 40 | T4: 88 | X4: =X16 -> GWPowerLevels3 | Y4: =MAX(CONVERT(K7,L7,Z4),CONVERT(K17,L17,Z4)) -> 1000 | Z4: ft | AA4: =_xlfn.FLOOR.MATH(CONVERT(Y4,Z4,AB4)) -> 304 | AB4: m | AD4: =A4 -> PoE (802.3af)
A5: PoE+ (802.3at) | B5: Industrial | J5: PoE | K5: 100 | L5: m | O5: Yes | X5: =X22 -> GWPowerLevels4 | Y5: =MAX(CONVERT(K7,L7,Z3)) -> 328.0839895 | Z5: ft | AA5: =_xlfn.FLOOR.MATH(CONVERT(Y5,Z5,AB5)) -> 100 | AB5: m | AD5: =K14 -> 8200
A6: HPoE (60 W, Non-Standard) | B6: Outdoor | J6: PoE+ | K6: 100 | L6: m
A7: PoE++ (802.3bt) | J7: CMP HPoE | K7: 100 | L7: m | M7: To Be Verified | O7: Release Date | X7: GWPowerLevels1 | AD7: =A5 -> PoE+ (802.3at)
J8: PoE++ | K8: 100 | L8: m | M8: To Be Verified | O8: 2021-01-31 | X8: Data Only | AD8: =K16 -> 2100
J9: EXT-100 | X9: PoE (802.3af)
J10: Data Only | K10: =K11 -> 2000 | L10: ft | O10: Active Time
J11: PoE | K11: ='EXT-100 Part Numbers'!AH3 -> 2000 | L11: ft | O11: 181 | X11: GWPowerLevels2
J12: PoE+ | K12: ='EXT-100 Part Numbers'!AH4 -> 1250 | L12: ft | O12: Days | X12: =$A$3 -> Data Only
J13: OneReach | X13: =$A$4 -> PoE (802.3af)
J14: Data Only | K14: 8200 | L14: ft | O14: Termination Date | X14: =$A$5 -> PoE+ (802.3at)
J15: PoE | K15: 8200 | L15: ft | O15: =DATE(YEAR(O8),MONTH(O8)+IF(O12="Months",O11,0),DAY(O8)+IF(O12="Days",O11,0)) -> 2021-07-31
J16: PoE+ | K16: =MAX('OneReach Part Numbers'!C4:E4) -> 2100 | L16: ft | X16: GWPowerLevels3
J17: HPoE | K17: =MAX('OneReach Part Numbers'!C7:D7) -> 1000 | L17: ft | O17: Terminate Usage? | X17: Data Only
O18: =IF(O5="Yes",TODAY()>O15,FALSE) -> FALSE | X18: PoE (802.3af)
X19: =$A$5 -> PoE+ (802.3at)
X20: =$A$6 -> HPoE (60 W, Non-Standard)
X22: GWPowerLevels4
X23: Data Only
X24: PoE (802.3af)
X25: =$A$5 -> PoE+ (802.3at)
X26: =$A$6 -> HPoE (60 W, Non-Standard)
X27: =$A$7 -> PoE++ (802.3bt)

Sheet EXT-100 Instructions (hidden)
AV2: EXT-100

Sheet OneReach Instructions (hidden)
AV2: OR

Sheet Remote Enclosure Instructions (hidden)
AV2: PG-OAC

Sheet Enclosure Instructions (hidden)
AV2: PG-OAC

Sheet Cu Struct Cabling Template (hidden)
F1: Head End Name
AV2: Copper
B8: Cable | C8: Product Hyperlink | E8: Description | G8: Environment | H8: Always Hide?
B9: LANmark-SST | C9: CMP (LP 0.7A) | D9: CMR (LP 0.5A) | E9: Category 6A, 500 MHz, 0.255" OD, Indoor Rated, 23 AWG, -20°C to 105°C (CMP)/75°C (CMR) | G9: =IndoorEnvironment -> Indoor | H9: No
B10: LANmark-XTP | C10: CMP (LP 0.7A) | D10: CMR (LP 0.5A) | E10: Category 6A, 500 MHz, 0.275" OD, Indoor Rated, 23 AWG, -20°C to 105°C (CMP)/75°C (CMR) | G10: =IndoorEnvironment -> Indoor | H10: No
B11: LANmark-10G2 | C11: CMP (LP 0.5A) | D11: CMR | E11: Category 6A, 500 MHz, 0.300" (CMP)/0.320"(CMR) OD, Indoor Rated, 23 AWG, -20°C to 75°C | G11: =IndoorEnvironment -> Indoor | H11: No
B12: LANmark-10G FTP | C12: CMP (LP 0.7A) | D12: CMR (LP 0.5A) | E12: Shielded Category 6A, 500 MHz, 0.275" (CMP)/0.290" (CMR) OD, Indoor Rated, 23 AWG, -20°C to 105°C (CMP)/75°C (CMR) | G12: =IndoorEnvironment -> Indoor | H12: No
B13: LANmark-10G OSP | C13: Outside Plant | E13: Category 6A, 500 MHz, 0.355" OD, Outdoor Rated, 23 AWG, -40°C to 60°C | G13: =OutdoorEnvironment -> Outdoor | H13: No
B14: LANmark-2000 | C14: CMP (LP 0.5A) | D14: CMR | E14: Premium Category 6, 500 MHz, 0.220" (CMP)/0.230" OD, Indoor Rated, 23 AWG, -20°C to 90°C (CMP)/75°C (CMR) | G14: =IndoorEnvironment -> Indoor | H14: No
B15: LANmark-1000 | C15: CMP | D15: CMR | E15: Enhanced Category 6, 350 MHz, 0.225" (CMP)/0.230" (CMR) OD, Indoor Rated, 23 AWG, -20°C to 75°C | G15: =IndoorEnvironment -> Indoor | H15: No
B16: LANmark-6 | C16: CMP | D16: CMR | E16: Category 6, 250 MHz, 0.220" (CMP)/0.205" (CMR) OD, Indoor Rated, 24 AWG, -20°C to 75°C | G16: =IndoorEnvironment -> Indoor | H16: No
B17: LANmark-6 FTP | C17: CMP | D17: CMR | E17: Shielded Category 6, 250 MHz, 0.275" (CMP)/0.280" (CMR) OD, Indoor Rated, 23 AWG, -20°C to 90°C (CMP)/75°C (CMR) | G17: =IndoorEnvironment -> Indoor | H17: No
B18: LANmark-1000 OSP | C18: Outside Plant | E18: Enhanced Category 6, 350 MHz, 0.245" OD, Outdoor Rated, 23 AWG, -40°C to 60°C | G18: =OutdoorEnvironment -> Outdoor | H18: No
B19: LANmark-6 OSP | C19: Outside Plant | E19: Category 6, 250 MHz, 0.250" OD, Outdoor Rated, 23 AWG, -40°C to 60°C | G19: =OutdoorEnvironment -> Outdoor | H19: No
B20: LANmark-IP | C20: CMP (LP 0.7A) | E20: Category 5e, 100 MHz, 0.240" OD, Indoor Rated, 22 AWG, -20°C to 105°C | G20: =IndoorEnvironment -> Indoor | H20: No
B21: HyperPlus 5e | C21: CMP | D21: CMR | E21: Category 5e, 100 MHz, 0.210" (CMP)/0.190" (CMR) OD, Indoor Rated, 24 AWG, -20°C to 75°C | G21: =IndoorEnvironment -> Indoor | H21: No
B22: NOTE: Temperature and gauge size will impact the maximum supported length of 100 meters; please see ANSI/TIA-568.2-D for more details on how to derate the length due to these factors. | G22: =IndoorAndOutdoorEnvironment -> Indoor and Outdoor | H22: No
B23: NOTE: Temperature and gauge size will impact the maximum supported length of 100 meters; please see ANSI/TIA-568.2-D for more details on how to derate the length due to these factors. | G23: =IndoorEnvironment -> Indoor | H23: No
B24: NOTE: Temperature and gauge size will impact the maximum supported length of 100 meters; please see ANSI/TIA-568.2-D for more details on how to derate the length due to these factors. | G24: =OutdoorEnvironment -> Outdoor | H24: No

Sheet EXT-100 Part Numbers (hidden)
A1: Description | B1: Cable | C1: Color | D1: Category | E1: Part Number | F1: Container Type | G1: Hyperlink | H1: Length (ft) | I1: Categories | J1: Flame Rating Named Cells | K1: Cable | L1: Min Temp (°C) | M1: Max Temp (°C) | N1: Type | P1: Notes | Q1: Description | R1: Part Number | S1: Hyperlink | U1: Color Set 1 | V1: Color Set 2 | W1: Color Set 3 | X1: Color Set 4 | Y1: Color Set 5 | Z1: Color Set 6 | AA1: Color Set 7 | AB1: Color Set 8 | AC1: Color Set 9 | AD1: Color Set 10 | AE1: Messages | AG1: Power Level | AH1: Max Distance (ft) | AI1: Ref Temp (°C) | AK1: Temp Options | AM1: Temperature coefficent for copper | AO1: Cutoff | AP1: Distance (ft) | AY1: Category Flame Rating | AZ1: Cable Family Lookup
A2: =B2&" "&"("& C2 & ")" -> LANmark-IP CMP (Cat 5e) (Blue) | B2: =K18 -> LANmark-IP CMP (Cat 5e) | C2: Blue | D2: =$I$4 -> Cat 5e | E2: 11098078 | F2: Reel in a box | G2: https://www.leviton.com/en/docs/LevBT_LANmark-IP_5e.pdf | H2: 1000 | I2: Cat 6A | J2: =I6 -> EXT100FlameRatingCat6A | K2: LANmark-SST CMP (Cat 6A) | L2: -20 | M2: 105 | N2: =IndoorEnvironment -> Indoor | Q2: EXT-100 Extender Kit, containing a main unit with power adaptor and a remote unit | R2: 81001153 | S2: https://www.leviton.com/en/products/commercial/network-solutions/cable/berktek/network-channel-extenders/ext100-kits | U2: Black | V2: Black | W2: Black | X2: Blue | Y2: Blue | Z2: Black | AA2: Blue | AB2: Black | AC2: Blue | AD2: Black | AE2: Please select a cable first | AG2: =References!A3 -> Data Only | AH2: 2000 | AI2: 20 | AK2: °F | AM2: 0.00393 | AO2: 1 kft transition | AP2: 1000 | AV2: EXT-100 | AY2: =I2 & " " & I7 -> Cat 6A CMP | AZ2: =AY16 -> EXT100Cat6ACMP
A3: LANmark-IP CMP (Cat 5e) (Gray) | B3: =K18 -> LANmark-IP CMP (Cat 5e) | C3: Gray | D3: Cat 5e | E3: 11098080 | F3: Reel in a box | G3: https://www.leviton.com/en/docs/LevBT_LANmark-IP_5e.pdf | H3: 1000 | I3: Cat 6 | J3: =I11 -> EXT100FlameRatingCat6 | K3: LANmark-SST CMR (Cat 6A) | L3: -20 | M3: 75 | N3: Indoor | U3: Blue | V3: Blue | W3: Blue | X3: Dark Gray | Y3: Dark Gray | Z3: Blue | AA3: Dark Gray | AB3: Blue | AC3: Gray | AG3: =References!A4 -> PoE (802.3af) | AH3: 2000 | AK3: °C | AO3: 1.5 kft transition | AP3: 1500 | AY3: =I2 & " " & I8 -> Cat 6A CMR | AZ3: =AY22 -> EXT100Cat6ACMR
A4: LANmark-IP CMP (Cat 5e) (White) | B4: =K18 -> LANmark-IP CMP (Cat 5e) | C4: White | D4: Cat 5e | E4: 11098079 | F4: Reel in a box | G4: https://www.leviton.com/en/docs/LevBT_LANmark-IP_5e.pdf | H4: 1000 | I4: Cat 5e | J4: =I17 -> EXT100FlameRatingCat5e | K4: LANmark-XTP CMP (Cat 6A) | L4: -20 | M4: 105 | N4: Indoor | U4: Brown | V4: Dark Gray | W4: Gray | X4: Green | Y4: Green | Z4: Brown | AA4: Green | AB4: Gray | AC4: White | AG4: =References!A5 -> PoE+ (802.3at) | AH4: 1250 | AI4: Min Outdoor (°C) | AY4: =I2 & " " & I9 -> Cat 6A OSP (Unlisted) | AZ4: =AY28 -> EXT100Cat6AOSP
A5: LANmark-IP CMP (Cat 5e) (Yellow) | B5: =K18 -> LANmark-IP CMP (Cat 5e) | C5: Yellow | D5: Cat 5e | E5: 11140866 | F5: Reel in a box | G5: https://www.leviton.com/en/docs/LevBT_LANmark-IP_5e.pdf | H5: 1000 | K5: LANmark-XTP CMR (Cat 6A) | L5: -20 | M5: 75 | N5: Indoor | U5: Dark Gray | V5: Green | W5: Green | X5: Orange | Y5: Light Gray | Z5: Gray | AA5: Orange | AB5: Green | AC5: Yellow | AI5: =MIN(L25:L31) -> -40 | AY5: =I3 & " " & I12 -> Cat 6 CMP | AZ5: =AZ13 -> EXT100Cat6CMP
A6: HyperPlus 5e CMP (Cat 5e) (White) | B6: =K19 -> HyperPlus 5e CMP (Cat 5e) | C6: White | D6: Cat 5e | E6: 10032223 | F6: TekPak Box | G6: https://www.leviton.com/en/docs/LevBT_HyperPlus_5e_CMP_UTP.pdf | H6: 1000 | I6: EXT100FlameRatingCat6A | K6: LANmark-10G2 CMP (Cat 6A) | L6: -20 | M6: 75 | N6: Indoor | U6: Green | V6: Orange | W6: Orange | X6: Pink | Y6: Orange | Z6: Green | AA6: Red | AB6: Red | AI6: Max Outdoor (°C) | AY6: =I3 & " " & I13 -> Cat 6 CMR | AZ6: =AZ19 -> EXT100Cat6CMR
A7: HyperPlus 5e CMP (Cat 5e) (Black) | B7: =K19 -> HyperPlus 5e CMP (Cat 5e) | C7: Black | D7: Cat 5e | E7: 10033521 | F7: TekPak Box | G7: https://www.leviton.com/en/docs/LevBT_HyperPlus_5e_CMP_UTP.pdf | H7: 1000 | I7: CMP | K7: LANmark-10G2 CMR (Cat 6A) | L7: -20 | M7: 75 | N7: Indoor | U7: Orange | V7: Pink | W7: Pink | X7: Red | Y7: Red | Z7: Orange | AA7: Violet | AB7: White | AI7: =MAX(M25:M31) -> 60 | AY7: =I3 & " " & I14 -> Cat 6 CMX Outdoor | AZ7: =AZ27 -> EXT100Cat6CMX
A8: HyperPlus 5e CMP (Cat 5e) (Red) | B8: =K19 -> HyperPlus 5e CMP (Cat 5e) | C8: Red | D8: Cat 5e | E8: 10032229 | F8: TekPak Box | G8: https://www.leviton.com/en/docs/LevBT_HyperPlus_5e_CMP_UTP.pdf | H8: 1000 | I8: CMR | K8: LANmark-10G FTP CMP (Cat 6A) | L8: -20 | M8: 105 | N8: Indoor | U8: Pink | V8: Red | W8: Red | X8: Violet | Y8: Violet | Z8: Red | AA8: White | AB8: Yellow | AI8: Min Indoor (°C) | AY8: =I3 & " " & I15 -> Cat 6 OSP (Unlisted) | AZ8: =AZ31 -> EXT100Cat6OSP
A9: HyperPlus 5e CMP (Cat 5e) (Green) | B9: =K19 -> HyperPlus 5e CMP (Cat 5e) | C9: Green | D9: Cat 5e | E9: 10032232 | F9: TekPak Box | G9: https://www.leviton.com/en/docs/LevBT_HyperPlus_5e_CMP_UTP.pdf | H9: 1000 | I9: OSP (Unlisted) | K9: LANmark-10G FTP CMR (Cat 6A) | L9: -20 | M9: 75 | N9: Indoor | U9: Red | V9: Violet | W9: Violet | X9: White | Y9: White | Z9: White | AA9: Yellow | AI9: =MIN(L2:L24) -> -40 | AY9: =I4 & " " & I18 -> Cat 5e CMP | AZ9: =BA13 -> EXT100Cat5eCMP
A10: HyperPlus 5e CMP (Cat 5e) (Pink) | B10: =K19 -> HyperPlus 5e CMP (Cat 5e) | C10: Pink | D10: Cat 5e | E10: 10033814 | F10: TekPak Box | G10: https://www.leviton.com/en/docs/LevBT_HyperPlus_5e_CMP_UTP.pdf | H10: 1000 | K10: LANmark-2000 CMP (Cat 6) | L10: -20 | M10: 90 | N10: Indoor | U10: Violet | V10: White | W10: White | X10: Yellow | Y10: Yellow | Z10: Yellow | AI10: Max Indoor (°C) | AY10: =I4 & " " & I19 -> Cat 5e CMR | AZ10: =BA17 -> EXT100Cat5eCMR
A11: HyperPlus 5e CMP (Cat 5e) (Brown) | B11: =K19 -> HyperPlus 5e CMP (Cat 5e) | C11: Brown | D11: Cat 5e | E11: 10063926 | F11: TekPak Box | G11: https://www.leviton.com/en/docs/LevBT_HyperPlus_5e_CMP_UTP.pdf | H11: 1000 | I11: EXT100FlameRatingCat6 | K11: LANmark-2000 CMR (Cat 6) | L11: -20 | M11: 75 | N11: Indoor | U11: White | V11: Yellow | W11: Yellow | AI11: =MAX(M2:M24) -> 105 | AY11: =I4 & " " & I20 -> Cat 5e CMX Outdoor | AZ11: =BA22 -> EXT100Cat5eCMX
A12: HyperPlus 5e CMP (Cat 5e) (Yellow) | B12: =K19 -> HyperPlus 5e CMP (Cat 5e) | C12: Yellow | D12: Cat 5e | E12: 10032235 | F12: TekPak Box | G12: https://www.leviton.com/en/docs/LevBT_HyperPlus_5e_CMP_UTP.pdf | H12: 1000 | I12: CMP | K12: LANmark-1000 CMP (Cat 6) | L12: -20 | M12: 75 | N12: Indoor | U12: Yellow | AI12: Min Indoor/Outdoor (°C)
A13: HyperPlus 5e CMP (Cat 5e) (Blue) | B13: =K19 -> HyperPlus 5e CMP (Cat 5e) | C13: Blue | D13: Cat 5e | E13: 10032227 | F13: TekPak Box | G13: https://www.leviton.com/en/docs/LevBT_HyperPlus_5e_CMP_UTP.pdf | H13: 1000 | I13: CMR | K13: LANmark-1000 CMR (Cat 6) | L13: -20 | M13: 75 | N13: Indoor | AI13: =MIN(L21:L24) -> -40 | AY13: EXT100NoCatNoFlame | AZ13: EXT100Cat6CMP | BA13: EXT100Cat5eCMP
A14: HyperPlus 5e CMP (Cat 5e) (Violet) | B14: =K19 -> HyperPlus 5e CMP (Cat 5e) | C14: Violet | D14: Cat 5e | E14: 10034885 | F14: TekPak Box | G14: https://www.leviton.com/en/docs/LevBT_HyperPlus_5e_CMP_UTP.pdf | H14: 1000 | I14: CMX Outdoor | K14: LANmark-6 CMP (Cat 6) | L14: -20 | M14: 75 | N14: Indoor | U14: ColorSet1 | V14: ColorSet2 | W14: ColorSet3 | X14: ColorSet4 | Y14: ColorSet5 | Z14: ColorSet6 | AA14: ColorSet7 | AB14: ColorSet8 | AC14: ColorSet9 | AD14: ColorSet10 | AE14: NoColorSelection | AI14: Max Indoor/Outdoor (°C) | AY14: Please select a flame rating before proceeding | AZ14: =$K$10 -> LANmark-2000 CMP (Cat 6) | BA14: =$K$18 -> LANmark-IP CMP (Cat 5e)
A15: HyperPlus 5e CMP (Cat 5e) (Orange) | B15: =K19 -> HyperPlus 5e CMP (Cat 5e) | C15: Orange | D15: Cat 5e | E15: 10032236 | F15: TekPak Box | G15: https://www.leviton.com/en/docs/LevBT_HyperPlus_5e_CMP_UTP.pdf | H15: 1000 | I15: OSP (Unlisted) | K15: LANmark-6 CMR (Cat 6) | L15: -20 | M15: 75 | N15: Indoor | U15: =K19 -> HyperPlus 5e CMP (Cat 5e) | V15: =K15 -> LANmark-6 CMR (Cat 6) | W15: =K8 -> LANmark-10G FTP CMP (Cat 6A) | X15: =K11 -> LANmark-2000 CMR (Cat 6) | Y15: =K4 -> LANmark-XTP CMP (Cat 6A) | Z15: =K17 -> LANmark-6 FTP CMR (Cat 6) | AA15: =K5 -> LANmark-XTP CMR (Cat 6A) | AB15: =K9 -> LANmark-10G FTP CMR (Cat 6A) | AC15: =K18 -> LANmark-IP CMP (Cat 5e) | AD15: =K27 -> LANmark-6 OSP (Cat 6) | AI15: =MAX(M21:M24) -> 80 | AZ15: =$K$12 -> LANmark-1000 CMP (Cat 6) | BA15: =$K$19 -> HyperPlus 5e CMP (Cat 5e)
A16: HyperPlus 5e CMP (Cat 5e) (Dark Gray) | B16: =K19 -> HyperPlus 5e CMP (Cat 5e) | C16: Dark Gray | D16: Cat 5e | E16: 10032207 | F16: TekPak Box | G16: https://www.leviton.com/en/docs/LevBT_HyperPlus_5e_CMP_UTP.pdf | H16: 1000 | K16: LANmark-6 FTP CMP (Cat 6) | L16: -20 | M16: 75 | N16: Indoor | U16: =K20 -> HyperPlus 5e CMR (Cat 5e) | V16: =K6 -> LANmark-10G2 CMP (Cat 6A) | W16: =K14 -> LANmark-6 CMP (Cat 6) | X16: Future Cable 8 | Y16: Future Cable 13 | Z16: Future Cable 18 | AA16: Future Cable 23 | AB16: Future Cable 28 | AC16: Future Cable 33 | AD16: =K26 -> LANmark-1000 OSP (Cat 6) | AE16: Filler 1 | AY16: EXT100Cat6ACMP | AZ16: =$K$14 -> LANmark-6 CMP (Cat 6)
A17: HyperPlus 5e CMR (Cat 5e) (White) | B17: =K20 -> HyperPlus 5e CMR (Cat 5e) | C17: White | D17: Cat 5e | E17: 10032535 | F17: TekPak Box | G17: https://www.leviton.com/en/docs/LevBT_HyperPlus_5e_Riser_Rated_Category_5e_UTP.pdf | H17: 1000 | I17: EXT100FlameRatingCat5e | K17: LANmark-6 FTP CMR (Cat 6) | L17: -20 | M17: 75 | N17: Indoor | U17: =K14 -> LANmark-6 CMP (Cat 6) | V17: =K7 -> LANmark-10G2 CMR (Cat 6A) | W17: Future Cable 4 | X17: Future Cable 9 | Y17: Future Cable 14 | Z17: Future Cable 19 | AA17: Future Cable 24 | AB17: Future Cable 29 | AC17: Future Cable 34 | AD17: =K25 -> LANmark-10G OSP (Cat 6A) | AE17: Filler 2 | AY17: =$K$2 -> LANmark-SST CMP (Cat 6A) | AZ17: =$K$16 -> LANmark-6 FTP CMP (Cat 6) | BA17: EXT100Cat5eCMR
A18: HyperPlus 5e CMR (Cat 5e) (Black) | B18: =K20 -> HyperPlus 5e CMR (Cat 5e) | C18: Black | D18: Cat 5e | E18: 10032536 | F18: TekPak Box | G18: https://www.leviton.com/en/docs/LevBT_HyperPlus_5e_Riser_Rated_Category_5e_UTP.pdf | H18: 1000 | I18: CMP | K18: LANmark-IP CMP (Cat 5e) | L18: -20 | M18: 105 | N18: Indoor | U18: =K12 -> LANmark-1000 CMP (Cat 6) | V18: Future Cable 1 | W18: Future Cable 5 | X18: Future Cable 10 | Y18: Future Cable 15 | Z18: Future Cable 20 | AA18: Future Cable 25 | AB18: Future Cable 30 | AC18: Future Cable 35 | AD18: Future Cable 38 | AE18: Filler 3 | AY18: =$K$4 -> LANmark-XTP CMP (Cat 6A) | BA18: =$K$20 -> HyperPlus 5e CMR (Cat 5e)
A19: HyperPlus 5e CMR (Cat 5e) (Red) | B19: =K20 -> HyperPlus 5e CMR (Cat 5e) | C19: Red | D19: Cat 5e | E19: 10033584 | F19: TekPak Box | G19: https://www.leviton.com/en/docs/LevBT_HyperPlus_5e_Riser_Rated_Category_5e_UTP.pdf | H19: 1000 | I19: CMR | K19: HyperPlus 5e CMP (Cat 5e) | L19: -20 | M19: 75 | N19: Indoor | U19: =K13 -> LANmark-1000 CMR (Cat 6) | V19: Future Cable 2 | W19: Future Cable 6 | X19: Future Cable 11 | Y19: Future Cable 16 | Z19: Future Cable 21 | AA19: Future Cable 26 | AB19: Future Cable 31 | AC19: Future Cable 36 | AD19: Future Cable 39 | AE19: Filler 4 | AI19: ='OneReach Part Numbers'!B10 -> Surge Protector Message | AY19: =$K$6 -> LANmark-10G2 CMP (Cat 6A) | AZ19: EXT100Cat6CMR | BA19: =$K$23 -> LANmark-A753 CMR/CMX Outdoor (Cat 5e)
A20: HyperPlus 5e CMR (Cat 5e) (Green) | B20: =K20 -> HyperPlus 5e CMR (Cat 5e) | C20: Green | D20: Cat 5e | E20: 10032539 | F20: TekPak Box | G20: https://www.leviton.com/en/docs/LevBT_HyperPlus_5e_Riser_Rated_Category_5e_UTP.pdf | H20: 1000 | I20: CMX Outdoor | K20: HyperPlus 5e CMR (Cat 5e) | L20: -20 | M20: 75 | N20: Indoor | U20: =K10 -> LANmark-2000 CMP (Cat 6) | V20: Future Cable 3 | W20: Future Cable 7 | X20: Future Cable 12 | Y20: Future Cable 17 | Z20: Future Cable 22 | AA20: Future Cable 27 | AB20: Future Cable 32 | AC20: Future Cable 37 | AD20: Future Cable 40 | AE20: Filler 5 | AI20: Surge Protection Recommendations: Sold by a third-party (Ditek) | AY20: =$K$8 -> LANmark-10G FTP CMP (Cat 6A) | AZ20: =$K$11 -> LANmark-2000 CMR (Cat 6) | BA20: =$K$24 -> LANmark-B537 CMR/CMX Outdoor (Cat 5e)
A21: HyperPlus 5e CMR (Cat 5e) (Blue) | B21: =K20 -> HyperPlus 5e CMR (Cat 5e) | C21: Blue | D21: Cat 5e | E21: 10032528 | F21: TekPak Box | G21: https://www.leviton.com/en/docs/LevBT_HyperPlus_5e_Riser_Rated_Category_5e_UTP.pdf | H21: 1000 | K21: LANmark-B840 CMR/CMX Outdoor [PLTC] (Cat 6) | L21: -40 | M21: 80 | N21: =IndoorAndOutdoorEnvironment -> Indoor and Outdoor | AI21: Some indoor and industrial environments have equipment that create surge events. As such, the use of surge protection will need to be evaluated based on the installation locations. | AZ21: =$K$13 -> LANmark-1000 CMR (Cat 6)
A22: HyperPlus 5e CMR (Cat 5e) (Violet) | B22: =K20 -> HyperPlus 5e CMR (Cat 5e) | C22: Violet | D22: Cat 5e | E22: 10044832 | F22: TekPak Box | G22: https://www.leviton.com/en/docs/LevBT_HyperPlus_5e_Riser_Rated_Category_5e_UTP.pdf | H22: 1000 | I22: EXT100FlameRatingUnspecified | K22: LANmark-A689 CMR/CMX Outdoor (Cat 6) | L22: -40 | M22: 80 | N22: Indoor and Outdoor | U22: Color Set 11 | V22: Color Set 12 | AY22: EXT100Cat6ACMR | AZ22: =$K$15 -> LANmark-6 CMR (Cat 6) | BA22: EXT100Cat5eCMX
A23: HyperPlus 5e CMR (Cat 5e) (Orange) | B23: =K20 -> HyperPlus 5e CMR (Cat 5e) | C23: Orange | D23: Cat 5e | E23: 10033808 | F23: TekPak Box | G23: https://www.leviton.com/en/docs/LevBT_HyperPlus_5e_Riser_Rated_Category_5e_UTP.pdf | H23: 1000 | I23: Please select a category before proceeding | K23: LANmark-A753 CMR/CMX Outdoor (Cat 5e) | L23: -40 | M23: 80 | N23: Indoor and Outdoor | U23: Black | V23: Teal | AI23: Surge Information | AY23: =$K$3 -> LANmark-SST CMR (Cat 6A) | AZ23: =$K$17 -> LANmark-6 FTP CMR (Cat 6) | BA23: =$K$23 -> LANmark-A753 CMR/CMX Outdoor (Cat 5e)
A24: HyperPlus 5e CMR (Cat 5e) (Pink) | B24: =K20 -> HyperPlus 5e CMR (Cat 5e) | C24: Pink | D24: Cat 5e | E24: 10032532 | F24: TekPak Box | G24: https://www.leviton.com/en/docs/LevBT_HyperPlus_5e_Riser_Rated_Category_5e_UTP.pdf | H24: 1000 | K24: LANmark-B537 CMR/CMX Outdoor (Cat 5e) | L24: -40 | M24: 80 | N24: Indoor and Outdoor | U24: Blue | V24: Black | AI24: Ditek DTK-MRJEXTS | AY24: =$K$5 -> LANmark-XTP CMR (Cat 6A) | AZ24: =$K$21 -> LANmark-B840 CMR/CMX Outdoor [PLTC] (Cat 6) | BA24: =$K$24 -> LANmark-B537 CMR/CMX Outdoor (Cat 5e)
A25: HyperPlus 5e CMR (Cat 5e) (Yellow) | B25: =K20 -> HyperPlus 5e CMR (Cat 5e) | C25: Yellow | D25: Cat 5e | E25: 10032531 | F25: TekPak Box | G25: https://www.leviton.com/en/docs/LevBT_HyperPlus_5e_Riser_Rated_Category_5e_UTP.pdf | H25: 1000 | K25: LANmark-10G OSP (Cat 6A) | L25: -40 | M25: 60 | N25: =OutdoorEnvironment -> Outdoor | U25: Dark Gray | AI25: RJ45 surge protector; {0} in the closet and {1} at the remote ends. The Out port should be connected to the EXT-100 units. | AY25: =$K$7 -> LANmark-10G2 CMR (Cat 6A) | AZ25: =$K$22 -> LANmark-A689 CMR/CMX Outdoor (Cat 6)
A26: HyperPlus 5e CMR (Cat 5e) (Dark Gray) | B26: =K20 -> HyperPlus 5e CMR (Cat 5e) | C26: Dark Gray | D26: Cat 5e | E26: 10032510 | F26: TekPak Box | G26: https://www.leviton.com/en/docs/LevBT_HyperPlus_5e_Riser_Rated_Category_5e_UTP.pdf | H26: 1000 | K26: LANmark-1000 OSP (Cat 6) | L26: -40 | M26: 60 | N26: =OutdoorEnvironment -> Outdoor | U26: Green | AI26: RJ45 surge protector. The Out port should be connected to the EXT-100 units. | AY26: =$K$9 -> LANmark-10G FTP CMR (Cat 6A)
A27: HyperPlus 5e CMR (Cat 5e) (Brown) | B27: =K20 -> HyperPlus 5e CMR (Cat 5e) | C27: Brown | D27: Cat 5e | E27: 10104234 | F27: TekPak Box | G27: https://www.leviton.com/en/docs/LevBT_HyperPlus_5e_Riser_Rated_Category_5e_UTP.pdf | H27: 1000 | K27: LANmark-6 OSP (Cat 6) | L27: -40 | M27: 60 | N27: =OutdoorEnvironment -> Outdoor | U27: Orange | AI27: https://www.diteksurgeprotection.com/products/network-protection/288-dtk-mrjexts | AZ27: EXT100Cat6CMX
A28: LANmark-6 CMP (Cat 6) (Blue) | B28: =K14 -> LANmark-6 CMP (Cat 6) | C28: Blue | D28: =$I$3 -> Cat 6 | E28: 10136226 | F28: TekPak Box | G28: https://www.leviton.com/en/docs/LevBT_LANmark-6_Plenum.pdf | H28: 1000 | U28: Red | AY28: EXT100Cat6AOSP | AZ28: =$K$21 -> LANmark-B840 CMR/CMX Outdoor [PLTC] (Cat 6)
A29: LANmark-6 CMP (Cat 6) (White) | B29: =K14 -> LANmark-6 CMP (Cat 6) | C29: White | D29: Cat 6 | E29: 10136230 | F29: TekPak Box | G29: https://www.leviton.com/en/docs/LevBT_LANmark-6_Plenum.pdf | H29: 1000 | U29: Violet | AI29: Message for derating | AY29: =$K$25 -> LANmark-10G OSP (Cat 6A) | AZ29: =$K$22 -> LANmark-A689 CMR/CMX Outdoor (Cat 6)
A30: LANmark-6 CMP (Cat 6) (Yellow) | B30: =K14 -> LANmark-6 CMP (Cat 6) | C30: Yellow | D30: Cat 6 | E30: 10136749 | F30: TekPak Box | G30: https://www.leviton.com/en/docs/LevBT_LANmark-6_Plenum.pdf | H30: 1000 | U30: White | AI30: NOTE: Temperature and gauge size will impact the maximum supported length of 100 meters from the remote; please see ANSI/TIA-568.2-D for more details on how to derate the length due to these factors.
A31: LANmark-6 CMP (Cat 6) (Violet) | B31: =K14 -> LANmark-6 CMP (Cat 6) | C31: Violet | D31: Cat 6 | E31: 10137364 | F31: TekPak Box | G31: https://www.leviton.com/en/docs/LevBT_LANmark-6_Plenum.pdf | H31: 1000 | U31: Yellow | AZ31: EXT100Cat6OSP
A32: LANmark-6 CMP (Cat 6) (Green) | B32: =K14 -> LANmark-6 CMP (Cat 6) | C32: Green | D32: Cat 6 | E32: 10136748 | F32: TekPak Box | G32: https://www.leviton.com/en/docs/LevBT_LANmark-6_Plenum.pdf | H32: 1000 | AI32: Section Headers | AZ32: =$K$26 -> LANmark-1000 OSP (Cat 6)
A33: LANmark-6 CMP (Cat 6) (Red) | B33: =K14 -> LANmark-6 CMP (Cat 6) | C33: Red | D33: Cat 6 | E33: 10137365 | F33: TekPak Box | G33: https://www.leviton.com/en/docs/LevBT_LANmark-6_Plenum.pdf | H33: 1000 | AI33: Recommended CMR/CMX Outdoor Rated Patch Cords For Remote/Devices Connections | AZ33: =$K$27 -> LANmark-6 OSP (Cat 6)
A34: LANmark-6 CMP (Cat 6) (Orange) | B34: =K14 -> LANmark-6 CMP (Cat 6) | C34: Orange | D34: Cat 6 | E34: 10141073 | F34: TekPak Box | G34: https://www.leviton.com/en/docs/LevBT_LANmark-6_Plenum.pdf | H34: 1000
A35: LANmark-6 CMP (Cat 6) (Black) | B35: =K14 -> LANmark-6 CMP (Cat 6) | C35: Black | D35: Cat 6 | E35: 10188830 | F35: TekPak Box | G35: https://www.leviton.com/en/docs/LevBT_LANmark-6_Plenum.pdf | H35: 1000 | U35: ColorSet11 | V35: ColorSet12 | AI35: IE Patch Cord
A36: LANmark-6 CMP (Cat 6) (Pink) | B36: =K14 -> LANmark-6 CMP (Cat 6) | C36: Pink | D36: Cat 6 | E36: 11049196 | F36: TekPak Box | G36: https://www.leviton.com/en/docs/LevBT_LANmark-6_Plenum.pdf | H36: 1000 | U36: =K2 -> LANmark-SST CMP (Cat 6A) | V36: =K21 -> LANmark-B840 CMR/CMX Outdoor [PLTC] (Cat 6) | AI36: LANmark-C637 Cordset
A37: LANmark-6 CMP (Cat 6) (Brown) | B37: =K14 -> LANmark-6 CMP (Cat 6) | C37: Brown | D37: Cat 6 | E37: 11060822 | F37: TekPak Box | G37: https://www.leviton.com/en/docs/LevBT_LANmark-6_Plenum.pdf | H37: 1000 | U37: =K3 -> LANmark-SST CMR (Cat 6A) | V37: =K22 -> LANmark-A689 CMR/CMX Outdoor (Cat 6) | AI37: https://www.leviton.com/en/docs/LevBT_LANmark-C637_Cordset_Cat6A_SF-UTP_TPE_RJ-RJ_IP20.pdf
A38: LANmark-6 CMP (Cat 6) (Dark Gray) | B38: =K14 -> LANmark-6 CMP (Cat 6) | C38: Dark Gray | D38: Cat 6 | E38: 11091258 | F38: TekPak Box | G38: https://www.leviton.com/en/docs/LevBT_LANmark-6_Plenum.pdf | H38: 1000 | U38: Future Cable 42 | V38: =K23 -> LANmark-A753 CMR/CMX Outdoor (Cat 5e)
A39: LANmark-6 CMR (Cat 6) (Blue) | B39: =K15 -> LANmark-6 CMR (Cat 6) | C39: Blue | D39: Cat 6 | E39: 10136339 | F39: TekPak Box | G39: https://www.leviton.com/en/docs/LevBT_LANmark-6_Riser.pdf | H39: 1000 | U39: Future Cable 43 | V39: =K24 -> LANmark-B537 CMR/CMX Outdoor (Cat 5e) | AI39: Message for submersion
A40: LANmark-6 CMR (Cat 6) (White) | B40: =K15 -> LANmark-6 CMR (Cat 6) | C40: White | D40: Cat 6 | E40: 10136340 | F40: TekPak Box | G40: https://www.leviton.com/en/docs/LevBT_LANmark-6_Riser.pdf | H40: 1000 | U40: Future Cable 44 | V40: Future Cable 46 | AI40: NOTE: CMR/CMX Outdoor cables, designed for damp locations, cannot be submerged (e.g. placed in a conduit that could be flooded). Areas involving such cables should instead use OSP-rated cables.
A41: LANmark-6 CMR (Cat 6) (Yellow) | B41: =K15 -> LANmark-6 CMR (Cat 6) | C41: Yellow | D41: Cat 6 | E41: 10136753 | F41: TekPak Box | G41: https://www.leviton.com/en/docs/LevBT_LANmark-6_Riser.pdf | H41: 1000 | U41: Future Cable 45 | V41: Future Cable 47
A42: LANmark-6 CMR (Cat 6) (Black) | B42: =K15 -> LANmark-6 CMR (Cat 6) | C42: Black | D42: Cat 6 | E42: 10170932 | F42: TekPak Box | G42: https://www.leviton.com/en/docs/LevBT_LANmark-6_Riser.pdf | H42: 1000
A43: LANmark-6 CMR (Cat 6) (Green) | B43: =K15 -> LANmark-6 CMR (Cat 6) | C43: Green | D43: Cat 6 | E43: 10136752 | F43: TekPak Box | G43: https://www.leviton.com/en/docs/LevBT_LANmark-6_Riser.pdf | H43: 1000
A44: LANmark-6 CMR (Cat 6) (Red) | B44: =K15 -> LANmark-6 CMR (Cat 6) | C44: Red | D44: Cat 6 | E44: 10170931 | F44: TekPak Box | G44: https://www.leviton.com/en/docs/LevBT_LANmark-6_Riser.pdf | H44: 1000
A45: LANmark-6 CMR (Cat 6) (Orange) | B45: =K15 -> LANmark-6 CMR (Cat 6) | C45: Orange | D45: Cat 6 | E45: 10189773 | F45: TekPak Box | G45: https://www.leviton.com/en/docs/LevBT_LANmark-6_Riser.pdf | H45: 1000
A46: LANmark-6 CMR (Cat 6) (Pink) | B46: =K15 -> LANmark-6 CMR (Cat 6) | C46: Pink | D46: Cat 6 | E46: 11058425 | F46: TekPak Box | G46: https://www.leviton.com/en/docs/LevBT_LANmark-6_Riser.pdf | H46: 1000
A47: LANmark-6 CMR (Cat 6) (Violet) | B47: =K15 -> LANmark-6 CMR (Cat 6) | C47: Violet | D47: Cat 6 | E47: 11072302 | F47: TekPak Box | G47: https://www.leviton.com/en/docs/LevBT_LANmark-6_Riser.pdf | H47: 1000
A48: LANmark-6 CMR (Cat 6) (Dark Gray) | B48: =K15 -> LANmark-6 CMR (Cat 6) | C48: Dark Gray | D48: Cat 6 | E48: 11091257 | F48: TekPak Box | G48: https://www.leviton.com/en/docs/LevBT_LANmark-6_Riser.pdf | H48: 1000
A49: LANmark-1000 CMP (Cat 6) (Dark Gray) | B49: =K12 -> LANmark-1000 CMP (Cat 6) | C49: Dark Gray | D49: Cat 6 | E49: 11091087 | F49: TekPak Box | G49: https://www.leviton.com/en/docs/LevBT_LANmark-1000_Plenum.pdf | H49: 1000
A50: LANmark-1000 CMP (Cat 6) (Yellow) | B50: =K12 -> LANmark-1000 CMP (Cat 6) | C50: Yellow | D50: Cat 6 | E50: 10032090 | F50: TekPak Box | G50: https://www.leviton.com/en/docs/LevBT_LANmark-1000_Plenum.pdf | H50: 1000
A51: LANmark-1000 CMP (Cat 6) (White) | B51: =K12 -> LANmark-1000 CMP (Cat 6) | C51: White | D51: Cat 6 | E51: 10032092 | F51: TekPak Box | G51: https://www.leviton.com/en/docs/LevBT_LANmark-1000_Plenum.pdf | H51: 1000
A52: LANmark-1000 CMP (Cat 6) (Blue) | B52: =K12 -> LANmark-1000 CMP (Cat 6) | C52: Blue | D52: Cat 6 | E52: 10032094 | F52: TekPak Box | G52: https://www.leviton.com/en/docs/LevBT_LANmark-1000_Plenum.pdf | H52: 1000
A53: LANmark-1000 CMP (Cat 6) (Green) | B53: =K12 -> LANmark-1000 CMP (Cat 6) | C53: Green | D53: Cat 6 | E53: 10032097 | F53: TekPak Box | G53: https://www.leviton.com/en/docs/LevBT_LANmark-1000_Plenum.pdf | H53: 1000
A54: LANmark-1000 CMP (Cat 6) (Violet) | B54: =K12 -> LANmark-1000 CMP (Cat 6) | C54: Violet | D54: Cat 6 | E54: 10033809 | F54: TekPak Box | G54: https://www.leviton.com/en/docs/LevBT_LANmark-1000_Plenum.pdf | H54: 1000
A55: LANmark-1000 CMP (Cat 6) (Pink) | B55: =K12 -> LANmark-1000 CMP (Cat 6) | C55: Pink | D55: Cat 6 | E55: 10033811 | F55: TekPak Box | G55: https://www.leviton.com/en/docs/LevBT_LANmark-1000_Plenum.pdf | H55: 1000
A56: LANmark-1000 CMP (Cat 6) (Red) | B56: =K12 -> LANmark-1000 CMP (Cat 6) | C56: Red | D56: Cat 6 | E56: 10033996 | F56: TekPak Box | G56: https://www.leviton.com/en/docs/LevBT_LANmark-1000_Plenum.pdf | H56: 1000
A57: LANmark-1000 CMP (Cat 6) (Orange) | B57: =K12 -> LANmark-1000 CMP (Cat 6) | C57: Orange | D57: Cat 6 | E57: 10033997 | F57: TekPak Box | G57: https://www.leviton.com/en/docs/LevBT_LANmark-1000_Plenum.pdf | H57: 1000
A58: LANmark-1000 CMP (Cat 6) (Black) | B58: =K12 -> LANmark-1000 CMP (Cat 6) | C58: Black | D58: Cat 6 | E58: 10035304 | F58: TekPak Box | G58: https://www.leviton.com/en/docs/LevBT_LANmark-1000_Plenum.pdf | H58: 1000
A59: LANmark-1000 CMP (Cat 6) (Brown) | B59: =K12 -> LANmark-1000 CMP (Cat 6) | C59: Brown | D59: Cat 6 | E59: 10043530 | F59: TekPak Box | G59: https://www.leviton.com/en/docs/LevBT_LANmark-1000_Plenum.pdf | H59: 1000
A60: LANmark-1000 CMR (Cat 6) (Dark Gray) | B60: =K13 -> LANmark-1000 CMR (Cat 6) | C60: Dark Gray | D60: =$I$3 -> Cat 6 | E60: 11096490 | F60: TekPak Box | G60: https://www.leviton.com/en/docs/LevBT_LANmark-1000_Riser.pdf | H60: 1000
A61: LANmark-1000 CMR (Cat 6) (Blue) | B61: =K13 -> LANmark-1000 CMR (Cat 6) | C61: Blue | D61: Cat 6 | E61: 10032455 | F61: TekPak Box | G61: https://www.leviton.com/en/docs/LevBT_LANmark-1000_Riser.pdf | H61: 1000
A62: LANmark-1000 CMR (Cat 6) (White) | B62: =K13 -> LANmark-1000 CMR (Cat 6) | C62: White | D62: Cat 6 | E62: 10032459 | F62: TekPak Box | G62: https://www.leviton.com/en/docs/LevBT_LANmark-1000_Riser.pdf | H62: 1000
A63: LANmark-1000 CMR (Cat 6) (Yellow) | B63: =K13 -> LANmark-1000 CMR (Cat 6) | C63: Yellow | D63: Cat 6 | E63: 10032461 | F63: TekPak Box | G63: https://www.leviton.com/en/docs/LevBT_LANmark-1000_Riser.pdf | H63: 1000
A64: LANmark-1000 CMR (Cat 6) (Red) | B64: =K13 -> LANmark-1000 CMR (Cat 6) | C64: Red | D64: Cat 6 | E64: 10032477 | F64: TekPak Box | G64: https://www.leviton.com/en/docs/LevBT_LANmark-1000_Riser.pdf | H64: 1000
A65: LANmark-1000 CMR (Cat 6) (Green) | B65: =K13 -> LANmark-1000 CMR (Cat 6) | C65: Green | D65: Cat 6 | E65: 10032479 | F65: TekPak Box | G65: https://www.leviton.com/en/docs/LevBT_LANmark-1000_Riser.pdf | H65: 1000
A66: LANmark-1000 CMR (Cat 6) (Violet) | B66: =K13 -> LANmark-1000 CMR (Cat 6) | C66: Violet | D66: Cat 6 | E66: 10032501 | F66: TekPak Box | G66: https://www.leviton.com/en/docs/LevBT_LANmark-1000_Riser.pdf | H66: 1000
A67: LANmark-1000 CMR (Cat 6) (Black) | B67: =K13 -> LANmark-1000 CMR (Cat 6) | C67: Black | D67: Cat 6 | E67: 10033815 | F67: TekPak Box | G67: https://www.leviton.com/en/docs/LevBT_LANmark-1000_Riser.pdf | H67: 1000
A68: LANmark-1000 CMR (Cat 6) (Pink) | B68: =K13 -> LANmark-1000 CMR (Cat 6) | C68: Pink | D68: Cat 6 | E68: 10042063 | F68: TekPak Box | G68: https://www.leviton.com/en/docs/LevBT_LANmark-1000_Riser.pdf | H68: 1000
A69: LANmark-1000 CMR (Cat 6) (Orange) | B69: =K13 -> LANmark-1000 CMR (Cat 6) | C69: Orange | D69: Cat 6 | E69: 10042077 | F69: TekPak Box | G69: https://www.leviton.com/en/docs/LevBT_LANmark-1000_Riser.pdf | H69: 1000
A70: LANmark-1000 CMR (Cat 6) (Brown) | B70: =K13 -> LANmark-1000 CMR (Cat 6) | C70: Brown | D70: Cat 6 | E70: 11061484 | F70: TekPak Box | G70: https://www.leviton.com/en/docs/LevBT_LANmark-1000_Riser.pdf | H70: 1000
A71: LANmark-2000 CMP (Cat 6) (Blue) | B71: =K10 -> LANmark-2000 CMP (Cat 6) | C71: Blue | D71: Cat 6 | E71: 10163780 | F71: Reel in a box | G71: https://www.leviton.com/en/docs/LevBT_LANmark-2000_Plenum.pdf | H71: 1000
A72: LANmark-2000 CMP (Cat 6) (White) | B72: =K10 -> LANmark-2000 CMP (Cat 6) | C72: White | D72: Cat 6 | E72: 10167312 | F72: Reel in a box | G72: https://www.leviton.com/en/docs/LevBT_LANmark-2000_Plenum.pdf | H72: 1000
A73: LANmark-2000 CMP (Cat 6) (Yellow) | B73: =K10 -> LANmark-2000 CMP (Cat 6) | C73: Yellow | D73: Cat 6 | E73: 10167309 | F73: Reel in a box | G73: https://www.leviton.com/en/docs/LevBT_LANmark-2000_Plenum.pdf | H73: 1000
A74: LANmark-2000 CMP (Cat 6) (Violet) | B74: =K10 -> LANmark-2000 CMP (Cat 6) | C74: Violet | D74: Cat 6 | E74: 10170673 | F74: Reel in a box | G74: https://www.leviton.com/en/docs/LevBT_LANmark-2000_Plenum.pdf | H74: 1000
A75: LANmark-2000 CMP (Cat 6) (Green) | B75: =K10 -> LANmark-2000 CMP (Cat 6) | C75: Green | D75: Cat 6 | E75: 10170669 | F75: Reel in a box | G75: https://www.leviton.com/en/docs/LevBT_LANmark-2000_Plenum.pdf | H75: 1000
A76: LANmark-2000 CMP (Cat 6) (Dark Gray) | B76: =K10 -> LANmark-2000 CMP (Cat 6) | C76: Dark Gray | D76: Cat 6 | E76: 11098632 | F76: Reel in a box | G76: https://www.leviton.com/en/docs/LevBT_LANmark-2000_Plenum.pdf | H76: 1000
A77: LANmark-2000 CMP (Cat 6) (Orange) | B77: =K10 -> LANmark-2000 CMP (Cat 6) | C77: Orange | D77: Cat 6 | E77: 10170671 | F77: Reel in a box | G77: https://www.leviton.com/en/docs/LevBT_LANmark-2000_Plenum.pdf | H77: 1000
A78: LANmark-2000 CMP (Cat 6) (Red) | B78: =K10 -> LANmark-2000 CMP (Cat 6) | C78: Red | D78: Cat 6 | E78: 10170685 | F78: Reel in a box | G78: https://www.leviton.com/en/docs/LevBT_LANmark-2000_Plenum.pdf | H78: 1000
A79: LANmark-2000 CMP (Cat 6) (Pink) | B79: =K10 -> LANmark-2000 CMP (Cat 6) | C79: Pink | D79: Cat 6 | E79: 10178756 | F79: Reel in a box | G79: https://www.leviton.com/en/docs/LevBT_LANmark-2000_Plenum.pdf | H79: 1000
A80: LANmark-2000 CMP (Cat 6) (Black) | B80: =K10 -> LANmark-2000 CMP (Cat 6) | C80: Black | D80: Cat 6 | E80: 11051916 | F80: Reel in a box | G80: https://www.leviton.com/en/docs/LevBT_LANmark-2000_Plenum.pdf | H80: 1000
A81: LANmark-2000 CMP (Cat 6) (Brown) | B81: =K10 -> LANmark-2000 CMP (Cat 6) | C81: Brown | D81: Cat 6 | E81: 11078228 | F81: Reel in a box | G81: https://www.leviton.com/en/docs/LevBT_LANmark-2000_Plenum.pdf | H81: 1000
A82: LANmark-2000 CMR (Cat 6) (Dark Gray) | B82: =K11 -> LANmark-2000 CMR (Cat 6) | C82: Dark Gray | D82: Cat 6 | E82: 11098633 | F82: Reel in a box | G82: https://www.leviton.com/en/docs/LevBT_LANmark-2000_Riser.pdf | H82: 1000
A83: LANmark-2000 CMR (Cat 6) (White) | B83: =K11 -> LANmark-2000 CMR (Cat 6) | C83: White | D83: Cat 6 | E83: 10167481 | F83: Reel in a box | G83: https://www.leviton.com/en/docs/LevBT_LANmark-2000_Riser.pdf | H83: 1000
A84: LANmark-2000 CMR (Cat 6) (Green) | B84: =K11 -> LANmark-2000 CMR (Cat 6) | C84: Green | D84: Cat 6 | E84: 10170688 | F84: Reel in a box | G84: https://www.leviton.com/en/docs/LevBT_LANmark-2000_Riser.pdf | H84: 1000
A85: LANmark-2000 CMR (Cat 6) (Orange) | B85: =K11 -> LANmark-2000 CMR (Cat 6) | C85: Orange | D85: Cat 6 | E85: 10170690 | F85: Reel in a box | G85: https://www.leviton.com/en/docs/LevBT_LANmark-2000_Riser.pdf | H85: 1000
A86: LANmark-2000 CMR (Cat 6) (Yellow) | B86: =K11 -> LANmark-2000 CMR (Cat 6) | C86: Yellow | D86: Cat 6 | E86: 10167483 | F86: Reel in a box | G86: https://www.leviton.com/en/docs/LevBT_LANmark-2000_Riser.pdf | H86: 1000
A87: LANmark-2000 CMR (Cat 6) (Blue) | B87: =K11 -> LANmark-2000 CMR (Cat 6) | C87: Blue | D87: Cat 6 | E87: 10167477 | F87: Reel in a box | G87: https://www.leviton.com/en/docs/LevBT_LANmark-2000_Riser.pdf | H87: 1000
A88: LANmark-2000 CMR (Cat 6) (Violet) | B88: =K11 -> LANmark-2000 CMR (Cat 6) | C88: Violet | D88: Cat 6 | E88: 10170692 | F88: Reel in a box | G88: https://www.leviton.com/en/docs/LevBT_LANmark-2000_Riser.pdf | H88: 1000
A89: LANmark-2000 CMR (Cat 6) (Red) | B89: =K11 -> LANmark-2000 CMR (Cat 6) | C89: Red | D89: Cat 6 | E89: 10170694 | F89: Reel in a box | G89: https://www.leviton.com/en/docs/LevBT_LANmark-2000_Riser.pdf | H89: 1000
A90: LANmark-2000 CMR (Cat 6) (Pink) | B90: =K11 -> LANmark-2000 CMR (Cat 6) | C90: Pink | D90: Cat 6 | E90: 11000003 | F90: Reel in a box | G90: https://www.leviton.com/en/docs/LevBT_LANmark-2000_Riser.pdf | H90: 1000
A91: LANmark-6 FTP CMP (Cat 6) (Gray) | B91: =K16 -> LANmark-6 FTP CMP (Cat 6) | C91: Gray | D91: Cat 6 | E91: 10057903 | F91: Reel | G91: https://www.leviton.com/en/docs/LevBT_LANmark-6_FTP_Plenum.pdf | H91: 1000
A92: LANmark-6 FTP CMP (Cat 6) (Red) | B92: =K16 -> LANmark-6 FTP CMP (Cat 6) | C92: Red | D92: =$I$3 -> Cat 6 | E92: 10063671 | F92: Reel | G92: https://www.leviton.com/en/docs/LevBT_LANmark-6_FTP_Plenum.pdf | H92: 1000
A93: LANmark-6 FTP CMP (Cat 6) (Violet) | B93: =K16 -> LANmark-6 FTP CMP (Cat 6) | C93: Violet | D93: Cat 6 | E93: 10081254 | F93: Reel | G93: https://www.leviton.com/en/docs/LevBT_LANmark-6_FTP_Plenum.pdf | H93: 1000
A94: LANmark-6 FTP CMP (Cat 6) (Green) | B94: =K16 -> LANmark-6 FTP CMP (Cat 6) | C94: Green | D94: Cat 6 | E94: 10089751 | F94: Reel | G94: https://www.leviton.com/en/docs/LevBT_LANmark-6_FTP_Plenum.pdf | H94: 1000
A95: LANmark-6 FTP CMP (Cat 6) (Orange) | B95: =K16 -> LANmark-6 FTP CMP (Cat 6) | C95: Orange | D95: Cat 6 | E95: 10095838 | F95: Reel | G95: https://www.leviton.com/en/docs/LevBT_LANmark-6_FTP_Plenum.pdf | H95: 1000
A96: LANmark-6 FTP CMP (Cat 6) (Yellow) | B96: =K16 -> LANmark-6 FTP CMP (Cat 6) | C96: Yellow | D96: Cat 6 | E96: 10062608 | F96: Reel | G96: https://www.leviton.com/en/docs/LevBT_LANmark-6_FTP_Plenum.pdf | H96: 1000
A97: LANmark-6 FTP CMP (Cat 6) (Black) | B97: =K16 -> LANmark-6 FTP CMP (Cat 6) | C97: Black | D97: Cat 6 | E97: 10063672 | F97: Reel | G97: https://www.leviton.com/en/docs/LevBT_LANmark-6_FTP_Plenum.pdf | H97: 1000
A98: LANmark-6 FTP CMP (Cat 6) (White) | B98: =K16 -> LANmark-6 FTP CMP (Cat 6) | C98: White | D98: Cat 6 | E98: 10081255 | F98: Reel | G98: https://www.leviton.com/en/docs/LevBT_LANmark-6_FTP_Plenum.pdf | H98: 1000
A99: LANmark-6 FTP CMP (Cat 6) (Blue) | B99: =K16 -> LANmark-6 FTP CMP (Cat 6) | C99: Blue | D99: Cat 6 | E99: 10091131 | F99: Reel | G99: https://www.leviton.com/en/docs/LevBT_LANmark-6_FTP_Plenum.pdf | H99: 1000
A100: LANmark-6 FTP CMP (Cat 6) (Pink) | B100: =K16 -> LANmark-6 FTP CMP (Cat 6) | C100: Pink | D100: Cat 6 | E100: 10188336 | F100: Reel | G100: https://www.leviton.com/en/docs/LevBT_LANmark-6_FTP_Plenum.pdf | H100: 1000
A101: LANmark-6 FTP CMR (Cat 6) (Gray) | B101: =K17 -> LANmark-6 FTP CMR (Cat 6) | C101: Gray | D101: Cat 6 | E101: 10070439 | F101: Reel | G101: https://www.leviton.com/en/docs/LevBT_LANmark-6_FTP_Riser.pdf | H101: 1000
A102: LANmark-6 FTP CMR (Cat 6) (Black) | B102: =K17 -> LANmark-6 FTP CMR (Cat 6) | C102: Black | D102: Cat 6 | E102: 10074212 | F102: Reel | G102: https://www.leviton.com/en/docs/LevBT_LANmark-6_FTP_Riser.pdf | H102: 1000
A103: LANmark-6 FTP CMR (Cat 6) (Green) | B103: =K17 -> LANmark-6 FTP CMR (Cat 6) | C103: Green | D103: Cat 6 | E103: 10107572 | F103: Reel | G103: https://www.leviton.com/en/docs/LevBT_LANmark-6_FTP_Riser.pdf | H103: 1000
A104: LANmark-6 FTP CMR (Cat 6) (Red) | B104: =K17 -> LANmark-6 FTP CMR (Cat 6) | C104: Red | D104: Cat 6 | E104: 10074211 | F104: Reel | G104: https://www.leviton.com/en/docs/LevBT_LANmark-6_FTP_Riser.pdf | H104: 1000
A105: LANmark-6 FTP CMR (Cat 6) (Yellow) | B105: =K17 -> LANmark-6 FTP CMR (Cat 6) | C105: Yellow | D105: Cat 6 | E105: 10090687 | F105: Reel | G105: https://www.leviton.com/en/docs/LevBT_LANmark-6_FTP_Riser.pdf | H105: 1000
A106: LANmark-6 FTP CMR (Cat 6) (Brown) | B106: =K17 -> LANmark-6 FTP CMR (Cat 6) | C106: Brown | D106: Cat 6 | E106: 10107573 | F106: Reel | G106: https://www.leviton.com/en/docs/LevBT_LANmark-6_FTP_Riser.pdf | H106: 1000
A107: LANmark-6 FTP CMR (Cat 6) (Blue) | B107: =K17 -> LANmark-6 FTP CMR (Cat 6) | C107: Blue | D107: Cat 6 | E107: 10122951 | F107: Reel | G107: https://www.leviton.com/en/docs/LevBT_LANmark-6_FTP_Riser.pdf | H107: 1000
A108: LANmark-6 FTP CMR (Cat 6) (White) | B108: =K17 -> LANmark-6 FTP CMR (Cat 6) | C108: White | D108: Cat 6 | E108: 10122953 | F108: Reel | G108: https://www.leviton.com/en/docs/LevBT_LANmark-6_FTP_Riser.pdf | H108: 1000
A109: LANmark-6 FTP CMR (Cat 6) (Orange) | B109: =K17 -> LANmark-6 FTP CMR (Cat 6) | C109: Orange | D109: Cat 6 | E109: 10189144 | F109: Reel | G109: https://www.leviton.com/en/docs/LevBT_LANmark-6_FTP_Riser.pdf | H109: 1000
A110: LANmark-XTP CMP (Cat 6A) (Blue) | B110: =K4 -> LANmark-XTP CMP (Cat 6A) | C110: Blue | D110: =$I$2 -> Cat 6A | E110: 11082057 | F110: Reel | G110: https://www.leviton.com/en/docs/LevBT_LANmark-XTP_UTP_Plenum.pdf | H110: 1000
A111: LANmark-XTP CMP (Cat 6A) (White) | B111: =K4 -> LANmark-XTP CMP (Cat 6A) | C111: White | D111: Cat 6A | E111: 11082058 | F111: Reel | G111: https://www.leviton.com/en/docs/LevBT_LANmark-XTP_UTP_Plenum.pdf | H111: 1000
A112: LANmark-XTP CMP (Cat 6A) (Light Gray) | B112: =K4 -> LANmark-XTP CMP (Cat 6A) | C112: Light Gray | D112: Cat 6A | E112: 11082059 | F112: Reel | G112: https://www.leviton.com/en/docs/LevBT_LANmark-XTP_UTP_Plenum.pdf | H112: 1000
A113: LANmark-XTP CMP (Cat 6A) (Yellow) | B113: =K4 -> LANmark-XTP CMP (Cat 6A) | C113: Yellow | D113: Cat 6A | E113: 11090591 | F113: Reel | G113: https://www.leviton.com/en/docs/LevBT_LANmark-XTP_UTP_Plenum.pdf | H113: 1000
A114: LANmark-XTP CMP (Cat 6A) (Violet) | B114: =K4 -> LANmark-XTP CMP (Cat 6A) | C114: Violet | D114: Cat 6A | E114: 11085661 | F114: Reel | G114: https://www.leviton.com/en/docs/LevBT_LANmark-XTP_UTP_Plenum.pdf | H114: 1000
A115: LANmark-XTP CMP (Cat 6A) (Orange) | B115: =K4 -> LANmark-XTP CMP (Cat 6A) | C115: Orange | D115: Cat 6A | E115: 11084255 | F115: Reel | G115: https://www.leviton.com/en/docs/LevBT_LANmark-XTP_UTP_Plenum.pdf | H115: 1000
A116: LANmark-XTP CMP (Cat 6A) (Red) | B116: =K4 -> LANmark-XTP CMP (Cat 6A) | C116: Red | D116: Cat 6A | E116: 11090643 | F116: Reel | G116: https://www.leviton.com/en/docs/LevBT_LANmark-XTP_UTP_Plenum.pdf | H116: 1000
A117: LANmark-XTP CMP (Cat 6A) (Green) | B117: =K4 -> LANmark-XTP CMP (Cat 6A) | C117: Green | D117: Cat 6A | E117: 11083158 | F117: Reel | G117: https://www.leviton.com/en/docs/LevBT_LANmark-XTP_UTP_Plenum.pdf | H117: 1000
A118: LANmark-XTP CMP (Cat 6A) (Dark Gray) | B118: =K4 -> LANmark-XTP CMP (Cat 6A) | C118: Dark Gray | D118: Cat 6A | E118: 11094954 | F118: Reel | G118: https://www.leviton.com/en/docs/LevBT_LANmark-XTP_UTP_Plenum.pdf | H118: 1000
A119: LANmark-XTP CMR (Cat 6A) (Blue) | B119: =K5 -> LANmark-XTP CMR (Cat 6A) | C119: Blue | D119: Cat 6A | E119: 11082062 | F119: Reel | G119: https://www.leviton.com/en/docs/LevBT_LANmark-XTP_UTP_Riser.pdf | H119: 1000
A120: LANmark-XTP CMR (Cat 6A) (White) | B120: =K5 -> LANmark-XTP CMR (Cat 6A) | C120: White | D120: Cat 6A | E120: 11082063 | F120: Reel | G120: https://www.leviton.com/en/docs/LevBT_LANmark-XTP_UTP_Riser.pdf | H120: 1000
A121: LANmark-XTP CMR (Cat 6A) (Violet) | B121: =K5 -> LANmark-XTP CMR (Cat 6A) | C121: Violet | D121: Cat 6A | E121: 11085668 | F121: Reel | G121: https://www.leviton.com/en/docs/LevBT_LANmark-XTP_UTP_Riser.pdf | H121: 1000
A122: LANmark-XTP CMR (Cat 6A) (Yellow) | B122: =K5 -> LANmark-XTP CMR (Cat 6A) | C122: Yellow | D122: Cat 6A | E122: 11090594 | F122: Reel | G122: https://www.leviton.com/en/docs/LevBT_LANmark-XTP_UTP_Riser.pdf | H122: 1000
A123: LANmark-XTP CMR (Cat 6A) (Orange) | B123: =K5 -> LANmark-XTP CMR (Cat 6A) | C123: Orange | D123: Cat 6A | E123: 11085546 | F123: Reel | G123: https://www.leviton.com/en/docs/LevBT_LANmark-XTP_UTP_Riser.pdf | H123: 1000
A124: LANmark-XTP CMR (Cat 6A) (Green) | B124: =K5 -> LANmark-XTP CMR (Cat 6A) | C124: Green | D124: Cat 6A | E124: 11085549 | F124: Reel | G124: https://www.leviton.com/en/docs/LevBT_LANmark-XTP_UTP_Riser.pdf | H124: 1000
A125: LANmark-XTP CMR (Cat 6A) (Red) | B125: =K5 -> LANmark-XTP CMR (Cat 6A) | C125: Red | D125: Cat 6A | E125: 11091203 | F125: Reel | G125: https://www.leviton.com/en/docs/LevBT_LANmark-XTP_UTP_Riser.pdf | H125: 1000
A126: LANmark-XTP CMR (Cat 6A) (Dark Gray) | B126: =K5 -> LANmark-XTP CMR (Cat 6A) | C126: Dark Gray | D126: Cat 6A | E126: 11095916 | F126: Reel | G126: https://www.leviton.com/en/docs/LevBT_LANmark-XTP_UTP_Riser.pdf | H126: 1000
A127: LANmark-10G2 CMP (Cat 6A) (Blue) | B127: =K6 -> LANmark-10G2 CMP (Cat 6A) | C127: Blue | D127: Cat 6A | E127: 10130484 | F127: Reel | G127: https://www.leviton.com/en/docs/LevBT_LANmark-10G2_Plenum_UTP.pdf | H127: 1000
A128: LANmark-10G2 CMP (Cat 6A) (Green) | B128: =K6 -> LANmark-10G2 CMP (Cat 6A) | C128: Green | D128: Cat 6A | E128: 10137694 | F128: Reel | G128: https://www.leviton.com/en/docs/LevBT_LANmark-10G2_Plenum_UTP.pdf | H128: 1000
A129: LANmark-10G2 CMP (Cat 6A) (Black) | B129: =K6 -> LANmark-10G2 CMP (Cat 6A) | C129: Black | D129: Cat 6A | E129: 10137695 | F129: Reel | G129: https://www.leviton.com/en/docs/LevBT_LANmark-10G2_Plenum_UTP.pdf | H129: 1000
A130: LANmark-10G2 CMP (Cat 6A) (Red) | B130: =K6 -> LANmark-10G2 CMP (Cat 6A) | C130: Red | D130: Cat 6A | E130: 10138765 | F130: Reel | G130: https://www.leviton.com/en/docs/LevBT_LANmark-10G2_Plenum_UTP.pdf | H130: 1000
A131: LANmark-10G2 CMP (Cat 6A) (Violet) | B131: =K6 -> LANmark-10G2 CMP (Cat 6A) | C131: Violet | D131: Cat 6A | E131: 10140145 | F131: Reel | G131: https://www.leviton.com/en/docs/LevBT_LANmark-10G2_Plenum_UTP.pdf | H131: 1000
A132: LANmark-10G2 CMP (Cat 6A) (Dark Gray) | B132: =K6 -> LANmark-10G2 CMP (Cat 6A) | C132: Dark Gray | D132: Cat 6A | E132: 11096831 | F132: Reel | G132: https://www.leviton.com/en/docs/LevBT_LANmark-10G2_Plenum_UTP.pdf | H132: 1000
A133: LANmark-10G2 CMP (Cat 6A) (White) | B133: =K6 -> LANmark-10G2 CMP (Cat 6A) | C133: White | D133: Cat 6A | E133: 10137384 | F133: Reel | G133: https://www.leviton.com/en/docs/LevBT_LANmark-10G2_Plenum_UTP.pdf | H133: 1000
A134: LANmark-10G2 CMP (Cat 6A) (Yellow) | B134: =K6 -> LANmark-10G2 CMP (Cat 6A) | C134: Yellow | D134: Cat 6A | E134: 10137385 | F134: Reel | G134: https://www.leviton.com/en/docs/LevBT_LANmark-10G2_Plenum_UTP.pdf | H134: 1000
A135: LANmark-10G2 CMP (Cat 6A) (Pink) | B135: =K6 -> LANmark-10G2 CMP (Cat 6A) | C135: Pink | D135: Cat 6A | E135: 10138181 | F135: Reel | G135: https://www.leviton.com/en/docs/LevBT_LANmark-10G2_Plenum_UTP.pdf | H135: 1000
A136: LANmark-10G2 CMP (Cat 6A) (Orange) | B136: =K6 -> LANmark-10G2 CMP (Cat 6A) | C136: Orange | D136: Cat 6A | E136: 10138767 | F136: Reel | G136: https://www.leviton.com/en/docs/LevBT_LANmark-10G2_Plenum_UTP.pdf | H136: 1000
A137: LANmark-10G2 CMR (Cat 6A) (Blue) | B137: =K7 -> LANmark-10G2 CMR (Cat 6A) | C137: Blue | D137: Cat 6A | E137: 10137700 | F137: Reel | G137: https://www.leviton.com/en/docs/LevBT_LANmark-10G2_Riser_UTP.pdf | H137: 1000
A138: LANmark-10G2 CMR (Cat 6A) (Green) | B138: =K7 -> LANmark-10G2 CMR (Cat 6A) | C138: Green | D138: Cat 6A | E138: 10138770 | F138: Reel | G138: https://www.leviton.com/en/docs/LevBT_LANmark-10G2_Riser_UTP.pdf | H138: 1000
A139: LANmark-10G2 CMR (Cat 6A) (Black) | B139: =K7 -> LANmark-10G2 CMR (Cat 6A) | C139: Black | D139: Cat 6A | E139: 10137704 | F139: Reel | G139: https://www.leviton.com/en/docs/LevBT_LANmark-10G2_Riser_UTP.pdf | H139: 1000
A140: LANmark-10G2 CMR (Cat 6A) (Red) | B140: =K7 -> LANmark-10G2 CMR (Cat 6A) | C140: Red | D140: Cat 6A | E140: 10138768 | F140: Reel | G140: https://www.leviton.com/en/docs/LevBT_LANmark-10G2_Riser_UTP.pdf | H140: 1000
A141: LANmark-10G2 CMR (Cat 6A) (Violet) | B141: =K7 -> LANmark-10G2 CMR (Cat 6A) | C141: Violet | D141: Cat 6A | E141: 10137702 | F141: Reel | G141: https://www.leviton.com/en/docs/LevBT_LANmark-10G2_Riser_UTP.pdf | H141: 1000
A142: LANmark-10G2 CMR (Cat 6A) (Dark Gray) | B142: =K7 -> LANmark-10G2 CMR (Cat 6A) | C142: Dark Gray | D142: =$I$2 -> Cat 6A | E142: 11098650 | F142: Reel | G142: https://www.leviton.com/en/docs/LevBT_LANmark-10G2_Riser_UTP.pdf | H142: 1000
A143: LANmark-10G2 CMR (Cat 6A) (White) | B143: =K7 -> LANmark-10G2 CMR (Cat 6A) | C143: White | D143: Cat 6A | E143: 10137703 | F143: Reel | G143: https://www.leviton.com/en/docs/LevBT_LANmark-10G2_Riser_UTP.pdf | H143: 1000
A144: LANmark-10G2 CMR (Cat 6A) (Yellow) | B144: =K7 -> LANmark-10G2 CMR (Cat 6A) | C144: Yellow | D144: Cat 6A | E144: 10137706 | F144: Reel | G144: https://www.leviton.com/en/docs/LevBT_LANmark-10G2_Riser_UTP.pdf | H144: 1000
A145: LANmark-10G2 CMR (Cat 6A) (Pink) | B145: =K7 -> LANmark-10G2 CMR (Cat 6A) | C145: Pink | D145: Cat 6A | E145: 10138769 | F145: Reel | G145: https://www.leviton.com/en/docs/LevBT_LANmark-10G2_Riser_UTP.pdf | H145: 1000
A146: LANmark-10G2 CMR (Cat 6A) (Orange) | B146: =K7 -> LANmark-10G2 CMR (Cat 6A) | C146: Orange | D146: Cat 6A | E146: 10138772 | F146: Reel | G146: https://www.leviton.com/en/docs/LevBT_LANmark-10G2_Riser_UTP.pdf | H146: 1000
A147: LANmark-SST CMP (Cat 6A) (Blue) | B147: =K2 -> LANmark-SST CMP (Cat 6A) | C147: Blue | D147: Cat 6A | E147: 11101842 | F147: Reel | G147: https://www.leviton.com/en/docs/LevBT_LANmark-SST_Reduced_Diameter_UTP_Plenum.pdf | H147: 1000
A148: LANmark-SST CMP (Cat 6A) (Orange) | B148: =K2 -> LANmark-SST CMP (Cat 6A) | C148: Orange | D148: Cat 6A | E148: 11140408 | F148: Reel | G148: https://www.leviton.com/en/docs/LevBT_LANmark-SST_Reduced_Diameter_UTP_Plenum.pdf | H148: 1000
A149: LANmark-SST CMP (Cat 6A) (Yellow) | B149: =K2 -> LANmark-SST CMP (Cat 6A) | C149: Yellow | D149: Cat 6A | E149: 11140403 | F149: Reel | G149: https://www.leviton.com/en/docs/LevBT_LANmark-SST_Reduced_Diameter_UTP_Plenum.pdf | H149: 1000
A150: LANmark-SST CMP (Cat 6A) (Red) | B150: =K2 -> LANmark-SST CMP (Cat 6A) | C150: Red | D150: Cat 6A | E150: 11140405 | F150: Reel | G150: https://www.leviton.com/en/docs/LevBT_LANmark-SST_Reduced_Diameter_UTP_Plenum.pdf | H150: 1000
A151: LANmark-SST CMP (Cat 6A) (Dark Gray) | B151: =K2 -> LANmark-SST CMP (Cat 6A) | C151: Dark Gray | D151: Cat 6A | E151: 11140402 | F151: Reel | G151: https://www.leviton.com/en/docs/LevBT_LANmark-SST_Reduced_Diameter_UTP_Plenum.pdf | H151: 1000
A152: LANmark-SST CMP (Cat 6A) (Green) | B152: =K2 -> LANmark-SST CMP (Cat 6A) | C152: Green | D152: Cat 6A | E152: 11140404 | F152: Reel | G152: https://www.leviton.com/en/docs/LevBT_LANmark-SST_Reduced_Diameter_UTP_Plenum.pdf | H152: 1000
A153: LANmark-SST CMP (Cat 6A) (Black) | B153: =K2 -> LANmark-SST CMP (Cat 6A) | C153: Black | D153: Cat 6A | E153: 11140406 | F153: Reel | G153: https://www.leviton.com/en/docs/LevBT_LANmark-SST_Reduced_Diameter_UTP_Plenum.pdf | H153: 1000
A154: LANmark-SST CMP (Cat 6A) (Violet) | B154: =K2 -> LANmark-SST CMP (Cat 6A) | C154: Violet | D154: Cat 6A | E154: 11140407 | F154: Reel | G154: https://www.leviton.com/en/docs/LevBT_LANmark-SST_Reduced_Diameter_UTP_Plenum.pdf | H154: 1000
A155: LANmark-SST CMP (Cat 6A) (White) | B155: =K2 -> LANmark-SST CMP (Cat 6A) | C155: White | D155: Cat 6A | E155: 11140401 | F155: Reel | G155: https://www.leviton.com/en/docs/LevBT_LANmark-SST_Reduced_Diameter_UTP_Plenum.pdf | H155: 1000
A156: LANmark-SST CMR (Cat 6A) (Blue) | B156: =K3 -> LANmark-SST CMR (Cat 6A) | C156: Blue | D156: Cat 6A | E156: 11104157 | F156: Reel | G156: https://www.leviton.com/en/docs/LevBT_LANmark-SST_Reduced_Diameter_UTP_Riser.pdf | H156: 1000
A157: LANmark-SST CMR (Cat 6A) (Orange) | B157: =K3 -> LANmark-SST CMR (Cat 6A) | C157: Orange | D157: Cat 6A | E157: 11140416 | F157: Reel | G157: https://www.leviton.com/en/docs/LevBT_LANmark-SST_Reduced_Diameter_UTP_Riser.pdf | H157: 1000
A158: LANmark-SST CMR (Cat 6A) (Yellow) | B158: =K3 -> LANmark-SST CMR (Cat 6A) | C158: Yellow | D158: Cat 6A | E158: 11140411 | F158: Reel | G158: https://www.leviton.com/en/docs/LevBT_LANmark-SST_Reduced_Diameter_UTP_Riser.pdf | H158: 1000
A159: LANmark-SST CMR (Cat 6A) (Red) | B159: =K3 -> LANmark-SST CMR (Cat 6A) | C159: Red | D159: Cat 6A | E159: 11140413 | F159: Reel | G159: https://www.leviton.com/en/docs/LevBT_LANmark-SST_Reduced_Diameter_UTP_Riser.pdf | H159: 1000
A160: LANmark-SST CMR (Cat 6A) (Dark Gray) | B160: =K3 -> LANmark-SST CMR (Cat 6A) | C160: Dark Gray | D160: Cat 6A | E160: 11140410 | F160: Reel | G160: https://www.leviton.com/en/docs/LevBT_LANmark-SST_Reduced_Diameter_UTP_Riser.pdf | H160: 1000
A161: LANmark-SST CMR (Cat 6A) (Green) | B161: =K3 -> LANmark-SST CMR (Cat 6A) | C161: Green | D161: Cat 6A | E161: 11140412 | F161: Reel | G161: https://www.leviton.com/en/docs/LevBT_LANmark-SST_Reduced_Diameter_UTP_Riser.pdf | H161: 1000
A162: LANmark-SST CMR (Cat 6A) (Black) | B162: =K3 -> LANmark-SST CMR (Cat 6A) | C162: Black | D162: Cat 6A | E162: 11140414 | F162: Reel | G162: https://www.leviton.com/en/docs/LevBT_LANmark-SST_Reduced_Diameter_UTP_Riser.pdf | H162: 1000
A163: LANmark-SST CMR (Cat 6A) (Violet) | B163: =K3 -> LANmark-SST CMR (Cat 6A) | C163: Violet | D163: Cat 6A | E163: 11140415 | F163: Reel | G163: https://www.leviton.com/en/docs/LevBT_LANmark-SST_Reduced_Diameter_UTP_Riser.pdf | H163: 1000
A164: LANmark-SST CMR (Cat 6A) (White) | B164: =K3 -> LANmark-SST CMR (Cat 6A) | C164: White | D164: Cat 6A | E164: 11140409 | F164: Reel | G164: https://www.leviton.com/en/docs/LevBT_LANmark-SST_Reduced_Diameter_UTP_Riser.pdf | H164: 1000
A165: LANmark-10G FTP CMP (Cat 6A) (Blue) | B165: =K8 -> LANmark-10G FTP CMP (Cat 6A) | C165: Blue | D165: Cat 6A | E165: 10143424 | F165: Reel | G165: https://www.leviton.com/en/docs/LevBT_LANmark-10G_FTP_Plenum.pdf | H165: 1000
A166: LANmark-10G FTP CMP (Cat 6A) (White) | B166: =K8 -> LANmark-10G FTP CMP (Cat 6A) | C166: White | D166: Cat 6A | E166: 10167485 | F166: Reel | G166: https://www.leviton.com/en/docs/LevBT_LANmark-10G_FTP_Plenum.pdf | H166: 1000
A167: LANmark-10G FTP CMP (Cat 6A) (Gray) | B167: =K8 -> LANmark-10G FTP CMP (Cat 6A) | C167: Gray | D167: Cat 6A | E167: 10167487 | F167: Reel | G167: https://www.leviton.com/en/docs/LevBT_LANmark-10G_FTP_Plenum.pdf | H167: 1000
A168: LANmark-10G FTP CMP (Cat 6A) (Yellow) | B168: =K8 -> LANmark-10G FTP CMP (Cat 6A) | C168: Yellow | D168: Cat 6A | E168: 10167488 | F168: Reel | G168: https://www.leviton.com/en/docs/LevBT_LANmark-10G_FTP_Plenum.pdf | H168: 1000
A169: LANmark-10G FTP CMP (Cat 6A) (Green) | B169: =K8 -> LANmark-10G FTP CMP (Cat 6A) | C169: Green | D169: Cat 6A | E169: 10189246 | F169: Reel | G169: https://www.leviton.com/en/docs/LevBT_LANmark-10G_FTP_Plenum.pdf | H169: 1000
A170: LANmark-10G FTP CMP (Cat 6A) (Pink) | B170: =K8 -> LANmark-10G FTP CMP (Cat 6A) | C170: Pink | D170: Cat 6A | E170: 10189547 | F170: Reel | G170: https://www.leviton.com/en/docs/LevBT_LANmark-10G_FTP_Plenum.pdf | H170: 1000
A171: LANmark-10G FTP CMP (Cat 6A) (Red) | B171: =K8 -> LANmark-10G FTP CMP (Cat 6A) | C171: Red | D171: Cat 6A | E171: 10188969 | F171: Reel | G171: https://www.leviton.com/en/docs/LevBT_LANmark-10G_FTP_Plenum.pdf | H171: 1000
A172: LANmark-10G FTP CMP (Cat 6A) (Black) | B172: =K8 -> LANmark-10G FTP CMP (Cat 6A) | C172: Black | D172: Cat 6A | E172: 10189549 | F172: Reel | G172: https://www.leviton.com/en/docs/LevBT_LANmark-10G_FTP_Plenum.pdf | H172: 1000
A173: LANmark-10G FTP CMP (Cat 6A) (Violet) | B173: =K8 -> LANmark-10G FTP CMP (Cat 6A) | C173: Violet | D173: Cat 6A | E173: 10189548 | F173: Reel | G173: https://www.leviton.com/en/docs/LevBT_LANmark-10G_FTP_Plenum.pdf | H173: 1000
A174: LANmark-10G FTP CMP (Cat 6A) (Orange) | B174: =K8 -> LANmark-10G FTP CMP (Cat 6A) | C174: Orange | D174: Cat 6A | E174: 10189550 | F174: Reel | G174: https://www.leviton.com/en/docs/LevBT_LANmark-10G_FTP_Plenum.pdf | H174: 1000
A175: LANmark-10G FTP CMR (Cat 6A) (Green) | B175: =K9 -> LANmark-10G FTP CMR (Cat 6A) | C175: Green | D175: Cat 6A | E175: 10189092 | F175: Reel | G175: https://www.leviton.com/en/docs/LevBT_LANmark-10G_FTP_Riser.pdf | H175: 1000
A176: LANmark-10G FTP CMR (Cat 6A) (Blue) | B176: =K9 -> LANmark-10G FTP CMR (Cat 6A) | C176: Blue | D176: Cat 6A | E176: 10189567 | F176: Reel | G176: https://www.leviton.com/en/docs/LevBT_LANmark-10G_FTP_Riser.pdf | H176: 1000
A177: LANmark-10G FTP CMR (Cat 6A) (Gray) | B177: =K9 -> LANmark-10G FTP CMR (Cat 6A) | C177: Gray | D177: Cat 6A | E177: 10189798 | F177: Reel | G177: https://www.leviton.com/en/docs/LevBT_LANmark-10G_FTP_Riser.pdf | H177: 1000
A178: LANmark-10G FTP CMR (Cat 6A) (Yellow) | B178: =K9 -> LANmark-10G FTP CMR (Cat 6A) | C178: Yellow | D178: Cat 6A | E178: 10189803 | F178: Reel | G178: https://www.leviton.com/en/docs/LevBT_LANmark-10G_FTP_Riser.pdf | H178: 1000
A179: LANmark-10G FTP CMR (Cat 6A) (White) | B179: =K9 -> LANmark-10G FTP CMR (Cat 6A) | C179: White | D179: Cat 6A | E179: 10189801 | F179: Reel | G179: https://www.leviton.com/en/docs/LevBT_LANmark-10G_FTP_Riser.pdf | H179: 1000
A180: LANmark-10G FTP CMR (Cat 6A) (Red) | B180: =K9 -> LANmark-10G FTP CMR (Cat 6A) | C180: Red | D180: Cat 6A | E180: 10189804 | F180: Reel | G180: https://www.leviton.com/en/docs/LevBT_LANmark-10G_FTP_Riser.pdf | H180: 1000
A181: LANmark-10G FTP CMR (Cat 6A) (Black) | B181: =K9 -> LANmark-10G FTP CMR (Cat 6A) | C181: Black | D181: Cat 6A | E181: 11077196 | F181: Reel | G181: https://www.leviton.com/en/docs/LevBT_LANmark-10G_FTP_Riser.pdf | H181: 1000
A182: LANmark-6 OSP (Cat 6) (Black) | B182: =K27 -> LANmark-6 OSP (Cat 6) | C182: Black | D182: =$I$3 -> Cat 6 | E182: 10139885 | F182: Reel | G182: https://www.leviton.com/en/docs/LevBT_LANmark-6_OSP.pdf | H182: 1000
A183: LANmark-1000 OSP (Cat 6) (Black) | B183: =K26 -> LANmark-1000 OSP (Cat 6) | C183: Black | D183: =$I$3 -> Cat 6 | E183: 11072213 | F183: Reel | G183: https://www.leviton.com/en/docs/LevBT_LANmark-1000_OSP.pdf | H183: 1000
A184: LANmark-10G OSP (Cat 6A) (Black) | B184: =K25 -> LANmark-10G OSP (Cat 6A) | C184: Black | D184: =$I$2 -> Cat 6A | E184: 11094458 | F184: Reel | G184: https://www.leviton.com/en/docs/LevBT_LANmark-10G_Cat_6A_OSP.pdf | H184: 1000
A185: =B185&" "&"("& C185 & ")" -> LANmark-B840 CMR/CMX Outdoor [PLTC] (Cat 6) (Teal) | B185: =K21 -> LANmark-B840 CMR/CMX Outdoor [PLTC] (Cat 6) | C185: Teal | D185: =$I$3 -> Cat 6 | E185: 11101314 | F185: Reel | G185: https://www.leviton.com/en/docs/LevBT_LANmark-B840_Cat6_PLTC_FTP_Solid_CMR-CMX_Outdoor_PVC.pdf | H185: 1000
A186: =B186&" "&"("& C186 & ")" -> LANmark-B840 CMR/CMX Outdoor [PLTC] (Cat 6) (Black) | B186: =K21 -> LANmark-B840 CMR/CMX Outdoor [PLTC] (Cat 6) | C186: Black | D186: =$I$3 -> Cat 6 | E186: 11104013 | F186: Reel | G186: https://www.leviton.com/en/docs/LevBT_LANmark-B840_Cat6_PLTC_FTP_Solid_CMR-CMX_Outdoor_PVC.pdf | H186: 1000
A187: LANmark-A689 CMR/CMX Outdoor (Cat 6) (Teal) | B187: =K22 -> LANmark-A689 CMR/CMX Outdoor (Cat 6) | C187: Teal | D187: =$I$3 -> Cat 6 | E187: 11099212 | F187: Reel | G187: https://www.leviton.com/en/docs/LevBT_LANmark-A689_Cat6_Solid_CMR-CMX_Outdoor_PVC.pdf | H187: 1000
A188: LANmark-A689 CMR/CMX Outdoor (Cat 6) (Black) | B188: =K22 -> LANmark-A689 CMR/CMX Outdoor (Cat 6) | C188: Black | D188: =$I$3 -> Cat 6 | E188: 11101956 | F188: Reel | G188: https://www.leviton.com/en/docs/LevBT_LANmark-A689_Cat6_Solid_CMR-CMX_Outdoor_PVC.pdf | H188: 1000
A189: LANmark-A753 CMR/CMX Outdoor (Cat 5e) (Teal) | B189: =K23 -> LANmark-A753 CMR/CMX Outdoor (Cat 5e) | C189: Teal | D189: =$I$4 -> Cat 5e | E189: 11099216 | F189: Reel | G189: https://www.leviton.com/en/docs/LevBT_LANmark-A753_Cat5e_Solid_CMR-CMX_Outdoor_PVC.pdf | H189: 1000
A190: LANmark-A753 CMR/CMX Outdoor (Cat 5e) (Black) | B190: =K23 -> LANmark-A753 CMR/CMX Outdoor (Cat 5e) | C190: Black | D190: Cat 5e | E190: 11101955 | F190: Reel | G190: https://www.leviton.com/en/docs/LevBT_LANmark-A753_Cat5e_Solid_CMR-CMX_Outdoor_PVC.pdf | H190: 1000
A191: LANmark-B537 CMR/CMX Outdoor (Cat 5e) (Teal) | B191: =K24 -> LANmark-B537 CMR/CMX Outdoor (Cat 5e) | C191: Teal | D191: Cat 5e | E191: 11099201 | F191: Reel | G191: https://www.leviton.com/en/docs/LevBT_LANmark-B537_Cat5e_Solid_Shielded_TPE.pdf | H191: 1000
A192: LANmark-B537 CMR/CMX Outdoor (Cat 5e) (Black) | B192: =K24 -> LANmark-B537 CMR/CMX Outdoor (Cat 5e) | C192: Black | D192: Cat 5e | E192: 11101914 | F192: Reel | G192: https://www.leviton.com/en/docs/LevBT_LANmark-B537_Cat5e_Solid_Shielded_TPE.pdf | H192: 1000
A193: =B193&" "&"("& C193 & ")" -> LANmark-6 CMP (Cat 6) (Blue) | B193: =K14 -> LANmark-6 CMP (Cat 6) | C193: Blue | D193: =$I$3 -> Cat 6 | E193: 11074702 | F193: smartPAK Box | G193: https://www.leviton.com/en/docs/LevBT_LANmark-6_Plenum.pdf | H193: 1500
A194: LANmark-6 CMP (Cat 6) (White) | B194: =K14 -> LANmark-6 CMP (Cat 6) | C194: White | D194: Cat 6 | E194: 11074742 | F194: smartPAK Box | G194: https://www.leviton.com/en/docs/LevBT_LANmark-6_Plenum.pdf | H194: 1500
A195: LANmark-6 CMP (Cat 6) (Yellow) | B195: =K14 -> LANmark-6 CMP (Cat 6) | C195: Yellow | D195: Cat 6 | E195: 11074893 | F195: smartPAK Box | G195: https://www.leviton.com/en/docs/LevBT_LANmark-6_Plenum.pdf | H195: 1500
A196: LANmark-6 CMP (Cat 6) (Green) | B196: =K14 -> LANmark-6 CMP (Cat 6) | C196: Green | D196: Cat 6 | E196: 11074897 | F196: smartPAK Box | G196: https://www.leviton.com/en/docs/LevBT_LANmark-6_Plenum.pdf | H196: 1500
A197: LANmark-6 CMP (Cat 6) (Dark Gray) | B197: =K14 -> LANmark-6 CMP (Cat 6) | C197: Dark Gray | D197: Cat 6 | E197: 11094952 | F197: smartPAK Box | G197: https://www.leviton.com/en/docs/LevBT_LANmark-6_Plenum.pdf | H197: 1500
A198: LANmark-6 CMR (Cat 6) (Blue) | B198: =K15 -> LANmark-6 CMR (Cat 6) | C198: Blue | D198: Cat 6 | E198: 11074703 | F198: smartPAK Box | G198: https://www.leviton.com/en/docs/LevBT_LANmark-6_Riser.pdf | H198: 1500
A199: LANmark-6 CMR (Cat 6) (White) | B199: =K15 -> LANmark-6 CMR (Cat 6) | C199: White | D199: Cat 6 | E199: 11074744 | F199: smartPAK Box | G199: https://www.leviton.com/en/docs/LevBT_LANmark-6_Riser.pdf | H199: 1500
A200: LANmark-6 CMR (Cat 6) (Yellow) | B200: =K15 -> LANmark-6 CMR (Cat 6) | C200: Yellow | D200: Cat 6 | E200: 11074906 | F200: smartPAK Box | G200: https://www.leviton.com/en/docs/LevBT_LANmark-6_Riser.pdf | H200: 1500
... 40 more rows

Sheet EXT-100 Template (hidden)
D1: Head End Name | N1: Hide | O1: Hide | P1: Hide | Q1: Hide | R1: Hide | S1: Hide | T1: Hide | U1: Hide | V1: Hide | W1: Hide | X1: Hide | Y1: Hide | AG1: Hide | AH1: Hide | AI1: Hide | AJ1: Hide | AK1: Hide | AL1: Hide | AN1: Hide | AO1: Hide | AP1: Hide | AQ1: Hide | AR1: Hide | AS1: Hide | AT1: Hide | AU1: Hide | AV1: Hide | AW1: Hide | AY1: Hide | AZ1: Hide | BA1: Hide | BB1: Hide | BC1: Hide | BD1: Hide | BE1: Hide | BF1: Hide | BG1: Hide | BH1: Hide | BI1: Hide | BJ1: Hide | BK1: Hide | BL1: Hide | BM1: Hide | BN1: Hide | BO1: Hide | BP1: Hide | BQ1: Hide | BR1: Hide | BS1: Hide | BT1: Hide | BU1: Hide | BV1: Hide | BW1: Hide | BX1: Hide | BY1: Hide | BZ1: Hide | CA1: Hide | CB1: Hide | CC1: Hide | CD1: Hide | CE1: Hide | CF1: Hide | CG1: Hide | CH1: Hide | CI1: Hide | CJ1: Hide | CK1: Hide | CL1: Hide | CM1: Hide | CN1: Hide | CO1: Hide | CP1: Hide | CQ1: Hide | CR1: Hide | CS1: Hide | CT1: Hide | CU1: Hide | CV1: Hide | CW1: Hide | CX1: Hide | CY1: Hide | CZ1: Hide
AV2: EXT-100
N3: Enclosure Needed? | O3: Min Temp: | P3: =CONVERT(MIN('EXT-100 Part Numbers'!$L$2:$L$27),"C",IF($E$7='EXT-100 Part Numbers'!$AK$2,"F","C")) -> -40 | T3: Throw error for any extender? | BH3: Max Remotes Per Enclosure | BJ3: Number | BK3: Partial
N4: =COUNTIF(L10:L249,"Yes")>0 -> FALSE | O4: Max Temp: | P4: =CONVERT(MAX('EXT-100 Part Numbers'!$M$2:$M$27),"C",IF($E$7='EXT-100 Part Numbers'!$AK$2,"F","C")) -> 221 | T4: =COUNTIF(W10:W249, TRUE) -> 0 | AG4: =COUNTIF($BZ$10:$BZ$249,TRUE) > 0 -> FALSE | AN4: Max PoE: | AO4: =ROUND(AP4/(1+TempCoefficientForCopper*($AO$7-EXT100RefTemp)),1) -> 2000 | AP4: ='EXT-100 Part Numbers'!AH2 -> 2000 | BJ4: 1 | BK4: =IF(BJ4<=$BH$5,BJ4/$BH$5,-1) -> 0.5 | BT4: Closet End Surge: | BU4: =SUM(BT10:BT249) -> 0
N5: Enclosure Config Sheet | T5: Count of completed | AN5: Max PoE+: | AO5: =ROUND(AP5/(1+TempCoefficientForCopper*($AO$7-EXT100RefTemp)),1) -> 1250 | AP5: ='EXT-100 Part Numbers'!AH4 -> 1250 | BH5: 2 | BJ5: 2 | BK5: =IF(BJ5<=$BH$5,BJ5/$BH$5,-1) -> 1 | BT5: Remote End Surge: | BU5: =SUM(BU10:BU249) -> 0
D6: Maximum Ambient Temperature | O6: Maximum Ambient Temperature good to go | T6: =COUNTIF(X10:X249, TRUE) -> 0 | AN6: Ref Temp (°C) | AO6: ='EXT-100 Part Numbers'!$AI$2 -> 20 | BH6: 4 | BJ6: 3 | BK6: -1
D7: 68 | E7: °F | O7: =AND(D7<>"",E7<>"") -> TRUE | AN7: Entered Temp (°C) | AO7: =MAX(CONVERT($D$7,IF($E$7='EXT-100 Part Numbers'!$AK$2,"F","C"),"C"),20) -> 20 | BJ7: 4 | BK7: -1
B9: Device Number | C9: Device name | D9: Device Location | E9: Power Required | F9: Distance (ft) | G9: Cable Category | H9: Cable Flame Rating | I9: Cable Family | J9: Cable Color | K9: Cable Part Number | L9: Configure Enclosure? | M9: Quantity For This Location | N9: Good to go | O9: =E9 & " good to go" -> Power Required good to go | P9: =F9 & " good to go" -> Distance (ft) good to go | Q9: =G9 & " good to go" -> Cable Category good to go | R9: Cable Flame Rating good to go | S9: =I9 & " good to go" -> Cable Family good to go | T9: =J9 & " good to go" -> Cable Color good to go | U9: =L9 & " good to go" -> Configure Enclosure? good to go | V9: =M9 & " good to go" -> Quantity For This Location good to go | W9: Issue? | X9: All Info Present? | Y9: Part Number | AC9: Part Number | AD9: QTY | AE9: Description | AG9: Part Number | AH9: Quantity Calculation | AI9: Quantity | AJ9: Description | AK9: Hyperlink | AL9: Unit | AN9: Max Distance (ft) | AO9: Distance Valid? | AP9: Temp Valid? | AQ9: 1000 ft | AR9: 1500 ft | AS9: 2000 ft | AT9: Family | AU9: Min Temp | AV9: Max Temp | AW9: Max Distance (No Temp) (ft) | AY9: 2k ft Description | BA9: Part Number | BB9: Quantity Calculation | BC9: Quantity | BD9: Description | BE9: Unit | BF9: Hyperlink | BH9: Enclosure Count | BI9: Just Decimal | BJ9: Just Whole Number | BK9: Number 4 | BL9: Number 3 | BM9: Number 2 | BN9: Number 1 | BP9: Cable Color Options | BQ9: Single Color | BR9: Total Calculated Length (ft) | BT9: Surge Protectors Needed (Closet End) | BU9: Surge Protectors Needed (Remote End) | BW9: Flame Rating | BX9: Cable Family List | BY9: Single Cable | BZ9: Is an indoor, indoor/outdoor, or industrial cable? | CA9: =H9 & " valid selection?" -> Cable Flame Rating valid selection? | CB9: =I9 & " valid selection?" -> Cable Family valid selection? | CC9: Cable Color valid selection?
B10: 1 | K10: =IF(AND(F10<>"",I10<>"",J10<>""),IF(AS10<>"",AS10,IF(AR10<>"",AR10,AQ10)),"") ->  | N10: =OR(AND(E10="",F10="",G10="",H10="",I10="",J10="",L10="",M10=""),AND(E10<>"",F10<>"",G10<>"",H10<>"",I10<>"",J10<>"",AO10,AP10,IF(CELL("width",L10)>0, L10<>"",TRUE),M10<>"",ISNUMBER(M10),$O$7,NOT(ISERROR(K10)))) -> TRUE | O10: =IF(NOT(N10),E10<>"",TRUE) -> TRUE | P10: =IF(NOT(N10),AND(F10<>"",AO10),TRUE) -> TRUE | Q10: =IF(NOT(N10),G10<>"",TRUE) -> TRUE | R10: =IF(NOT(N10),AND(H10<>"",H10<>EXT100FlameRatingUnspecified),TRUE) -> TRUE | S10: =IF(NOT(N10),AND(I10<>"",I10<>EXT100NoCatNoFlame,AP10),TRUE) -> TRUE | T10: =IF(NOT(N10),AND(J10<>"",J10<>NoColorSelection,NOT(ISERROR(K10))),TRUE) -> TRUE | U10: =IF(NOT(N10),IF(CELL("width",L10)>0, L10<>"",TRUE),TRUE) -> TRUE | V10: =IF(NOT(N10),AND(M10<>"",ISNUMBER(M10)),TRUE) -> TRUE | W10: =NOT(N10) -> FALSE | X10: =IFERROR(AND(E10<>"",F10<>"",I10<>"",J10<>"",AO10,AP10,IF(CELL("width",L10)>0, L10<>"",TRUE)),FALSE) -> FALSE | Y10: =IF(AND(L10<>References!$D$4,X10),'EXT-100 Part Numbers'!$R$2,"") ->  | AG10: ='EXT-100 Part Numbers'!$R$2 -> 81001153 | AH10: =SUMIF(Y:Y,AG10,M:M) -> 0 | AI10: =IF(AH10>0,AH10,"") ->  | AJ10: =IF(AH10>0,'EXT-100 Part Numbers'!$Q$2,"") ->  | AK10: =IF(AI10<>"",'EXT-100 Part Numbers'!$S$2,"") ->  | AN10: =ROUND(AW10/(1+TempCoefficientForCopper*($AO$7-EXT100RefTemp)),1) -> 0 | AO10: =IF(F10<>"",AND(F10>0,F10<=AN10),TRUE) -> TRUE | AP10: =AND($D$7>=AU10,$D$7<=AV10) -> TRUE | AQ10: =IF(AND(I10<>"",J10<>""),INDEX('EXT-100 Part Numbers'!$E$2:$E$192,MATCH(I10 & " (" & J10 & ")",'EXT-100 Part Numbers'!$A$2:$A$192,0)),"") ->  | AR10: =IFERROR(IF(AND(I10<>"",J10<>"",F10<='EXT-100 Part Numbers'!$AP$3,F10*M10>'EXT-100 Part Numbers'!$AP$2),INDEX('EXT-100 Part Numbers'!$E$193:$E$211,MATCH(I10 & " (" & J10 & ")",'EXT-100 Part Numbers'!$A$193:$A$211,0)),""),"") ->  | AS10: =IF(AND(I10<>"",J10<>"",OR(AND(AR10<>"",F10>'EXT-100 Part Numbers'!$AP$3),AND(AR10="",F10*M10>'EXT-100 Part Numbers'!$AP$2))),INDEX('EXT-100 Part Numbers'!$E$212:$E$238,MATCH(I10,'EXT-100 Part Numbers'!$B$212:$B$238,0)),"") ->  | AT10: =IFERROR(INDEX('EXT-100 Part Numbers'!$B$2:$B$211,MATCH(AQ10,'EXT-100 Part Numbers'!$E$2:$E$211,0)),"") ->  | AU10: =IF(AT10<>"",CONVERT(IFERROR(INDEX('EXT-100 Part Numbers'!$L$2:$L$27,MATCH(AT10,'EXT-100 Part Numbers'!$K$4:$K$27,0)),MIN('EXT-100 Part Numbers'!$L$2:$L$27)),"C",IF($E$7='EXT-100 Part Numbers'!$AK$2,"F","C")),-400) -> -400 | AV10: =IF(AT10<>"",CONVERT(IFERROR(INDEX('EXT-100 Part Numbers'!$M$2:$M$27,MATCH(AT10,'EXT-100 Part Numbers'!$K$4:$K$27,0)),MAX('EXT-100 Part Numbers'!$M$2:$M$27)),"C",IF($E$7='EXT-100 Part Numbers'!$AK$2,"F","C")),400) -> 400 | AW10: =IF(E10='EXT-100 Part Numbers'!$AG$2,'EXT-100 Part Numbers'!$AH$2,IF(E10='EXT-100 Part Numbers'!$AG$3,'EXT-100 Part Numbers'!$AH$3,IF(E10='EXT-100 Part Numbers'!$AG$4,'EXT-100 Part Numbers'!$AH$4,0))) -> 0 | AY10: =IF(AS10<>"",INDEX('EXT-100 Part Numbers'!$B$2:$B$238,MATCH(AS10,'EXT-100 Part Numbers'!$E$2:$E$238,0)) & ", " & SUBSTITUTE(INDEX('EXT-100 Part Numbers'!$C$2:$C$238,MATCH(AS10,'EXT-100 Part Numbers'!$E$2:$E$238,0)),"REPLACEME",J10),"") ->  | BA10: =IF(BD10<>"",INDEX($AS$10:$AS$249,MATCH(BD10,$AY$10:$AY$249,0)),"") ->  | BB10: =IF(COUNTIF(AY:AY,BD10) > 0,_xlfn.CEILING.MATH(SUMIF(K:K,BA10,BR:BR)/2000),"") ->  | BC10: =IF(BB10<>"",BB10 & " " & IF(BB10=1,BE10,IF(BE10="Reel in a box","Reels in a box",BE10 & IF(RIGHT(BE10,1)="x","es","s"))),"") ->  | BE10: =IF(BA10<>"",INDEX('EXT-100 Part Numbers'!$F$2:$F$238,MATCH(BA10,'EXT-100 Part Numbers'!$E$2:$E$238,0)),"") ->  | BF10: =IF(BA10<>"", INDEX('EXT-100 Part Numbers'!$G$2:$G$238,MATCH(BA10,'EXT-100 Part Numbers'!$E$2:$E$238,0)),"") ->  | BH10: =IF(L10=References!$D$3,M10/$BH$5,0) -> 0 | BI10: =BH10-BJ10 -> 0 | BJ10: =TRUNC(BH10,0) -> 0 | BK10: =IF(VALUE(RIGHT(BK$9,1))<$BH$5,IFERROR(IF(INDEX($BJ$4:$BJ$7,MATCH($BI10,$BK$4:$BK$7,0))=VALUE(RIGHT(BK$9,1)),INDEX($BJ$4:$BJ$7,MATCH($BI10,$BK$4:$BK$7,0)),0),0),IF(VALUE(RIGHT(BK$9,1))=$BH$5,$BJ10,0)) -> 0 | BL10: =IF(VALUE(RIGHT(BL$9,1))<$BH$5,IFERROR(IF(INDEX($BJ$4:$BJ$7,MATCH($BI10,$BK$4:$BK$7,0))=VALUE(RIGHT(BL$9,1)),INDEX($BJ$4:$BJ$7,MATCH($BI10,$BK$4:$BK$7,0)),0),0),IF(VALUE(RIGHT(BL$9,1))=$BH$5,$BJ10,0)) -> 0 | BM10: =IF(VALUE(RIGHT(BM$9,1))<$BH$5,IFERROR(IF(INDEX($BJ$4:$BJ$7,MATCH($BI10,$BK$4:$BK$7,0))=VALUE(RIGHT(BM$9,1)),INDEX($BJ$4:$BJ$7,MATCH($BI10,$BK$4:$BK$7,0)),0),0),IF(VALUE(RIGHT(BM$9,1))=$BH$5,$BJ10,0)) -> 0 | BN10: =IF(VALUE(RIGHT(BN$9,1))<$BH$5,IFERROR(IF(INDEX($BJ$4:$BJ$7,MATCH($BI10,$BK$4:$BK$7,0))=VALUE(RIGHT(BN$9,1)),INDEX($BJ$4:$BJ$7,MATCH($BI10,$BK$4:$BK$7,0)),0),0),IF(VALUE(RIGHT(BN$9,1))=$BH$5,$BJ10,0)) -> 0 | BP10: =IF(IFERROR(MATCH(I10,ColorSet1Cables,0),0)>0,'EXT-100 Part Numbers'!$U$14,IF(IFERROR(MATCH(I10,ColorSet2Cables,0),0)>0,'EXT-100 Part Numbers'!$V$14,IF(IFERROR(MATCH(I10,ColorSet3Cables,0),0)>0,'EXT-100 Part Numbers'!$W$14,IF(IFERROR(MATCH(I10,ColorSet4Cables,0),0)>0,'EXT-100 Part Numbers'!$X$14,IF(IFERROR(MATCH(I10,ColorSet5Cables,0),0)>0,'EXT-100 Part Numbers'!$Y$14,IF(IFERROR(MATCH(I10,ColorSet6Cables,0),0)>0,'EXT-100 Part Numbers'!$Z$14,IF(IFERROR(MATCH(I10,ColorSet7Cables,0),0)>0,'EXT-100 Part Numbers'!$AA$14,IF(IFERROR(MATCH(I10,ColorSet8Cables,0),0)>0,'EXT-100 Part Numbers'!$AB$14,IF(IFERROR(MATCH(I10,ColorSet9Cables,0),0)>0,'EXT-100 Part Numbers'!$AC$14,IF(IFERROR(MATCH(I10,ColorSet10Cables,0),0)>0,'EXT-100 Part Numbers'!$AD$14,IF(IFERROR(MATCH(I10,ColorSet11Cables,0),0)>0,'EXT-100 Part Numbers'!$U$35,IF(IFERROR(MATCH(I10,ColorSet12Cables,0),0)>0,'EXT-100 Part Numbers'!$V$35,'EXT-100 Part Numbers'!$AE$14)))))))))))) -> NoColorSelection | BQ10: =IF(AND(BP10<>'EXT-100 Part Numbers'!$AE$14,COUNTA(INDIRECT(BP10))=1),INDIRECT(BP10),"") ->  | BR10: =IF(AND(F10<> "",M10<>""),F10*M10,"") ->  | BT10: =IF(M10>0,M10,0) -> 0 | BU10: =IF(M10>0,M10*IF(BH10=0,2,0),0) -> 0 | BW10: =IF(G10="",'EXT-100 Part Numbers'!$I$22,IFERROR(INDEX('EXT-100 Part Numbers'!$J$2:$J$4,MATCH(G10,EXTCategories,0)),'EXT-100 Part Numbers'!$I$22)) -> EXT100FlameRatingUnspecified | BX10: =IF(AND(G10="",H10=""),'EXT-100 Part Numbers'!$AY$13,IFERROR(INDEX('EXT-100 Part Numbers'!$AZ$2:$AZ$11,MATCH(G10 & " " & H10,'EXT-100 Part Numbers'!$AY$2:$AY$11,0)),'EXT-100 Part Numbers'!$I$22)) -> EXT100NoCatNoFlame | BY10: =IF(AND(BX10<>'EXT-100 Part Numbers'!$I$22,BX10<>'EXT-100 Part Numbers'!$AY$13,COUNTA(INDIRECT(BX10))=1),INDIRECT(BX10),"") ->  | BZ10: =IFERROR(INDEX('EXT-100 Part Numbers'!$N$2:$N$27,MATCH(AT10,'EXT-100 Part Numbers'!$K$2:$K$27,0)),OutdoorEnvironment)<>OutdoorEnvironment -> FALSE | CA10: =IF(H10<>"",IF(AND(G10<>"",BW10<>"",BW10<>'EXT-100 Part Numbers'!$I$22),IFERROR(MATCH(H10,INDIRECT(BW10),0)>0,FALSE),FALSE),TRUE) -> TRUE | CB10: =IF(I10<>"",IF(AND(G10<>"",H10<>"",BX10<>"",BX10<>'EXT-100 Part Numbers'!$AY$13),IFERROR(MATCH(I10,INDIRECT(BX10),0)>0,FALSE),FALSE),TRUE) -> TRUE | CC10: =IF(J10<>"",IF(AND(G10<>"",H10<>"",I10<>"",BP10<>"",BP10<>'EXT-100 Part Numbers'!$AE$14),IFERROR(MATCH(J10,INDIRECT(BP10),0)>0,FALSE),FALSE),TRUE) -> TRUE
B11: 2 | N11: =OR(AND(E11="",F11="",G11="",H11="",I11="",J11="",L11="",M11=""),AND(E11<>"",F11<>"",G11<>"",H11<>"",I11<>"",J11<>"",AO11,AP11,IF(CELL("width",L11)>0, L11<>"",TRUE),M11<>"",ISNUMBER(M11),$O$7,NOT(ISERROR(K11)))) -> TRUE | O11: TRUE | P11: TRUE | Q11: =IF(NOT(N11),G11<>"",TRUE) -> TRUE | R11: TRUE | S11: TRUE | T11: TRUE | U11: TRUE | V11: TRUE | W11: FALSE | X11: FALSE | Y11: =IF(AND(L11<>References!$D$4,X11),'EXT-100 Part Numbers'!$R$2,"") ->  | AG11: ='EXT-100 Part Numbers'!E2 -> 11098078 | AH11: =IF(COUNTIF(K:K,AG11) > 0,_xlfn.CEILING.MATH(SUMIF(K:K,AG11,BR:BR)*SUMIF(K:K,AG11,M:M)/INDEX('EXT-100 Part Numbers'!H:H,MATCH(AG11,'EXT-100 Part Numbers'!E:E,0))),"") ->  | AI11: =IF(AH11<>"",IF(_xlfn.CEILING.MATH(SUMIF(K:K,AG11,BR:BR)/INDEX('EXT-100 Part Numbers'!H:H,MATCH(AG11,'EXT-100 Part Numbers'!E:E,0)))>0,_xlfn.CEILING.MATH(SUMIF(K:K,AG11,BR:BR)/INDEX('EXT-100 Part Numbers'!H:H,MATCH(AG11,'EXT-100 Part Numbers'!E:E,0))),"???") & " " & IF(AH11=1,AL11,IF(AL11="Reel in a box","Reels in a box",AL11 & IF(RIGHT(AL11,1)="x","es","s"))),"") ->  | AJ11: =IF(AH11<>"",INDEX('EXT-100 Part Numbers'!$B$2:$B$238,MATCH(AG11,'EXT-100 Part Numbers'!$E$2:$E$238,0)) & ", " & INDEX('EXT-100 Part Numbers'!$C$2:$C$238,MATCH(AG11,'EXT-100 Part Numbers'!$E$2:$E$238,0)),"") ->  | AK11: =IF(AH11<>"",INDEX('EXT-100 Part Numbers'!$G$2:$G$238,MATCH(AG11,'EXT-100 Part Numbers'!$E$2:$E$238,0)),"") ->  | AL11: =IF(AH11<>"", INDEX('EXT-100 Part Numbers'!$F$2:$F$238,MATCH(AG11,'EXT-100 Part Numbers'!$E$2:$E$238,0)),"") ->  | AN11: 0 | AO11: TRUE | AP11: =AND($D$7>=AU11,$D$7<=AV11) -> TRUE | AQ11: =IF(AND(I11<>"",J11<>""),INDEX('EXT-100 Part Numbers'!$E$2:$E$192,MATCH(I11 & " (" & J11 & ")",'EXT-100 Part Numbers'!$A$2:$A$192,0)),"") ->  | AR11: =IFERROR(IF(AND(I11<>"",J11<>"",F11<='EXT-100 Part Numbers'!$AP$3,F11*M11>'EXT-100 Part Numbers'!$AP$2),INDEX('EXT-100 Part Numbers'!$E$193:$E$211,MATCH(I11 & " (" & J11 & ")",'EXT-100 Part Numbers'!$A$193:$A$211,0)),""),"") ->  | AS11: =IF(AND(I11<>"",J11<>"",OR(AND(AR11<>"",F11>'EXT-100 Part Numbers'!$AP$3),AND(AR11="",F11*M11>'EXT-100 Part Numbers'!$AP$2))),INDEX('EXT-100 Part Numbers'!$E$212:$E$238,MATCH(I11,'EXT-100 Part Numbers'!$B$212:$B$238,0)),"") ->  | AT11: =IFERROR(INDEX('EXT-100 Part Numbers'!$B$2:$B$211,MATCH(AQ11,'EXT-100 Part Numbers'!$E$2:$E$211,0)),"") ->  | AU11: =IF(AT11<>"",CONVERT(IFERROR(INDEX('EXT-100 Part Numbers'!$L$2:$L$27,MATCH(AT11,'EXT-100 Part Numbers'!$K$4:$K$27,0)),MIN('EXT-100 Part Numbers'!$L$2:$L$27)),"C",IF($E$7='EXT-100 Part Numbers'!$AK$2,"F","C")),-400) -> -400 | AV11: =IF(AT11<>"",CONVERT(IFERROR(INDEX('EXT-100 Part Numbers'!$M$2:$M$27,MATCH(AT11,'EXT-100 Part Numbers'!$K$4:$K$27,0)),MAX('EXT-100 Part Numbers'!$M$2:$M$27)),"C",IF($E$7='EXT-100 Part Numbers'!$AK$2,"F","C")),400) -> 400 | AW11: =IF(E11='EXT-100 Part Numbers'!$AG$2,'EXT-100 Part Numbers'!$AH$2,IF(E11='EXT-100 Part Numbers'!$AG$3,'EXT-100 Part Numbers'!$AH$3,IF(E11='EXT-100 Part Numbers'!$AG$4,'EXT-100 Part Numbers'!$AH$4,0))) -> 0 | AY11: =IF(AS11<>"",INDEX('EXT-100 Part Numbers'!$B$2:$B$238,MATCH(AS11,'EXT-100 Part Numbers'!$E$2:$E$238,0)) & ", " & SUBSTITUTE(INDEX('EXT-100 Part Numbers'!$C$2:$C$238,MATCH(AS11,'EXT-100 Part Numbers'!$E$2:$E$238,0)),"REPLACEME",J11),"") ->  | BA11: =IF(BD11<>"",INDEX($AS$10:$AS$249,MATCH(BD11,$AY$10:$AY$249,0)),"") ->  | BC11: =IF(BB11<>"",BB11 & " " & IF(BB11=1,BE11,IF(BE11="Reel in a box","Reels in a box",BE11 & IF(RIGHT(BE11,1)="x","es","s"))),"") ->  | BE11: =IF(BA11<>"",INDEX('EXT-100 Part Numbers'!$F$2:$F$238,MATCH(BA11,'EXT-100 Part Numbers'!$E$2:$E$238,0)),"") ->  | BF11: =IF(BA11<>"", INDEX('EXT-100 Part Numbers'!$G$2:$G$238,MATCH(BA11,'EXT-100 Part Numbers'!$E$2:$E$238,0)),"") ->  | BH11: =IF(L11=References!$D$3,M11/$BH$5,0) -> 0 | BI11: =BH11-BJ11 -> 0 | BJ11: =TRUNC(BH11,0) -> 0 | BK11: =IF(VALUE(RIGHT(BK$9,1))<$BH$5,IFERROR(IF(INDEX($BJ$4:$BJ$7,MATCH($BI11,$BK$4:$BK$7,0))=VALUE(RIGHT(BK$9,1)),INDEX($BJ$4:$BJ$7,MATCH($BI11,$BK$4:$BK$7,0)),0),0),IF(VALUE(RIGHT(BK$9,1))=$BH$5,$BJ11,0)) -> 0 | BL11: 0 | BM11: 0 | BN11: 0 | BP11: =IF(IFERROR(MATCH(I11,ColorSet1Cables,0),0)>0,'EXT-100 Part Numbers'!$U$14,IF(IFERROR(MATCH(I11,ColorSet2Cables,0),0)>0,'EXT-100 Part Numbers'!$V$14,IF(IFERROR(MATCH(I11,ColorSet3Cables,0),0)>0,'EXT-100 Part Numbers'!$W$14,IF(IFERROR(MATCH(I11,ColorSet4Cables,0),0)>0,'EXT-100 Part Numbers'!$X$14,IF(IFERROR(MATCH(I11,ColorSet5Cables,0),0)>0,'EXT-100 Part Numbers'!$Y$14,IF(IFERROR(MATCH(I11,ColorSet6Cables,0),0)>0,'EXT-100 Part Numbers'!$Z$14,IF(IFERROR(MATCH(I11,ColorSet7Cables,0),0)>0,'EXT-100 Part Numbers'!$AA$14,IF(IFERROR(MATCH(I11,ColorSet8Cables,0),0)>0,'EXT-100 Part Numbers'!$AB$14,IF(IFERROR(MATCH(I11,ColorSet9Cables,0),0)>0,'EXT-100 Part Numbers'!$AC$14,IF(IFERROR(MATCH(I11,ColorSet10Cables,0),0)>0,'EXT-100 Part Numbers'!$AD$14,IF(IFERROR(MATCH(I11,ColorSet11Cables,0),0)>0,'EXT-100 Part Numbers'!$U$35,IF(IFERROR(MATCH(I11,ColorSet12Cables,0),0)>0,'EXT-100 Part Numbers'!$V$35,'EXT-100 Part Numbers'!$AE$14)))))))))))) -> NoColorSelection | BQ11: =IF(AND(BP11<>'EXT-100 Part Numbers'!$AE$14,COUNTA(INDIRECT(BP11))=1),INDIRECT(BP11),"") ->  | BT11: 0 | BU11: 0 | BW11: =IF(G11="",'EXT-100 Part Numbers'!$I$22,IFERROR(INDEX('EXT-100 Part Numbers'!$J$2:$J$4,MATCH(G11,EXTCategories,0)),'EXT-100 Part Numbers'!$I$22)) -> EXT100FlameRatingUnspecified | BX11: =IF(AND(G11="",H11=""),'EXT-100 Part Numbers'!$AY$13,IFERROR(INDEX('EXT-100 Part Numbers'!$AZ$2:$AZ$11,MATCH(G11 & " " & H11,'EXT-100 Part Numbers'!$AY$2:$AY$11,0)),'EXT-100 Part Numbers'!$I$22)) -> EXT100NoCatNoFlame | BY11: =IF(AND(BX11<>'EXT-100 Part Numbers'!$I$22,BX11<>'EXT-100 Part Numbers'!$AY$13,COUNTA(INDIRECT(BX11))=1),INDIRECT(BX11),"") ->  | BZ11: =IFERROR(INDEX('EXT-100 Part Numbers'!$N$2:$N$27,MATCH(AT11,'EXT-100 Part Numbers'!$K$2:$K$27,0)),OutdoorEnvironment)<>OutdoorEnvironment -> FALSE | CA11: =IF(H11<>"",IF(AND(G11<>"",BW11<>"",BW11<>'EXT-100 Part Numbers'!$I$22),IFERROR(MATCH(H11,INDIRECT(BW11),0)>0,FALSE),FALSE),TRUE) -> TRUE | CB11: =IF(I11<>"",IF(AND(G11<>"",H11<>"",BX11<>"",BX11<>'EXT-100 Part Numbers'!$AY$13),IFERROR(MATCH(I11,INDIRECT(BX11),0)>0,FALSE),FALSE),TRUE) -> TRUE | CC11: =IF(J11<>"",IF(AND(G11<>"",H11<>"",I11<>"",BP11<>"",BP11<>'EXT-100 Part Numbers'!$AE$14),IFERROR(MATCH(J11,INDIRECT(BP11),0)>0,FALSE),FALSE),TRUE) -> TRUE
B12: 3 | N12: TRUE | O12: TRUE | P12: TRUE | Q12: TRUE | R12: TRUE | S12: TRUE | T12: TRUE | U12: TRUE | V12: TRUE | W12: FALSE | X12: FALSE | Y12: =IF(AND(L12<>References!$D$4,X12),'EXT-100 Part Numbers'!$R$2,"") ->  | AG12: ='EXT-100 Part Numbers'!E3 -> 11098080 | AH12: =IF(COUNTIF(K:K,AG12) > 0,_xlfn.CEILING.MATH(SUMIF(K:K,AG12,BR:BR)*SUMIF(K:K,AG12,M:M)/INDEX('EXT-100 Part Numbers'!H:H,MATCH(AG12,'EXT-100 Part Numbers'!E:E,0))),"") ->  | AI12: =IF(AH12<>"",IF(_xlfn.CEILING.MATH(SUMIF(K:K,AG12,BR:BR)/INDEX('EXT-100 Part Numbers'!H:H,MATCH(AG12,'EXT-100 Part Numbers'!E:E,0)))>0,_xlfn.CEILING.MATH(SUMIF(K:K,AG12,BR:BR)/INDEX('EXT-100 Part Numbers'!H:H,MATCH(AG12,'EXT-100 Part Numbers'!E:E,0))),"???") & " " & IF(AH12=1,AL12,IF(AL12="Reel in a box","Reels in a box",AL12 & IF(RIGHT(AL12,1)="x","es","s"))),"") ->  | AJ12: =IF(AH12<>"",INDEX('EXT-100 Part Numbers'!$B$2:$B$238,MATCH(AG12,'EXT-100 Part Numbers'!$E$2:$E$238,0)) & ", " & INDEX('EXT-100 Part Numbers'!$C$2:$C$238,MATCH(AG12,'EXT-100 Part Numbers'!$E$2:$E$238,0)),"") ->  | AK12: =IF(AH12<>"",INDEX('EXT-100 Part Numbers'!$G$2:$G$238,MATCH(AG12,'EXT-100 Part Numbers'!$E$2:$E$238,0)),"") ->  | AL12: =IF(AH12<>"", INDEX('EXT-100 Part Numbers'!$F$2:$F$238,MATCH(AG12,'EXT-100 Part Numbers'!$E$2:$E$238,0)),"") ->  | AN12: 0 | AO12: TRUE | AP12: TRUE | AQ12: =IF(AND(I12<>"",J12<>""),INDEX('EXT-100 Part Numbers'!$E$2:$E$192,MATCH(I12 & " (" & J12 & ")",'EXT-100 Part Numbers'!$A$2:$A$192,0)),"") ->  | AR12: =IFERROR(IF(AND(I12<>"",J12<>"",F12<='EXT-100 Part Numbers'!$AP$3,F12*M12>'EXT-100 Part Numbers'!$AP$2),INDEX('EXT-100 Part Numbers'!$E$193:$E$211,MATCH(I12 & " (" & J12 & ")",'EXT-100 Part Numbers'!$A$193:$A$211,0)),""),"") ->  | AS12: =IF(AND(I12<>"",J12<>"",OR(AND(AR12<>"",F12>'EXT-100 Part Numbers'!$AP$3),AND(AR12="",F12*M12>'EXT-100 Part Numbers'!$AP$2))),INDEX('EXT-100 Part Numbers'!$E$212:$E$238,MATCH(I12,'EXT-100 Part Numbers'!$B$212:$B$238,0)),"") ->  | AT12: =IFERROR(INDEX('EXT-100 Part Numbers'!$B$2:$B$211,MATCH(AQ12,'EXT-100 Part Numbers'!$E$2:$E$211,0)),"") ->  | AU12: =IF(AT12<>"",CONVERT(IFERROR(INDEX('EXT-100 Part Numbers'!$L$2:$L$27,MATCH(AT12,'EXT-100 Part Numbers'!$K$4:$K$27,0)),MIN('EXT-100 Part Numbers'!$L$2:$L$27)),"C",IF($E$7='EXT-100 Part Numbers'!$AK$2,"F","C")),-400) -> -400 | AV12: =IF(AT12<>"",CONVERT(IFERROR(INDEX('EXT-100 Part Numbers'!$M$2:$M$27,MATCH(AT12,'EXT-100 Part Numbers'!$K$4:$K$27,0)),MAX('EXT-100 Part Numbers'!$M$2:$M$27)),"C",IF($E$7='EXT-100 Part Numbers'!$AK$2,"F","C")),400) -> 400 | AW12: =IF(E12='EXT-100 Part Numbers'!$AG$2,'EXT-100 Part Numbers'!$AH$2,IF(E12='EXT-100 Part Numbers'!$AG$3,'EXT-100 Part Numbers'!$AH$3,IF(E12='EXT-100 Part Numbers'!$AG$4,'EXT-100 Part Numbers'!$AH$4,0))) -> 0 | AY12: =IF(AS12<>"",INDEX('EXT-100 Part Numbers'!$B$2:$B$238,MATCH(AS12,'EXT-100 Part Numbers'!$E$2:$E$238,0)) & ", " & SUBSTITUTE(INDEX('EXT-100 Part Numbers'!$C$2:$C$238,MATCH(AS12,'EXT-100 Part Numbers'!$E$2:$E$238,0)),"REPLACEME",J12),"") ->  | BE12: =IF(BA12<>"",INDEX('EXT-100 Part Numbers'!$F$2:$F$238,MATCH(BA12,'EXT-100 Part Numbers'!$E$2:$E$238,0)),"") ->  | BF12: =IF(BA12<>"", INDEX('EXT-100 Part Numbers'!$G$2:$G$238,MATCH(BA12,'EXT-100 Part Numbers'!$E$2:$E$238,0)),"") ->  | BH12: =IF(L12=References!$D$3,M12/$BH$5,0) -> 0 | BI12: 0 | BJ12: 0 | BK12: 0 | BL12: 0 | BM12: 0 | BN12: 0 | BP12: =IF(IFERROR(MATCH(I12,ColorSet1Cables,0),0)>0,'EXT-100 Part Numbers'!$U$14,IF(IFERROR(MATCH(I12,ColorSet2Cables,0),0)>0,'EXT-100 Part Numbers'!$V$14,IF(IFERROR(MATCH(I12,ColorSet3Cables,0),0)>0,'EXT-100 Part Numbers'!$W$14,IF(IFERROR(MATCH(I12,ColorSet4Cables,0),0)>0,'EXT-100 Part Numbers'!$X$14,IF(IFERROR(MATCH(I12,ColorSet5Cables,0),0)>0,'EXT-100 Part Numbers'!$Y$14,IF(IFERROR(MATCH(I12,ColorSet6Cables,0),0)>0,'EXT-100 Part Numbers'!$Z$14,IF(IFERROR(MATCH(I12,ColorSet7Cables,0),0)>0,'EXT-100 Part Numbers'!$AA$14,IF(IFERROR(MATCH(I12,ColorSet8Cables,0),0)>0,'EXT-100 Part Numbers'!$AB$14,IF(IFERROR(MATCH(I12,ColorSet9Cables,0),0)>0,'EXT-100 Part Numbers'!$AC$14,IF(IFERROR(MATCH(I12,ColorSet10Cables,0),0)>0,'EXT-100 Part Numbers'!$AD$14,IF(IFERROR(MATCH(I12,ColorSet11Cables,0),0)>0,'EXT-100 Part Numbers'!$U$35,IF(IFERROR(MATCH(I12,ColorSet12Cables,0),0)>0,'EXT-100 Part Numbers'!$V$35,'EXT-100 Part Numbers'!$AE$14)))))))))))) -> NoColorSelection | BQ12: =IF(AND(BP12<>'EXT-100 Part Numbers'!$AE$14,COUNTA(INDIRECT(BP12))=1),INDIRECT(BP12),"") ->  | BT12: 0 | BU12: 0 | BW12: =IF(G12="",'EXT-100 Part Numbers'!$I$22,IFERROR(INDEX('EXT-100 Part Numbers'!$J$2:$J$4,MATCH(G12,EXTCategories,0)),'EXT-100 Part Numbers'!$I$22)) -> EXT100FlameRatingUnspecified | BX12: =IF(AND(G12="",H12=""),'EXT-100 Part Numbers'!$AY$13,IFERROR(INDEX('EXT-100 Part Numbers'!$AZ$2:$AZ$11,MATCH(G12 & " " & H12,'EXT-100 Part Numbers'!$AY$2:$AY$11,0)),'EXT-100 Part Numbers'!$I$22)) -> EXT100NoCatNoFlame | BY12: =IF(AND(BX12<>'EXT-100 Part Numbers'!$I$22,BX12<>'EXT-100 Part Numbers'!$AY$13,COUNTA(INDIRECT(BX12))=1),INDIRECT(BX12),"") ->  | BZ12: =IFERROR(INDEX('EXT-100 Part Numbers'!$N$2:$N$27,MATCH(AT12,'EXT-100 Part Numbers'!$K$2:$K$27,0)),OutdoorEnvironment)<>OutdoorEnvironment -> FALSE | CA12: =IF(H12<>"",IF(AND(G12<>"",BW12<>"",BW12<>'EXT-100 Part Numbers'!$I$22),IFERROR(MATCH(H12,INDIRECT(BW12),0)>0,FALSE),FALSE),TRUE) -> TRUE | CB12: =IF(I12<>"",IF(AND(G12<>"",H12<>"",BX12<>"",BX12<>'EXT-100 Part Numbers'!$AY$13),IFERROR(MATCH(I12,INDIRECT(BX12),0)>0,FALSE),FALSE),TRUE) -> TRUE | CC12: =IF(J12<>"",IF(AND(G12<>"",H12<>"",I12<>"",BP12<>"",BP12<>'EXT-100 Part Numbers'!$AE$14),IFERROR(MATCH(J12,INDIRECT(BP12),0)>0,FALSE),FALSE),TRUE) -> TRUE
B13: 4 | N13: TRUE | O13: TRUE | P13: TRUE | Q13: TRUE | R13: TRUE | S13: TRUE | T13: TRUE | U13: TRUE | V13: TRUE | W13: FALSE | X13: FALSE | Y13: =IF(AND(L13<>References!$D$4,X13),'EXT-100 Part Numbers'!$R$2,"") ->  | AG13: ='EXT-100 Part Numbers'!E4 -> 11098079 | AH13: =IF(COUNTIF(K:K,AG13) > 0,_xlfn.CEILING.MATH(SUMIF(K:K,AG13,BR:BR)*SUMIF(K:K,AG13,M:M)/INDEX('EXT-100 Part Numbers'!H:H,MATCH(AG13,'EXT-100 Part Numbers'!E:E,0))),"") ->  | AI13: =IF(AH13<>"",IF(_xlfn.CEILING.MATH(SUMIF(K:K,AG13,BR:BR)/INDEX('EXT-100 Part Numbers'!H:H,MATCH(AG13,'EXT-100 Part Numbers'!E:E,0)))>0,_xlfn.CEILING.MATH(SUMIF(K:K,AG13,BR:BR)/INDEX('EXT-100 Part Numbers'!H:H,MATCH(AG13,'EXT-100 Part Numbers'!E:E,0))),"???") & " " & IF(AH13=1,AL13,IF(AL13="Reel in a box","Reels in a box",AL13 & IF(RIGHT(AL13,1)="x","es","s"))),"") ->  | AJ13: =IF(AH13<>"",INDEX('EXT-100 Part Numbers'!$B$2:$B$238,MATCH(AG13,'EXT-100 Part Numbers'!$E$2:$E$238,0)) & ", " & INDEX('EXT-100 Part Numbers'!$C$2:$C$238,MATCH(AG13,'EXT-100 Part Numbers'!$E$2:$E$238,0)),"") ->  | AK13: =IF(AH13<>"",INDEX('EXT-100 Part Numbers'!$G$2:$G$238,MATCH(AG13,'EXT-100 Part Numbers'!$E$2:$E$238,0)),"") ->  | AL13: =IF(AH13<>"", INDEX('EXT-100 Part Numbers'!$F$2:$F$238,MATCH(AG13,'EXT-100 Part Numbers'!$E$2:$E$238,0)),"") ->  | AN13: 0 | AO13: TRUE | AP13: TRUE | AQ13: =IF(AND(I13<>"",J13<>""),INDEX('EXT-100 Part Numbers'!$E$2:$E$192,MATCH(I13 & " (" & J13 & ")",'EXT-100 Part Numbers'!$A$2:$A$192,0)),"") ->  | AR13: =IFERROR(IF(AND(I13<>"",J13<>"",F13<='EXT-100 Part Numbers'!$AP$3,F13*M13>'EXT-100 Part Numbers'!$AP$2),INDEX('EXT-100 Part Numbers'!$E$193:$E$211,MATCH(I13 & " (" & J13 & ")",'EXT-100 Part Numbers'!$A$193:$A$211,0)),""),"") ->  | AS13: =IF(AND(I13<>"",J13<>"",OR(AND(AR13<>"",F13>'EXT-100 Part Numbers'!$AP$3),AND(AR13="",F13*M13>'EXT-100 Part Numbers'!$AP$2))),INDEX('EXT-100 Part Numbers'!$E$212:$E$238,MATCH(I13,'EXT-100 Part Numbers'!$B$212:$B$238,0)),"") ->  | AT13: =IFERROR(INDEX('EXT-100 Part Numbers'!$B$2:$B$211,MATCH(AQ13,'EXT-100 Part Numbers'!$E$2:$E$211,0)),"") ->  | AU13: =IF(AT13<>"",CONVERT(IFERROR(INDEX('EXT-100 Part Numbers'!$L$2:$L$27,MATCH(AT13,'EXT-100 Part Numbers'!$K$4:$K$27,0)),MIN('EXT-100 Part Numbers'!$L$2:$L$27)),"C",IF($E$7='EXT-100 Part Numbers'!$AK$2,"F","C")),-400) -> -400 | AV13: =IF(AT13<>"",CONVERT(IFERROR(INDEX('EXT-100 Part Numbers'!$M$2:$M$27,MATCH(AT13,'EXT-100 Part Numbers'!$K$4:$K$27,0)),MAX('EXT-100 Part Numbers'!$M$2:$M$27)),"C",IF($E$7='EXT-100 Part Numbers'!$AK$2,"F","C")),400) -> 400 | AW13: =IF(E13='EXT-100 Part Numbers'!$AG$2,'EXT-100 Part Numbers'!$AH$2,IF(E13='EXT-100 Part Numbers'!$AG$3,'EXT-100 Part Numbers'!$AH$3,IF(E13='EXT-100 Part Numbers'!$AG$4,'EXT-100 Part Numbers'!$AH$4,0))) -> 0 | AY13: =IF(AS13<>"",INDEX('EXT-100 Part Numbers'!$B$2:$B$238,MATCH(AS13,'EXT-100 Part Numbers'!$E$2:$E$238,0)) & ", " & SUBSTITUTE(INDEX('EXT-100 Part Numbers'!$C$2:$C$238,MATCH(AS13,'EXT-100 Part Numbers'!$E$2:$E$238,0)),"REPLACEME",J13),"") ->  | BE13: =IF(BA13<>"",INDEX('EXT-100 Part Numbers'!$F$2:$F$238,MATCH(BA13,'EXT-100 Part Numbers'!$E$2:$E$238,0)),"") ->  | BF13: =IF(BA13<>"", INDEX('EXT-100 Part Numbers'!$G$2:$G$238,MATCH(BA13,'EXT-100 Part Numbers'!$E$2:$E$238,0)),"") ->  | BH13: =IF(L13=References!$D$3,M13/$BH$5,0) -> 0 | BI13: 0 | BJ13: 0 | BK13: 0 | BL13: 0 | BM13: 0 | BN13: 0 | BP13: =IF(IFERROR(MATCH(I13,ColorSet1Cables,0),0)>0,'EXT-100 Part Numbers'!$U$14,IF(IFERROR(MATCH(I13,ColorSet2Cables,0),0)>0,'EXT-100 Part Numbers'!$V$14,IF(IFERROR(MATCH(I13,ColorSet3Cables,0),0)>0,'EXT-100 Part Numbers'!$W$14,IF(IFERROR(MATCH(I13,ColorSet4Cables,0),0)>0,'EXT-100 Part Numbers'!$X$14,IF(IFERROR(MATCH(I13,ColorSet5Cables,0),0)>0,'EXT-100 Part Numbers'!$Y$14,IF(IFERROR(MATCH(I13,ColorSet6Cables,0),0)>0,'EXT-100 Part Numbers'!$Z$14,IF(IFERROR(MATCH(I13,ColorSet7Cables,0),0)>0,'EXT-100 Part Numbers'!$AA$14,IF(IFERROR(MATCH(I13,ColorSet8Cables,0),0)>0,'EXT-100 Part Numbers'!$AB$14,IF(IFERROR(MATCH(I13,ColorSet9Cables,0),0)>0,'EXT-100 Part Numbers'!$AC$14,IF(IFERROR(MATCH(I13,ColorSet10Cables,0),0)>0,'EXT-100 Part Numbers'!$AD$14,IF(IFERROR(MATCH(I13,ColorSet11Cables,0),0)>0,'EXT-100 Part Numbers'!$U$35,IF(IFERROR(MATCH(I13,ColorSet12Cables,0),0)>0,'EXT-100 Part Numbers'!$V$35,'EXT-100 Part Numbers'!$AE$14)))))))))))) -> NoColorSelection | BQ13: =IF(AND(BP13<>'EXT-100 Part Numbers'!$AE$14,COUNTA(INDIRECT(BP13))=1),INDIRECT(BP13),"") ->  | BT13: 0 | BU13: 0 | BW13: =IF(G13="",'EXT-100 Part Numbers'!$I$22,IFERROR(INDEX('EXT-100 Part Numbers'!$J$2:$J$4,MATCH(G13,EXTCategories,0)),'EXT-100 Part Numbers'!$I$22)) -> EXT100FlameRatingUnspecified | BX13: =IF(AND(G13="",H13=""),'EXT-100 Part Numbers'!$AY$13,IFERROR(INDEX('EXT-100 Part Numbers'!$AZ$2:$AZ$11,MATCH(G13 & " " & H13,'EXT-100 Part Numbers'!$AY$2:$AY$11,0)),'EXT-100 Part Numbers'!$I$22)) -> EXT100NoCatNoFlame | BY13: =IF(AND(BX13<>'EXT-100 Part Numbers'!$I$22,BX13<>'EXT-100 Part Numbers'!$AY$13,COUNTA(INDIRECT(BX13))=1),INDIRECT(BX13),"") ->  | BZ13: =IFERROR(INDEX('EXT-100 Part Numbers'!$N$2:$N$27,MATCH(AT13,'EXT-100 Part Numbers'!$K$2:$K$27,0)),OutdoorEnvironment)<>OutdoorEnvironment -> FALSE | CA13: =IF(H13<>"",IF(AND(G13<>"",BW13<>"",BW13<>'EXT-100 Part Numbers'!$I$22),IFERROR(MATCH(H13,INDIRECT(BW13),0)>0,FALSE),FALSE),TRUE) -> TRUE | CB13: =IF(I13<>"",IF(AND(G13<>"",H13<>"",BX13<>"",BX13<>'EXT-100 Part Numbers'!$AY$13),IFERROR(MATCH(I13,INDIRECT(BX13),0)>0,FALSE),FALSE),TRUE) -> TRUE | CC13: =IF(J13<>"",IF(AND(G13<>"",H13<>"",I13<>"",BP13<>"",BP13<>'EXT-100 Part Numbers'!$AE$14),IFERROR(MATCH(J13,INDIRECT(BP13),0)>0,FALSE),FALSE),TRUE) -> TRUE
B14: 5 | N14: TRUE | O14: TRUE | P14: TRUE | Q14: TRUE | R14: TRUE | S14: TRUE | T14: TRUE | U14: TRUE | V14: TRUE | W14: FALSE | X14: FALSE | Y14: =IF(AND(L14<>References!$D$4,X14),'EXT-100 Part Numbers'!$R$2,"") ->  | AG14: ='EXT-100 Part Numbers'!E5 -> 11140866 | AH14: =IF(COUNTIF(K:K,AG14) > 0,_xlfn.CEILING.MATH(SUMIF(K:K,AG14,BR:BR)*SUMIF(K:K,AG14,M:M)/INDEX('EXT-100 Part Numbers'!H:H,MATCH(AG14,'EXT-100 Part Numbers'!E:E,0))),"") ->  | AI14: =IF(AH14<>"",IF(_xlfn.CEILING.MATH(SUMIF(K:K,AG14,BR:BR)/INDEX('EXT-100 Part Numbers'!H:H,MATCH(AG14,'EXT-100 Part Numbers'!E:E,0)))>0,_xlfn.CEILING.MATH(SUMIF(K:K,AG14,BR:BR)/INDEX('EXT-100 Part Numbers'!H:H,MATCH(AG14,'EXT-100 Part Numbers'!E:E,0))),"???") & " " & IF(AH14=1,AL14,IF(AL14="Reel in a box","Reels in a box",AL14 & IF(RIGHT(AL14,1)="x","es","s"))),"") ->  | AJ14: =IF(AH14<>"",INDEX('EXT-100 Part Numbers'!$B$2:$B$238,MATCH(AG14,'EXT-100 Part Numbers'!$E$2:$E$238,0)) & ", " & INDEX('EXT-100 Part Numbers'!$C$2:$C$238,MATCH(AG14,'EXT-100 Part Numbers'!$E$2:$E$238,0)),"") ->  | AK14: =IF(AH14<>"",INDEX('EXT-100 Part Numbers'!$G$2:$G$238,MATCH(AG14,'EXT-100 Part Numbers'!$E$2:$E$238,0)),"") ->  | AL14: =IF(AH14<>"", INDEX('EXT-100 Part Numbers'!$F$2:$F$238,MATCH(AG14,'EXT-100 Part Numbers'!$E$2:$E$238,0)),"") ->  | AN14: 0 | AO14: TRUE | AP14: TRUE | AQ14: =IF(AND(I14<>"",J14<>""),INDEX('EXT-100 Part Numbers'!$E$2:$E$192,MATCH(I14 & " (" & J14 & ")",'EXT-100 Part Numbers'!$A$2:$A$192,0)),"") ->  | AR14: =IFERROR(IF(AND(I14<>"",J14<>"",F14<='EXT-100 Part Numbers'!$AP$3,F14*M14>'EXT-100 Part Numbers'!$AP$2),INDEX('EXT-100 Part Numbers'!$E$193:$E$211,MATCH(I14 & " (" & J14 & ")",'EXT-100 Part Numbers'!$A$193:$A$211,0)),""),"") ->  | AS14: =IF(AND(I14<>"",J14<>"",OR(AND(AR14<>"",F14>'EXT-100 Part Numbers'!$AP$3),AND(AR14="",F14*M14>'EXT-100 Part Numbers'!$AP$2))),INDEX('EXT-100 Part Numbers'!$E$212:$E$238,MATCH(I14,'EXT-100 Part Numbers'!$B$212:$B$238,0)),"") ->  | AT14: =IFERROR(INDEX('EXT-100 Part Numbers'!$B$2:$B$211,MATCH(AQ14,'EXT-100 Part Numbers'!$E$2:$E$211,0)),"") ->  | AU14: =IF(AT14<>"",CONVERT(IFERROR(INDEX('EXT-100 Part Numbers'!$L$2:$L$27,MATCH(AT14,'EXT-100 Part Numbers'!$K$4:$K$27,0)),MIN('EXT-100 Part Numbers'!$L$2:$L$27)),"C",IF($E$7='EXT-100 Part Numbers'!$AK$2,"F","C")),-400) -> -400 | AV14: =IF(AT14<>"",CONVERT(IFERROR(INDEX('EXT-100 Part Numbers'!$M$2:$M$27,MATCH(AT14,'EXT-100 Part Numbers'!$K$4:$K$27,0)),MAX('EXT-100 Part Numbers'!$M$2:$M$27)),"C",IF($E$7='EXT-100 Part Numbers'!$AK$2,"F","C")),400) -> 400 | AW14: =IF(E14='EXT-100 Part Numbers'!$AG$2,'EXT-100 Part Numbers'!$AH$2,IF(E14='EXT-100 Part Numbers'!$AG$3,'EXT-100 Part Numbers'!$AH$3,IF(E14='EXT-100 Part Numbers'!$AG$4,'EXT-100 Part Numbers'!$AH$4,0))) -> 0 | AY14: =IF(AS14<>"",INDEX('EXT-100 Part Numbers'!$B$2:$B$238,MATCH(AS14,'EXT-100 Part Numbers'!$E$2:$E$238,0)) & ", " & SUBSTITUTE(INDEX('EXT-100 Part Numbers'!$C$2:$C$238,MATCH(AS14,'EXT-100 Part Numbers'!$E$2:$E$238,0)),"REPLACEME",J14),"") ->  | BE14: =IF(BA14<>"",INDEX('EXT-100 Part Numbers'!$F$2:$F$238,MATCH(BA14,'EXT-100 Part Numbers'!$E$2:$E$238,0)),"") ->  | BF14: =IF(BA14<>"", INDEX('EXT-100 Part Numbers'!$G$2:$G$238,MATCH(BA14,'EXT-100 Part Numbers'!$E$2:$E$238,0)),"") ->  | BH14: =IF(L14=References!$D$3,M14/$BH$5,0) -> 0 | BI14: 0 | BJ14: 0 | BK14: 0 | BL14: 0 | BM14: 0 | BN14: 0 | BP14: =IF(IFERROR(MATCH(I14,ColorSet1Cables,0),0)>0,'EXT-100 Part Numbers'!$U$14,IF(IFERROR(MATCH(I14,ColorSet2Cables,0),0)>0,'EXT-100 Part Numbers'!$V$14,IF(IFERROR(MATCH(I14,ColorSet3Cables,0),0)>0,'EXT-100 Part Numbers'!$W$14,IF(IFERROR(MATCH(I14,ColorSet4Cables,0),0)>0,'EXT-100 Part Numbers'!$X$14,IF(IFERROR(MATCH(I14,ColorSet5Cables,0),0)>0,'EXT-100 Part Numbers'!$Y$14,IF(IFERROR(MATCH(I14,ColorSet6Cables,0),0)>0,'EXT-100 Part Numbers'!$Z$14,IF(IFERROR(MATCH(I14,ColorSet7Cables,0),0)>0,'EXT-100 Part Numbers'!$AA$14,IF(IFERROR(MATCH(I14,ColorSet8Cables,0),0)>0,'EXT-100 Part Numbers'!$AB$14,IF(IFERROR(MATCH(I14,ColorSet9Cables,0),0)>0,'EXT-100 Part Numbers'!$AC$14,IF(IFERROR(MATCH(I14,ColorSet10Cables,0),0)>0,'EXT-100 Part Numbers'!$AD$14,IF(IFERROR(MATCH(I14,ColorSet11Cables,0),0)>0,'EXT-100 Part Numbers'!$U$35,IF(IFERROR(MATCH(I14,ColorSet12Cables,0),0)>0,'EXT-100 Part Numbers'!$V$35,'EXT-100 Part Numbers'!$AE$14)))))))))))) -> NoColorSelection | BQ14: =IF(AND(BP14<>'EXT-100 Part Numbers'!$AE$14,COUNTA(INDIRECT(BP14))=1),INDIRECT(BP14),"") ->  | BT14: 0 | BU14: 0 | BW14: =IF(G14="",'EXT-100 Part Numbers'!$I$22,IFERROR(INDEX('EXT-100 Part Numbers'!$J$2:$J$4,MATCH(G14,EXTCategories,0)),'EXT-100 Part Numbers'!$I$22)) -> EXT100FlameRatingUnspecified | BX14: =IF(AND(G14="",H14=""),'EXT-100 Part Numbers'!$AY$13,IFERROR(INDEX('EXT-100 Part Numbers'!$AZ$2:$AZ$11,MATCH(G14 & " " & H14,'EXT-100 Part Numbers'!$AY$2:$AY$11,0)),'EXT-100 Part Numbers'!$I$22)) -> EXT100NoCatNoFlame | BY14: =IF(AND(BX14<>'EXT-100 Part Numbers'!$I$22,BX14<>'EXT-100 Part Numbers'!$AY$13,COUNTA(INDIRECT(BX14))=1),INDIRECT(BX14),"") ->  | BZ14: =IFERROR(INDEX('EXT-100 Part Numbers'!$N$2:$N$27,MATCH(AT14,'EXT-100 Part Numbers'!$K$2:$K$27,0)),OutdoorEnvironment)<>OutdoorEnvironment -> FALSE | CA14: =IF(H14<>"",IF(AND(G14<>"",BW14<>"",BW14<>'EXT-100 Part Numbers'!$I$22),IFERROR(MATCH(H14,INDIRECT(BW14),0)>0,FALSE),FALSE),TRUE) -> TRUE | CB14: =IF(I14<>"",IF(AND(G14<>"",H14<>"",BX14<>"",BX14<>'EXT-100 Part Numbers'!$AY$13),IFERROR(MATCH(I14,INDIRECT(BX14),0)>0,FALSE),FALSE),TRUE) -> TRUE | CC14: =IF(J14<>"",IF(AND(G14<>"",H14<>"",I14<>"",BP14<>"",BP14<>'EXT-100 Part Numbers'!$AE$14),IFERROR(MATCH(J14,INDIRECT(BP14),0)>0,FALSE),FALSE),TRUE) -> TRUE
B15: 6 | N15: TRUE | O15: TRUE | P15: TRUE | Q15: TRUE | R15: TRUE | S15: TRUE | T15: TRUE | U15: TRUE | V15: TRUE | W15: FALSE | X15: FALSE | Y15: =IF(AND(L15<>References!$D$4,X15),'EXT-100 Part Numbers'!$R$2,"") ->  | AG15: ='EXT-100 Part Numbers'!E6 -> 10032223 | AH15: =IF(COUNTIF(K:K,AG15) > 0,_xlfn.CEILING.MATH(SUMIF(K:K,AG15,BR:BR)*SUMIF(K:K,AG15,M:M)/INDEX('EXT-100 Part Numbers'!H:H,MATCH(AG15,'EXT-100 Part Numbers'!E:E,0))),"") ->  | AI15: =IF(AH15<>"",IF(_xlfn.CEILING.MATH(SUMIF(K:K,AG15,BR:BR)/INDEX('EXT-100 Part Numbers'!H:H,MATCH(AG15,'EXT-100 Part Numbers'!E:E,0)))>0,_xlfn.CEILING.MATH(SUMIF(K:K,AG15,BR:BR)/INDEX('EXT-100 Part Numbers'!H:H,MATCH(AG15,'EXT-100 Part Numbers'!E:E,0))),"???") & " " & IF(AH15=1,AL15,IF(AL15="Reel in a box","Reels in a box",AL15 & IF(RIGHT(AL15,1)="x","es","s"))),"") ->  | AJ15: =IF(AH15<>"",INDEX('EXT-100 Part Numbers'!$B$2:$B$238,MATCH(AG15,'EXT-100 Part Numbers'!$E$2:$E$238,0)) & ", " & INDEX('EXT-100 Part Numbers'!$C$2:$C$238,MATCH(AG15,'EXT-100 Part Numbers'!$E$2:$E$238,0)),"") ->  | AK15: =IF(AH15<>"",INDEX('EXT-100 Part Numbers'!$G$2:$G$238,MATCH(AG15,'EXT-100 Part Numbers'!$E$2:$E$238,0)),"") ->  | AL15: =IF(AH15<>"", INDEX('EXT-100 Part Numbers'!$F$2:$F$238,MATCH(AG15,'EXT-100 Part Numbers'!$E$2:$E$238,0)),"") ->  | AN15: 0 | AO15: TRUE | AP15: TRUE | AQ15: =IF(AND(I15<>"",J15<>""),INDEX('EXT-100 Part Numbers'!$E$2:$E$192,MATCH(I15 & " (" & J15 & ")",'EXT-100 Part Numbers'!$A$2:$A$192,0)),"") ->  | AR15: =IFERROR(IF(AND(I15<>"",J15<>"",F15<='EXT-100 Part Numbers'!$AP$3,F15*M15>'EXT-100 Part Numbers'!$AP$2),INDEX('EXT-100 Part Numbers'!$E$193:$E$211,MATCH(I15 & " (" & J15 & ")",'EXT-100 Part Numbers'!$A$193:$A$211,0)),""),"") ->  | AS15: =IF(AND(I15<>"",J15<>"",OR(AND(AR15<>"",F15>'EXT-100 Part Numbers'!$AP$3),AND(AR15="",F15*M15>'EXT-100 Part Numbers'!$AP$2))),INDEX('EXT-100 Part Numbers'!$E$212:$E$238,MATCH(I15,'EXT-100 Part Numbers'!$B$212:$B$238,0)),"") ->  | AT15: =IFERROR(INDEX('EXT-100 Part Numbers'!$B$2:$B$211,MATCH(AQ15,'EXT-100 Part Numbers'!$E$2:$E$211,0)),"") ->  | AU15: =IF(AT15<>"",CONVERT(IFERROR(INDEX('EXT-100 Part Numbers'!$L$2:$L$27,MATCH(AT15,'EXT-100 Part Numbers'!$K$4:$K$27,0)),MIN('EXT-100 Part Numbers'!$L$2:$L$27)),"C",IF($E$7='EXT-100 Part Numbers'!$AK$2,"F","C")),-400) -> -400 | AV15: =IF(AT15<>"",CONVERT(IFERROR(INDEX('EXT-100 Part Numbers'!$M$2:$M$27,MATCH(AT15,'EXT-100 Part Numbers'!$K$4:$K$27,0)),MAX('EXT-100 Part Numbers'!$M$2:$M$27)),"C",IF($E$7='EXT-100 Part Numbers'!$AK$2,"F","C")),400) -> 400 | AW15: =IF(E15='EXT-100 Part Numbers'!$AG$2,'EXT-100 Part Numbers'!$AH$2,IF(E15='EXT-100 Part Numbers'!$AG$3,'EXT-100 Part Numbers'!$AH$3,IF(E15='EXT-100 Part Numbers'!$AG$4,'EXT-100 Part Numbers'!$AH$4,0))) -> 0 | AY15: =IF(AS15<>"",INDEX('EXT-100 Part Numbers'!$B$2:$B$238,MATCH(AS15,'EXT-100 Part Numbers'!$E$2:$E$238,0)) & ", " & SUBSTITUTE(INDEX('EXT-100 Part Numbers'!$C$2:$C$238,MATCH(AS15,'EXT-100 Part Numbers'!$E$2:$E$238,0)),"REPLACEME",J15),"") ->  | BE15: =IF(BA15<>"",INDEX('EXT-100 Part Numbers'!$F$2:$F$238,MATCH(BA15,'EXT-100 Part Numbers'!$E$2:$E$238,0)),"") ->  | BF15: =IF(BA15<>"", INDEX('EXT-100 Part Numbers'!$G$2:$G$238,MATCH(BA15,'EXT-100 Part Numbers'!$E$2:$E$238,0)),"") ->  | BH15: =IF(L15=References!$D$3,M15/$BH$5,0) -> 0 | BI15: 0 | BJ15: 0 | BK15: 0 | BL15: 0 | BM15: 0 | BN15: 0 | BP15: =IF(IFERROR(MATCH(I15,ColorSet1Cables,0),0)>0,'EXT-100 Part Numbers'!$U$14,IF(IFERROR(MATCH(I15,ColorSet2Cables,0),0)>0,'EXT-100 Part Numbers'!$V$14,IF(IFERROR(MATCH(I15,ColorSet3Cables,0),0)>0,'EXT-100 Part Numbers'!$W$14,IF(IFERROR(MATCH(I15,ColorSet4Cables,0),0)>0,'EXT-100 Part Numbers'!$X$14,IF(IFERROR(MATCH(I15,ColorSet5Cables,0),0)>0,'EXT-100 Part Numbers'!$Y$14,IF(IFERROR(MATCH(I15,ColorSet6Cables,0),0)>0,'EXT-100 Part Numbers'!$Z$14,IF(IFERROR(MATCH(I15,ColorSet7Cables,0),0)>0,'EXT-100 Part Numbers'!$AA$14,IF(IFERROR(MATCH(I15,ColorSet8Cables,0),0)>0,'EXT-100 Part Numbers'!$AB$14,IF(IFERROR(MATCH(I15,ColorSet9Cables,0),0)>0,'EXT-100 Part Numbers'!$AC$14,IF(IFERROR(MATCH(I15,ColorSet10Cables,0),0)>0,'EXT-100 Part Numbers'!$AD$14,IF(IFERROR(MATCH(I15,ColorSet11Cables,0),0)>0,'EXT-100 Part Numbers'!$U$35,IF(IFERROR(MATCH(I15,ColorSet12Cables,0),0)>0,'EXT-100 Part Numbers'!$V$35,'EXT-100 Part Numbers'!$AE$14)))))))))))) -> NoColorSelection | BQ15: =IF(AND(BP15<>'EXT-100 Part Numbers'!$AE$14,COUNTA(INDIRECT(BP15))=1),INDIRECT(BP15),"") ->  | BT15: 0 | BU15: 0 | BW15: =IF(G15="",'EXT-100 Part Numbers'!$I$22,IFERROR(INDEX('EXT-100 Part Numbers'!$J$2:$J$4,MATCH(G15,EXTCategories,0)),'EXT-100 Part Numbers'!$I$22)) -> EXT100FlameRatingUnspecified | BX15: =IF(AND(G15="",H15=""),'EXT-100 Part Numbers'!$AY$13,IFERROR(INDEX('EXT-100 Part Numbers'!$AZ$2:$AZ$11,MATCH(G15 & " " & H15,'EXT-100 Part Numbers'!$AY$2:$AY$11,0)),'EXT-100 Part Numbers'!$I$22)) -> EXT100NoCatNoFlame | BY15: =IF(AND(BX15<>'EXT-100 Part Numbers'!$I$22,BX15<>'EXT-100 Part Numbers'!$AY$13,COUNTA(INDIRECT(BX15))=1),INDIRECT(BX15),"") ->  | BZ15: =IFERROR(INDEX('EXT-100 Part Numbers'!$N$2:$N$27,MATCH(AT15,'EXT-100 Part Numbers'!$K$2:$K$27,0)),OutdoorEnvironment)<>OutdoorEnvironment -> FALSE | CA15: =IF(H15<>"",IF(AND(G15<>"",BW15<>"",BW15<>'EXT-100 Part Numbers'!$I$22),IFERROR(MATCH(H15,INDIRECT(BW15),0)>0,FALSE),FALSE),TRUE) -> TRUE | CB15: =IF(I15<>"",IF(AND(G15<>"",H15<>"",BX15<>"",BX15<>'EXT-100 Part Numbers'!$AY$13),IFERROR(MATCH(I15,INDIRECT(BX15),0)>0,FALSE),FALSE),TRUE) -> TRUE | CC15: =IF(J15<>"",IF(AND(G15<>"",H15<>"",I15<>"",BP15<>"",BP15<>'EXT-100 Part Numbers'!$AE$14),IFERROR(MATCH(J15,INDIRECT(BP15),0)>0,FALSE),FALSE),TRUE) -> TRUE
B16: 7 | N16: TRUE | O16: TRUE | P16: TRUE | Q16: TRUE | R16: TRUE | S16: TRUE | T16: TRUE | U16: TRUE | V16: TRUE | W16: FALSE | X16: FALSE | Y16: =IF(AND(L16<>References!$D$4,X16),'EXT-100 Part Numbers'!$R$2,"") ->  | AG16: ='EXT-100 Part Numbers'!E7 -> 10033521 | AH16: =IF(COUNTIF(K:K,AG16) > 0,_xlfn.CEILING.MATH(SUMIF(K:K,AG16,BR:BR)*SUMIF(K:K,AG16,M:M)/INDEX('EXT-100 Part Numbers'!H:H,MATCH(AG16,'EXT-100 Part Numbers'!E:E,0))),"") ->  | AI16: =IF(AH16<>"",IF(_xlfn.CEILING.MATH(SUMIF(K:K,AG16,BR:BR)/INDEX('EXT-100 Part Numbers'!H:H,MATCH(AG16,'EXT-100 Part Numbers'!E:E,0)))>0,_xlfn.CEILING.MATH(SUMIF(K:K,AG16,BR:BR)/INDEX('EXT-100 Part Numbers'!H:H,MATCH(AG16,'EXT-100 Part Numbers'!E:E,0))),"???") & " " & IF(AH16=1,AL16,IF(AL16="Reel in a box","Reels in a box",AL16 & IF(RIGHT(AL16,1)="x","es","s"))),"") ->  | AJ16: =IF(AH16<>"",INDEX('EXT-100 Part Numbers'!$B$2:$B$238,MATCH(AG16,'EXT-100 Part Numbers'!$E$2:$E$238,0)) & ", " & INDEX('EXT-100 Part Numbers'!$C$2:$C$238,MATCH(AG16,'EXT-100 Part Numbers'!$E$2:$E$238,0)),"") ->  | AK16: =IF(AH16<>"",INDEX('EXT-100 Part Numbers'!$G$2:$G$238,MATCH(AG16,'EXT-100 Part Numbers'!$E$2:$E$238,0)),"") ->  | AL16: =IF(AH16<>"", INDEX('EXT-100 Part Numbers'!$F$2:$F$238,MATCH(AG16,'EXT-100 Part Numbers'!$E$2:$E$238,0)),"") ->  | AN16: 0 | AO16: TRUE | AP16: TRUE | AQ16: =IF(AND(I16<>"",J16<>""),INDEX('EXT-100 Part Numbers'!$E$2:$E$192,MATCH(I16 & " (" & J16 & ")",'EXT-100 Part Numbers'!$A$2:$A$192,0)),"") ->  | AR16: =IFERROR(IF(AND(I16<>"",J16<>"",F16<='EXT-100 Part Numbers'!$AP$3,F16*M16>'EXT-100 Part Numbers'!$AP$2),INDEX('EXT-100 Part Numbers'!$E$193:$E$211,MATCH(I16 & " (" & J16 & ")",'EXT-100 Part Numbers'!$A$193:$A$211,0)),""),"") ->  | AS16: =IF(AND(I16<>"",J16<>"",OR(AND(AR16<>"",F16>'EXT-100 Part Numbers'!$AP$3),AND(AR16="",F16*M16>'EXT-100 Part Numbers'!$AP$2))),INDEX('EXT-100 Part Numbers'!$E$212:$E$238,MATCH(I16,'EXT-100 Part Numbers'!$B$212:$B$238,0)),"") ->  | AT16: =IFERROR(INDEX('EXT-100 Part Numbers'!$B$2:$B$211,MATCH(AQ16,'EXT-100 Part Numbers'!$E$2:$E$211,0)),"") ->  | AU16: =IF(AT16<>"",CONVERT(IFERROR(INDEX('EXT-100 Part Numbers'!$L$2:$L$27,MATCH(AT16,'EXT-100 Part Numbers'!$K$4:$K$27,0)),MIN('EXT-100 Part Numbers'!$L$2:$L$27)),"C",IF($E$7='EXT-100 Part Numbers'!$AK$2,"F","C")),-400) -> -400 | AV16: =IF(AT16<>"",CONVERT(IFERROR(INDEX('EXT-100 Part Numbers'!$M$2:$M$27,MATCH(AT16,'EXT-100 Part Numbers'!$K$4:$K$27,0)),MAX('EXT-100 Part Numbers'!$M$2:$M$27)),"C",IF($E$7='EXT-100 Part Numbers'!$AK$2,"F","C")),400) -> 400 | AW16: =IF(E16='EXT-100 Part Numbers'!$AG$2,'EXT-100 Part Numbers'!$AH$2,IF(E16='EXT-100 Part Numbers'!$AG$3,'EXT-100 Part Numbers'!$AH$3,IF(E16='EXT-100 Part Numbers'!$AG$4,'EXT-100 Part Numbers'!$AH$4,0))) -> 0 | AY16: =IF(AS16<>"",INDEX('EXT-100 Part Numbers'!$B$2:$B$238,MATCH(AS16,'EXT-100 Part Numbers'!$E$2:$E$238,0)) & ", " & SUBSTITUTE(INDEX('EXT-100 Part Numbers'!$C$2:$C$238,MATCH(AS16,'EXT-100 Part Numbers'!$E$2:$E$238,0)),"REPLACEME",J16),"") ->  | BE16: =IF(BA16<>"",INDEX('EXT-100 Part Numbers'!$F$2:$F$238,MATCH(BA16,'EXT-100 Part Numbers'!$E$2:$E$238,0)),"") ->  | BF16: =IF(BA16<>"", INDEX('EXT-100 Part Numbers'!$G$2:$G$238,MATCH(BA16,'EXT-100 Part Numbers'!$E$2:$E$238,0)),"") ->  | BH16: =IF(L16=References!$D$3,M16/$BH$5,0) -> 0 | BI16: 0 | BJ16: 0 | BK16: 0 | BL16: 0 | BM16: 0 | BN16: 0 | BP16: =IF(IFERROR(MATCH(I16,ColorSet1Cables,0),0)>0,'EXT-100 Part Numbers'!$U$14,IF(IFERROR(MATCH(I16,ColorSet2Cables,0),0)>0,'EXT-100 Part Numbers'!$V$14,IF(IFERROR(MATCH(I16,ColorSet3Cables,0),0)>0,'EXT-100 Part Numbers'!$W$14,IF(IFERROR(MATCH(I16,ColorSet4Cables,0),0)>0,'EXT-100 Part Numbers'!$X$14,IF(IFERROR(MATCH(I16,ColorSet5Cables,0),0)>0,'EXT-100 Part Numbers'!$Y$14,IF(IFERROR(MATCH(I16,ColorSet6Cables,0),0)>0,'EXT-100 Part Numbers'!$Z$14,IF(IFERROR(MATCH(I16,ColorSet7Cables,0),0)>0,'EXT-100 Part Numbers'!$AA$14,IF(IFERROR(MATCH(I16,ColorSet8Cables,0),0)>0,'EXT-100 Part Numbers'!$AB$14,IF(IFERROR(MATCH(I16,ColorSet9Cables,0),0)>0,'EXT-100 Part Numbers'!$AC$14,IF(IFERROR(MATCH(I16,ColorSet10Cables,0),0)>0,'EXT-100 Part Numbers'!$AD$14,IF(IFERROR(MATCH(I16,ColorSet11Cables,0),0)>0,'EXT-100 Part Numbers'!$U$35,IF(IFERROR(MATCH(I16,ColorSet12Cables,0),0)>0,'EXT-100 Part Numbers'!$V$35,'EXT-100 Part Numbers'!$AE$14)))))))))))) -> NoColorSelection | BQ16: =IF(AND(BP16<>'EXT-100 Part Numbers'!$AE$14,COUNTA(INDIRECT(BP16))=1),INDIRECT(BP16),"") ->  | BT16: 0 | BU16: 0 | BW16: =IF(G16="",'EXT-100 Part Numbers'!$I$22,IFERROR(INDEX('EXT-100 Part Numbers'!$J$2:$J$4,MATCH(G16,EXTCategories,0)),'EXT-100 Part Numbers'!$I$22)) -> EXT100FlameRatingUnspecified | BX16: =IF(AND(G16="",H16=""),'EXT-100 Part Numbers'!$AY$13,IFERROR(INDEX('EXT-100 Part Numbers'!$AZ$2:$AZ$11,MATCH(G16 & " " & H16,'EXT-100 Part Numbers'!$AY$2:$AY$11,0)),'EXT-100 Part Numbers'!$I$22)) -> EXT100NoCatNoFlame | BY16: =IF(AND(BX16<>'EXT-100 Part Numbers'!$I$22,BX16<>'EXT-100 Part Numbers'!$AY$13,COUNTA(INDIRECT(BX16))=1),INDIRECT(BX16),"") ->  | BZ16: =IFERROR(INDEX('EXT-100 Part Numbers'!$N$2:$N$27,MATCH(AT16,'EXT-100 Part Numbers'!$K$2:$K$27,0)),OutdoorEnvironment)<>OutdoorEnvironment -> FALSE | CA16: =IF(H16<>"",IF(AND(G16<>"",BW16<>"",BW16<>'EXT-100 Part Numbers'!$I$22),IFERROR(MATCH(H16,INDIRECT(BW16),0)>0,FALSE),FALSE),TRUE) -> TRUE | CB16: =IF(I16<>"",IF(AND(G16<>"",H16<>"",BX16<>"",BX16<>'EXT-100 Part Numbers'!$AY$13),IFERROR(MATCH(I16,INDIRECT(BX16),0)>0,FALSE),FALSE),TRUE) -> TRUE | CC16: =IF(J16<>"",IF(AND(G16<>"",H16<>"",I16<>"",BP16<>"",BP16<>'EXT-100 Part Numbers'!$AE$14),IFERROR(MATCH(J16,INDIRECT(BP16),0)>0,FALSE),FALSE),TRUE) -> TRUE
B17: 8 | N17: TRUE | O17: TRUE | P17: TRUE | Q17: TRUE | R17: TRUE | S17: TRUE | T17: TRUE | U17: TRUE | V17: TRUE | W17: FALSE | X17: FALSE | Y17: =IF(AND(L17<>References!$D$4,X17),'EXT-100 Part Numbers'!$R$2,"") ->  | AG17: ='EXT-100 Part Numbers'!E8 -> 10032229 | AH17: =IF(COUNTIF(K:K,AG17) > 0,_xlfn.CEILING.MATH(SUMIF(K:K,AG17,BR:BR)*SUMIF(K:K,AG17,M:M)/INDEX('EXT-100 Part Numbers'!H:H,MATCH(AG17,'EXT-100 Part Numbers'!E:E,0))),"") ->  | AI17: =IF(AH17<>"",IF(_xlfn.CEILING.MATH(SUMIF(K:K,AG17,BR:BR)/INDEX('EXT-100 Part Numbers'!H:H,MATCH(AG17,'EXT-100 Part Numbers'!E:E,0)))>0,_xlfn.CEILING.MATH(SUMIF(K:K,AG17,BR:BR)/INDEX('EXT-100 Part Numbers'!H:H,MATCH(AG17,'EXT-100 Part Numbers'!E:E,0))),"???") & " " & IF(AH17=1,AL17,IF(AL17="Reel in a box","Reels in a box",AL17 & IF(RIGHT(AL17,1)="x","es","s"))),"") ->  | AJ17: =IF(AH17<>"",INDEX('EXT-100 Part Numbers'!$B$2:$B$238,MATCH(AG17,'EXT-100 Part Numbers'!$E$2:$E$238,0)) & ", " & INDEX('EXT-100 Part Numbers'!$C$2:$C$238,MATCH(AG17,'EXT-100 Part Numbers'!$E$2:$E$238,0)),"") ->  | AK17: =IF(AH17<>"",INDEX('EXT-100 Part Numbers'!$G$2:$G$238,MATCH(AG17,'EXT-100 Part Numbers'!$E$2:$E$238,0)),"") ->  | AL17: =IF(AH17<>"", INDEX('EXT-100 Part Numbers'!$F$2:$F$238,MATCH(AG17,'EXT-100 Part Numbers'!$E$2:$E$238,0)),"") ->  | AN17: 0 | AO17: TRUE | AP17: TRUE | AQ17: =IF(AND(I17<>"",J17<>""),INDEX('EXT-100 Part Numbers'!$E$2:$E$192,MATCH(I17 & " (" & J17 & ")",'EXT-100 Part Numbers'!$A$2:$A$192,0)),"") ->  | AR17: =IFERROR(IF(AND(I17<>"",J17<>"",F17<='EXT-100 Part Numbers'!$AP$3,F17*M17>'EXT-100 Part Numbers'!$AP$2),INDEX('EXT-100 Part Numbers'!$E$193:$E$211,MATCH(I17 & " (" & J17 & ")",'EXT-100 Part Numbers'!$A$193:$A$211,0)),""),"") ->  | AS17: =IF(AND(I17<>"",J17<>"",OR(AND(AR17<>"",F17>'EXT-100 Part Numbers'!$AP$3),AND(AR17="",F17*M17>'EXT-100 Part Numbers'!$AP$2))),INDEX('EXT-100 Part Numbers'!$E$212:$E$238,MATCH(I17,'EXT-100 Part Numbers'!$B$212:$B$238,0)),"") ->  | AT17: =IFERROR(INDEX('EXT-100 Part Numbers'!$B$2:$B$211,MATCH(AQ17,'EXT-100 Part Numbers'!$E$2:$E$211,0)),"") ->  | AU17: =IF(AT17<>"",CONVERT(IFERROR(INDEX('EXT-100 Part Numbers'!$L$2:$L$27,MATCH(AT17,'EXT-100 Part Numbers'!$K$4:$K$27,0)),MIN('EXT-100 Part Numbers'!$L$2:$L$27)),"C",IF($E$7='EXT-100 Part Numbers'!$AK$2,"F","C")),-400) -> -400 | AV17: =IF(AT17<>"",CONVERT(IFERROR(INDEX('EXT-100 Part Numbers'!$M$2:$M$27,MATCH(AT17,'EXT-100 Part Numbers'!$K$4:$K$27,0)),MAX('EXT-100 Part Numbers'!$M$2:$M$27)),"C",IF($E$7='EXT-100 Part Numbers'!$AK$2,"F","C")),400) -> 400 | AW17: =IF(E17='EXT-100 Part Numbers'!$AG$2,'EXT-100 Part Numbers'!$AH$2,IF(E17='EXT-100 Part Numbers'!$AG$3,'EXT-100 Part Numbers'!$AH$3,IF(E17='EXT-100 Part Numbers'!$AG$4,'EXT-100 Part Numbers'!$AH$4,0))) -> 0 | AY17: =IF(AS17<>"",INDEX('EXT-100 Part Numbers'!$B$2:$B$238,MATCH(AS17,'EXT-100 Part Numbers'!$E$2:$E$238,0)) & ", " & SUBSTITUTE(INDEX('EXT-100 Part Numbers'!$C$2:$C$238,MATCH(AS17,'EXT-100 Part Numbers'!$E$2:$E$238,0)),"REPLACEME",J17),"") ->  | BE17: =IF(BA17<>"",INDEX('EXT-100 Part Numbers'!$F$2:$F$238,MATCH(BA17,'EXT-100 Part Numbers'!$E$2:$E$238,0)),"") ->  | BF17: =IF(BA17<>"", INDEX('EXT-100 Part Numbers'!$G$2:$G$238,MATCH(BA17,'EXT-100 Part Numbers'!$E$2:$E$238,0)),"") ->  | BH17: =IF(L17=References!$D$3,M17/$BH$5,0) -> 0 | BI17: 0 | BJ17: 0 | BK17: 0 | BL17: 0 | BM17: 0 | BN17: 0 | BP17: =IF(IFERROR(MATCH(I17,ColorSet1Cables,0),0)>0,'EXT-100 Part Numbers'!$U$14,IF(IFERROR(MATCH(I17,ColorSet2Cables,0),0)>0,'EXT-100 Part Numbers'!$V$14,IF(IFERROR(MATCH(I17,ColorSet3Cables,0),0)>0,'EXT-100 Part Numbers'!$W$14,IF(IFERROR(MATCH(I17,ColorSet4Cables,0),0)>0,'EXT-100 Part Numbers'!$X$14,IF(IFERROR(MATCH(I17,ColorSet5Cables,0),0)>0,'EXT-100 Part Numbers'!$Y$14,IF(IFERROR(MATCH(I17,ColorSet6Cables,0),0)>0,'EXT-100 Part Numbers'!$Z$14,IF(IFERROR(MATCH(I17,ColorSet7Cables,0),0)>0,'EXT-100 Part Numbers'!$AA$14,IF(IFERROR(MATCH(I17,ColorSet8Cables,0),0)>0,'EXT-100 Part Numbers'!$AB$14,IF(IFERROR(MATCH(I17,ColorSet9Cables,0),0)>0,'EXT-100 Part Numbers'!$AC$14,IF(IFERROR(MATCH(I17,ColorSet10Cables,0),0)>0,'EXT-100 Part Numbers'!$AD$14,IF(IFERROR(MATCH(I17,ColorSet11Cables,0),0)>0,'EXT-100 Part Numbers'!$U$35,IF(IFERROR(MATCH(I17,ColorSet12Cables,0),0)>0,'EXT-100 Part Numbers'!$V$35,'EXT-100 Part Numbers'!$AE$14)))))))))))) -> NoColorSelection | BQ17: =IF(AND(BP17<>'EXT-100 Part Numbers'!$AE$14,COUNTA(INDIRECT(BP17))=1),INDIRECT(BP17),"") ->  | BT17: 0 | BU17: 0 | BW17: =IF(G17="",'EXT-100 Part Numbers'!$I$22,IFERROR(INDEX('EXT-100 Part Numbers'!$J$2:$J$4,MATCH(G17,EXTCategories,0)),'EXT-100 Part Numbers'!$I$22)) -> EXT100FlameRatingUnspecified | BX17: =IF(AND(G17="",H17=""),'EXT-100 Part Numbers'!$AY$13,IFERROR(INDEX('EXT-100 Part Numbers'!$AZ$2:$AZ$11,MATCH(G17 & " " & H17,'EXT-100 Part Numbers'!$AY$2:$AY$11,0)),'EXT-100 Part Numbers'!$I$22)) -> EXT100NoCatNoFlame | BY17: =IF(AND(BX17<>'EXT-100 Part Numbers'!$I$22,BX17<>'EXT-100 Part Numbers'!$AY$13,COUNTA(INDIRECT(BX17))=1),INDIRECT(BX17),"") ->  | BZ17: =IFERROR(INDEX('EXT-100 Part Numbers'!$N$2:$N$27,MATCH(AT17,'EXT-100 Part Numbers'!$K$2:$K$27,0)),OutdoorEnvironment)<>OutdoorEnvironment -> FALSE | CA17: =IF(H17<>"",IF(AND(G17<>"",BW17<>"",BW17<>'EXT-100 Part Numbers'!$I$22),IFERROR(MATCH(H17,INDIRECT(BW17),0)>0,FALSE),FALSE),TRUE) -> TRUE | CB17: =IF(I17<>"",IF(AND(G17<>"",H17<>"",BX17<>"",BX17<>'EXT-100 Part Numbers'!$AY$13),IFERROR(MATCH(I17,INDIRECT(BX17),0)>0,FALSE),FALSE),TRUE) -> TRUE | CC17: =IF(J17<>"",IF(AND(G17<>"",H17<>"",I17<>"",BP17<>"",BP17<>'EXT-100 Part Numbers'!$AE$14),IFERROR(MATCH(J17,INDIRECT(BP17),0)>0,FALSE),FALSE),TRUE) -> TRUE
B18: 9 | N18: TRUE | O18: TRUE | P18: TRUE | Q18: TRUE | R18: TRUE | S18: TRUE | T18: TRUE | U18: TRUE | V18: TRUE | W18: FALSE | X18: FALSE | Y18: =IF(AND(L18<>References!$D$4,X18),'EXT-100 Part Numbers'!$R$2,"") ->  | AG18: ='EXT-100 Part Numbers'!E9 -> 10032232 | AH18: =IF(COUNTIF(K:K,AG18) > 0,_xlfn.CEILING.MATH(SUMIF(K:K,AG18,BR:BR)*SUMIF(K:K,AG18,M:M)/INDEX('EXT-100 Part Numbers'!H:H,MATCH(AG18,'EXT-100 Part Numbers'!E:E,0))),"") ->  | AI18: =IF(AH18<>"",IF(_xlfn.CEILING.MATH(SUMIF(K:K,AG18,BR:BR)/INDEX('EXT-100 Part Numbers'!H:H,MATCH(AG18,'EXT-100 Part Numbers'!E:E,0)))>0,_xlfn.CEILING.MATH(SUMIF(K:K,AG18,BR:BR)/INDEX('EXT-100 Part Numbers'!H:H,MATCH(AG18,'EXT-100 Part Numbers'!E:E,0))),"???") & " " & IF(AH18=1,AL18,IF(AL18="Reel in a box","Reels in a box",AL18 & IF(RIGHT(AL18,1)="x","es","s"))),"") ->  | AJ18: =IF(AH18<>"",INDEX('EXT-100 Part Numbers'!$B$2:$B$238,MATCH(AG18,'EXT-100 Part Numbers'!$E$2:$E$238,0)) & ", " & INDEX('EXT-100 Part Numbers'!$C$2:$C$238,MATCH(AG18,'EXT-100 Part Numbers'!$E$2:$E$238,0)),"") ->  | AK18: =IF(AH18<>"",INDEX('EXT-100 Part Numbers'!$G$2:$G$238,MATCH(AG18,'EXT-100 Part Numbers'!$E$2:$E$238,0)),"") ->  | AL18: =IF(AH18<>"", INDEX('EXT-100 Part Numbers'!$F$2:$F$238,MATCH(AG18,'EXT-100 Part Numbers'!$E$2:$E$238,0)),"") ->  | AN18: 0 | AO18: TRUE | AP18: TRUE | AQ18: =IF(AND(I18<>"",J18<>""),INDEX('EXT-100 Part Numbers'!$E$2:$E$192,MATCH(I18 & " (" & J18 & ")",'EXT-100 Part Numbers'!$A$2:$A$192,0)),"") ->  | AR18: =IFERROR(IF(AND(I18<>"",J18<>"",F18<='EXT-100 Part Numbers'!$AP$3,F18*M18>'EXT-100 Part Numbers'!$AP$2),INDEX('EXT-100 Part Numbers'!$E$193:$E$211,MATCH(I18 & " (" & J18 & ")",'EXT-100 Part Numbers'!$A$193:$A$211,0)),""),"") ->  | AS18: =IF(AND(I18<>"",J18<>"",OR(AND(AR18<>"",F18>'EXT-100 Part Numbers'!$AP$3),AND(AR18="",F18*M18>'EXT-100 Part Numbers'!$AP$2))),INDEX('EXT-100 Part Numbers'!$E$212:$E$238,MATCH(I18,'EXT-100 Part Numbers'!$B$212:$B$238,0)),"") ->  | AT18: =IFERROR(INDEX('EXT-100 Part Numbers'!$B$2:$B$211,MATCH(AQ18,'EXT-100 Part Numbers'!$E$2:$E$211,0)),"") ->  | AU18: =IF(AT18<>"",CONVERT(IFERROR(INDEX('EXT-100 Part Numbers'!$L$2:$L$27,MATCH(AT18,'EXT-100 Part Numbers'!$K$4:$K$27,0)),MIN('EXT-100 Part Numbers'!$L$2:$L$27)),"C",IF($E$7='EXT-100 Part Numbers'!$AK$2,"F","C")),-400) -> -400 | AV18: =IF(AT18<>"",CONVERT(IFERROR(INDEX('EXT-100 Part Numbers'!$M$2:$M$27,MATCH(AT18,'EXT-100 Part Numbers'!$K$4:$K$27,0)),MAX('EXT-100 Part Numbers'!$M$2:$M$27)),"C",IF($E$7='EXT-100 Part Numbers'!$AK$2,"F","C")),400) -> 400 | AW18: =IF(E18='EXT-100 Part Numbers'!$AG$2,'EXT-100 Part Numbers'!$AH$2,IF(E18='EXT-100 Part Numbers'!$AG$3,'EXT-100 Part Numbers'!$AH$3,IF(E18='EXT-100 Part Numbers'!$AG$4,'EXT-100 Part Numbers'!$AH$4,0))) -> 0 | AY18: =IF(AS18<>"",INDEX('EXT-100 Part Numbers'!$B$2:$B$238,MATCH(AS18,'EXT-100 Part Numbers'!$E$2:$E$238,0)) & ", " & SUBSTITUTE(INDEX('EXT-100 Part Numbers'!$C$2:$C$238,MATCH(AS18,'EXT-100 Part Numbers'!$E$2:$E$238,0)),"REPLACEME",J18),"") ->  | BE18: =IF(BA18<>"",INDEX('EXT-100 Part Numbers'!$F$2:$F$238,MATCH(BA18,'EXT-100 Part Numbers'!$E$2:$E$238,0)),"") ->  | BF18: =IF(BA18<>"", INDEX('EXT-100 Part Numbers'!$G$2:$G$238,MATCH(BA18,'EXT-100 Part Numbers'!$E$2:$E$238,0)),"") ->  | BH18: =IF(L18=References!$D$3,M18/$BH$5,0) -> 0 | BI18: 0 | BJ18: 0 | BK18: 0 | BL18: 0 | BM18: 0 | BN18: 0 | BP18: =IF(IFERROR(MATCH(I18,ColorSet1Cables,0),0)>0,'EXT-100 Part Numbers'!$U$14,IF(IFERROR(MATCH(I18,ColorSet2Cables,0),0)>0,'EXT-100 Part Numbers'!$V$14,IF(IFERROR(MATCH(I18,ColorSet3Cables,0),0)>0,'EXT-100 Part Numbers'!$W$14,IF(IFERROR(MATCH(I18,ColorSet4Cables,0),0)>0,'EXT-100 Part Numbers'!$X$14,IF(IFERROR(MATCH(I18,ColorSet5Cables,0),0)>0,'EXT-100 Part Numbers'!$Y$14,IF(IFERROR(MATCH(I18,ColorSet6Cables,0),0)>0,'EXT-100 Part Numbers'!$Z$14,IF(IFERROR(MATCH(I18,ColorSet7Cables,0),0)>0,'EXT-100 Part Numbers'!$AA$14,IF(IFERROR(MATCH(I18,ColorSet8Cables,0),0)>0,'EXT-100 Part Numbers'!$AB$14,IF(IFERROR(MATCH(I18,ColorSet9Cables,0),0)>0,'EXT-100 Part Numbers'!$AC$14,IF(IFERROR(MATCH(I18,ColorSet10Cables,0),0)>0,'EXT-100 Part Numbers'!$AD$14,IF(IFERROR(MATCH(I18,ColorSet11Cables,0),0)>0,'EXT-100 Part Numbers'!$U$35,IF(IFERROR(MATCH(I18,ColorSet12Cables,0),0)>0,'EXT-100 Part Numbers'!$V$35,'EXT-100 Part Numbers'!$AE$14)))))))))))) -> NoColorSelection | BQ18: =IF(AND(BP18<>'EXT-100 Part Numbers'!$AE$14,COUNTA(INDIRECT(BP18))=1),INDIRECT(BP18),"") ->  | BT18: 0 | BU18: 0 | BW18: =IF(G18="",'EXT-100 Part Numbers'!$I$22,IFERROR(INDEX('EXT-100 Part Numbers'!$J$2:$J$4,MATCH(G18,EXTCategories,0)),'EXT-100 Part Numbers'!$I$22)) -> EXT100FlameRatingUnspecified | BX18: =IF(AND(G18="",H18=""),'EXT-100 Part Numbers'!$AY$13,IFERROR(INDEX('EXT-100 Part Numbers'!$AZ$2:$AZ$11,MATCH(G18 & " " & H18,'EXT-100 Part Numbers'!$AY$2:$AY$11,0)),'EXT-100 Part Numbers'!$I$22)) -> EXT100NoCatNoFlame | BY18: =IF(AND(BX18<>'EXT-100 Part Numbers'!$I$22,BX18<>'EXT-100 Part Numbers'!$AY$13,COUNTA(INDIRECT(BX18))=1),INDIRECT(BX18),"") ->  | BZ18: =IFERROR(INDEX('EXT-100 Part Numbers'!$N$2:$N$27,MATCH(AT18,'EXT-100 Part Numbers'!$K$2:$K$27,0)),OutdoorEnvironment)<>OutdoorEnvironment -> FALSE | CA18: =IF(H18<>"",IF(AND(G18<>"",BW18<>"",BW18<>'EXT-100 Part Numbers'!$I$22),IFERROR(MATCH(H18,INDIRECT(BW18),0)>0,FALSE),FALSE),TRUE) -> TRUE | CB18: =IF(I18<>"",IF(AND(G18<>"",H18<>"",BX18<>"",BX18<>'EXT-100 Part Numbers'!$AY$13),IFERROR(MATCH(I18,INDIRECT(BX18),0)>0,FALSE),FALSE),TRUE) -> TRUE | CC18: =IF(J18<>"",IF(AND(G18<>"",H18<>"",I18<>"",BP18<>"",BP18<>'EXT-100 Part Numbers'!$AE$14),IFERROR(MATCH(J18,INDIRECT(BP18),0)>0,FALSE),FALSE),TRUE) -> TRUE
B19: 10 | N19: TRUE | O19: TRUE | P19: TRUE | Q19: TRUE | R19: TRUE | S19: TRUE | T19: TRUE | U19: TRUE | V19: TRUE | W19: FALSE | X19: FALSE | Y19: =IF(AND(L19<>References!$D$4,X19),'EXT-100 Part Numbers'!$R$2,"") ->  | AG19: ='EXT-100 Part Numbers'!E10 -> 10033814 | AH19: =IF(COUNTIF(K:K,AG19) > 0,_xlfn.CEILING.MATH(SUMIF(K:K,AG19,BR:BR)*SUMIF(K:K,AG19,M:M)/INDEX('EXT-100 Part Numbers'!H:H,MATCH(AG19,'EXT-100 Part Numbers'!E:E,0))),"") ->  | AI19: =IF(AH19<>"",IF(_xlfn.CEILING.MATH(SUMIF(K:K,AG19,BR:BR)/INDEX('EXT-100 Part Numbers'!H:H,MATCH(AG19,'EXT-100 Part Numbers'!E:E,0)))>0,_xlfn.CEILING.MATH(SUMIF(K:K,AG19,BR:BR)/INDEX('EXT-100 Part Numbers'!H:H,MATCH(AG19,'EXT-100 Part Numbers'!E:E,0))),"???") & " " & IF(AH19=1,AL19,IF(AL19="Reel in a box","Reels in a box",AL19 & IF(RIGHT(AL19,1)="x","es","s"))),"") ->  | AJ19: =IF(AH19<>"",INDEX('EXT-100 Part Numbers'!$B$2:$B$238,MATCH(AG19,'EXT-100 Part Numbers'!$E$2:$E$238,0)) & ", " & INDEX('EXT-100 Part Numbers'!$C$2:$C$238,MATCH(AG19,'EXT-100 Part Numbers'!$E$2:$E$238,0)),"") ->  | AK19: =IF(AH19<>"",INDEX('EXT-100 Part Numbers'!$G$2:$G$238,MATCH(AG19,'EXT-100 Part Numbers'!$E$2:$E$238,0)),"") ->  | AL19: =IF(AH19<>"", INDEX('EXT-100 Part Numbers'!$F$2:$F$238,MATCH(AG19,'EXT-100 Part Numbers'!$E$2:$E$238,0)),"") ->  | AN19: 0 | AO19: TRUE | AP19: TRUE | AQ19: =IF(AND(I19<>"",J19<>""),INDEX('EXT-100 Part Numbers'!$E$2:$E$192,MATCH(I19 & " (" & J19 & ")",'EXT-100 Part Numbers'!$A$2:$A$192,0)),"") ->  | AR19: =IFERROR(IF(AND(I19<>"",J19<>"",F19<='EXT-100 Part Numbers'!$AP$3,F19*M19>'EXT-100 Part Numbers'!$AP$2),INDEX('EXT-100 Part Numbers'!$E$193:$E$211,MATCH(I19 & " (" & J19 & ")",'EXT-100 Part Numbers'!$A$193:$A$211,0)),""),"") ->  | AS19: =IF(AND(I19<>"",J19<>"",OR(AND(AR19<>"",F19>'EXT-100 Part Numbers'!$AP$3),AND(AR19="",F19*M19>'EXT-100 Part Numbers'!$AP$2))),INDEX('EXT-100 Part Numbers'!$E$212:$E$238,MATCH(I19,'EXT-100 Part Numbers'!$B$212:$B$238,0)),"") ->  | AT19: =IFERROR(INDEX('EXT-100 Part Numbers'!$B$2:$B$211,MATCH(AQ19,'EXT-100 Part Numbers'!$E$2:$E$211,0)),"") ->  | AU19: =IF(AT19<>"",CONVERT(IFERROR(INDEX('EXT-100 Part Numbers'!$L$2:$L$27,MATCH(AT19,'EXT-100 Part Numbers'!$K$4:$K$27,0)),MIN('EXT-100 Part Numbers'!$L$2:$L$27)),"C",IF($E$7='EXT-100 Part Numbers'!$AK$2,"F","C")),-400) -> -400 | AV19: =IF(AT19<>"",CONVERT(IFERROR(INDEX('EXT-100 Part Numbers'!$M$2:$M$27,MATCH(AT19,'EXT-100 Part Numbers'!$K$4:$K$27,0)),MAX('EXT-100 Part Numbers'!$M$2:$M$27)),"C",IF($E$7='EXT-100 Part Numbers'!$AK$2,"F","C")),400) -> 400 | AW19: =IF(E19='EXT-100 Part Numbers'!$AG$2,'EXT-100 Part Numbers'!$AH$2,IF(E19='EXT-100 Part Numbers'!$AG$3,'EXT-100 Part Numbers'!$AH$3,IF(E19='EXT-100 Part Numbers'!$AG$4,'EXT-100 Part Numbers'!$AH$4,0))) -> 0 | AY19: =IF(AS19<>"",INDEX('EXT-100 Part Numbers'!$B$2:$B$238,MATCH(AS19,'EXT-100 Part Numbers'!$E$2:$E$238,0)) & ", " & SUBSTITUTE(INDEX('EXT-100 Part Numbers'!$C$2:$C$238,MATCH(AS19,'EXT-100 Part Numbers'!$E$2:$E$238,0)),"REPLACEME",J19),"") ->  | BE19: =IF(BA19<>"",INDEX('EXT-100 Part Numbers'!$F$2:$F$238,MATCH(BA19,'EXT-100 Part Numbers'!$E$2:$E$238,0)),"") ->  | BF19: =IF(BA19<>"", INDEX('EXT-100 Part Numbers'!$G$2:$G$238,MATCH(BA19,'EXT-100 Part Numbers'!$E$2:$E$238,0)),"") ->  | BH19: =IF(L19=References!$D$3,M19/$BH$5,0) -> 0 | BI19: 0 | BJ19: 0 | BK19: 0 | BL19: 0 | BM19: 0 | BN19: 0 | BP19: =IF(IFERROR(MATCH(I19,ColorSet1Cables,0),0)>0,'EXT-100 Part Numbers'!$U$14,IF(IFERROR(MATCH(I19,ColorSet2Cables,0),0)>0,'EXT-100 Part Numbers'!$V$14,IF(IFERROR(MATCH(I19,ColorSet3Cables,0),0)>0,'EXT-100 Part Numbers'!$W$14,IF(IFERROR(MATCH(I19,ColorSet4Cables,0),0)>0,'EXT-100 Part Numbers'!$X$14,IF(IFERROR(MATCH(I19,ColorSet5Cables,0),0)>0,'EXT-100 Part Numbers'!$Y$14,IF(IFERROR(MATCH(I19,ColorSet6Cables,0),0)>0,'EXT-100 Part Numbers'!$Z$14,IF(IFERROR(MATCH(I19,ColorSet7Cables,0),0)>0,'EXT-100 Part Numbers'!$AA$14,IF(IFERROR(MATCH(I19,ColorSet8Cables,0),0)>0,'EXT-100 Part Numbers'!$AB$14,IF(IFERROR(MATCH(I19,ColorSet9Cables,0),0)>0,'EXT-100 Part Numbers'!$AC$14,IF(IFERROR(MATCH(I19,ColorSet10Cables,0),0)>0,'EXT-100 Part Numbers'!$AD$14,IF(IFERROR(MATCH(I19,ColorSet11Cables,0),0)>0,'EXT-100 Part Numbers'!$U$35,IF(IFERROR(MATCH(I19,ColorSet12Cables,0),0)>0,'EXT-100 Part Numbers'!$V$35,'EXT-100 Part Numbers'!$AE$14)))))))))))) -> NoColorSelection | BQ19: =IF(AND(BP19<>'EXT-100 Part Numbers'!$AE$14,COUNTA(INDIRECT(BP19))=1),INDIRECT(BP19),"") ->  | BT19: 0 | BU19: 0 | BW19: =IF(G19="",'EXT-100 Part Numbers'!$I$22,IFERROR(INDEX('EXT-100 Part Numbers'!$J$2:$J$4,MATCH(G19,EXTCategories,0)),'EXT-100 Part Numbers'!$I$22)) -> EXT100FlameRatingUnspecified | BX19: =IF(AND(G19="",H19=""),'EXT-100 Part Numbers'!$AY$13,IFERROR(INDEX('EXT-100 Part Numbers'!$AZ$2:$AZ$11,MATCH(G19 & " " & H19,'EXT-100 Part Numbers'!$AY$2:$AY$11,0)),'EXT-100 Part Numbers'!$I$22)) -> EXT100NoCatNoFlame | BY19: =IF(AND(BX19<>'EXT-100 Part Numbers'!$I$22,BX19<>'EXT-100 Part Numbers'!$AY$13,COUNTA(INDIRECT(BX19))=1),INDIRECT(BX19),"") ->  | BZ19: =IFERROR(INDEX('EXT-100 Part Numbers'!$N$2:$N$27,MATCH(AT19,'EXT-100 Part Numbers'!$K$2:$K$27,0)),OutdoorEnvironment)<>OutdoorEnvironment -> FALSE | CA19: =IF(H19<>"",IF(AND(G19<>"",BW19<>"",BW19<>'EXT-100 Part Numbers'!$I$22),IFERROR(MATCH(H19,INDIRECT(BW19),0)>0,FALSE),FALSE),TRUE) -> TRUE | CB19: =IF(I19<>"",IF(AND(G19<>"",H19<>"",BX19<>"",BX19<>'EXT-100 Part Numbers'!$AY$13),IFERROR(MATCH(I19,INDIRECT(BX19),0)>0,FALSE),FALSE),TRUE) -> TRUE | CC19: =IF(J19<>"",IF(AND(G19<>"",H19<>"",I19<>"",BP19<>"",BP19<>'EXT-100 Part Numbers'!$AE$14),IFERROR(MATCH(J19,INDIRECT(BP19),0)>0,FALSE),FALSE),TRUE) -> TRUE
B20: 11 | N20: TRUE | O20: TRUE | P20: TRUE | Q20: TRUE | R20: TRUE | S20: TRUE | T20: TRUE | U20: TRUE | V20: TRUE | W20: FALSE | X20: FALSE | Y20: =IF(AND(L20<>References!$D$4,X20),'EXT-100 Part Numbers'!$R$2,"") ->  | AG20: ='EXT-100 Part Numbers'!E11 -> 10063926 | AH20: =IF(COUNTIF(K:K,AG20) > 0,_xlfn.CEILING.MATH(SUMIF(K:K,AG20,BR:BR)*SUMIF(K:K,AG20,M:M)/INDEX('EXT-100 Part Numbers'!H:H,MATCH(AG20,'EXT-100 Part Numbers'!E:E,0))),"") ->  | AI20: =IF(AH20<>"",IF(_xlfn.CEILING.MATH(SUMIF(K:K,AG20,BR:BR)/INDEX('EXT-100 Part Numbers'!H:H,MATCH(AG20,'EXT-100 Part Numbers'!E:E,0)))>0,_xlfn.CEILING.MATH(SUMIF(K:K,AG20,BR:BR)/INDEX('EXT-100 Part Numbers'!H:H,MATCH(AG20,'EXT-100 Part Numbers'!E:E,0))),"???") & " " & IF(AH20=1,AL20,IF(AL20="Reel in a box","Reels in a box",AL20 & IF(RIGHT(AL20,1)="x","es","s"))),"") ->  | AJ20: =IF(AH20<>"",INDEX('EXT-100 Part Numbers'!$B$2:$B$238,MATCH(AG20,'EXT-100 Part Numbers'!$E$2:$E$238,0)) & ", " & INDEX('EXT-100 Part Numbers'!$C$2:$C$238,MATCH(AG20,'EXT-100 Part Numbers'!$E$2:$E$238,0)),"") ->  | AK20: =IF(AH20<>"",INDEX('EXT-100 Part Numbers'!$G$2:$G$238,MATCH(AG20,'EXT-100 Part Numbers'!$E$2:$E$238,0)),"") ->  | AL20: =IF(AH20<>"", INDEX('EXT-100 Part Numbers'!$F$2:$F$238,MATCH(AG20,'EXT-100 Part Numbers'!$E$2:$E$238,0)),"") ->  | AN20: 0 | AO20: TRUE | AP20: TRUE | AQ20: =IF(AND(I20<>"",J20<>""),INDEX('EXT-100 Part Numbers'!$E$2:$E$192,MATCH(I20 & " (" & J20 & ")",'EXT-100 Part Numbers'!$A$2:$A$192,0)),"") ->  | AR20: =IFERROR(IF(AND(I20<>"",J20<>"",F20<='EXT-100 Part Numbers'!$AP$3,F20*M20>'EXT-100 Part Numbers'!$AP$2),INDEX('EXT-100 Part Numbers'!$E$193:$E$211,MATCH(I20 & " (" & J20 & ")",'EXT-100 Part Numbers'!$A$193:$A$211,0)),""),"") ->  | AS20: =IF(AND(I20<>"",J20<>"",OR(AND(AR20<>"",F20>'EXT-100 Part Numbers'!$AP$3),AND(AR20="",F20*M20>'EXT-100 Part Numbers'!$AP$2))),INDEX('EXT-100 Part Numbers'!$E$212:$E$238,MATCH(I20,'EXT-100 Part Numbers'!$B$212:$B$238,0)),"") ->  | AT20: =IFERROR(INDEX('EXT-100 Part Numbers'!$B$2:$B$211,MATCH(AQ20,'EXT-100 Part Numbers'!$E$2:$E$211,0)),"") ->  | AU20: =IF(AT20<>"",CONVERT(IFERROR(INDEX('EXT-100 Part Numbers'!$L$2:$L$27,MATCH(AT20,'EXT-100 Part Numbers'!$K$4:$K$27,0)),MIN('EXT-100 Part Numbers'!$L$2:$L$27)),"C",IF($E$7='EXT-100 Part Numbers'!$AK$2,"F","C")),-400) -> -400 | AV20: =IF(AT20<>"",CONVERT(IFERROR(INDEX('EXT-100 Part Numbers'!$M$2:$M$27,MATCH(AT20,'EXT-100 Part Numbers'!$K$4:$K$27,0)),MAX('EXT-100 Part Numbers'!$M$2:$M$27)),"C",IF($E$7='EXT-100 Part Numbers'!$AK$2,"F","C")),400) -> 400 | AW20: =IF(E20='EXT-100 Part Numbers'!$AG$2,'EXT-100 Part Numbers'!$AH$2,IF(E20='EXT-100 Part Numbers'!$AG$3,'EXT-100 Part Numbers'!$AH$3,IF(E20='EXT-100 Part Numbers'!$AG$4,'EXT-100 Part Numbers'!$AH$4,0))) -> 0 | AY20: =IF(AS20<>"",INDEX('EXT-100 Part Numbers'!$B$2:$B$238,MATCH(AS20,'EXT-100 Part Numbers'!$E$2:$E$238,0)) & ", " & SUBSTITUTE(INDEX('EXT-100 Part Numbers'!$C$2:$C$238,MATCH(AS20,'EXT-100 Part Numbers'!$E$2:$E$238,0)),"REPLACEME",J20),"") ->  | BE20: =IF(BA20<>"",INDEX('EXT-100 Part Numbers'!$F$2:$F$238,MATCH(BA20,'EXT-100 Part Numbers'!$E$2:$E$238,0)),"") ->  | BF20: =IF(BA20<>"", INDEX('EXT-100 Part Numbers'!$G$2:$G$238,MATCH(BA20,'EXT-100 Part Numbers'!$E$2:$E$238,0)),"") ->  | BH20: =IF(L20=References!$D$3,M20/$BH$5,0) -> 0 | BI20: 0 | BJ20: 0 | BK20: 0 | BL20: 0 | BM20: 0 | BN20: 0 | BP20: =IF(IFERROR(MATCH(I20,ColorSet1Cables,0),0)>0,'EXT-100 Part Numbers'!$U$14,IF(IFERROR(MATCH(I20,ColorSet2Cables,0),0)>0,'EXT-100 Part Numbers'!$V$14,IF(IFERROR(MATCH(I20,ColorSet3Cables,0),0)>0,'EXT-100 Part Numbers'!$W$14,IF(IFERROR(MATCH(I20,ColorSet4Cables,0),0)>0,'EXT-100 Part Numbers'!$X$14,IF(IFERROR(MATCH(I20,ColorSet5Cables,0),0)>0,'EXT-100 Part Numbers'!$Y$14,IF(IFERROR(MATCH(I20,ColorSet6Cables,0),0)>0,'EXT-100 Part Numbers'!$Z$14,IF(IFERROR(MATCH(I20,ColorSet7Cables,0),0)>0,'EXT-100 Part Numbers'!$AA$14,IF(IFERROR(MATCH(I20,ColorSet8Cables,0),0)>0,'EXT-100 Part Numbers'!$AB$14,IF(IFERROR(MATCH(I20,ColorSet9Cables,0),0)>0,'EXT-100 Part Numbers'!$AC$14,IF(IFERROR(MATCH(I20,ColorSet10Cables,0),0)>0,'EXT-100 Part Numbers'!$AD$14,IF(IFERROR(MATCH(I20,ColorSet11Cables,0),0)>0,'EXT-100 Part Numbers'!$U$35,IF(IFERROR(MATCH(I20,ColorSet12Cables,0),0)>0,'EXT-100 Part Numbers'!$V$35,'EXT-100 Part Numbers'!$AE$14)))))))))))) -> NoColorSelection | BQ20: =IF(AND(BP20<>'EXT-100 Part Numbers'!$AE$14,COUNTA(INDIRECT(BP20))=1),INDIRECT(BP20),"") ->  | BT20: 0 | BU20: 0 | BW20: =IF(G20="",'EXT-100 Part Numbers'!$I$22,IFERROR(INDEX('EXT-100 Part Numbers'!$J$2:$J$4,MATCH(G20,EXTCategories,0)),'EXT-100 Part Numbers'!$I$22)) -> EXT100FlameRatingUnspecified | BX20: =IF(AND(G20="",H20=""),'EXT-100 Part Numbers'!$AY$13,IFERROR(INDEX('EXT-100 Part Numbers'!$AZ$2:$AZ$11,MATCH(G20 & " " & H20,'EXT-100 Part Numbers'!$AY$2:$AY$11,0)),'EXT-100 Part Numbers'!$I$22)) -> EXT100NoCatNoFlame | BY20: =IF(AND(BX20<>'EXT-100 Part Numbers'!$I$22,BX20<>'EXT-100 Part Numbers'!$AY$13,COUNTA(INDIRECT(BX20))=1),INDIRECT(BX20),"") ->  | BZ20: =IFERROR(INDEX('EXT-100 Part Numbers'!$N$2:$N$27,MATCH(AT20,'EXT-100 Part Numbers'!$K$2:$K$27,0)),OutdoorEnvironment)<>OutdoorEnvironment -> FALSE | CA20: =IF(H20<>"",IF(AND(G20<>"",BW20<>"",BW20<>'EXT-100 Part Numbers'!$I$22),IFERROR(MATCH(H20,INDIRECT(BW20),0)>0,FALSE),FALSE),TRUE) -> TRUE | CB20: =IF(I20<>"",IF(AND(G20<>"",H20<>"",BX20<>"",BX20<>'EXT-100 Part Numbers'!$AY$13),IFERROR(MATCH(I20,INDIRECT(BX20),0)>0,FALSE),FALSE),TRUE) -> TRUE | CC20: =IF(J20<>"",IF(AND(G20<>"",H20<>"",I20<>"",BP20<>"",BP20<>'EXT-100 Part Numbers'!$AE$14),IFERROR(MATCH(J20,INDIRECT(BP20),0)>0,FALSE),FALSE),TRUE) -> TRUE
B21: 12 | N21: TRUE | O21: TRUE | P21: TRUE | Q21: TRUE | R21: TRUE | S21: TRUE | T21: TRUE | U21: TRUE | V21: TRUE | W21: FALSE | X21: FALSE | Y21: =IF(AND(L21<>References!$D$4,X21),'EXT-100 Part Numbers'!$R$2,"") ->  | AG21: ='EXT-100 Part Numbers'!E12 -> 10032235 | AH21: =IF(COUNTIF(K:K,AG21) > 0,_xlfn.CEILING.MATH(SUMIF(K:K,AG21,BR:BR)*SUMIF(K:K,AG21,M:M)/INDEX('EXT-100 Part Numbers'!H:H,MATCH(AG21,'EXT-100 Part Numbers'!E:E,0))),"") ->  | AI21: =IF(AH21<>"",IF(_xlfn.CEILING.MATH(SUMIF(K:K,AG21,BR:BR)/INDEX('EXT-100 Part Numbers'!H:H,MATCH(AG21,'EXT-100 Part Numbers'!E:E,0)))>0,_xlfn.CEILING.MATH(SUMIF(K:K,AG21,BR:BR)/INDEX('EXT-100 Part Numbers'!H:H,MATCH(AG21,'EXT-100 Part Numbers'!E:E,0))),"???") & " " & IF(AH21=1,AL21,IF(AL21="Reel in a box","Reels in a box",AL21 & IF(RIGHT(AL21,1)="x","es","s"))),"") ->  | AJ21: =IF(AH21<>"",INDEX('EXT-100 Part Numbers'!$B$2:$B$238,MATCH(AG21,'EXT-100 Part Numbers'!$E$2:$E$238,0)) & ", " & INDEX('EXT-100 Part Numbers'!$C$2:$C$238,MATCH(AG21,'EXT-100 Part Numbers'!$E$2:$E$238,0)),"") ->  | AK21: =IF(AH21<>"",INDEX('EXT-100 Part Numbers'!$G$2:$G$238,MATCH(AG21,'EXT-100 Part Numbers'!$E$2:$E$238,0)),"") ->  | AL21: =IF(AH21<>"", INDEX('EXT-100 Part Numbers'!$F$2:$F$238,MATCH(AG21,'EXT-100 Part Numbers'!$E$2:$E$238,0)),"") ->  | AN21: 0 | AO21: TRUE | AP21: TRUE | AQ21: =IF(AND(I21<>"",J21<>""),INDEX('EXT-100 Part Numbers'!$E$2:$E$192,MATCH(I21 & " (" & J21 & ")",'EXT-100 Part Numbers'!$A$2:$A$192,0)),"") ->  | AR21: =IFERROR(IF(AND(I21<>"",J21<>"",F21<='EXT-100 Part Numbers'!$AP$3,F21*M21>'EXT-100 Part Numbers'!$AP$2),INDEX('EXT-100 Part Numbers'!$E$193:$E$211,MATCH(I21 & " (" & J21 & ")",'EXT-100 Part Numbers'!$A$193:$A$211,0)),""),"") ->  | AS21: =IF(AND(I21<>"",J21<>"",OR(AND(AR21<>"",F21>'EXT-100 Part Numbers'!$AP$3),AND(AR21="",F21*M21>'EXT-100 Part Numbers'!$AP$2))),INDEX('EXT-100 Part Numbers'!$E$212:$E$238,MATCH(I21,'EXT-100 Part Numbers'!$B$212:$B$238,0)),"") ->  | AT21: =IFERROR(INDEX('EXT-100 Part Numbers'!$B$2:$B$211,MATCH(AQ21,'EXT-100 Part Numbers'!$E$2:$E$211,0)),"") ->  | AU21: =IF(AT21<>"",CONVERT(IFERROR(INDEX('EXT-100 Part Numbers'!$L$2:$L$27,MATCH(AT21,'EXT-100 Part Numbers'!$K$4:$K$27,0)),MIN('EXT-100 Part Numbers'!$L$2:$L$27)),"C",IF($E$7='EXT-100 Part Numbers'!$AK$2,"F","C")),-400) -> -400 | AV21: =IF(AT21<>"",CONVERT(IFERROR(INDEX('EXT-100 Part Numbers'!$M$2:$M$27,MATCH(AT21,'EXT-100 Part Numbers'!$K$4:$K$27,0)),MAX('EXT-100 Part Numbers'!$M$2:$M$27)),"C",IF($E$7='EXT-100 Part Numbers'!$AK$2,"F","C")),400) -> 400 | AW21: =IF(E21='EXT-100 Part Numbers'!$AG$2,'EXT-100 Part Numbers'!$AH$2,IF(E21='EXT-100 Part Numbers'!$AG$3,'EXT-100 Part Numbers'!$AH$3,IF(E21='EXT-100 Part Numbers'!$AG$4,'EXT-100 Part Numbers'!$AH$4,0))) -> 0 | AY21: =IF(AS21<>"",INDEX('EXT-100 Part Numbers'!$B$2:$B$238,MATCH(AS21,'EXT-100 Part Numbers'!$E$2:$E$238,0)) & ", " & SUBSTITUTE(INDEX('EXT-100 Part Numbers'!$C$2:$C$238,MATCH(AS21,'EXT-100 Part Numbers'!$E$2:$E$238,0)),"REPLACEME",J21),"") ->  | BE21: =IF(BA21<>"",INDEX('EXT-100 Part Numbers'!$F$2:$F$238,MATCH(BA21,'EXT-100 Part Numbers'!$E$2:$E$238,0)),"") ->  | BF21: =IF(BA21<>"", INDEX('EXT-100 Part Numbers'!$G$2:$G$238,MATCH(BA21,'EXT-100 Part Numbers'!$E$2:$E$238,0)),"") ->  | BH21: =IF(L21=References!$D$3,M21/$BH$5,0) -> 0 | BI21: 0 | BJ21: 0 | BK21: 0 | BL21: 0 | BM21: 0 | BN21: 0 | BP21: =IF(IFERROR(MATCH(I21,ColorSet1Cables,0),0)>0,'EXT-100 Part Numbers'!$U$14,IF(IFERROR(MATCH(I21,ColorSet2Cables,0),0)>0,'EXT-100 Part Numbers'!$V$14,IF(IFERROR(MATCH(I21,ColorSet3Cables,0),0)>0,'EXT-100 Part Numbers'!$W$14,IF(IFERROR(MATCH(I21,ColorSet4Cables,0),0)>0,'EXT-100 Part Numbers'!$X$14,IF(IFERROR(MATCH(I21,ColorSet5Cables,0),0)>0,'EXT-100 Part Numbers'!$Y$14,IF(IFERROR(MATCH(I21,ColorSet6Cables,0),0)>0,'EXT-100 Part Numbers'!$Z$14,IF(IFERROR(MATCH(I21,ColorSet7Cables,0),0)>0,'EXT-100 Part Numbers'!$AA$14,IF(IFERROR(MATCH(I21,ColorSet8Cables,0),0)>0,'EXT-100 Part Numbers'!$AB$14,IF(IFERROR(MATCH(I21,ColorSet9Cables,0),0)>0,'EXT-100 Part Numbers'!$AC$14,IF(IFERROR(MATCH(I21,ColorSet10Cables,0),0)>0,'EXT-100 Part Numbers'!$AD$14,IF(IFERROR(MATCH(I21,ColorSet11Cables,0),0)>0,'EXT-100 Part Numbers'!$U$35,IF(IFERROR(MATCH(I21,ColorSet12Cables,0),0)>0,'EXT-100 Part Numbers'!$V$35,'EXT-100 Part Numbers'!$AE$14)))))))))))) -> NoColorSelection | BQ21: =IF(AND(BP21<>'EXT-100 Part Numbers'!$AE$14,COUNTA(INDIRECT(BP21))=1),INDIRECT(BP21),"") ->  | BT21: 0 | BU21: 0 | BW21: =IF(G21="",'EXT-100 Part Numbers'!$I$22,IFERROR(INDEX('EXT-100 Part Numbers'!$J$2:$J$4,MATCH(G21,EXTCategories,0)),'EXT-100 Part Numbers'!$I$22)) -> EXT100FlameRatingUnspecified | BX21: =IF(AND(G21="",H21=""),'EXT-100 Part Numbers'!$AY$13,IFERROR(INDEX('EXT-100 Part Numbers'!$AZ$2:$AZ$11,MATCH(G21 & " " & H21,'EXT-100 Part Numbers'!$AY$2:$AY$11,0)),'EXT-100 Part Numbers'!$I$22)) -> EXT100NoCatNoFlame | BY21: =IF(AND(BX21<>'EXT-100 Part Numbers'!$I$22,BX21<>'EXT-100 Part Numbers'!$AY$13,COUNTA(INDIRECT(BX21))=1),INDIRECT(BX21),"") ->  | BZ21: =IFERROR(INDEX('EXT-100 Part Numbers'!$N$2:$N$27,MATCH(AT21,'EXT-100 Part Numbers'!$K$2:$K$27,0)),OutdoorEnvironment)<>OutdoorEnvironment -> FALSE | CA21: =IF(H21<>"",IF(AND(G21<>"",BW21<>"",BW21<>'EXT-100 Part Numbers'!$I$22),IFERROR(MATCH(H21,INDIRECT(BW21),0)>0,FALSE),FALSE),TRUE) -> TRUE | CB21: =IF(I21<>"",IF(AND(G21<>"",H21<>"",BX21<>"",BX21<>'EXT-100 Part Numbers'!$AY$13),IFERROR(MATCH(I21,INDIRECT(BX21),0)>0,FALSE),FALSE),TRUE) -> TRUE | CC21: =IF(J21<>"",IF(AND(G21<>"",H21<>"",I21<>"",BP21<>"",BP21<>'EXT-100 Part Numbers'!$AE$14),IFERROR(MATCH(J21,INDIRECT(BP21),0)>0,FALSE),FALSE),TRUE) -> TRUE
B22: 13 | N22: TRUE | O22: TRUE | P22: TRUE | Q22: TRUE | R22: TRUE | S22: TRUE | T22: TRUE | U22: TRUE | V22: TRUE | W22: FALSE | X22: FALSE | Y22: =IF(AND(L22<>References!$D$4,X22),'EXT-100 Part Numbers'!$R$2,"") ->  | AG22: ='EXT-100 Part Numbers'!E13 -> 10032227 | AH22: =IF(COUNTIF(K:K,AG22) > 0,_xlfn.CEILING.MATH(SUMIF(K:K,AG22,BR:BR)*SUMIF(K:K,AG22,M:M)/INDEX('EXT-100 Part Numbers'!H:H,MATCH(AG22,'EXT-100 Part Numbers'!E:E,0))),"") ->  | AI22: =IF(AH22<>"",IF(_xlfn.CEILING.MATH(SUMIF(K:K,AG22,BR:BR)/INDEX('EXT-100 Part Numbers'!H:H,MATCH(AG22,'EXT-100 Part Numbers'!E:E,0)))>0,_xlfn.CEILING.MATH(SUMIF(K:K,AG22,BR:BR)/INDEX('EXT-100 Part Numbers'!H:H,MATCH(AG22,'EXT-100 Part Numbers'!E:E,0))),"???") & " " & IF(AH22=1,AL22,IF(AL22="Reel in a box","Reels in a box",AL22 & IF(RIGHT(AL22,1)="x","es","s"))),"") ->  | AJ22: =IF(AH22<>"",INDEX('EXT-100 Part Numbers'!$B$2:$B$238,MATCH(AG22,'EXT-100 Part Numbers'!$E$2:$E$238,0)) & ", " & INDEX('EXT-100 Part Numbers'!$C$2:$C$238,MATCH(AG22,'EXT-100 Part Numbers'!$E$2:$E$238,0)),"") ->  | AK22: =IF(AH22<>"",INDEX('EXT-100 Part Numbers'!$G$2:$G$238,MATCH(AG22,'EXT-100 Part Numbers'!$E$2:$E$238,0)),"") ->  | AL22: =IF(AH22<>"", INDEX('EXT-100 Part Numbers'!$F$2:$F$238,MATCH(AG22,'EXT-100 Part Numbers'!$E$2:$E$238,0)),"") ->  | AN22: 0 | AO22: TRUE | AP22: TRUE | AQ22: =IF(AND(I22<>"",J22<>""),INDEX('EXT-100 Part Numbers'!$E$2:$E$192,MATCH(I22 & " (" & J22 & ")",'EXT-100 Part Numbers'!$A$2:$A$192,0)),"") ->  | AR22: =IFERROR(IF(AND(I22<>"",J22<>"",F22<='EXT-100 Part Numbers'!$AP$3,F22*M22>'EXT-100 Part Numbers'!$AP$2),INDEX('EXT-100 Part Numbers'!$E$193:$E$211,MATCH(I22 & " (" & J22 & ")",'EXT-100 Part Numbers'!$A$193:$A$211,0)),""),"") ->  | AS22: =IF(AND(I22<>"",J22<>"",OR(AND(AR22<>"",F22>'EXT-100 Part Numbers'!$AP$3),AND(AR22="",F22*M22>'EXT-100 Part Numbers'!$AP$2))),INDEX('EXT-100 Part Numbers'!$E$212:$E$238,MATCH(I22,'EXT-100 Part Numbers'!$B$212:$B$238,0)),"") ->  | AT22: =IFERROR(INDEX('EXT-100 Part Numbers'!$B$2:$B$211,MATCH(AQ22,'EXT-100 Part Numbers'!$E$2:$E$211,0)),"") ->  | AU22: =IF(AT22<>"",CONVERT(IFERROR(INDEX('EXT-100 Part Numbers'!$L$2:$L$27,MATCH(AT22,'EXT-100 Part Numbers'!$K$4:$K$27,0)),MIN('EXT-100 Part Numbers'!$L$2:$L$27)),"C",IF($E$7='EXT-100 Part Numbers'!$AK$2,"F","C")),-400) -> -400 | AV22: =IF(AT22<>"",CONVERT(IFERROR(INDEX('EXT-100 Part Numbers'!$M$2:$M$27,MATCH(AT22,'EXT-100 Part Numbers'!$K$4:$K$27,0)),MAX('EXT-100 Part Numbers'!$M$2:$M$27)),"C",IF($E$7='EXT-100 Part Numbers'!$AK$2,"F","C")),400) -> 400 | AW22: =IF(E22='EXT-100 Part Numbers'!$AG$2,'EXT-100 Part Numbers'!$AH$2,IF(E22='EXT-100 Part Numbers'!$AG$3,'EXT-100 Part Numbers'!$AH$3,IF(E22='EXT-100 Part Numbers'!$AG$4,'EXT-100 Part Numbers'!$AH$4,0))) -> 0 | AY22: =IF(AS22<>"",INDEX('EXT-100 Part Numbers'!$B$2:$B$238,MATCH(AS22,'EXT-100 Part Numbers'!$E$2:$E$238,0)) & ", " & SUBSTITUTE(INDEX('EXT-100 Part Numbers'!$C$2:$C$238,MATCH(AS22,'EXT-100 Part Numbers'!$E$2:$E$238,0)),"REPLACEME",J22),"") ->  | BE22: =IF(BA22<>"",INDEX('EXT-100 Part Numbers'!$F$2:$F$238,MATCH(BA22,'EXT-100 Part Numbers'!$E$2:$E$238,0)),"") ->  | BF22: =IF(BA22<>"", INDEX('EXT-100 Part Numbers'!$G$2:$G$238,MATCH(BA22,'EXT-100 Part Numbers'!$E$2:$E$238,0)),"") ->  | BH22: =IF(L22=References!$D$3,M22/$BH$5,0) -> 0 | BI22: 0 | BJ22: 0 | BK22: 0 | BL22: 0 | BM22: 0 | BN22: 0 | BP22: =IF(IFERROR(MATCH(I22,ColorSet1Cables,0),0)>0,'EXT-100 Part Numbers'!$U$14,IF(IFERROR(MATCH(I22,ColorSet2Cables,0),0)>0,'EXT-100 Part Numbers'!$V$14,IF(IFERROR(MATCH(I22,ColorSet3Cables,0),0)>0,'EXT-100 Part Numbers'!$W$14,IF(IFERROR(MATCH(I22,ColorSet4Cables,0),0)>0,'EXT-100 Part Numbers'!$X$14,IF(IFERROR(MATCH(I22,ColorSet5Cables,0),0)>0,'EXT-100 Part Numbers'!$Y$14,IF(IFERROR(MATCH(I22,ColorSet6Cables,0),0)>0,'EXT-100 Part Numbers'!$Z$14,IF(IFERROR(MATCH(I22,ColorSet7Cables,0),0)>0,'EXT-100 Part Numbers'!$AA$14,IF(IFERROR(MATCH(I22,ColorSet8Cables,0),0)>0,'EXT-100 Part Numbers'!$AB$14,IF(IFERROR(MATCH(I22,ColorSet9Cables,0),0)>0,'EXT-100 Part Numbers'!$AC$14,IF(IFERROR(MATCH(I22,ColorSet10Cables,0),0)>0,'EXT-100 Part Numbers'!$AD$14,IF(IFERROR(MATCH(I22,ColorSet11Cables,0),0)>0,'EXT-100 Part Numbers'!$U$35,IF(IFERROR(MATCH(I22,ColorSet12Cables,0),0)>0,'EXT-100 Part Numbers'!$V$35,'EXT-100 Part Numbers'!$AE$14)))))))))))) -> NoColorSelection | BQ22: =IF(AND(BP22<>'EXT-100 Part Numbers'!$AE$14,COUNTA(INDIRECT(BP22))=1),INDIRECT(BP22),"") ->  | BT22: 0 | BU22: 0 | BW22: =IF(G22="",'EXT-100 Part Numbers'!$I$22,IFERROR(INDEX('EXT-100 Part Numbers'!$J$2:$J$4,MATCH(G22,EXTCategories,0)),'EXT-100 Part Numbers'!$I$22)) -> EXT100FlameRatingUnspecified | BX22: =IF(AND(G22="",H22=""),'EXT-100 Part Numbers'!$AY$13,IFERROR(INDEX('EXT-100 Part Numbers'!$AZ$2:$AZ$11,MATCH(G22 & " " & H22,'EXT-100 Part Numbers'!$AY$2:$AY$11,0)),'EXT-100 Part Numbers'!$I$22)) -> EXT100NoCatNoFlame | BY22: =IF(AND(BX22<>'EXT-100 Part Numbers'!$I$22,BX22<>'EXT-100 Part Numbers'!$AY$13,COUNTA(INDIRECT(BX22))=1),INDIRECT(BX22),"") ->  | BZ22: =IFERROR(INDEX('EXT-100 Part Numbers'!$N$2:$N$27,MATCH(AT22,'EXT-100 Part Numbers'!$K$2:$K$27,0)),OutdoorEnvironment)<>OutdoorEnvironment -> FALSE | CA22: =IF(H22<>"",IF(AND(G22<>"",BW22<>"",BW22<>'EXT-100 Part Numbers'!$I$22),IFERROR(MATCH(H22,INDIRECT(BW22),0)>0,FALSE),FALSE),TRUE) -> TRUE | CB22: =IF(I22<>"",IF(AND(G22<>"",H22<>"",BX22<>"",BX22<>'EXT-100 Part Numbers'!$AY$13),IFERROR(MATCH(I22,INDIRECT(BX22),0)>0,FALSE),FALSE),TRUE) -> TRUE | CC22: =IF(J22<>"",IF(AND(G22<>"",H22<>"",I22<>"",BP22<>"",BP22<>'EXT-100 Part Numbers'!$AE$14),IFERROR(MATCH(J22,INDIRECT(BP22),0)>0,FALSE),FALSE),TRUE) -> TRUE
B23: 14 | N23: TRUE | O23: TRUE | P23: TRUE | Q23: TRUE | R23: TRUE | S23: TRUE | T23: TRUE | U23: TRUE | V23: TRUE | W23: FALSE | X23: FALSE | Y23: =IF(AND(L23<>References!$D$4,X23),'EXT-100 Part Numbers'!$R$2,"") ->  | AG23: ='EXT-100 Part Numbers'!E14 -> 10034885 | AH23: =IF(COUNTIF(K:K,AG23) > 0,_xlfn.CEILING.MATH(SUMIF(K:K,AG23,BR:BR)*SUMIF(K:K,AG23,M:M)/INDEX('EXT-100 Part Numbers'!H:H,MATCH(AG23,'EXT-100 Part Numbers'!E:E,0))),"") ->  | AI23: =IF(AH23<>"",IF(_xlfn.CEILING.MATH(SUMIF(K:K,AG23,BR:BR)/INDEX('EXT-100 Part Numbers'!H:H,MATCH(AG23,'EXT-100 Part Numbers'!E:E,0)))>0,_xlfn.CEILING.MATH(SUMIF(K:K,AG23,BR:BR)/INDEX('EXT-100 Part Numbers'!H:H,MATCH(AG23,'EXT-100 Part Numbers'!E:E,0))),"???") & " " & IF(AH23=1,AL23,IF(AL23="Reel in a box","Reels in a box",AL23 & IF(RIGHT(AL23,1)="x","es","s"))),"") ->  | AJ23: =IF(AH23<>"",INDEX('EXT-100 Part Numbers'!$B$2:$B$238,MATCH(AG23,'EXT-100 Part Numbers'!$E$2:$E$238,0)) & ", " & INDEX('EXT-100 Part Numbers'!$C$2:$C$238,MATCH(AG23,'EXT-100 Part Numbers'!$E$2:$E$238,0)),"") ->  | AK23: =IF(AH23<>"",INDEX('EXT-100 Part Numbers'!$G$2:$G$238,MATCH(AG23,'EXT-100 Part Numbers'!$E$2:$E$238,0)),"") ->  | AL23: =IF(AH23<>"", INDEX('EXT-100 Part Numbers'!$F$2:$F$238,MATCH(AG23,'EXT-100 Part Numbers'!$E$2:$E$238,0)),"") ->  | AN23: 0 | AO23: TRUE | AP23: TRUE | AQ23: =IF(AND(I23<>"",J23<>""),INDEX('EXT-100 Part Numbers'!$E$2:$E$192,MATCH(I23 & " (" & J23 & ")",'EXT-100 Part Numbers'!$A$2:$A$192,0)),"") ->  | AR23: =IFERROR(IF(AND(I23<>"",J23<>"",F23<='EXT-100 Part Numbers'!$AP$3,F23*M23>'EXT-100 Part Numbers'!$AP$2),INDEX('EXT-100 Part Numbers'!$E$193:$E$211,MATCH(I23 & " (" & J23 & ")",'EXT-100 Part Numbers'!$A$193:$A$211,0)),""),"") ->  | AS23: =IF(AND(I23<>"",J23<>"",OR(AND(AR23<>"",F23>'EXT-100 Part Numbers'!$AP$3),AND(AR23="",F23*M23>'EXT-100 Part Numbers'!$AP$2))),INDEX('EXT-100 Part Numbers'!$E$212:$E$238,MATCH(I23,'EXT-100 Part Numbers'!$B$212:$B$238,0)),"") ->  | AT23: =IFERROR(INDEX('EXT-100 Part Numbers'!$B$2:$B$211,MATCH(AQ23,'EXT-100 Part Numbers'!$E$2:$E$211,0)),"") ->  | AU23: =IF(AT23<>"",CONVERT(IFERROR(INDEX('EXT-100 Part Numbers'!$L$2:$L$27,MATCH(AT23,'EXT-100 Part Numbers'!$K$4:$K$27,0)),MIN('EXT-100 Part Numbers'!$L$2:$L$27)),"C",IF($E$7='EXT-100 Part Numbers'!$AK$2,"F","C")),-400) -> -400 | AV23: =IF(AT23<>"",CONVERT(IFERROR(INDEX('EXT-100 Part Numbers'!$M$2:$M$27,MATCH(AT23,'EXT-100 Part Numbers'!$K$4:$K$27,0)),MAX('EXT-100 Part Numbers'!$M$2:$M$27)),"C",IF($E$7='EXT-100 Part Numbers'!$AK$2,"F","C")),400) -> 400 | AW23: =IF(E23='EXT-100 Part Numbers'!$AG$2,'EXT-100 Part Numbers'!$AH$2,IF(E23='EXT-100 Part Numbers'!$AG$3,'EXT-100 Part Numbers'!$AH$3,IF(E23='EXT-100 Part Numbers'!$AG$4,'EXT-100 Part Numbers'!$AH$4,0))) -> 0 | AY23: =IF(AS23<>"",INDEX('EXT-100 Part Numbers'!$B$2:$B$238,MATCH(AS23,'EXT-100 Part Numbers'!$E$2:$E$238,0)) & ", " & SUBSTITUTE(INDEX('EXT-100 Part Numbers'!$C$2:$C$238,MATCH(AS23,'EXT-100 Part Numbers'!$E$2:$E$238,0)),"REPLACEME",J23),"") ->  | BE23: =IF(BA23<>"",INDEX('EXT-100 Part Numbers'!$F$2:$F$238,MATCH(BA23,'EXT-100 Part Numbers'!$E$2:$E$238,0)),"") ->  | BF23: =IF(BA23<>"", INDEX('EXT-100 Part Numbers'!$G$2:$G$238,MATCH(BA23,'EXT-100 Part Numbers'!$E$2:$E$238,0)),"") ->  | BH23: =IF(L23=References!$D$3,M23/$BH$5,0) -> 0 | BI23: 0 | BJ23: 0 | BK23: 0 | BL23: 0 | BM23: 0 | BN23: 0 | BP23: =IF(IFERROR(MATCH(I23,ColorSet1Cables,0),0)>0,'EXT-100 Part Numbers'!$U$14,IF(IFERROR(MATCH(I23,ColorSet2Cables,0),0)>0,'EXT-100 Part Numbers'!$V$14,IF(IFERROR(MATCH(I23,ColorSet3Cables,0),0)>0,'EXT-100 Part Numbers'!$W$14,IF(IFERROR(MATCH(I23,ColorSet4Cables,0),0)>0,'EXT-100 Part Numbers'!$X$14,IF(IFERROR(MATCH(I23,ColorSet5Cables,0),0)>0,'EXT-100 Part Numbers'!$Y$14,IF(IFERROR(MATCH(I23,ColorSet6Cables,0),0)>0,'EXT-100 Part Numbers'!$Z$14,IF(IFERROR(MATCH(I23,ColorSet7Cables,0),0)>0,'EXT-100 Part Numbers'!$AA$14,IF(IFERROR(MATCH(I23,ColorSet8Cables,0),0)>0,'EXT-100 Part Numbers'!$AB$14,IF(IFERROR(MATCH(I23,ColorSet9Cables,0),0)>0,'EXT-100 Part Numbers'!$AC$14,IF(IFERROR(MATCH(I23,ColorSet10Cables,0),0)>0,'EXT-100 Part Numbers'!$AD$14,IF(IFERROR(MATCH(I23,ColorSet11Cables,0),0)>0,'EXT-100 Part Numbers'!$U$35,IF(IFERROR(MATCH(I23,ColorSet12Cables,0),0)>0,'EXT-100 Part Numbers'!$V$35,'EXT-100 Part Numbers'!$AE$14)))))))))))) -> NoColorSelection | BQ23: =IF(AND(BP23<>'EXT-100 Part Numbers'!$AE$14,COUNTA(INDIRECT(BP23))=1),INDIRECT(BP23),"") ->  | BT23: 0 | BU23: 0 | BW23: =IF(G23="",'EXT-100 Part Numbers'!$I$22,IFERROR(INDEX('EXT-100 Part Numbers'!$J$2:$J$4,MATCH(G23,EXTCategories,0)),'EXT-100 Part Numbers'!$I$22)) -> EXT100FlameRatingUnspecified | BX23: =IF(AND(G23="",H23=""),'EXT-100 Part Numbers'!$AY$13,IFERROR(INDEX('EXT-100 Part Numbers'!$AZ$2:$AZ$11,MATCH(G23 & " " & H23,'EXT-100 Part Numbers'!$AY$2:$AY$11,0)),'EXT-100 Part Numbers'!$I$22)) -> EXT100NoCatNoFlame | BY23: =IF(AND(BX23<>'EXT-100 Part Numbers'!$I$22,BX23<>'EXT-100 Part Numbers'!$AY$13,COUNTA(INDIRECT(BX23))=1),INDIRECT(BX23),"") ->  | BZ23: =IFERROR(INDEX('EXT-100 Part Numbers'!$N$2:$N$27,MATCH(AT23,'EXT-100 Part Numbers'!$K$2:$K$27,0)),OutdoorEnvironment)<>OutdoorEnvironment -> FALSE | CA23: =IF(H23<>"",IF(AND(G23<>"",BW23<>"",BW23<>'EXT-100 Part Numbers'!$I$22),IFERROR(MATCH(H23,INDIRECT(BW23),0)>0,FALSE),FALSE),TRUE) -> TRUE | CB23: =IF(I23<>"",IF(AND(G23<>"",H23<>"",BX23<>"",BX23<>'EXT-100 Part Numbers'!$AY$13),IFERROR(MATCH(I23,INDIRECT(BX23),0)>0,FALSE),FALSE),TRUE) -> TRUE | CC23: =IF(J23<>"",IF(AND(G23<>"",H23<>"",I23<>"",BP23<>"",BP23<>'EXT-100 Part Numbers'!$AE$14),IFERROR(MATCH(J23,INDIRECT(BP23),0)>0,FALSE),FALSE),TRUE) -> TRUE
B24: 15 | N24: TRUE | O24: TRUE | P24: TRUE | Q24: TRUE | R24: TRUE | S24: TRUE | T24: TRUE | U24: TRUE | V24: TRUE | W24: FALSE | X24: FALSE | Y24: =IF(AND(L24<>References!$D$4,X24),'EXT-100 Part Numbers'!$R$2,"") ->  | AG24: ='EXT-100 Part Numbers'!E15 -> 10032236 | AH24: =IF(COUNTIF(K:K,AG24) > 0,_xlfn.CEILING.MATH(SUMIF(K:K,AG24,BR:BR)*SUMIF(K:K,AG24,M:M)/INDEX('EXT-100 Part Numbers'!H:H,MATCH(AG24,'EXT-100 Part Numbers'!E:E,0))),"") ->  | AI24: =IF(AH24<>"",IF(_xlfn.CEILING.MATH(SUMIF(K:K,AG24,BR:BR)/INDEX('EXT-100 Part Numbers'!H:H,MATCH(AG24,'EXT-100 Part Numbers'!E:E,0)))>0,_xlfn.CEILING.MATH(SUMIF(K:K,AG24,BR:BR)/INDEX('EXT-100 Part Numbers'!H:H,MATCH(AG24,'EXT-100 Part Numbers'!E:E,0))),"???") & " " & IF(AH24=1,AL24,IF(AL24="Reel in a box","Reels in a box",AL24 & IF(RIGHT(AL24,1)="x","es","s"))),"") ->  | AJ24: =IF(AH24<>"",INDEX('EXT-100 Part Numbers'!$B$2:$B$238,MATCH(AG24,'EXT-100 Part Numbers'!$E$2:$E$238,0)) & ", " & INDEX('EXT-100 Part Numbers'!$C$2:$C$238,MATCH(AG24,'EXT-100 Part Numbers'!$E$2:$E$238,0)),"") ->  | AK24: =IF(AH24<>"",INDEX('EXT-100 Part Numbers'!$G$2:$G$238,MATCH(AG24,'EXT-100 Part Numbers'!$E$2:$E$238,0)),"") ->  | AL24: =IF(AH24<>"", INDEX('EXT-100 Part Numbers'!$F$2:$F$238,MATCH(AG24,'EXT-100 Part Numbers'!$E$2:$E$238,0)),"") ->  | AN24: 0 | AO24: TRUE | AP24: TRUE | AQ24: =IF(AND(I24<>"",J24<>""),INDEX('EXT-100 Part Numbers'!$E$2:$E$192,MATCH(I24 & " (" & J24 & ")",'EXT-100 Part Numbers'!$A$2:$A$192,0)),"") ->  | AR24: =IFERROR(IF(AND(I24<>"",J24<>"",F24<='EXT-100 Part Numbers'!$AP$3,F24*M24>'EXT-100 Part Numbers'!$AP$2),INDEX('EXT-100 Part Numbers'!$E$193:$E$211,MATCH(I24 & " (" & J24 & ")",'EXT-100 Part Numbers'!$A$193:$A$211,0)),""),"") ->  | AS24: =IF(AND(I24<>"",J24<>"",OR(AND(AR24<>"",F24>'EXT-100 Part Numbers'!$AP$3),AND(AR24="",F24*M24>'EXT-100 Part Numbers'!$AP$2))),INDEX('EXT-100 Part Numbers'!$E$212:$E$238,MATCH(I24,'EXT-100 Part Numbers'!$B$212:$B$238,0)),"") ->  | AT24: =IFERROR(INDEX('EXT-100 Part Numbers'!$B$2:$B$211,MATCH(AQ24,'EXT-100 Part Numbers'!$E$2:$E$211,0)),"") ->  | AU24: =IF(AT24<>"",CONVERT(IFERROR(INDEX('EXT-100 Part Numbers'!$L$2:$L$27,MATCH(AT24,'EXT-100 Part Numbers'!$K$4:$K$27,0)),MIN('EXT-100 Part Numbers'!$L$2:$L$27)),"C",IF($E$7='EXT-100 Part Numbers'!$AK$2,"F","C")),-400) -> -400 | AV24: =IF(AT24<>"",CONVERT(IFERROR(INDEX('EXT-100 Part Numbers'!$M$2:$M$27,MATCH(AT24,'EXT-100 Part Numbers'!$K$4:$K$27,0)),MAX('EXT-100 Part Numbers'!$M$2:$M$27)),"C",IF($E$7='EXT-100 Part Numbers'!$AK$2,"F","C")),400) -> 400 | AW24: =IF(E24='EXT-100 Part Numbers'!$AG$2,'EXT-100 Part Numbers'!$AH$2,IF(E24='EXT-100 Part Numbers'!$AG$3,'EXT-100 Part Numbers'!$AH$3,IF(E24='EXT-100 Part Numbers'!$AG$4,'EXT-100 Part Numbers'!$AH$4,0))) -> 0 | AY24: =IF(AS24<>"",INDEX('EXT-100 Part Numbers'!$B$2:$B$238,MATCH(AS24,'EXT-100 Part Numbers'!$E$2:$E$238,0)) & ", " & SUBSTITUTE(INDEX('EXT-100 Part Numbers'!$C$2:$C$238,MATCH(AS24,'EXT-100 Part Numbers'!$E$2:$E$238,0)),"REPLACEME",J24),"") ->  | BE24: =IF(BA24<>"",INDEX('EXT-100 Part Numbers'!$F$2:$F$238,MATCH(BA24,'EXT-100 Part Numbers'!$E$2:$E$238,0)),"") ->  | BF24: =IF(BA24<>"", INDEX('EXT-100 Part Numbers'!$G$2:$G$238,MATCH(BA24,'EXT-100 Part Numbers'!$E$2:$E$238,0)),"") ->  | BH24: =IF(L24=References!$D$3,M24/$BH$5,0) -> 0 | BI24: 0 | BJ24: 0 | BK24: 0 | BL24: 0 | BM24: 0 | BN24: 0 | BP24: =IF(IFERROR(MATCH(I24,ColorSet1Cables,0),0)>0,'EXT-100 Part Numbers'!$U$14,IF(IFERROR(MATCH(I24,ColorSet2Cables,0),0)>0,'EXT-100 Part Numbers'!$V$14,IF(IFERROR(MATCH(I24,ColorSet3Cables,0),0)>0,'EXT-100 Part Numbers'!$W$14,IF(IFERROR(MATCH(I24,ColorSet4Cables,0),0)>0,'EXT-100 Part Numbers'!$X$14,IF(IFERROR(MATCH(I24,ColorSet5Cables,0),0)>0,'EXT-100 Part Numbers'!$Y$14,IF(IFERROR(MATCH(I24,ColorSet6Cables,0),0)>0,'EXT-100 Part Numbers'!$Z$14,IF(IFERROR(MATCH(I24,ColorSet7Cables,0),0)>0,'EXT-100 Part Numbers'!$AA$14,IF(IFERROR(MATCH(I24,ColorSet8Cables,0),0)>0,'EXT-100 Part Numbers'!$AB$14,IF(IFERROR(MATCH(I24,ColorSet9Cables,0),0)>0,'EXT-100 Part Numbers'!$AC$14,IF(IFERROR(MATCH(I24,ColorSet10Cables,0),0)>0,'EXT-100 Part Numbers'!$AD$14,IF(IFERROR(MATCH(I24,ColorSet11Cables,0),0)>0,'EXT-100 Part Numbers'!$U$35,IF(IFERROR(MATCH(I24,ColorSet12Cables,0),0)>0,'EXT-100 Part Numbers'!$V$35,'EXT-100 Part Numbers'!$AE$14)))))))))))) -> NoColorSelection | BQ24: =IF(AND(BP24<>'EXT-100 Part Numbers'!$AE$14,COUNTA(INDIRECT(BP24))=1),INDIRECT(BP24),"") ->  | BT24: 0 | BU24: 0 | BW24: =IF(G24="",'EXT-100 Part Numbers'!$I$22,IFERROR(INDEX('EXT-100 Part Numbers'!$J$2:$J$4,MATCH(G24,EXTCategories,0)),'EXT-100 Part Numbers'!$I$22)) -> EXT100FlameRatingUnspecified | BX24: =IF(AND(G24="",H24=""),'EXT-100 Part Numbers'!$AY$13,IFERROR(INDEX('EXT-100 Part Numbers'!$AZ$2:$AZ$11,MATCH(G24 & " " & H24,'EXT-100 Part Numbers'!$AY$2:$AY$11,0)),'EXT-100 Part Numbers'!$I$22)) -> EXT100NoCatNoFlame | BY24: =IF(AND(BX24<>'EXT-100 Part Numbers'!$I$22,BX24<>'EXT-100 Part Numbers'!$AY$13,COUNTA(INDIRECT(BX24))=1),INDIRECT(BX24),"") ->  | BZ24: =IFERROR(INDEX('EXT-100 Part Numbers'!$N$2:$N$27,MATCH(AT24,'EXT-100 Part Numbers'!$K$2:$K$27,0)),OutdoorEnvironment)<>OutdoorEnvironment -> FALSE | CA24: =IF(H24<>"",IF(AND(G24<>"",BW24<>"",BW24<>'EXT-100 Part Numbers'!$I$22),IFERROR(MATCH(H24,INDIRECT(BW24),0)>0,FALSE),FALSE),TRUE) -> TRUE | CB24: =IF(I24<>"",IF(AND(G24<>"",H24<>"",BX24<>"",BX24<>'EXT-100 Part Numbers'!$AY$13),IFERROR(MATCH(I24,INDIRECT(BX24),0)>0,FALSE),FALSE),TRUE) -> TRUE | CC24: =IF(J24<>"",IF(AND(G24<>"",H24<>"",I24<>"",BP24<>"",BP24<>'EXT-100 Part Numbers'!$AE$14),IFERROR(MATCH(J24,INDIRECT(BP24),0)>0,FALSE),FALSE),TRUE) -> TRUE
B25: 16 | N25: TRUE | O25: TRUE | P25: TRUE | Q25: TRUE | R25: TRUE | S25: TRUE | T25: TRUE | U25: TRUE | V25: TRUE | W25: FALSE | X25: FALSE | Y25: =IF(AND(L25<>References!$D$4,X25),'EXT-100 Part Numbers'!$R$2,"") ->  | AG25: ='EXT-100 Part Numbers'!E16 -> 10032207 | AH25: =IF(COUNTIF(K:K,AG25) > 0,_xlfn.CEILING.MATH(SUMIF(K:K,AG25,BR:BR)*SUMIF(K:K,AG25,M:M)/INDEX('EXT-100 Part Numbers'!H:H,MATCH(AG25,'EXT-100 Part Numbers'!E:E,0))),"") ->  | AI25: =IF(AH25<>"",IF(_xlfn.CEILING.MATH(SUMIF(K:K,AG25,BR:BR)/INDEX('EXT-100 Part Numbers'!H:H,MATCH(AG25,'EXT-100 Part Numbers'!E:E,0)))>0,_xlfn.CEILING.MATH(SUMIF(K:K,AG25,BR:BR)/INDEX('EXT-100 Part Numbers'!H:H,MATCH(AG25,'EXT-100 Part Numbers'!E:E,0))),"???") & " " & IF(AH25=1,AL25,IF(AL25="Reel in a box","Reels in a box",AL25 & IF(RIGHT(AL25,1)="x","es","s"))),"") ->  | AJ25: =IF(AH25<>"",INDEX('EXT-100 Part Numbers'!$B$2:$B$238,MATCH(AG25,'EXT-100 Part Numbers'!$E$2:$E$238,0)) & ", " & INDEX('EXT-100 Part Numbers'!$C$2:$C$238,MATCH(AG25,'EXT-100 Part Numbers'!$E$2:$E$238,0)),"") ->  | AK25: =IF(AH25<>"",INDEX('EXT-100 Part Numbers'!$G$2:$G$238,MATCH(AG25,'EXT-100 Part Numbers'!$E$2:$E$238,0)),"") ->  | AL25: =IF(AH25<>"", INDEX('EXT-100 Part Numbers'!$F$2:$F$238,MATCH(AG25,'EXT-100 Part Numbers'!$E$2:$E$238,0)),"") ->  | AN25: 0 | AO25: TRUE | AP25: TRUE | AQ25: =IF(AND(I25<>"",J25<>""),INDEX('EXT-100 Part Numbers'!$E$2:$E$192,MATCH(I25 & " (" & J25 & ")",'EXT-100 Part Numbers'!$A$2:$A$192,0)),"") ->  | AR25: =IFERROR(IF(AND(I25<>"",J25<>"",F25<='EXT-100 Part Numbers'!$AP$3,F25*M25>'EXT-100 Part Numbers'!$AP$2),INDEX('EXT-100 Part Numbers'!$E$193:$E$211,MATCH(I25 & " (" & J25 & ")",'EXT-100 Part Numbers'!$A$193:$A$211,0)),""),"") ->  | AS25: =IF(AND(I25<>"",J25<>"",OR(AND(AR25<>"",F25>'EXT-100 Part Numbers'!$AP$3),AND(AR25="",F25*M25>'EXT-100 Part Numbers'!$AP$2))),INDEX('EXT-100 Part Numbers'!$E$212:$E$238,MATCH(I25,'EXT-100 Part Numbers'!$B$212:$B$238,0)),"") ->  | AT25: =IFERROR(INDEX('EXT-100 Part Numbers'!$B$2:$B$211,MATCH(AQ25,'EXT-100 Part Numbers'!$E$2:$E$211,0)),"") ->  | AU25: =IF(AT25<>"",CONVERT(IFERROR(INDEX('EXT-100 Part Numbers'!$L$2:$L$27,MATCH(AT25,'EXT-100 Part Numbers'!$K$4:$K$27,0)),MIN('EXT-100 Part Numbers'!$L$2:$L$27)),"C",IF($E$7='EXT-100 Part Numbers'!$AK$2,"F","C")),-400) -> -400 | AV25: =IF(AT25<>"",CONVERT(IFERROR(INDEX('EXT-100 Part Numbers'!$M$2:$M$27,MATCH(AT25,'EXT-100 Part Numbers'!$K$4:$K$27,0)),MAX('EXT-100 Part Numbers'!$M$2:$M$27)),"C",IF($E$7='EXT-100 Part Numbers'!$AK$2,"F","C")),400) -> 400 | AW25: =IF(E25='EXT-100 Part Numbers'!$AG$2,'EXT-100 Part Numbers'!$AH$2,IF(E25='EXT-100 Part Numbers'!$AG$3,'EXT-100 Part Numbers'!$AH$3,IF(E25='EXT-100 Part Numbers'!$AG$4,'EXT-100 Part Numbers'!$AH$4,0))) -> 0 | AY25: =IF(AS25<>"",INDEX('EXT-100 Part Numbers'!$B$2:$B$238,MATCH(AS25,'EXT-100 Part Numbers'!$E$2:$E$238,0)) & ", " & SUBSTITUTE(INDEX('EXT-100 Part Numbers'!$C$2:$C$238,MATCH(AS25,'EXT-100 Part Numbers'!$E$2:$E$238,0)),"REPLACEME",J25),"") ->  | BE25: =IF(BA25<>"",INDEX('EXT-100 Part Numbers'!$F$2:$F$238,MATCH(BA25,'EXT-100 Part Numbers'!$E$2:$E$238,0)),"") ->  | BF25: =IF(BA25<>"", INDEX('EXT-100 Part Numbers'!$G$2:$G$238,MATCH(BA25,'EXT-100 Part Numbers'!$E$2:$E$238,0)),"") ->  | BH25: =IF(L25=References!$D$3,M25/$BH$5,0) -> 0 | BI25: 0 | BJ25: 0 | BK25: 0 | BL25: 0 | BM25: 0 | BN25: 0 | BP25: =IF(IFERROR(MATCH(I25,ColorSet1Cables,0),0)>0,'EXT-100 Part Numbers'!$U$14,IF(IFERROR(MATCH(I25,ColorSet2Cables,0),0)>0,'EXT-100 Part Numbers'!$V$14,IF(IFERROR(MATCH(I25,ColorSet3Cables,0),0)>0,'EXT-100 Part Numbers'!$W$14,IF(IFERROR(MATCH(I25,ColorSet4Cables,0),0)>0,'EXT-100 Part Numbers'!$X$14,IF(IFERROR(MATCH(I25,ColorSet5Cables,0),0)>0,'EXT-100 Part Numbers'!$Y$14,IF(IFERROR(MATCH(I25,ColorSet6Cables,0),0)>0,'EXT-100 Part Numbers'!$Z$14,IF(IFERROR(MATCH(I25,ColorSet7Cables,0),0)>0,'EXT-100 Part Numbers'!$AA$14,IF(IFERROR(MATCH(I25,ColorSet8Cables,0),0)>0,'EXT-100 Part Numbers'!$AB$14,IF(IFERROR(MATCH(I25,ColorSet9Cables,0),0)>0,'EXT-100 Part Numbers'!$AC$14,IF(IFERROR(MATCH(I25,ColorSet10Cables,0),0)>0,'EXT-100 Part Numbers'!$AD$14,IF(IFERROR(MATCH(I25,ColorSet11Cables,0),0)>0,'EXT-100 Part Numbers'!$U$35,IF(IFERROR(MATCH(I25,ColorSet12Cables,0),0)>0,'EXT-100 Part Numbers'!$V$35,'EXT-100 Part Numbers'!$AE$14)))))))))))) -> NoColorSelection | BQ25: =IF(AND(BP25<>'EXT-100 Part Numbers'!$AE$14,COUNTA(INDIRECT(BP25))=1),INDIRECT(BP25),"") ->  | BT25: 0 | BU25: 0 | BW25: =IF(G25="",'EXT-100 Part Numbers'!$I$22,IFERROR(INDEX('EXT-100 Part Numbers'!$J$2:$J$4,MATCH(G25,EXTCategories,0)),'EXT-100 Part Numbers'!$I$22)) -> EXT100FlameRatingUnspecified | BX25: =IF(AND(G25="",H25=""),'EXT-100 Part Numbers'!$AY$13,IFERROR(INDEX('EXT-100 Part Numbers'!$AZ$2:$AZ$11,MATCH(G25 & " " & H25,'EXT-100 Part Numbers'!$AY$2:$AY$11,0)),'EXT-100 Part Numbers'!$I$22)) -> EXT100NoCatNoFlame | BY25: =IF(AND(BX25<>'EXT-100 Part Numbers'!$I$22,BX25<>'EXT-100 Part Numbers'!$AY$13,COUNTA(INDIRECT(BX25))=1),INDIRECT(BX25),"") ->  | BZ25: =IFERROR(INDEX('EXT-100 Part Numbers'!$N$2:$N$27,MATCH(AT25,'EXT-100 Part Numbers'!$K$2:$K$27,0)),OutdoorEnvironment)<>OutdoorEnvironment -> FALSE | CA25: =IF(H25<>"",IF(AND(G25<>"",BW25<>"",BW25<>'EXT-100 Part Numbers'!$I$22),IFERROR(MATCH(H25,INDIRECT(BW25),0)>0,FALSE),FALSE),TRUE) -> TRUE | CB25: =IF(I25<>"",IF(AND(G25<>"",H25<>"",BX25<>"",BX25<>'EXT-100 Part Numbers'!$AY$13),IFERROR(MATCH(I25,INDIRECT(BX25),0)>0,FALSE),FALSE),TRUE) -> TRUE | CC25: =IF(J25<>"",IF(AND(G25<>"",H25<>"",I25<>"",BP25<>"",BP25<>'EXT-100 Part Numbers'!$AE$14),IFERROR(MATCH(J25,INDIRECT(BP25),0)>0,FALSE),FALSE),TRUE) -> TRUE
B26: 17 | N26: TRUE | O26: TRUE | P26: TRUE | Q26: TRUE | R26: TRUE | S26: TRUE | T26: TRUE | U26: TRUE | V26: TRUE | W26: FALSE | X26: FALSE | Y26: =IF(AND(L26<>References!$D$4,X26),'EXT-100 Part Numbers'!$R$2,"") ->  | AG26: ='EXT-100 Part Numbers'!E17 -> 10032535 | AH26: =IF(COUNTIF(K:K,AG26) > 0,_xlfn.CEILING.MATH(SUMIF(K:K,AG26,BR:BR)*SUMIF(K:K,AG26,M:M)/INDEX('EXT-100 Part Numbers'!H:H,MATCH(AG26,'EXT-100 Part Numbers'!E:E,0))),"") ->  | AI26: =IF(AH26<>"",IF(_xlfn.CEILING.MATH(SUMIF(K:K,AG26,BR:BR)/INDEX('EXT-100 Part Numbers'!H:H,MATCH(AG26,'EXT-100 Part Numbers'!E:E,0)))>0,_xlfn.CEILING.MATH(SUMIF(K:K,AG26,BR:BR)/INDEX('EXT-100 Part Numbers'!H:H,MATCH(AG26,'EXT-100 Part Numbers'!E:E,0))),"???") & " " & IF(AH26=1,AL26,IF(AL26="Reel in a box","Reels in a box",AL26 & IF(RIGHT(AL26,1)="x","es","s"))),"") ->  | AJ26: =IF(AH26<>"",INDEX('EXT-100 Part Numbers'!$B$2:$B$238,MATCH(AG26,'EXT-100 Part Numbers'!$E$2:$E$238,0)) & ", " & INDEX('EXT-100 Part Numbers'!$C$2:$C$238,MATCH(AG26,'EXT-100 Part Numbers'!$E$2:$E$238,0)),"") ->  | AK26: =IF(AH26<>"",INDEX('EXT-100 Part Numbers'!$G$2:$G$238,MATCH(AG26,'EXT-100 Part Numbers'!$E$2:$E$238,0)),"") ->  | AL26: =IF(AH26<>"", INDEX('EXT-100 Part Numbers'!$F$2:$F$238,MATCH(AG26,'EXT-100 Part Numbers'!$E$2:$E$238,0)),"") ->  | AN26: 0 | AO26: TRUE | AP26: TRUE | AQ26: =IF(AND(I26<>"",J26<>""),INDEX('EXT-100 Part Numbers'!$E$2:$E$192,MATCH(I26 & " (" & J26 & ")",'EXT-100 Part Numbers'!$A$2:$A$192,0)),"") ->  | AR26: =IFERROR(IF(AND(I26<>"",J26<>"",F26<='EXT-100 Part Numbers'!$AP$3,F26*M26>'EXT-100 Part Numbers'!$AP$2),INDEX('EXT-100 Part Numbers'!$E$193:$E$211,MATCH(I26 & " (" & J26 & ")",'EXT-100 Part Numbers'!$A$193:$A$211,0)),""),"") ->  | AS26: =IF(AND(I26<>"",J26<>"",OR(AND(AR26<>"",F26>'EXT-100 Part Numbers'!$AP$3),AND(AR26="",F26*M26>'EXT-100 Part Numbers'!$AP$2))),INDEX('EXT-100 Part Numbers'!$E$212:$E$238,MATCH(I26,'EXT-100 Part Numbers'!$B$212:$B$238,0)),"") ->  | AT26: =IFERROR(INDEX('EXT-100 Part Numbers'!$B$2:$B$211,MATCH(AQ26,'EXT-100 Part Numbers'!$E$2:$E$211,0)),"") ->  | AU26: =IF(AT26<>"",CONVERT(IFERROR(INDEX('EXT-100 Part Numbers'!$L$2:$L$27,MATCH(AT26,'EXT-100 Part Numbers'!$K$4:$K$27,0)),MIN('EXT-100 Part Numbers'!$L$2:$L$27)),"C",IF($E$7='EXT-100 Part Numbers'!$AK$2,"F","C")),-400) -> -400 | AV26: =IF(AT26<>"",CONVERT(IFERROR(INDEX('EXT-100 Part Numbers'!$M$2:$M$27,MATCH(AT26,'EXT-100 Part Numbers'!$K$4:$K$27,0)),MAX('EXT-100 Part Numbers'!$M$2:$M$27)),"C",IF($E$7='EXT-100 Part Numbers'!$AK$2,"F","C")),400) -> 400 | AW26: =IF(E26='EXT-100 Part Numbers'!$AG$2,'EXT-100 Part Numbers'!$AH$2,IF(E26='EXT-100 Part Numbers'!$AG$3,'EXT-100 Part Numbers'!$AH$3,IF(E26='EXT-100 Part Numbers'!$AG$4,'EXT-100 Part Numbers'!$AH$4,0))) -> 0 | AY26: =IF(AS26<>"",INDEX('EXT-100 Part Numbers'!$B$2:$B$238,MATCH(AS26,'EXT-100 Part Numbers'!$E$2:$E$238,0)) & ", " & SUBSTITUTE(INDEX('EXT-100 Part Numbers'!$C$2:$C$238,MATCH(AS26,'EXT-100 Part Numbers'!$E$2:$E$238,0)),"REPLACEME",J26),"") ->  | BE26: =IF(BA26<>"",INDEX('EXT-100 Part Numbers'!$F$2:$F$238,MATCH(BA26,'EXT-100 Part Numbers'!$E$2:$E$238,0)),"") ->  | BF26: =IF(BA26<>"", INDEX('EXT-100 Part Numbers'!$G$2:$G$238,MATCH(BA26,'EXT-100 Part Numbers'!$E$2:$E$238,0)),"") ->  | BH26: =IF(L26=References!$D$3,M26/$BH$5,0) -> 0 | BI26: 0 | BJ26: 0 | BK26: 0 | BL26: 0 | BM26: 0 | BN26: 0 | BP26: =IF(IFERROR(MATCH(I26,ColorSet1Cables,0),0)>0,'EXT-100 Part Numbers'!$U$14,IF(IFERROR(MATCH(I26,ColorSet2Cables,0),0)>0,'EXT-100 Part Numbers'!$V$14,IF(IFERROR(MATCH(I26,ColorSet3Cables,0),0)>0,'EXT-100 Part Numbers'!$W$14,IF(IFERROR(MATCH(I26,ColorSet4Cables,0),0)>0,'EXT-100 Part Numbers'!$X$14,IF(IFERROR(MATCH(I26,ColorSet5Cables,0),0)>0,'EXT-100 Part Numbers'!$Y$14,IF(IFERROR(MATCH(I26,ColorSet6Cables,0),0)>0,'EXT-100 Part Numbers'!$Z$14,IF(IFERROR(MATCH(I26,ColorSet7Cables,0),0)>0,'EXT-100 Part Numbers'!$AA$14,IF(IFERROR(MATCH(I26,ColorSet8Cables,0),0)>0,'EXT-100 Part Numbers'!$AB$14,IF(IFERROR(MATCH(I26,ColorSet9Cables,0),0)>0,'EXT-100 Part Numbers'!$AC$14,IF(IFERROR(MATCH(I26,ColorSet10Cables,0),0)>0,'EXT-100 Part Numbers'!$AD$14,IF(IFERROR(MATCH(I26,ColorSet11Cables,0),0)>0,'EXT-100 Part Numbers'!$U$35,IF(IFERROR(MATCH(I26,ColorSet12Cables,0),0)>0,'EXT-100 Part Numbers'!$V$35,'EXT-100 Part Numbers'!$AE$14)))))))))))) -> NoColorSelection | BQ26: =IF(AND(BP26<>'EXT-100 Part Numbers'!$AE$14,COUNTA(INDIRECT(BP26))=1),INDIRECT(BP26),"") ->  | BT26: 0 | BU26: 0 | BW26: =IF(G26="",'EXT-100 Part Numbers'!$I$22,IFERROR(INDEX('EXT-100 Part Numbers'!$J$2:$J$4,MATCH(G26,EXTCategories,0)),'EXT-100 Part Numbers'!$I$22)) -> EXT100FlameRatingUnspecified | BX26: =IF(AND(G26="",H26=""),'EXT-100 Part Numbers'!$AY$13,IFERROR(INDEX('EXT-100 Part Numbers'!$AZ$2:$AZ$11,MATCH(G26 & " " & H26,'EXT-100 Part Numbers'!$AY$2:$AY$11,0)),'EXT-100 Part Numbers'!$I$22)) -> EXT100NoCatNoFlame | BY26: =IF(AND(BX26<>'EXT-100 Part Numbers'!$I$22,BX26<>'EXT-100 Part Numbers'!$AY$13,COUNTA(INDIRECT(BX26))=1),INDIRECT(BX26),"") ->  | BZ26: =IFERROR(INDEX('EXT-100 Part Numbers'!$N$2:$N$27,MATCH(AT26,'EXT-100 Part Numbers'!$K$2:$K$27,0)),OutdoorEnvironment)<>OutdoorEnvironment -> FALSE | CA26: =IF(H26<>"",IF(AND(G26<>"",BW26<>"",BW26<>'EXT-100 Part Numbers'!$I$22),IFERROR(MATCH(H26,INDIRECT(BW26),0)>0,FALSE),FALSE),TRUE) -> TRUE | CB26: =IF(I26<>"",IF(AND(G26<>"",H26<>"",BX26<>"",BX26<>'EXT-100 Part Numbers'!$AY$13),IFERROR(MATCH(I26,INDIRECT(BX26),0)>0,FALSE),FALSE),TRUE) -> TRUE | CC26: =IF(J26<>"",IF(AND(G26<>"",H26<>"",I26<>"",BP26<>"",BP26<>'EXT-100 Part Numbers'!$AE$14),IFERROR(MATCH(J26,INDIRECT(BP26),0)>0,FALSE),FALSE),TRUE) -> TRUE
B27: 18 | N27: TRUE | O27: TRUE | P27: TRUE | Q27: TRUE | R27: TRUE | S27: TRUE | T27: TRUE | U27: TRUE | V27: TRUE | W27: FALSE | X27: FALSE | Y27: =IF(AND(L27<>References!$D$4,X27),'EXT-100 Part Numbers'!$R$2,"") ->  | AG27: ='EXT-100 Part Numbers'!E18 -> 10032536 | AH27: =IF(COUNTIF(K:K,AG27) > 0,_xlfn.CEILING.MATH(SUMIF(K:K,AG27,BR:BR)*SUMIF(K:K,AG27,M:M)/INDEX('EXT-100 Part Numbers'!H:H,MATCH(AG27,'EXT-100 Part Numbers'!E:E,0))),"") ->  | AI27: =IF(AH27<>"",IF(_xlfn.CEILING.MATH(SUMIF(K:K,AG27,BR:BR)/INDEX('EXT-100 Part Numbers'!H:H,MATCH(AG27,'EXT-100 Part Numbers'!E:E,0)))>0,_xlfn.CEILING.MATH(SUMIF(K:K,AG27,BR:BR)/INDEX('EXT-100 Part Numbers'!H:H,MATCH(AG27,'EXT-100 Part Numbers'!E:E,0))),"???") & " " & IF(AH27=1,AL27,IF(AL27="Reel in a box","Reels in a box",AL27 & IF(RIGHT(AL27,1)="x","es","s"))),"") ->  | AJ27: =IF(AH27<>"",INDEX('EXT-100 Part Numbers'!$B$2:$B$238,MATCH(AG27,'EXT-100 Part Numbers'!$E$2:$E$238,0)) & ", " & INDEX('EXT-100 Part Numbers'!$C$2:$C$238,MATCH(AG27,'EXT-100 Part Numbers'!$E$2:$E$238,0)),"") ->  | AK27: =IF(AH27<>"",INDEX('EXT-100 Part Numbers'!$G$2:$G$238,MATCH(AG27,'EXT-100 Part Numbers'!$E$2:$E$238,0)),"") ->  | AL27: =IF(AH27<>"", INDEX('EXT-100 Part Numbers'!$F$2:$F$238,MATCH(AG27,'EXT-100 Part Numbers'!$E$2:$E$238,0)),"") ->  | AN27: 0 | AO27: TRUE | AP27: TRUE | AQ27: =IF(AND(I27<>"",J27<>""),INDEX('EXT-100 Part Numbers'!$E$2:$E$192,MATCH(I27 & " (" & J27 & ")",'EXT-100 Part Numbers'!$A$2:$A$192,0)),"") ->  | AR27: =IFERROR(IF(AND(I27<>"",J27<>"",F27<='EXT-100 Part Numbers'!$AP$3,F27*M27>'EXT-100 Part Numbers'!$AP$2),INDEX('EXT-100 Part Numbers'!$E$193:$E$211,MATCH(I27 & " (" & J27 & ")",'EXT-100 Part Numbers'!$A$193:$A$211,0)),""),"") ->  | AS27: =IF(AND(I27<>"",J27<>"",OR(AND(AR27<>"",F27>'EXT-100 Part Numbers'!$AP$3),AND(AR27="",F27*M27>'EXT-100 Part Numbers'!$AP$2))),INDEX('EXT-100 Part Numbers'!$E$212:$E$238,MATCH(I27,'EXT-100 Part Numbers'!$B$212:$B$238,0)),"") ->  | AT27: =IFERROR(INDEX('EXT-100 Part Numbers'!$B$2:$B$211,MATCH(AQ27,'EXT-100 Part Numbers'!$E$2:$E$211,0)),"") ->  | AU27: =IF(AT27<>"",CONVERT(IFERROR(INDEX('EXT-100 Part Numbers'!$L$2:$L$27,MATCH(AT27,'EXT-100 Part Numbers'!$K$4:$K$27,0)),MIN('EXT-100 Part Numbers'!$L$2:$L$27)),"C",IF($E$7='EXT-100 Part Numbers'!$AK$2,"F","C")),-400) -> -400 | AV27: =IF(AT27<>"",CONVERT(IFERROR(INDEX('EXT-100 Part Numbers'!$M$2:$M$27,MATCH(AT27,'EXT-100 Part Numbers'!$K$4:$K$27,0)),MAX('EXT-100 Part Numbers'!$M$2:$M$27)),"C",IF($E$7='EXT-100 Part Numbers'!$AK$2,"F","C")),400) -> 400 | AW27: =IF(E27='EXT-100 Part Numbers'!$AG$2,'EXT-100 Part Numbers'!$AH$2,IF(E27='EXT-100 Part Numbers'!$AG$3,'EXT-100 Part Numbers'!$AH$3,IF(E27='EXT-100 Part Numbers'!$AG$4,'EXT-100 Part Numbers'!$AH$4,0))) -> 0 | AY27: =IF(AS27<>"",INDEX('EXT-100 Part Numbers'!$B$2:$B$238,MATCH(AS27,'EXT-100 Part Numbers'!$E$2:$E$238,0)) & ", " & SUBSTITUTE(INDEX('EXT-100 Part Numbers'!$C$2:$C$238,MATCH(AS27,'EXT-100 Part Numbers'!$E$2:$E$238,0)),"REPLACEME",J27),"") ->  | BE27: =IF(BA27<>"",INDEX('EXT-100 Part Numbers'!$F$2:$F$238,MATCH(BA27,'EXT-100 Part Numbers'!$E$2:$E$238,0)),"") ->  | BF27: =IF(BA27<>"", INDEX('EXT-100 Part Numbers'!$G$2:$G$238,MATCH(BA27,'EXT-100 Part Numbers'!$E$2:$E$238,0)),"") ->  | BH27: =IF(L27=References!$D$3,M27/$BH$5,0) -> 0 | BI27: 0 | BJ27: 0 | BK27: 0 | BL27: 0 | BM27: 0 | BN27: 0 | BP27: =IF(IFERROR(MATCH(I27,ColorSet1Cables,0),0)>0,'EXT-100 Part Numbers'!$U$14,IF(IFERROR(MATCH(I27,ColorSet2Cables,0),0)>0,'EXT-100 Part Numbers'!$V$14,IF(IFERROR(MATCH(I27,ColorSet3Cables,0),0)>0,'EXT-100 Part Numbers'!$W$14,IF(IFERROR(MATCH(I27,ColorSet4Cables,0),0)>0,'EXT-100 Part Numbers'!$X$14,IF(IFERROR(MATCH(I27,ColorSet5Cables,0),0)>0,'EXT-100 Part Numbers'!$Y$14,IF(IFERROR(MATCH(I27,ColorSet6Cables,0),0)>0,'EXT-100 Part Numbers'!$Z$14,IF(IFERROR(MATCH(I27,ColorSet7Cables,0),0)>0,'EXT-100 Part Numbers'!$AA$14,IF(IFERROR(MATCH(I27,ColorSet8Cables,0),0)>0,'EXT-100 Part Numbers'!$AB$14,IF(IFERROR(MATCH(I27,ColorSet9Cables,0),0)>0,'EXT-100 Part Numbers'!$AC$14,IF(IFERROR(MATCH(I27,ColorSet10Cables,0),0)>0,'EXT-100 Part Numbers'!$AD$14,IF(IFERROR(MATCH(I27,ColorSet11Cables,0),0)>0,'EXT-100 Part Numbers'!$U$35,IF(IFERROR(MATCH(I27,ColorSet12Cables,0),0)>0,'EXT-100 Part Numbers'!$V$35,'EXT-100 Part Numbers'!$AE$14)))))))))))) -> NoColorSelection | BQ27: =IF(AND(BP27<>'EXT-100 Part Numbers'!$AE$14,COUNTA(INDIRECT(BP27))=1),INDIRECT(BP27),"") ->  | BT27: 0 | BU27: 0 | BW27: =IF(G27="",'EXT-100 Part Numbers'!$I$22,IFERROR(INDEX('EXT-100 Part Numbers'!$J$2:$J$4,MATCH(G27,EXTCategories,0)),'EXT-100 Part Numbers'!$I$22)) -> EXT100FlameRatingUnspecified | BX27: =IF(AND(G27="",H27=""),'EXT-100 Part Numbers'!$AY$13,IFERROR(INDEX('EXT-100 Part Numbers'!$AZ$2:$AZ$11,MATCH(G27 & " " & H27,'EXT-100 Part Numbers'!$AY$2:$AY$11,0)),'EXT-100 Part Numbers'!$I$22)) -> EXT100NoCatNoFlame | BY27: =IF(AND(BX27<>'EXT-100 Part Numbers'!$I$22,BX27<>'EXT-100 Part Numbers'!$AY$13,COUNTA(INDIRECT(BX27))=1),INDIRECT(BX27),"") ->  | BZ27: =IFERROR(INDEX('EXT-100 Part Numbers'!$N$2:$N$27,MATCH(AT27,'EXT-100 Part Numbers'!$K$2:$K$27,0)),OutdoorEnvironment)<>OutdoorEnvironment -> FALSE | CA27: =IF(H27<>"",IF(AND(G27<>"",BW27<>"",BW27<>'EXT-100 Part Numbers'!$I$22),IFERROR(MATCH(H27,INDIRECT(BW27),0)>0,FALSE),FALSE),TRUE) -> TRUE | CB27: =IF(I27<>"",IF(AND(G27<>"",H27<>"",BX27<>"",BX27<>'EXT-100 Part Numbers'!$AY$13),IFERROR(MATCH(I27,INDIRECT(BX27),0)>0,FALSE),FALSE),TRUE) -> TRUE | CC27: =IF(J27<>"",IF(AND(G27<>"",H27<>"",I27<>"",BP27<>"",BP27<>'EXT-100 Part Numbers'!$AE$14),IFERROR(MATCH(J27,INDIRECT(BP27),0)>0,FALSE),FALSE),TRUE) -> TRUE
B28: 19 | N28: TRUE | O28: TRUE | P28: TRUE | Q28: TRUE | R28: TRUE | S28: TRUE | T28: TRUE | U28: TRUE | V28: TRUE | W28: FALSE | X28: FALSE | Y28: =IF(AND(L28<>References!$D$4,X28),'EXT-100 Part Numbers'!$R$2,"") ->  | AG28: ='EXT-100 Part Numbers'!E19 -> 10033584 | AH28: =IF(COUNTIF(K:K,AG28) > 0,_xlfn.CEILING.MATH(SUMIF(K:K,AG28,BR:BR)*SUMIF(K:K,AG28,M:M)/INDEX('EXT-100 Part Numbers'!H:H,MATCH(AG28,'EXT-100 Part Numbers'!E:E,0))),"") ->  | AI28: =IF(AH28<>"",IF(_xlfn.CEILING.MATH(SUMIF(K:K,AG28,BR:BR)/INDEX('EXT-100 Part Numbers'!H:H,MATCH(AG28,'EXT-100 Part Numbers'!E:E,0)))>0,_xlfn.CEILING.MATH(SUMIF(K:K,AG28,BR:BR)/INDEX('EXT-100 Part Numbers'!H:H,MATCH(AG28,'EXT-100 Part Numbers'!E:E,0))),"???") & " " & IF(AH28=1,AL28,IF(AL28="Reel in a box","Reels in a box",AL28 & IF(RIGHT(AL28,1)="x","es","s"))),"") ->  | AJ28: =IF(AH28<>"",INDEX('EXT-100 Part Numbers'!$B$2:$B$238,MATCH(AG28,'EXT-100 Part Numbers'!$E$2:$E$238,0)) & ", " & INDEX('EXT-100 Part Numbers'!$C$2:$C$238,MATCH(AG28,'EXT-100 Part Numbers'!$E$2:$E$238,0)),"") ->  | AK28: =IF(AH28<>"",INDEX('EXT-100 Part Numbers'!$G$2:$G$238,MATCH(AG28,'EXT-100 Part Numbers'!$E$2:$E$238,0)),"") ->  | AL28: =IF(AH28<>"", INDEX('EXT-100 Part Numbers'!$F$2:$F$238,MATCH(AG28,'EXT-100 Part Numbers'!$E$2:$E$238,0)),"") ->  | AN28: 0 | AO28: TRUE | AP28: TRUE | AQ28: =IF(AND(I28<>"",J28<>""),INDEX('EXT-100 Part Numbers'!$E$2:$E$192,MATCH(I28 & " (" & J28 & ")",'EXT-100 Part Numbers'!$A$2:$A$192,0)),"") ->  | AR28: =IFERROR(IF(AND(I28<>"",J28<>"",F28<='EXT-100 Part Numbers'!$AP$3,F28*M28>'EXT-100 Part Numbers'!$AP$2),INDEX('EXT-100 Part Numbers'!$E$193:$E$211,MATCH(I28 & " (" & J28 & ")",'EXT-100 Part Numbers'!$A$193:$A$211,0)),""),"") ->  | AS28: =IF(AND(I28<>"",J28<>"",OR(AND(AR28<>"",F28>'EXT-100 Part Numbers'!$AP$3),AND(AR28="",F28*M28>'EXT-100 Part Numbers'!$AP$2))),INDEX('EXT-100 Part Numbers'!$E$212:$E$238,MATCH(I28,'EXT-100 Part Numbers'!$B$212:$B$238,0)),"") ->  | AT28: =IFERROR(INDEX('EXT-100 Part Numbers'!$B$2:$B$211,MATCH(AQ28,'EXT-100 Part Numbers'!$E$2:$E$211,0)),"") ->  | AU28: =IF(AT28<>"",CONVERT(IFERROR(INDEX('EXT-100 Part Numbers'!$L$2:$L$27,MATCH(AT28,'EXT-100 Part Numbers'!$K$4:$K$27,0)),MIN('EXT-100 Part Numbers'!$L$2:$L$27)),"C",IF($E$7='EXT-100 Part Numbers'!$AK$2,"F","C")),-400) -> -400 | AV28: =IF(AT28<>"",CONVERT(IFERROR(INDEX('EXT-100 Part Numbers'!$M$2:$M$27,MATCH(AT28,'EXT-100 Part Numbers'!$K$4:$K$27,0)),MAX('EXT-100 Part Numbers'!$M$2:$M$27)),"C",IF($E$7='EXT-100 Part Numbers'!$AK$2,"F","C")),400) -> 400 | AW28: =IF(E28='EXT-100 Part Numbers'!$AG$2,'EXT-100 Part Numbers'!$AH$2,IF(E28='EXT-100 Part Numbers'!$AG$3,'EXT-100 Part Numbers'!$AH$3,IF(E28='EXT-100 Part Numbers'!$AG$4,'EXT-100 Part Numbers'!$AH$4,0))) -> 0 | AY28: =IF(AS28<>"",INDEX('EXT-100 Part Numbers'!$B$2:$B$238,MATCH(AS28,'EXT-100 Part Numbers'!$E$2:$E$238,0)) & ", " & SUBSTITUTE(INDEX('EXT-100 Part Numbers'!$C$2:$C$238,MATCH(AS28,'EXT-100 Part Numbers'!$E$2:$E$238,0)),"REPLACEME",J28),"") ->  | BE28: =IF(BA28<>"",INDEX('EXT-100 Part Numbers'!$F$2:$F$238,MATCH(BA28,'EXT-100 Part Numbers'!$E$2:$E$238,0)),"") ->  | BF28: =IF(BA28<>"", INDEX('EXT-100 Part Numbers'!$G$2:$G$238,MATCH(BA28,'EXT-100 Part Numbers'!$E$2:$E$238,0)),"") ->  | BH28: =IF(L28=References!$D$3,M28/$BH$5,0) -> 0 | BI28: 0 | BJ28: 0 | BK28: 0 | BL28: 0 | BM28: 0 | BN28: 0 | BP28: =IF(IFERROR(MATCH(I28,ColorSet1Cables,0),0)>0,'EXT-100 Part Numbers'!$U$14,IF(IFERROR(MATCH(I28,ColorSet2Cables,0),0)>0,'EXT-100 Part Numbers'!$V$14,IF(IFERROR(MATCH(I28,ColorSet3Cables,0),0)>0,'EXT-100 Part Numbers'!$W$14,IF(IFERROR(MATCH(I28,ColorSet4Cables,0),0)>0,'EXT-100 Part Numbers'!$X$14,IF(IFERROR(MATCH(I28,ColorSet5Cables,0),0)>0,'EXT-100 Part Numbers'!$Y$14,IF(IFERROR(MATCH(I28,ColorSet6Cables,0),0)>0,'EXT-100 Part Numbers'!$Z$14,IF(IFERROR(MATCH(I28,ColorSet7Cables,0),0)>0,'EXT-100 Part Numbers'!$AA$14,IF(IFERROR(MATCH(I28,ColorSet8Cables,0),0)>0,'EXT-100 Part Numbers'!$AB$14,IF(IFERROR(MATCH(I28,ColorSet9Cables,0),0)>0,'EXT-100 Part Numbers'!$AC$14,IF(IFERROR(MATCH(I28,ColorSet10Cables,0),0)>0,'EXT-100 Part Numbers'!$AD$14,IF(IFERROR(MATCH(I28,ColorSet11Cables,0),0)>0,'EXT-100 Part Numbers'!$U$35,IF(IFERROR(MATCH(I28,ColorSet12Cables,0),0)>0,'EXT-100 Part Numbers'!$V$35,'EXT-100 Part Numbers'!$AE$14)))))))))))) -> NoColorSelection | BQ28: =IF(AND(BP28<>'EXT-100 Part Numbers'!$AE$14,COUNTA(INDIRECT(BP28))=1),INDIRECT(BP28),"") ->  | BT28: 0 | BU28: 0 | BW28: =IF(G28="",'EXT-100 Part Numbers'!$I$22,IFERROR(INDEX('EXT-100 Part Numbers'!$J$2:$J$4,MATCH(G28,EXTCategories,0)),'EXT-100 Part Numbers'!$I$22)) -> EXT100FlameRatingUnspecified | BX28: =IF(AND(G28="",H28=""),'EXT-100 Part Numbers'!$AY$13,IFERROR(INDEX('EXT-100 Part Numbers'!$AZ$2:$AZ$11,MATCH(G28 & " " & H28,'EXT-100 Part Numbers'!$AY$2:$AY$11,0)),'EXT-100 Part Numbers'!$I$22)) -> EXT100NoCatNoFlame | BY28: =IF(AND(BX28<>'EXT-100 Part Numbers'!$I$22,BX28<>'EXT-100 Part Numbers'!$AY$13,COUNTA(INDIRECT(BX28))=1),INDIRECT(BX28),"") ->  | BZ28: =IFERROR(INDEX('EXT-100 Part Numbers'!$N$2:$N$27,MATCH(AT28,'EXT-100 Part Numbers'!$K$2:$K$27,0)),OutdoorEnvironment)<>OutdoorEnvironment -> FALSE | CA28: =IF(H28<>"",IF(AND(G28<>"",BW28<>"",BW28<>'EXT-100 Part Numbers'!$I$22),IFERROR(MATCH(H28,INDIRECT(BW28),0)>0,FALSE),FALSE),TRUE) -> TRUE | CB28: =IF(I28<>"",IF(AND(G28<>"",H28<>"",BX28<>"",BX28<>'EXT-100 Part Numbers'!$AY$13),IFERROR(MATCH(I28,INDIRECT(BX28),0)>0,FALSE),FALSE),TRUE) -> TRUE | CC28: =IF(J28<>"",IF(AND(G28<>"",H28<>"",I28<>"",BP28<>"",BP28<>'EXT-100 Part Numbers'!$AE$14),IFERROR(MATCH(J28,INDIRECT(BP28),0)>0,FALSE),FALSE),TRUE) -> TRUE
B29: 20 | N29: TRUE | O29: TRUE | P29: TRUE | Q29: TRUE | R29: TRUE | S29: TRUE | T29: TRUE | U29: TRUE | V29: TRUE | W29: FALSE | X29: FALSE | Y29: =IF(AND(L29<>References!$D$4,X29),'EXT-100 Part Numbers'!$R$2,"") ->  | AG29: ='EXT-100 Part Numbers'!E20 -> 10032539 | AH29: =IF(COUNTIF(K:K,AG29) > 0,_xlfn.CEILING.MATH(SUMIF(K:K,AG29,BR:BR)*SUMIF(K:K,AG29,M:M)/INDEX('EXT-100 Part Numbers'!H:H,MATCH(AG29,'EXT-100 Part Numbers'!E:E,0))),"") ->  | AI29: =IF(AH29<>"",IF(_xlfn.CEILING.MATH(SUMIF(K:K,AG29,BR:BR)/INDEX('EXT-100 Part Numbers'!H:H,MATCH(AG29,'EXT-100 Part Numbers'!E:E,0)))>0,_xlfn.CEILING.MATH(SUMIF(K:K,AG29,BR:BR)/INDEX('EXT-100 Part Numbers'!H:H,MATCH(AG29,'EXT-100 Part Numbers'!E:E,0))),"???") & " " & IF(AH29=1,AL29,IF(AL29="Reel in a box","Reels in a box",AL29 & IF(RIGHT(AL29,1)="x","es","s"))),"") ->  | AJ29: =IF(AH29<>"",INDEX('EXT-100 Part Numbers'!$B$2:$B$238,MATCH(AG29,'EXT-100 Part Numbers'!$E$2:$E$238,0)) & ", " & INDEX('EXT-100 Part Numbers'!$C$2:$C$238,MATCH(AG29,'EXT-100 Part Numbers'!$E$2:$E$238,0)),"") ->  | AK29: =IF(AH29<>"",INDEX('EXT-100 Part Numbers'!$G$2:$G$238,MATCH(AG29,'EXT-100 Part Numbers'!$E$2:$E$238,0)),"") ->  | AL29: =IF(AH29<>"", INDEX('EXT-100 Part Numbers'!$F$2:$F$238,MATCH(AG29,'EXT-100 Part Numbers'!$E$2:$E$238,0)),"") ->  | AN29: 0 | AO29: TRUE | AP29: TRUE | AQ29: =IF(AND(I29<>"",J29<>""),INDEX('EXT-100 Part Numbers'!$E$2:$E$192,MATCH(I29 & " (" & J29 & ")",'EXT-100 Part Numbers'!$A$2:$A$192,0)),"") ->  | AR29: =IFERROR(IF(AND(I29<>"",J29<>"",F29<='EXT-100 Part Numbers'!$AP$3,F29*M29>'EXT-100 Part Numbers'!$AP$2),INDEX('EXT-100 Part Numbers'!$E$193:$E$211,MATCH(I29 & " (" & J29 & ")",'EXT-100 Part Numbers'!$A$193:$A$211,0)),""),"") ->  | AS29: =IF(AND(I29<>"",J29<>"",OR(AND(AR29<>"",F29>'EXT-100 Part Numbers'!$AP$3),AND(AR29="",F29*M29>'EXT-100 Part Numbers'!$AP$2))),INDEX('EXT-100 Part Numbers'!$E$212:$E$238,MATCH(I29,'EXT-100 Part Numbers'!$B$212:$B$238,0)),"") ->  | AT29: =IFERROR(INDEX('EXT-100 Part Numbers'!$B$2:$B$211,MATCH(AQ29,'EXT-100 Part Numbers'!$E$2:$E$211,0)),"") ->  | AU29: =IF(AT29<>"",CONVERT(IFERROR(INDEX('EXT-100 Part Numbers'!$L$2:$L$27,MATCH(AT29,'EXT-100 Part Numbers'!$K$4:$K$27,0)),MIN('EXT-100 Part Numbers'!$L$2:$L$27)),"C",IF($E$7='EXT-100 Part Numbers'!$AK$2,"F","C")),-400) -> -400 | AV29: =IF(AT29<>"",CONVERT(IFERROR(INDEX('EXT-100 Part Numbers'!$M$2:$M$27,MATCH(AT29,'EXT-100 Part Numbers'!$K$4:$K$27,0)),MAX('EXT-100 Part Numbers'!$M$2:$M$27)),"C",IF($E$7='EXT-100 Part Numbers'!$AK$2,"F","C")),400) -> 400 | AW29: =IF(E29='EXT-100 Part Numbers'!$AG$2,'EXT-100 Part Numbers'!$AH$2,IF(E29='EXT-100 Part Numbers'!$AG$3,'EXT-100 Part Numbers'!$AH$3,IF(E29='EXT-100 Part Numbers'!$AG$4,'EXT-100 Part Numbers'!$AH$4,0))) -> 0 | AY29: =IF(AS29<>"",INDEX('EXT-100 Part Numbers'!$B$2:$B$238,MATCH(AS29,'EXT-100 Part Numbers'!$E$2:$E$238,0)) & ", " & SUBSTITUTE(INDEX('EXT-100 Part Numbers'!$C$2:$C$238,MATCH(AS29,'EXT-100 Part Numbers'!$E$2:$E$238,0)),"REPLACEME",J29),"") ->  | BE29: =IF(BA29<>"",INDEX('EXT-100 Part Numbers'!$F$2:$F$238,MATCH(BA29,'EXT-100 Part Numbers'!$E$2:$E$238,0)),"") ->  | BF29: =IF(BA29<>"", INDEX('EXT-100 Part Numbers'!$G$2:$G$238,MATCH(BA29,'EXT-100 Part Numbers'!$E$2:$E$238,0)),"") ->  | BH29: =IF(L29=References!$D$3,M29/$BH$5,0) -> 0 | BI29: 0 | BJ29: 0 | BK29: 0 | BL29: 0 | BM29: 0 | BN29: 0 | BP29: =IF(IFERROR(MATCH(I29,ColorSet1Cables,0),0)>0,'EXT-100 Part Numbers'!$U$14,IF(IFERROR(MATCH(I29,ColorSet2Cables,0),0)>0,'EXT-100 Part Numbers'!$V$14,IF(IFERROR(MATCH(I29,ColorSet3Cables,0),0)>0,'EXT-100 Part Numbers'!$W$14,IF(IFERROR(MATCH(I29,ColorSet4Cables,0),0)>0,'EXT-100 Part Numbers'!$X$14,IF(IFERROR(MATCH(I29,ColorSet5Cables,0),0)>0,'EXT-100 Part Numbers'!$Y$14,IF(IFERROR(MATCH(I29,ColorSet6Cables,0),0)>0,'EXT-100 Part Numbers'!$Z$14,IF(IFERROR(MATCH(I29,ColorSet7Cables,0),0)>0,'EXT-100 Part Numbers'!$AA$14,IF(IFERROR(MATCH(I29,ColorSet8Cables,0),0)>0,'EXT-100 Part Numbers'!$AB$14,IF(IFERROR(MATCH(I29,ColorSet9Cables,0),0)>0,'EXT-100 Part Numbers'!$AC$14,IF(IFERROR(MATCH(I29,ColorSet10Cables,0),0)>0,'EXT-100 Part Numbers'!$AD$14,IF(IFERROR(MATCH(I29,ColorSet11Cables,0),0)>0,'EXT-100 Part Numbers'!$U$35,IF(IFERROR(MATCH(I29,ColorSet12Cables,0),0)>0,'EXT-100 Part Numbers'!$V$35,'EXT-100 Part Numbers'!$AE$14)))))))))))) -> NoColorSelection | BQ29: =IF(AND(BP29<>'EXT-100 Part Numbers'!$AE$14,COUNTA(INDIRECT(BP29))=1),INDIRECT(BP29),"") ->  | BT29: 0 | BU29: 0 | BW29: =IF(G29="",'EXT-100 Part Numbers'!$I$22,IFERROR(INDEX('EXT-100 Part Numbers'!$J$2:$J$4,MATCH(G29,EXTCategories,0)),'EXT-100 Part Numbers'!$I$22)) -> EXT100FlameRatingUnspecified | BX29: =IF(AND(G29="",H29=""),'EXT-100 Part Numbers'!$AY$13,IFERROR(INDEX('EXT-100 Part Numbers'!$AZ$2:$AZ$11,MATCH(G29 & " " & H29,'EXT-100 Part Numbers'!$AY$2:$AY$11,0)),'EXT-100 Part Numbers'!$I$22)) -> EXT100NoCatNoFlame | BY29: =IF(AND(BX29<>'EXT-100 Part Numbers'!$I$22,BX29<>'EXT-100 Part Numbers'!$AY$13,COUNTA(INDIRECT(BX29))=1),INDIRECT(BX29),"") ->  | BZ29: =IFERROR(INDEX('EXT-100 Part Numbers'!$N$2:$N$27,MATCH(AT29,'EXT-100 Part Numbers'!$K$2:$K$27,0)),OutdoorEnvironment)<>OutdoorEnvironment -> FALSE | CA29: =IF(H29<>"",IF(AND(G29<>"",BW29<>"",BW29<>'EXT-100 Part Numbers'!$I$22),IFERROR(MATCH(H29,INDIRECT(BW29),0)>0,FALSE),FALSE),TRUE) -> TRUE | CB29: =IF(I29<>"",IF(AND(G29<>"",H29<>"",BX29<>"",BX29<>'EXT-100 Part Numbers'!$AY$13),IFERROR(MATCH(I29,INDIRECT(BX29),0)>0,FALSE),FALSE),TRUE) -> TRUE | CC29: =IF(J29<>"",IF(AND(G29<>"",H29<>"",I29<>"",BP29<>"",BP29<>'EXT-100 Part Numbers'!$AE$14),IFERROR(MATCH(J29,INDIRECT(BP29),0)>0,FALSE),FALSE),TRUE) -> TRUE
B30: 21 | N30: TRUE | O30: TRUE | P30: TRUE | Q30: TRUE | R30: TRUE | S30: TRUE | T30: TRUE | U30: TRUE | V30: TRUE | W30: FALSE | X30: FALSE | Y30: =IF(AND(L30<>References!$D$4,X30),'EXT-100 Part Numbers'!$R$2,"") ->  | AG30: ='EXT-100 Part Numbers'!E21 -> 10032528 | AH30: =IF(COUNTIF(K:K,AG30) > 0,_xlfn.CEILING.MATH(SUMIF(K:K,AG30,BR:BR)*SUMIF(K:K,AG30,M:M)/INDEX('EXT-100 Part Numbers'!H:H,MATCH(AG30,'EXT-100 Part Numbers'!E:E,0))),"") ->  | AI30: =IF(AH30<>"",IF(_xlfn.CEILING.MATH(SUMIF(K:K,AG30,BR:BR)/INDEX('EXT-100 Part Numbers'!H:H,MATCH(AG30,'EXT-100 Part Numbers'!E:E,0)))>0,_xlfn.CEILING.MATH(SUMIF(K:K,AG30,BR:BR)/INDEX('EXT-100 Part Numbers'!H:H,MATCH(AG30,'EXT-100 Part Numbers'!E:E,0))),"???") & " " & IF(AH30=1,AL30,IF(AL30="Reel in a box","Reels in a box",AL30 & IF(RIGHT(AL30,1)="x","es","s"))),"") ->  | AJ30: =IF(AH30<>"",INDEX('EXT-100 Part Numbers'!$B$2:$B$238,MATCH(AG30,'EXT-100 Part Numbers'!$E$2:$E$238,0)) & ", " & INDEX('EXT-100 Part Numbers'!$C$2:$C$238,MATCH(AG30,'EXT-100 Part Numbers'!$E$2:$E$238,0)),"") ->  | AK30: =IF(AH30<>"",INDEX('EXT-100 Part Numbers'!$G$2:$G$238,MATCH(AG30,'EXT-100 Part Numbers'!$E$2:$E$238,0)),"") ->  | AL30: =IF(AH30<>"", INDEX('EXT-100 Part Numbers'!$F$2:$F$238,MATCH(AG30,'EXT-100 Part Numbers'!$E$2:$E$238,0)),"") ->  | AN30: 0 | AO30: TRUE | AP30: TRUE | AQ30: =IF(AND(I30<>"",J30<>""),INDEX('EXT-100 Part Numbers'!$E$2:$E$192,MATCH(I30 & " (" & J30 & ")",'EXT-100 Part Numbers'!$A$2:$A$192,0)),"") ->  | AR30: =IFERROR(IF(AND(I30<>"",J30<>"",F30<='EXT-100 Part Numbers'!$AP$3,F30*M30>'EXT-100 Part Numbers'!$AP$2),INDEX('EXT-100 Part Numbers'!$E$193:$E$211,MATCH(I30 & " (" & J30 & ")",'EXT-100 Part Numbers'!$A$193:$A$211,0)),""),"") ->  | AS30: =IF(AND(I30<>"",J30<>"",OR(AND(AR30<>"",F30>'EXT-100 Part Numbers'!$AP$3),AND(AR30="",F30*M30>'EXT-100 Part Numbers'!$AP$2))),INDEX('EXT-100 Part Numbers'!$E$212:$E$238,MATCH(I30,'EXT-100 Part Numbers'!$B$212:$B$238,0)),"") ->  | AT30: =IFERROR(INDEX('EXT-100 Part Numbers'!$B$2:$B$211,MATCH(AQ30,'EXT-100 Part Numbers'!$E$2:$E$211,0)),"") ->  | AU30: =IF(AT30<>"",CONVERT(IFERROR(INDEX('EXT-100 Part Numbers'!$L$2:$L$27,MATCH(AT30,'EXT-100 Part Numbers'!$K$4:$K$27,0)),MIN('EXT-100 Part Numbers'!$L$2:$L$27)),"C",IF($E$7='EXT-100 Part Numbers'!$AK$2,"F","C")),-400) -> -400 | AV30: =IF(AT30<>"",CONVERT(IFERROR(INDEX('EXT-100 Part Numbers'!$M$2:$M$27,MATCH(AT30,'EXT-100 Part Numbers'!$K$4:$K$27,0)),MAX('EXT-100 Part Numbers'!$M$2:$M$27)),"C",IF($E$7='EXT-100 Part Numbers'!$AK$2,"F","C")),400) -> 400 | AW30: =IF(E30='EXT-100 Part Numbers'!$AG$2,'EXT-100 Part Numbers'!$AH$2,IF(E30='EXT-100 Part Numbers'!$AG$3,'EXT-100 Part Numbers'!$AH$3,IF(E30='EXT-100 Part Numbers'!$AG$4,'EXT-100 Part Numbers'!$AH$4,0))) -> 0 | AY30: =IF(AS30<>"",INDEX('EXT-100 Part Numbers'!$B$2:$B$238,MATCH(AS30,'EXT-100 Part Numbers'!$E$2:$E$238,0)) & ", " & SUBSTITUTE(INDEX('EXT-100 Part Numbers'!$C$2:$C$238,MATCH(AS30,'EXT-100 Part Numbers'!$E$2:$E$238,0)),"REPLACEME",J30),"") ->  | BE30: =IF(BA30<>"",INDEX('EXT-100 Part Numbers'!$F$2:$F$238,MATCH(BA30,'EXT-100 Part Numbers'!$E$2:$E$238,0)),"") ->  | BF30: =IF(BA30<>"", INDEX('EXT-100 Part Numbers'!$G$2:$G$238,MATCH(BA30,'EXT-100 Part Numbers'!$E$2:$E$238,0)),"") ->  | BH30: =IF(L30=References!$D$3,M30/$BH$5,0) -> 0 | BI30: 0 | BJ30: 0 | BK30: 0 | BL30: 0 | BM30: 0 | BN30: 0 | BP30: =IF(IFERROR(MATCH(I30,ColorSet1Cables,0),0)>0,'EXT-100 Part Numbers'!$U$14,IF(IFERROR(MATCH(I30,ColorSet2Cables,0),0)>0,'EXT-100 Part Numbers'!$V$14,IF(IFERROR(MATCH(I30,ColorSet3Cables,0),0)>0,'EXT-100 Part Numbers'!$W$14,IF(IFERROR(MATCH(I30,ColorSet4Cables,0),0)>0,'EXT-100 Part Numbers'!$X$14,IF(IFERROR(MATCH(I30,ColorSet5Cables,0),0)>0,'EXT-100 Part Numbers'!$Y$14,IF(IFERROR(MATCH(I30,ColorSet6Cables,0),0)>0,'EXT-100 Part Numbers'!$Z$14,IF(IFERROR(MATCH(I30,ColorSet7Cables,0),0)>0,'EXT-100 Part Numbers'!$AA$14,IF(IFERROR(MATCH(I30,ColorSet8Cables,0),0)>0,'EXT-100 Part Numbers'!$AB$14,IF(IFERROR(MATCH(I30,ColorSet9Cables,0),0)>0,'EXT-100 Part Numbers'!$AC$14,IF(IFERROR(MATCH(I30,ColorSet10Cables,0),0)>0,'EXT-100 Part Numbers'!$AD$14,IF(IFERROR(MATCH(I30,ColorSet11Cables,0),0)>0,'EXT-100 Part Numbers'!$U$35,IF(IFERROR(MATCH(I30,ColorSet12Cables,0),0)>0,'EXT-100 Part Numbers'!$V$35,'EXT-100 Part Numbers'!$AE$14)))))))))))) -> NoColorSelection | BQ30: =IF(AND(BP30<>'EXT-100 Part Numbers'!$AE$14,COUNTA(INDIRECT(BP30))=1),INDIRECT(BP30),"") ->  | BT30: 0 | BU30: 0 | BW30: =IF(G30="",'EXT-100 Part Numbers'!$I$22,IFERROR(INDEX('EXT-100 Part Numbers'!$J$2:$J$4,MATCH(G30,EXTCategories,0)),'EXT-100 Part Numbers'!$I$22)) -> EXT100FlameRatingUnspecified | BX30: =IF(AND(G30="",H30=""),'EXT-100 Part Numbers'!$AY$13,IFERROR(INDEX('EXT-100 Part Numbers'!$AZ$2:$AZ$11,MATCH(G30 & " " & H30,'EXT-100 Part Numbers'!$AY$2:$AY$11,0)),'EXT-100 Part Numbers'!$I$22)) -> EXT100NoCatNoFlame | BY30: =IF(AND(BX30<>'EXT-100 Part Numbers'!$I$22,BX30<>'EXT-100 Part Numbers'!$AY$13,COUNTA(INDIRECT(BX30))=1),INDIRECT(BX30),"") ->  | BZ30: =IFERROR(INDEX('EXT-100 Part Numbers'!$N$2:$N$27,MATCH(AT30,'EXT-100 Part Numbers'!$K$2:$K$27,0)),OutdoorEnvironment)<>OutdoorEnvironment -> FALSE | CA30: =IF(H30<>"",IF(AND(G30<>"",BW30<>"",BW30<>'EXT-100 Part Numbers'!$I$22),IFERROR(MATCH(H30,INDIRECT(BW30),0)>0,FALSE),FALSE),TRUE) -> TRUE | CB30: =IF(I30<>"",IF(AND(G30<>"",H30<>"",BX30<>"",BX30<>'EXT-100 Part Numbers'!$AY$13),IFERROR(MATCH(I30,INDIRECT(BX30),0)>0,FALSE),FALSE),TRUE) -> TRUE | CC30: =IF(J30<>"",IF(AND(G30<>"",H30<>"",I30<>"",BP30<>"",BP30<>'EXT-100 Part Numbers'!$AE$14),IFERROR(MATCH(J30,INDIRECT(BP30),0)>0,FALSE),FALSE),TRUE) -> TRUE
B31: 22 | N31: TRUE | O31: TRUE | P31: TRUE | Q31: TRUE | R31: TRUE | S31: TRUE | T31: TRUE | U31: TRUE | V31: TRUE | W31: FALSE | X31: FALSE | Y31: =IF(AND(L31<>References!$D$4,X31),'EXT-100 Part Numbers'!$R$2,"") ->  | AG31: ='EXT-100 Part Numbers'!E22 -> 10044832 | AH31: =IF(COUNTIF(K:K,AG31) > 0,_xlfn.CEILING.MATH(SUMIF(K:K,AG31,BR:BR)*SUMIF(K:K,AG31,M:M)/INDEX('EXT-100 Part Numbers'!H:H,MATCH(AG31,'EXT-100 Part Numbers'!E:E,0))),"") ->  | AI31: =IF(AH31<>"",IF(_xlfn.CEILING.MATH(SUMIF(K:K,AG31,BR:BR)/INDEX('EXT-100 Part Numbers'!H:H,MATCH(AG31,'EXT-100 Part Numbers'!E:E,0)))>0,_xlfn.CEILING.MATH(SUMIF(K:K,AG31,BR:BR)/INDEX('EXT-100 Part Numbers'!H:H,MATCH(AG31,'EXT-100 Part Numbers'!E:E,0))),"???") & " " & IF(AH31=1,AL31,IF(AL31="Reel in a box","Reels in a box",AL31 & IF(RIGHT(AL31,1)="x","es","s"))),"") ->  | AJ31: =IF(AH31<>"",INDEX('EXT-100 Part Numbers'!$B$2:$B$238,MATCH(AG31,'EXT-100 Part Numbers'!$E$2:$E$238,0)) & ", " & INDEX('EXT-100 Part Numbers'!$C$2:$C$238,MATCH(AG31,'EXT-100 Part Numbers'!$E$2:$E$238,0)),"") ->  | AK31: =IF(AH31<>"",INDEX('EXT-100 Part Numbers'!$G$2:$G$238,MATCH(AG31,'EXT-100 Part Numbers'!$E$2:$E$238,0)),"") ->  | AL31: =IF(AH31<>"", INDEX('EXT-100 Part Numbers'!$F$2:$F$238,MATCH(AG31,'EXT-100 Part Numbers'!$E$2:$E$238,0)),"") ->  | AN31: 0 | AO31: TRUE | AP31: TRUE | AQ31: =IF(AND(I31<>"",J31<>""),INDEX('EXT-100 Part Numbers'!$E$2:$E$192,MATCH(I31 & " (" & J31 & ")",'EXT-100 Part Numbers'!$A$2:$A$192,0)),"") ->  | AR31: =IFERROR(IF(AND(I31<>"",J31<>"",F31<='EXT-100 Part Numbers'!$AP$3,F31*M31>'EXT-100 Part Numbers'!$AP$2),INDEX('EXT-100 Part Numbers'!$E$193:$E$211,MATCH(I31 & " (" & J31 & ")",'EXT-100 Part Numbers'!$A$193:$A$211,0)),""),"") ->  | AS31: =IF(AND(I31<>"",J31<>"",OR(AND(AR31<>"",F31>'EXT-100 Part Numbers'!$AP$3),AND(AR31="",F31*M31>'EXT-100 Part Numbers'!$AP$2))),INDEX('EXT-100 Part Numbers'!$E$212:$E$238,MATCH(I31,'EXT-100 Part Numbers'!$B$212:$B$238,0)),"") ->  | AT31: =IFERROR(INDEX('EXT-100 Part Numbers'!$B$2:$B$211,MATCH(AQ31,'EXT-100 Part Numbers'!$E$2:$E$211,0)),"") ->  | AU31: =IF(AT31<>"",CONVERT(IFERROR(INDEX('EXT-100 Part Numbers'!$L$2:$L$27,MATCH(AT31,'EXT-100 Part Numbers'!$K$4:$K$27,0)),MIN('EXT-100 Part Numbers'!$L$2:$L$27)),"C",IF($E$7='EXT-100 Part Numbers'!$AK$2,"F","C")),-400) -> -400 | AV31: =IF(AT31<>"",CONVERT(IFERROR(INDEX('EXT-100 Part Numbers'!$M$2:$M$27,MATCH(AT31,'EXT-100 Part Numbers'!$K$4:$K$27,0)),MAX('EXT-100 Part Numbers'!$M$2:$M$27)),"C",IF($E$7='EXT-100 Part Numbers'!$AK$2,"F","C")),400) -> 400 | AW31: =IF(E31='EXT-100 Part Numbers'!$AG$2,'EXT-100 Part Numbers'!$AH$2,IF(E31='EXT-100 Part Numbers'!$AG$3,'EXT-100 Part Numbers'!$AH$3,IF(E31='EXT-100 Part Numbers'!$AG$4,'EXT-100 Part Numbers'!$AH$4,0))) -> 0 | AY31: =IF(AS31<>"",INDEX('EXT-100 Part Numbers'!$B$2:$B$238,MATCH(AS31,'EXT-100 Part Numbers'!$E$2:$E$238,0)) & ", " & SUBSTITUTE(INDEX('EXT-100 Part Numbers'!$C$2:$C$238,MATCH(AS31,'EXT-100 Part Numbers'!$E$2:$E$238,0)),"REPLACEME",J31),"") ->  | BE31: =IF(BA31<>"",INDEX('EXT-100 Part Numbers'!$F$2:$F$238,MATCH(BA31,'EXT-100 Part Numbers'!$E$2:$E$238,0)),"") ->  | BF31: =IF(BA31<>"", INDEX('EXT-100 Part Numbers'!$G$2:$G$238,MATCH(BA31,'EXT-100 Part Numbers'!$E$2:$E$238,0)),"") ->  | BH31: =IF(L31=References!$D$3,M31/$BH$5,0) -> 0 | BI31: 0 | BJ31: 0 | BK31: 0 | BL31: 0 | BM31: 0 | BN31: 0 | BP31: =IF(IFERROR(MATCH(I31,ColorSet1Cables,0),0)>0,'EXT-100 Part Numbers'!$U$14,IF(IFERROR(MATCH(I31,ColorSet2Cables,0),0)>0,'EXT-100 Part Numbers'!$V$14,IF(IFERROR(MATCH(I31,ColorSet3Cables,0),0)>0,'EXT-100 Part Numbers'!$W$14,IF(IFERROR(MATCH(I31,ColorSet4Cables,0),0)>0,'EXT-100 Part Numbers'!$X$14,IF(IFERROR(MATCH(I31,ColorSet5Cables,0),0)>0,'EXT-100 Part Numbers'!$Y$14,IF(IFERROR(MATCH(I31,ColorSet6Cables,0),0)>0,'EXT-100 Part Numbers'!$Z$14,IF(IFERROR(MATCH(I31,ColorSet7Cables,0),0)>0,'EXT-100 Part Numbers'!$AA$14,IF(IFERROR(MATCH(I31,ColorSet8Cables,0),0)>0,'EXT-100 Part Numbers'!$AB$14,IF(IFERROR(MATCH(I31,ColorSet9Cables,0),0)>0,'EXT-100 Part Numbers'!$AC$14,IF(IFERROR(MATCH(I31,ColorSet10Cables,0),0)>0,'EXT-100 Part Numbers'!$AD$14,IF(IFERROR(MATCH(I31,ColorSet11Cables,0),0)>0,'EXT-100 Part Numbers'!$U$35,IF(IFERROR(MATCH(I31,ColorSet12Cables,0),0)>0,'EXT-100 Part Numbers'!$V$35,'EXT-100 Part Numbers'!$AE$14)))))))))))) -> NoColorSelection | BQ31: =IF(AND(BP31<>'EXT-100 Part Numbers'!$AE$14,COUNTA(INDIRECT(BP31))=1),INDIRECT(BP31),"") ->  | BT31: 0 | BU31: 0 | BW31: =IF(G31="",'EXT-100 Part Numbers'!$I$22,IFERROR(INDEX('EXT-100 Part Numbers'!$J$2:$J$4,MATCH(G31,EXTCategories,0)),'EXT-100 Part Numbers'!$I$22)) -> EXT100FlameRatingUnspecified | BX31: =IF(AND(G31="",H31=""),'EXT-100 Part Numbers'!$AY$13,IFERROR(INDEX('EXT-100 Part Numbers'!$AZ$2:$AZ$11,MATCH(G31 & " " & H31,'EXT-100 Part Numbers'!$AY$2:$AY$11,0)),'EXT-100 Part Numbers'!$I$22)) -> EXT100NoCatNoFlame | BY31: =IF(AND(BX31<>'EXT-100 Part Numbers'!$I$22,BX31<>'EXT-100 Part Numbers'!$AY$13,COUNTA(INDIRECT(BX31))=1),INDIRECT(BX31),"") ->  | BZ31: =IFERROR(INDEX('EXT-100 Part Numbers'!$N$2:$N$27,MATCH(AT31,'EXT-100 Part Numbers'!$K$2:$K$27,0)),OutdoorEnvironment)<>OutdoorEnvironment -> FALSE | CA31: =IF(H31<>"",IF(AND(G31<>"",BW31<>"",BW31<>'EXT-100 Part Numbers'!$I$22),IFERROR(MATCH(H31,INDIRECT(BW31),0)>0,FALSE),FALSE),TRUE) -> TRUE | CB31: =IF(I31<>"",IF(AND(G31<>"",H31<>"",BX31<>"",BX31<>'EXT-100 Part Numbers'!$AY$13),IFERROR(MATCH(I31,INDIRECT(BX31),0)>0,FALSE),FALSE),TRUE) -> TRUE | CC31: =IF(J31<>"",IF(AND(G31<>"",H31<>"",I31<>"",BP31<>"",BP31<>'EXT-100 Part Numbers'!$AE$14),IFERROR(MATCH(J31,INDIRECT(BP31),0)>0,FALSE),FALSE),TRUE) -> TRUE
B32: 23 | N32: TRUE | O32: TRUE | P32: TRUE | Q32: TRUE | R32: TRUE | S32: TRUE | T32: TRUE | U32: TRUE | V32: TRUE | W32: FALSE | X32: FALSE | Y32: =IF(AND(L32<>References!$D$4,X32),'EXT-100 Part Numbers'!$R$2,"") ->  | AG32: ='EXT-100 Part Numbers'!E23 -> 10033808 | AH32: =IF(COUNTIF(K:K,AG32) > 0,_xlfn.CEILING.MATH(SUMIF(K:K,AG32,BR:BR)*SUMIF(K:K,AG32,M:M)/INDEX('EXT-100 Part Numbers'!H:H,MATCH(AG32,'EXT-100 Part Numbers'!E:E,0))),"") ->  | AI32: =IF(AH32<>"",IF(_xlfn.CEILING.MATH(SUMIF(K:K,AG32,BR:BR)/INDEX('EXT-100 Part Numbers'!H:H,MATCH(AG32,'EXT-100 Part Numbers'!E:E,0)))>0,_xlfn.CEILING.MATH(SUMIF(K:K,AG32,BR:BR)/INDEX('EXT-100 Part Numbers'!H:H,MATCH(AG32,'EXT-100 Part Numbers'!E:E,0))),"???") & " " & IF(AH32=1,AL32,IF(AL32="Reel in a box","Reels in a box",AL32 & IF(RIGHT(AL32,1)="x","es","s"))),"") ->  | AJ32: =IF(AH32<>"",INDEX('EXT-100 Part Numbers'!$B$2:$B$238,MATCH(AG32,'EXT-100 Part Numbers'!$E$2:$E$238,0)) & ", " & INDEX('EXT-100 Part Numbers'!$C$2:$C$238,MATCH(AG32,'EXT-100 Part Numbers'!$E$2:$E$238,0)),"") ->  | AK32: =IF(AH32<>"",INDEX('EXT-100 Part Numbers'!$G$2:$G$238,MATCH(AG32,'EXT-100 Part Numbers'!$E$2:$E$238,0)),"") ->  | AL32: =IF(AH32<>"", INDEX('EXT-100 Part Numbers'!$F$2:$F$238,MATCH(AG32,'EXT-100 Part Numbers'!$E$2:$E$238,0)),"") ->  | AN32: 0 | AO32: TRUE | AP32: TRUE | AQ32: =IF(AND(I32<>"",J32<>""),INDEX('EXT-100 Part Numbers'!$E$2:$E$192,MATCH(I32 & " (" & J32 & ")",'EXT-100 Part Numbers'!$A$2:$A$192,0)),"") ->  | AR32: =IFERROR(IF(AND(I32<>"",J32<>"",F32<='EXT-100 Part Numbers'!$AP$3,F32*M32>'EXT-100 Part Numbers'!$AP$2),INDEX('EXT-100 Part Numbers'!$E$193:$E$211,MATCH(I32 & " (" & J32 & ")",'EXT-100 Part Numbers'!$A$193:$A$211,0)),""),"") ->  | AS32: =IF(AND(I32<>"",J32<>"",OR(AND(AR32<>"",F32>'EXT-100 Part Numbers'!$AP$3),AND(AR32="",F32*M32>'EXT-100 Part Numbers'!$AP$2))),INDEX('EXT-100 Part Numbers'!$E$212:$E$238,MATCH(I32,'EXT-100 Part Numbers'!$B$212:$B$238,0)),"") ->  | AT32: =IFERROR(INDEX('EXT-100 Part Numbers'!$B$2:$B$211,MATCH(AQ32,'EXT-100 Part Numbers'!$E$2:$E$211,0)),"") ->  | AU32: =IF(AT32<>"",CONVERT(IFERROR(INDEX('EXT-100 Part Numbers'!$L$2:$L$27,MATCH(AT32,'EXT-100 Part Numbers'!$K$4:$K$27,0)),MIN('EXT-100 Part Numbers'!$L$2:$L$27)),"C",IF($E$7='EXT-100 Part Numbers'!$AK$2,"F","C")),-400) -> -400 | AV32: =IF(AT32<>"",CONVERT(IFERROR(INDEX('EXT-100 Part Numbers'!$M$2:$M$27,MATCH(AT32,'EXT-100 Part Numbers'!$K$4:$K$27,0)),MAX('EXT-100 Part Numbers'!$M$2:$M$27)),"C",IF($E$7='EXT-100 Part Numbers'!$AK$2,"F","C")),400) -> 400 | AW32: =IF(E32='EXT-100 Part Numbers'!$AG$2,'EXT-100 Part Numbers'!$AH$2,IF(E32='EXT-100 Part Numbers'!$AG$3,'EXT-100 Part Numbers'!$AH$3,IF(E32='EXT-100 Part Numbers'!$AG$4,'EXT-100 Part Numbers'!$AH$4,0))) -> 0 | AY32: =IF(AS32<>"",INDEX('EXT-100 Part Numbers'!$B$2:$B$238,MATCH(AS32,'EXT-100 Part Numbers'!$E$2:$E$238,0)) & ", " & SUBSTITUTE(INDEX('EXT-100 Part Numbers'!$C$2:$C$238,MATCH(AS32,'EXT-100 Part Numbers'!$E$2:$E$238,0)),"REPLACEME",J32),"") ->  | BE32: =IF(BA32<>"",INDEX('EXT-100 Part Numbers'!$F$2:$F$238,MATCH(BA32,'EXT-100 Part Numbers'!$E$2:$E$238,0)),"") ->  | BF32: =IF(BA32<>"", INDEX('EXT-100 Part Numbers'!$G$2:$G$238,MATCH(BA32,'EXT-100 Part Numbers'!$E$2:$E$238,0)),"") ->  | BH32: =IF(L32=References!$D$3,M32/$BH$5,0) -> 0 | BI32: 0 | BJ32: 0 | BK32: 0 | BL32: 0 | BM32: 0 | BN32: 0 | BP32: =IF(IFERROR(MATCH(I32,ColorSet1Cables,0),0)>0,'EXT-100 Part Numbers'!$U$14,IF(IFERROR(MATCH(I32,ColorSet2Cables,0),0)>0,'EXT-100 Part Numbers'!$V$14,IF(IFERROR(MATCH(I32,ColorSet3Cables,0),0)>0,'EXT-100 Part Numbers'!$W$14,IF(IFERROR(MATCH(I32,ColorSet4Cables,0),0)>0,'EXT-100 Part Numbers'!$X$14,IF(IFERROR(MATCH(I32,ColorSet5Cables,0),0)>0,'EXT-100 Part Numbers'!$Y$14,IF(IFERROR(MATCH(I32,ColorSet6Cables,0),0)>0,'EXT-100 Part Numbers'!$Z$14,IF(IFERROR(MATCH(I32,ColorSet7Cables,0),0)>0,'EXT-100 Part Numbers'!$AA$14,IF(IFERROR(MATCH(I32,ColorSet8Cables,0),0)>0,'EXT-100 Part Numbers'!$AB$14,IF(IFERROR(MATCH(I32,ColorSet9Cables,0),0)>0,'EXT-100 Part Numbers'!$AC$14,IF(IFERROR(MATCH(I32,ColorSet10Cables,0),0)>0,'EXT-100 Part Numbers'!$AD$14,IF(IFERROR(MATCH(I32,ColorSet11Cables,0),0)>0,'EXT-100 Part Numbers'!$U$35,IF(IFERROR(MATCH(I32,ColorSet12Cables,0),0)>0,'EXT-100 Part Numbers'!$V$35,'EXT-100 Part Numbers'!$AE$14)))))))))))) -> NoColorSelection | BQ32: =IF(AND(BP32<>'EXT-100 Part Numbers'!$AE$14,COUNTA(INDIRECT(BP32))=1),INDIRECT(BP32),"") ->  | BT32: 0 | BU32: 0 | BW32: =IF(G32="",'EXT-100 Part Numbers'!$I$22,IFERROR(INDEX('EXT-100 Part Numbers'!$J$2:$J$4,MATCH(G32,EXTCategories,0)),'EXT-100 Part Numbers'!$I$22)) -> EXT100FlameRatingUnspecified | BX32: =IF(AND(G32="",H32=""),'EXT-100 Part Numbers'!$AY$13,IFERROR(INDEX('EXT-100 Part Numbers'!$AZ$2:$AZ$11,MATCH(G32 & " " & H32,'EXT-100 Part Numbers'!$AY$2:$AY$11,0)),'EXT-100 Part Numbers'!$I$22)) -> EXT100NoCatNoFlame | BY32: =IF(AND(BX32<>'EXT-100 Part Numbers'!$I$22,BX32<>'EXT-100 Part Numbers'!$AY$13,COUNTA(INDIRECT(BX32))=1),INDIRECT(BX32),"") ->  | BZ32: =IFERROR(INDEX('EXT-100 Part Numbers'!$N$2:$N$27,MATCH(AT32,'EXT-100 Part Numbers'!$K$2:$K$27,0)),OutdoorEnvironment)<>OutdoorEnvironment -> FALSE | CA32: =IF(H32<>"",IF(AND(G32<>"",BW32<>"",BW32<>'EXT-100 Part Numbers'!$I$22),IFERROR(MATCH(H32,INDIRECT(BW32),0)>0,FALSE),FALSE),TRUE) -> TRUE | CB32: =IF(I32<>"",IF(AND(G32<>"",H32<>"",BX32<>"",BX32<>'EXT-100 Part Numbers'!$AY$13),IFERROR(MATCH(I32,INDIRECT(BX32),0)>0,FALSE),FALSE),TRUE) -> TRUE | CC32: =IF(J32<>"",IF(AND(G32<>"",H32<>"",I32<>"",BP32<>"",BP32<>'EXT-100 Part Numbers'!$AE$14),IFERROR(MATCH(J32,INDIRECT(BP32),0)>0,FALSE),FALSE),TRUE) -> TRUE
B33: 24 | N33: TRUE | O33: TRUE | P33: TRUE | Q33: TRUE | R33: TRUE | S33: TRUE | T33: TRUE | U33: TRUE | V33: TRUE | W33: FALSE | X33: FALSE | Y33: =IF(AND(L33<>References!$D$4,X33),'EXT-100 Part Numbers'!$R$2,"") ->  | AG33: ='EXT-100 Part Numbers'!E24 -> 10032532 | AH33: =IF(COUNTIF(K:K,AG33) > 0,_xlfn.CEILING.MATH(SUMIF(K:K,AG33,BR:BR)*SUMIF(K:K,AG33,M:M)/INDEX('EXT-100 Part Numbers'!H:H,MATCH(AG33,'EXT-100 Part Numbers'!E:E,0))),"") ->  | AI33: =IF(AH33<>"",IF(_xlfn.CEILING.MATH(SUMIF(K:K,AG33,BR:BR)/INDEX('EXT-100 Part Numbers'!H:H,MATCH(AG33,'EXT-100 Part Numbers'!E:E,0)))>0,_xlfn.CEILING.MATH(SUMIF(K:K,AG33,BR:BR)/INDEX('EXT-100 Part Numbers'!H:H,MATCH(AG33,'EXT-100 Part Numbers'!E:E,0))),"???") & " " & IF(AH33=1,AL33,IF(AL33="Reel in a box","Reels in a box",AL33 & IF(RIGHT(AL33,1)="x","es","s"))),"") ->  | AJ33: =IF(AH33<>"",INDEX('EXT-100 Part Numbers'!$B$2:$B$238,MATCH(AG33,'EXT-100 Part Numbers'!$E$2:$E$238,0)) & ", " & INDEX('EXT-100 Part Numbers'!$C$2:$C$238,MATCH(AG33,'EXT-100 Part Numbers'!$E$2:$E$238,0)),"") ->  | AK33: =IF(AH33<>"",INDEX('EXT-100 Part Numbers'!$G$2:$G$238,MATCH(AG33,'EXT-100 Part Numbers'!$E$2:$E$238,0)),"") ->  | AL33: =IF(AH33<>"", INDEX('EXT-100 Part Numbers'!$F$2:$F$238,MATCH(AG33,'EXT-100 Part Numbers'!$E$2:$E$238,0)),"") ->  | AN33: 0 | AO33: TRUE | AP33: TRUE | AQ33: =IF(AND(I33<>"",J33<>""),INDEX('EXT-100 Part Numbers'!$E$2:$E$192,MATCH(I33 & " (" & J33 & ")",'EXT-100 Part Numbers'!$A$2:$A$192,0)),"") ->  | AR33: =IFERROR(IF(AND(I33<>"",J33<>"",F33<='EXT-100 Part Numbers'!$AP$3,F33*M33>'EXT-100 Part Numbers'!$AP$2),INDEX('EXT-100 Part Numbers'!$E$193:$E$211,MATCH(I33 & " (" & J33 & ")",'EXT-100 Part Numbers'!$A$193:$A$211,0)),""),"") ->  | AS33: =IF(AND(I33<>"",J33<>"",OR(AND(AR33<>"",F33>'EXT-100 Part Numbers'!$AP$3),AND(AR33="",F33*M33>'EXT-100 Part Numbers'!$AP$2))),INDEX('EXT-100 Part Numbers'!$E$212:$E$238,MATCH(I33,'EXT-100 Part Numbers'!$B$212:$B$238,0)),"") ->  | AT33: =IFERROR(INDEX('EXT-100 Part Numbers'!$B$2:$B$211,MATCH(AQ33,'EXT-100 Part Numbers'!$E$2:$E$211,0)),"") ->  | AU33: =IF(AT33<>"",CONVERT(IFERROR(INDEX('EXT-100 Part Numbers'!$L$2:$L$27,MATCH(AT33,'EXT-100 Part Numbers'!$K$4:$K$27,0)),MIN('EXT-100 Part Numbers'!$L$2:$L$27)),"C",IF($E$7='EXT-100 Part Numbers'!$AK$2,"F","C")),-400) -> -400 | AV33: =IF(AT33<>"",CONVERT(IFERROR(INDEX('EXT-100 Part Numbers'!$M$2:$M$27,MATCH(AT33,'EXT-100 Part Numbers'!$K$4:$K$27,0)),MAX('EXT-100 Part Numbers'!$M$2:$M$27)),"C",IF($E$7='EXT-100 Part Numbers'!$AK$2,"F","C")),400) -> 400 | AW33: =IF(E33='EXT-100 Part Numbers'!$AG$2,'EXT-100 Part Numbers'!$AH$2,IF(E33='EXT-100 Part Numbers'!$AG$3,'EXT-100 Part Numbers'!$AH$3,IF(E33='EXT-100 Part Numbers'!$AG$4,'EXT-100 Part Numbers'!$AH$4,0))) -> 0 | AY33: =IF(AS33<>"",INDEX('EXT-100 Part Numbers'!$B$2:$B$238,MATCH(AS33,'EXT-100 Part Numbers'!$E$2:$E$238,0)) & ", " & SUBSTITUTE(INDEX('EXT-100 Part Numbers'!$C$2:$C$238,MATCH(AS33,'EXT-100 Part Numbers'!$E$2:$E$238,0)),"REPLACEME",J33),"") ->  | BE33: =IF(BA33<>"",INDEX('EXT-100 Part Numbers'!$F$2:$F$238,MATCH(BA33,'EXT-100 Part Numbers'!$E$2:$E$238,0)),"") ->  | BF33: =IF(BA33<>"", INDEX('EXT-100 Part Numbers'!$G$2:$G$238,MATCH(BA33,'EXT-100 Part Numbers'!$E$2:$E$238,0)),"") ->  | BH33: =IF(L33=References!$D$3,M33/$BH$5,0) -> 0 | BI33: 0 | BJ33: 0 | BK33: 0 | BL33: 0 | BM33: 0 | BN33: 0 | BP33: =IF(IFERROR(MATCH(I33,ColorSet1Cables,0),0)>0,'EXT-100 Part Numbers'!$U$14,IF(IFERROR(MATCH(I33,ColorSet2Cables,0),0)>0,'EXT-100 Part Numbers'!$V$14,IF(IFERROR(MATCH(I33,ColorSet3Cables,0),0)>0,'EXT-100 Part Numbers'!$W$14,IF(IFERROR(MATCH(I33,ColorSet4Cables,0),0)>0,'EXT-100 Part Numbers'!$X$14,IF(IFERROR(MATCH(I33,ColorSet5Cables,0),0)>0,'EXT-100 Part Numbers'!$Y$14,IF(IFERROR(MATCH(I33,ColorSet6Cables,0),0)>0,'EXT-100 Part Numbers'!$Z$14,IF(IFERROR(MATCH(I33,ColorSet7Cables,0),0)>0,'EXT-100 Part Numbers'!$AA$14,IF(IFERROR(MATCH(I33,ColorSet8Cables,0),0)>0,'EXT-100 Part Numbers'!$AB$14,IF(IFERROR(MATCH(I33,ColorSet9Cables,0),0)>0,'EXT-100 Part Numbers'!$AC$14,IF(IFERROR(MATCH(I33,ColorSet10Cables,0),0)>0,'EXT-100 Part Numbers'!$AD$14,IF(IFERROR(MATCH(I33,ColorSet11Cables,0),0)>0,'EXT-100 Part Numbers'!$U$35,IF(IFERROR(MATCH(I33,ColorSet12Cables,0),0)>0,'EXT-100 Part Numbers'!$V$35,'EXT-100 Part Numbers'!$AE$14)))))))))))) -> NoColorSelection | BQ33: =IF(AND(BP33<>'EXT-100 Part Numbers'!$AE$14,COUNTA(INDIRECT(BP33))=1),INDIRECT(BP33),"") ->  | BT33: 0 | BU33: 0 | BW33: =IF(G33="",'EXT-100 Part Numbers'!$I$22,IFERROR(INDEX('EXT-100 Part Numbers'!$J$2:$J$4,MATCH(G33,EXTCategories,0)),'EXT-100 Part Numbers'!$I$22)) -> EXT100FlameRatingUnspecified | BX33: =IF(AND(G33="",H33=""),'EXT-100 Part Numbers'!$AY$13,IFERROR(INDEX('EXT-100 Part Numbers'!$AZ$2:$AZ$11,MATCH(G33 & " " & H33,'EXT-100 Part Numbers'!$AY$2:$AY$11,0)),'EXT-100 Part Numbers'!$I$22)) -> EXT100NoCatNoFlame | BY33: =IF(AND(BX33<>'EXT-100 Part Numbers'!$I$22,BX33<>'EXT-100 Part Numbers'!$AY$13,COUNTA(INDIRECT(BX33))=1),INDIRECT(BX33),"") ->  | BZ33: =IFERROR(INDEX('EXT-100 Part Numbers'!$N$2:$N$27,MATCH(AT33,'EXT-100 Part Numbers'!$K$2:$K$27,0)),OutdoorEnvironment)<>OutdoorEnvironment -> FALSE | CA33: =IF(H33<>"",IF(AND(G33<>"",BW33<>"",BW33<>'EXT-100 Part Numbers'!$I$22),IFERROR(MATCH(H33,INDIRECT(BW33),0)>0,FALSE),FALSE),TRUE) -> TRUE | CB33: =IF(I33<>"",IF(AND(G33<>"",H33<>"",BX33<>"",BX33<>'EXT-100 Part Numbers'!$AY$13),IFERROR(MATCH(I33,INDIRECT(BX33),0)>0,FALSE),FALSE),TRUE) -> TRUE | CC33: =IF(J33<>"",IF(AND(G33<>"",H33<>"",I33<>"",BP33<>"",BP33<>'EXT-100 Part Numbers'!$AE$14),IFERROR(MATCH(J33,INDIRECT(BP33),0)>0,FALSE),FALSE),TRUE) -> TRUE
B34: 25 | N34: TRUE | O34: TRUE | P34: TRUE | Q34: TRUE | R34: TRUE | S34: TRUE | T34: TRUE | U34: TRUE | V34: TRUE | W34: FALSE | X34: FALSE | Y34: =IF(AND(L34<>References!$D$4,X34),'EXT-100 Part Numbers'!$R$2,"") ->  | AG34: ='EXT-100 Part Numbers'!E25 -> 10032531 | AH34: =IF(COUNTIF(K:K,AG34) > 0,_xlfn.CEILING.MATH(SUMIF(K:K,AG34,BR:BR)*SUMIF(K:K,AG34,M:M)/INDEX('EXT-100 Part Numbers'!H:H,MATCH(AG34,'EXT-100 Part Numbers'!E:E,0))),"") ->  | AI34: =IF(AH34<>"",IF(_xlfn.CEILING.MATH(SUMIF(K:K,AG34,BR:BR)/INDEX('EXT-100 Part Numbers'!H:H,MATCH(AG34,'EXT-100 Part Numbers'!E:E,0)))>0,_xlfn.CEILING.MATH(SUMIF(K:K,AG34,BR:BR)/INDEX('EXT-100 Part Numbers'!H:H,MATCH(AG34,'EXT-100 Part Numbers'!E:E,0))),"???") & " " & IF(AH34=1,AL34,IF(AL34="Reel in a box","Reels in a box",AL34 & IF(RIGHT(AL34,1)="x","es","s"))),"") ->  | AJ34: =IF(AH34<>"",INDEX('EXT-100 Part Numbers'!$B$2:$B$238,MATCH(AG34,'EXT-100 Part Numbers'!$E$2:$E$238,0)) & ", " & INDEX('EXT-100 Part Numbers'!$C$2:$C$238,MATCH(AG34,'EXT-100 Part Numbers'!$E$2:$E$238,0)),"") ->  | AK34: =IF(AH34<>"",INDEX('EXT-100 Part Numbers'!$G$2:$G$238,MATCH(AG34,'EXT-100 Part Numbers'!$E$2:$E$238,0)),"") ->  | AL34: =IF(AH34<>"", INDEX('EXT-100 Part Numbers'!$F$2:$F$238,MATCH(AG34,'EXT-100 Part Numbers'!$E$2:$E$238,0)),"") ->  | AN34: 0 | AO34: TRUE | AP34: TRUE | AQ34: =IF(AND(I34<>"",J34<>""),INDEX('EXT-100 Part Numbers'!$E$2:$E$192,MATCH(I34 & " (" & J34 & ")",'EXT-100 Part Numbers'!$A$2:$A$192,0)),"") ->  | AR34: =IFERROR(IF(AND(I34<>"",J34<>"",F34<='EXT-100 Part Numbers'!$AP$3,F34*M34>'EXT-100 Part Numbers'!$AP$2),INDEX('EXT-100 Part Numbers'!$E$193:$E$211,MATCH(I34 & " (" & J34 & ")",'EXT-100 Part Numbers'!$A$193:$A$211,0)),""),"") ->  | AS34: =IF(AND(I34<>"",J34<>"",OR(AND(AR34<>"",F34>'EXT-100 Part Numbers'!$AP$3),AND(AR34="",F34*M34>'EXT-100 Part Numbers'!$AP$2))),INDEX('EXT-100 Part Numbers'!$E$212:$E$238,MATCH(I34,'EXT-100 Part Numbers'!$B$212:$B$238,0)),"") ->  | AT34: =IFERROR(INDEX('EXT-100 Part Numbers'!$B$2:$B$211,MATCH(AQ34,'EXT-100 Part Numbers'!$E$2:$E$211,0)),"") ->  | AU34: =IF(AT34<>"",CONVERT(IFERROR(INDEX('EXT-100 Part Numbers'!$L$2:$L$27,MATCH(AT34,'EXT-100 Part Numbers'!$K$4:$K$27,0)),MIN('EXT-100 Part Numbers'!$L$2:$L$27)),"C",IF($E$7='EXT-100 Part Numbers'!$AK$2,"F","C")),-400) -> -400 | AV34: =IF(AT34<>"",CONVERT(IFERROR(INDEX('EXT-100 Part Numbers'!$M$2:$M$27,MATCH(AT34,'EXT-100 Part Numbers'!$K$4:$K$27,0)),MAX('EXT-100 Part Numbers'!$M$2:$M$27)),"C",IF($E$7='EXT-100 Part Numbers'!$AK$2,"F","C")),400) -> 400 | AW34: =IF(E34='EXT-100 Part Numbers'!$AG$2,'EXT-100 Part Numbers'!$AH$2,IF(E34='EXT-100 Part Numbers'!$AG$3,'EXT-100 Part Numbers'!$AH$3,IF(E34='EXT-100 Part Numbers'!$AG$4,'EXT-100 Part Numbers'!$AH$4,0))) -> 0 | AY34: =IF(AS34<>"",INDEX('EXT-100 Part Numbers'!$B$2:$B$238,MATCH(AS34,'EXT-100 Part Numbers'!$E$2:$E$238,0)) & ", " & SUBSTITUTE(INDEX('EXT-100 Part Numbers'!$C$2:$C$238,MATCH(AS34,'EXT-100 Part Numbers'!$E$2:$E$238,0)),"REPLACEME",J34),"") ->  | BE34: =IF(BA34<>"",INDEX('EXT-100 Part Numbers'!$F$2:$F$238,MATCH(BA34,'EXT-100 Part Numbers'!$E$2:$E$238,0)),"") ->  | BF34: =IF(BA34<>"", INDEX('EXT-100 Part Numbers'!$G$2:$G$238,MATCH(BA34,'EXT-100 Part Numbers'!$E$2:$E$238,0)),"") ->  | BH34: =IF(L34=References!$D$3,M34/$BH$5,0) -> 0 | BI34: 0 | BJ34: 0 | BK34: 0 | BL34: 0 | BM34: 0 | BN34: 0 | BP34: =IF(IFERROR(MATCH(I34,ColorSet1Cables,0),0)>0,'EXT-100 Part Numbers'!$U$14,IF(IFERROR(MATCH(I34,ColorSet2Cables,0),0)>0,'EXT-100 Part Numbers'!$V$14,IF(IFERROR(MATCH(I34,ColorSet3Cables,0),0)>0,'EXT-100 Part Numbers'!$W$14,IF(IFERROR(MATCH(I34,ColorSet4Cables,0),0)>0,'EXT-100 Part Numbers'!$X$14,IF(IFERROR(MATCH(I34,ColorSet5Cables,0),0)>0,'EXT-100 Part Numbers'!$Y$14,IF(IFERROR(MATCH(I34,ColorSet6Cables,0),0)>0,'EXT-100 Part Numbers'!$Z$14,IF(IFERROR(MATCH(I34,ColorSet7Cables,0),0)>0,'EXT-100 Part Numbers'!$AA$14,IF(IFERROR(MATCH(I34,ColorSet8Cables,0),0)>0,'EXT-100 Part Numbers'!$AB$14,IF(IFERROR(MATCH(I34,ColorSet9Cables,0),0)>0,'EXT-100 Part Numbers'!$AC$14,IF(IFERROR(MATCH(I34,ColorSet10Cables,0),0)>0,'EXT-100 Part Numbers'!$AD$14,IF(IFERROR(MATCH(I34,ColorSet11Cables,0),0)>0,'EXT-100 Part Numbers'!$U$35,IF(IFERROR(MATCH(I34,ColorSet12Cables,0),0)>0,'EXT-100 Part Numbers'!$V$35,'EXT-100 Part Numbers'!$AE$14)))))))))))) -> NoColorSelection | BQ34: =IF(AND(BP34<>'EXT-100 Part Numbers'!$AE$14,COUNTA(INDIRECT(BP34))=1),INDIRECT(BP34),"") ->  | BT34: 0 | BU34: 0 | BW34: =IF(G34="",'EXT-100 Part Numbers'!$I$22,IFERROR(INDEX('EXT-100 Part Numbers'!$J$2:$J$4,MATCH(G34,EXTCategories,0)),'EXT-100 Part Numbers'!$I$22)) -> EXT100FlameRatingUnspecified | BX34: =IF(AND(G34="",H34=""),'EXT-100 Part Numbers'!$AY$13,IFERROR(INDEX('EXT-100 Part Numbers'!$AZ$2:$AZ$11,MATCH(G34 & " " & H34,'EXT-100 Part Numbers'!$AY$2:$AY$11,0)),'EXT-100 Part Numbers'!$I$22)) -> EXT100NoCatNoFlame | BY34: =IF(AND(BX34<>'EXT-100 Part Numbers'!$I$22,BX34<>'EXT-100 Part Numbers'!$AY$13,COUNTA(INDIRECT(BX34))=1),INDIRECT(BX34),"") ->  | BZ34: =IFERROR(INDEX('EXT-100 Part Numbers'!$N$2:$N$27,MATCH(AT34,'EXT-100 Part Numbers'!$K$2:$K$27,0)),OutdoorEnvironment)<>OutdoorEnvironment -> FALSE | CA34: =IF(H34<>"",IF(AND(G34<>"",BW34<>"",BW34<>'EXT-100 Part Numbers'!$I$22),IFERROR(MATCH(H34,INDIRECT(BW34),0)>0,FALSE),FALSE),TRUE) -> TRUE | CB34: =IF(I34<>"",IF(AND(G34<>"",H34<>"",BX34<>"",BX34<>'EXT-100 Part Numbers'!$AY$13),IFERROR(MATCH(I34,INDIRECT(BX34),0)>0,FALSE),FALSE),TRUE) -> TRUE | CC34: =IF(J34<>"",IF(AND(G34<>"",H34<>"",I34<>"",BP34<>"",BP34<>'EXT-100 Part Numbers'!$AE$14),IFERROR(MATCH(J34,INDIRECT(BP34),0)>0,FALSE),FALSE),TRUE) -> TRUE
B35: 26 | N35: TRUE | O35: TRUE | P35: TRUE | Q35: TRUE | R35: TRUE | S35: TRUE | T35: TRUE | U35: TRUE | V35: TRUE | W35: FALSE | X35: FALSE | Y35: =IF(AND(L35<>References!$D$4,X35),'EXT-100 Part Numbers'!$R$2,"") ->  | AG35: ='EXT-100 Part Numbers'!E26 -> 10032510 | AH35: =IF(COUNTIF(K:K,AG35) > 0,_xlfn.CEILING.MATH(SUMIF(K:K,AG35,BR:BR)*SUMIF(K:K,AG35,M:M)/INDEX('EXT-100 Part Numbers'!H:H,MATCH(AG35,'EXT-100 Part Numbers'!E:E,0))),"") ->  | AI35: =IF(AH35<>"",IF(_xlfn.CEILING.MATH(SUMIF(K:K,AG35,BR:BR)/INDEX('EXT-100 Part Numbers'!H:H,MATCH(AG35,'EXT-100 Part Numbers'!E:E,0)))>0,_xlfn.CEILING.MATH(SUMIF(K:K,AG35,BR:BR)/INDEX('EXT-100 Part Numbers'!H:H,MATCH(AG35,'EXT-100 Part Numbers'!E:E,0))),"???") & " " & IF(AH35=1,AL35,IF(AL35="Reel in a box","Reels in a box",AL35 & IF(RIGHT(AL35,1)="x","es","s"))),"") ->  | AJ35: =IF(AH35<>"",INDEX('EXT-100 Part Numbers'!$B$2:$B$238,MATCH(AG35,'EXT-100 Part Numbers'!$E$2:$E$238,0)) & ", " & INDEX('EXT-100 Part Numbers'!$C$2:$C$238,MATCH(AG35,'EXT-100 Part Numbers'!$E$2:$E$238,0)),"") ->  | AK35: =IF(AH35<>"",INDEX('EXT-100 Part Numbers'!$G$2:$G$238,MATCH(AG35,'EXT-100 Part Numbers'!$E$2:$E$238,0)),"") ->  | AL35: =IF(AH35<>"", INDEX('EXT-100 Part Numbers'!$F$2:$F$238,MATCH(AG35,'EXT-100 Part Numbers'!$E$2:$E$238,0)),"") ->  | AN35: 0 | AO35: TRUE | AP35: TRUE | AQ35: =IF(AND(I35<>"",J35<>""),INDEX('EXT-100 Part Numbers'!$E$2:$E$192,MATCH(I35 & " (" & J35 & ")",'EXT-100 Part Numbers'!$A$2:$A$192,0)),"") ->  | AR35: =IFERROR(IF(AND(I35<>"",J35<>"",F35<='EXT-100 Part Numbers'!$AP$3,F35*M35>'EXT-100 Part Numbers'!$AP$2),INDEX('EXT-100 Part Numbers'!$E$193:$E$211,MATCH(I35 & " (" & J35 & ")",'EXT-100 Part Numbers'!$A$193:$A$211,0)),""),"") ->  | AS35: =IF(AND(I35<>"",J35<>"",OR(AND(AR35<>"",F35>'EXT-100 Part Numbers'!$AP$3),AND(AR35="",F35*M35>'EXT-100 Part Numbers'!$AP$2))),INDEX('EXT-100 Part Numbers'!$E$212:$E$238,MATCH(I35,'EXT-100 Part Numbers'!$B$212:$B$238,0)),"") ->  | AT35: =IFERROR(INDEX('EXT-100 Part Numbers'!$B$2:$B$211,MATCH(AQ35,'EXT-100 Part Numbers'!$E$2:$E$211,0)),"") ->  | AU35: =IF(AT35<>"",CONVERT(IFERROR(INDEX('EXT-100 Part Numbers'!$L$2:$L$27,MATCH(AT35,'EXT-100 Part Numbers'!$K$4:$K$27,0)),MIN('EXT-100 Part Numbers'!$L$2:$L$27)),"C",IF($E$7='EXT-100 Part Numbers'!$AK$2,"F","C")),-400) -> -400 | AV35: =IF(AT35<>"",CONVERT(IFERROR(INDEX('EXT-100 Part Numbers'!$M$2:$M$27,MATCH(AT35,'EXT-100 Part Numbers'!$K$4:$K$27,0)),MAX('EXT-100 Part Numbers'!$M$2:$M$27)),"C",IF($E$7='EXT-100 Part Numbers'!$AK$2,"F","C")),400) -> 400 | AW35: =IF(E35='EXT-100 Part Numbers'!$AG$2,'EXT-100 Part Numbers'!$AH$2,IF(E35='EXT-100 Part Numbers'!$AG$3,'EXT-100 Part Numbers'!$AH$3,IF(E35='EXT-100 Part Numbers'!$AG$4,'EXT-100 Part Numbers'!$AH$4,0))) -> 0 | AY35: =IF(AS35<>"",INDEX('EXT-100 Part Numbers'!$B$2:$B$238,MATCH(AS35,'EXT-100 Part Numbers'!$E$2:$E$238,0)) & ", " & SUBSTITUTE(INDEX('EXT-100 Part Numbers'!$C$2:$C$238,MATCH(AS35,'EXT-100 Part Numbers'!$E$2:$E$238,0)),"REPLACEME",J35),"") ->  | BE35: =IF(BA35<>"",INDEX('EXT-100 Part Numbers'!$F$2:$F$238,MATCH(BA35,'EXT-100 Part Numbers'!$E$2:$E$238,0)),"") ->  | BF35: =IF(BA35<>"", INDEX('EXT-100 Part Numbers'!$G$2:$G$238,MATCH(BA35,'EXT-100 Part Numbers'!$E$2:$E$238,0)),"") ->  | BH35: =IF(L35=References!$D$3,M35/$BH$5,0) -> 0 | BI35: 0 | BJ35: 0 | BK35: 0 | BL35: 0 | BM35: 0 | BN35: 0 | BP35: =IF(IFERROR(MATCH(I35,ColorSet1Cables,0),0)>0,'EXT-100 Part Numbers'!$U$14,IF(IFERROR(MATCH(I35,ColorSet2Cables,0),0)>0,'EXT-100 Part Numbers'!$V$14,IF(IFERROR(MATCH(I35,ColorSet3Cables,0),0)>0,'EXT-100 Part Numbers'!$W$14,IF(IFERROR(MATCH(I35,ColorSet4Cables,0),0)>0,'EXT-100 Part Numbers'!$X$14,IF(IFERROR(MATCH(I35,ColorSet5Cables,0),0)>0,'EXT-100 Part Numbers'!$Y$14,IF(IFERROR(MATCH(I35,ColorSet6Cables,0),0)>0,'EXT-100 Part Numbers'!$Z$14,IF(IFERROR(MATCH(I35,ColorSet7Cables,0),0)>0,'EXT-100 Part Numbers'!$AA$14,IF(IFERROR(MATCH(I35,ColorSet8Cables,0),0)>0,'EXT-100 Part Numbers'!$AB$14,IF(IFERROR(MATCH(I35,ColorSet9Cables,0),0)>0,'EXT-100 Part Numbers'!$AC$14,IF(IFERROR(MATCH(I35,ColorSet10Cables,0),0)>0,'EXT-100 Part Numbers'!$AD$14,IF(IFERROR(MATCH(I35,ColorSet11Cables,0),0)>0,'EXT-100 Part Numbers'!$U$35,IF(IFERROR(MATCH(I35,ColorSet12Cables,0),0)>0,'EXT-100 Part Numbers'!$V$35,'EXT-100 Part Numbers'!$AE$14)))))))))))) -> NoColorSelection | BQ35: =IF(AND(BP35<>'EXT-100 Part Numbers'!$AE$14,COUNTA(INDIRECT(BP35))=1),INDIRECT(BP35),"") ->  | BT35: 0 | BU35: 0 | BW35: =IF(G35="",'EXT-100 Part Numbers'!$I$22,IFERROR(INDEX('EXT-100 Part Numbers'!$J$2:$J$4,MATCH(G35,EXTCategories,0)),'EXT-100 Part Numbers'!$I$22)) -> EXT100FlameRatingUnspecified | BX35: =IF(AND(G35="",H35=""),'EXT-100 Part Numbers'!$AY$13,IFERROR(INDEX('EXT-100 Part Numbers'!$AZ$2:$AZ$11,MATCH(G35 & " " & H35,'EXT-100 Part Numbers'!$AY$2:$AY$11,0)),'EXT-100 Part Numbers'!$I$22)) -> EXT100NoCatNoFlame | BY35: =IF(AND(BX35<>'EXT-100 Part Numbers'!$I$22,BX35<>'EXT-100 Part Numbers'!$AY$13,COUNTA(INDIRECT(BX35))=1),INDIRECT(BX35),"") ->  | BZ35: =IFERROR(INDEX('EXT-100 Part Numbers'!$N$2:$N$27,MATCH(AT35,'EXT-100 Part Numbers'!$K$2:$K$27,0)),OutdoorEnvironment)<>OutdoorEnvironment -> FALSE | CA35: =IF(H35<>"",IF(AND(G35<>"",BW35<>"",BW35<>'EXT-100 Part Numbers'!$I$22),IFERROR(MATCH(H35,INDIRECT(BW35),0)>0,FALSE),FALSE),TRUE) -> TRUE | CB35: =IF(I35<>"",IF(AND(G35<>"",H35<>"",BX35<>"",BX35<>'EXT-100 Part Numbers'!$AY$13),IFERROR(MATCH(I35,INDIRECT(BX35),0)>0,FALSE),FALSE),TRUE) -> TRUE | CC35: =IF(J35<>"",IF(AND(G35<>"",H35<>"",I35<>"",BP35<>"",BP35<>'EXT-100 Part Numbers'!$AE$14),IFERROR(MATCH(J35,INDIRECT(BP35),0)>0,FALSE),FALSE),TRUE) -> TRUE
B36: 27 | N36: TRUE | O36: TRUE | P36: TRUE | Q36: TRUE | R36: TRUE | S36: TRUE | T36: TRUE | U36: TRUE | V36: TRUE | W36: FALSE | X36: FALSE | Y36: =IF(AND(L36<>References!$D$4,X36),'EXT-100 Part Numbers'!$R$2,"") ->  | AG36: ='EXT-100 Part Numbers'!E27 -> 10104234 | AH36: =IF(COUNTIF(K:K,AG36) > 0,_xlfn.CEILING.MATH(SUMIF(K:K,AG36,BR:BR)*SUMIF(K:K,AG36,M:M)/INDEX('EXT-100 Part Numbers'!H:H,MATCH(AG36,'EXT-100 Part Numbers'!E:E,0))),"") ->  | AI36: =IF(AH36<>"",IF(_xlfn.CEILING.MATH(SUMIF(K:K,AG36,BR:BR)/INDEX('EXT-100 Part Numbers'!H:H,MATCH(AG36,'EXT-100 Part Numbers'!E:E,0)))>0,_xlfn.CEILING.MATH(SUMIF(K:K,AG36,BR:BR)/INDEX('EXT-100 Part Numbers'!H:H,MATCH(AG36,'EXT-100 Part Numbers'!E:E,0))),"???") & " " & IF(AH36=1,AL36,IF(AL36="Reel in a box","Reels in a box",AL36 & IF(RIGHT(AL36,1)="x","es","s"))),"") ->  | AJ36: =IF(AH36<>"",INDEX('EXT-100 Part Numbers'!$B$2:$B$238,MATCH(AG36,'EXT-100 Part Numbers'!$E$2:$E$238,0)) & ", " & INDEX('EXT-100 Part Numbers'!$C$2:$C$238,MATCH(AG36,'EXT-100 Part Numbers'!$E$2:$E$238,0)),"") ->  | AK36: =IF(AH36<>"",INDEX('EXT-100 Part Numbers'!$G$2:$G$238,MATCH(AG36,'EXT-100 Part Numbers'!$E$2:$E$238,0)),"") ->  | AL36: =IF(AH36<>"", INDEX('EXT-100 Part Numbers'!$F$2:$F$238,MATCH(AG36,'EXT-100 Part Numbers'!$E$2:$E$238,0)),"") ->  | AN36: 0 | AO36: TRUE | AP36: TRUE | AQ36: =IF(AND(I36<>"",J36<>""),INDEX('EXT-100 Part Numbers'!$E$2:$E$192,MATCH(I36 & " (" & J36 & ")",'EXT-100 Part Numbers'!$A$2:$A$192,0)),"") ->  | AR36: =IFERROR(IF(AND(I36<>"",J36<>"",F36<='EXT-100 Part Numbers'!$AP$3,F36*M36>'EXT-100 Part Numbers'!$AP$2),INDEX('EXT-100 Part Numbers'!$E$193:$E$211,MATCH(I36 & " (" & J36 & ")",'EXT-100 Part Numbers'!$A$193:$A$211,0)),""),"") ->  | AS36: =IF(AND(I36<>"",J36<>"",OR(AND(AR36<>"",F36>'EXT-100 Part Numbers'!$AP$3),AND(AR36="",F36*M36>'EXT-100 Part Numbers'!$AP$2))),INDEX('EXT-100 Part Numbers'!$E$212:$E$238,MATCH(I36,'EXT-100 Part Numbers'!$B$212:$B$238,0)),"") ->  | AT36: =IFERROR(INDEX('EXT-100 Part Numbers'!$B$2:$B$211,MATCH(AQ36,'EXT-100 Part Numbers'!$E$2:$E$211,0)),"") ->  | AU36: =IF(AT36<>"",CONVERT(IFERROR(INDEX('EXT-100 Part Numbers'!$L$2:$L$27,MATCH(AT36,'EXT-100 Part Numbers'!$K$4:$K$27,0)),MIN('EXT-100 Part Numbers'!$L$2:$L$27)),"C",IF($E$7='EXT-100 Part Numbers'!$AK$2,"F","C")),-400) -> -400 | AV36: =IF(AT36<>"",CONVERT(IFERROR(INDEX('EXT-100 Part Numbers'!$M$2:$M$27,MATCH(AT36,'EXT-100 Part Numbers'!$K$4:$K$27,0)),MAX('EXT-100 Part Numbers'!$M$2:$M$27)),"C",IF($E$7='EXT-100 Part Numbers'!$AK$2,"F","C")),400) -> 400 | AW36: =IF(E36='EXT-100 Part Numbers'!$AG$2,'EXT-100 Part Numbers'!$AH$2,IF(E36='EXT-100 Part Numbers'!$AG$3,'EXT-100 Part Numbers'!$AH$3,IF(E36='EXT-100 Part Numbers'!$AG$4,'EXT-100 Part Numbers'!$AH$4,0))) -> 0 | AY36: =IF(AS36<>"",INDEX('EXT-100 Part Numbers'!$B$2:$B$238,MATCH(AS36,'EXT-100 Part Numbers'!$E$2:$E$238,0)) & ", " & SUBSTITUTE(INDEX('EXT-100 Part Numbers'!$C$2:$C$238,MATCH(AS36,'EXT-100 Part Numbers'!$E$2:$E$238,0)),"REPLACEME",J36),"") ->  | BE36: =IF(BA36<>"",INDEX('EXT-100 Part Numbers'!$F$2:$F$238,MATCH(BA36,'EXT-100 Part Numbers'!$E$2:$E$238,0)),"") ->  | BF36: =IF(BA36<>"", INDEX('EXT-100 Part Numbers'!$G$2:$G$238,MATCH(BA36,'EXT-100 Part Numbers'!$E$2:$E$238,0)),"") ->  | BH36: =IF(L36=References!$D$3,M36/$BH$5,0) -> 0 | BI36: 0 | BJ36: 0 | BK36: 0 | BL36: 0 | BM36: 0 | BN36: 0 | BP36: =IF(IFERROR(MATCH(I36,ColorSet1Cables,0),0)>0,'EXT-100 Part Numbers'!$U$14,IF(IFERROR(MATCH(I36,ColorSet2Cables,0),0)>0,'EXT-100 Part Numbers'!$V$14,IF(IFERROR(MATCH(I36,ColorSet3Cables,0),0)>0,'EXT-100 Part Numbers'!$W$14,IF(IFERROR(MATCH(I36,ColorSet4Cables,0),0)>0,'EXT-100 Part Numbers'!$X$14,IF(IFERROR(MATCH(I36,ColorSet5Cables,0),0)>0,'EXT-100 Part Numbers'!$Y$14,IF(IFERROR(MATCH(I36,ColorSet6Cables,0),0)>0,'EXT-100 Part Numbers'!$Z$14,IF(IFERROR(MATCH(I36,ColorSet7Cables,0),0)>0,'EXT-100 Part Numbers'!$AA$14,IF(IFERROR(MATCH(I36,ColorSet8Cables,0),0)>0,'EXT-100 Part Numbers'!$AB$14,IF(IFERROR(MATCH(I36,ColorSet9Cables,0),0)>0,'EXT-100 Part Numbers'!$AC$14,IF(IFERROR(MATCH(I36,ColorSet10Cables,0),0)>0,'EXT-100 Part Numbers'!$AD$14,IF(IFERROR(MATCH(I36,ColorSet11Cables,0),0)>0,'EXT-100 Part Numbers'!$U$35,IF(IFERROR(MATCH(I36,ColorSet12Cables,0),0)>0,'EXT-100 Part Numbers'!$V$35,'EXT-100 Part Numbers'!$AE$14)))))))))))) -> NoColorSelection | BQ36: =IF(AND(BP36<>'EXT-100 Part Numbers'!$AE$14,COUNTA(INDIRECT(BP36))=1),INDIRECT(BP36),"") ->  | BT36: 0 | BU36: 0 | BW36: =IF(G36="",'EXT-100 Part Numbers'!$I$22,IFERROR(INDEX('EXT-100 Part Numbers'!$J$2:$J$4,MATCH(G36,EXTCategories,0)),'EXT-100 Part Numbers'!$I$22)) -> EXT100FlameRatingUnspecified | BX36: =IF(AND(G36="",H36=""),'EXT-100 Part Numbers'!$AY$13,IFERROR(INDEX('EXT-100 Part Numbers'!$AZ$2:$AZ$11,MATCH(G36 & " " & H36,'EXT-100 Part Numbers'!$AY$2:$AY$11,0)),'EXT-100 Part Numbers'!$I$22)) -> EXT100NoCatNoFlame | BY36: =IF(AND(BX36<>'EXT-100 Part Numbers'!$I$22,BX36<>'EXT-100 Part Numbers'!$AY$13,COUNTA(INDIRECT(BX36))=1),INDIRECT(BX36),"") ->  | BZ36: =IFERROR(INDEX('EXT-100 Part Numbers'!$N$2:$N$27,MATCH(AT36,'EXT-100 Part Numbers'!$K$2:$K$27,0)),OutdoorEnvironment)<>OutdoorEnvironment -> FALSE | CA36: =IF(H36<>"",IF(AND(G36<>"",BW36<>"",BW36<>'EXT-100 Part Numbers'!$I$22),IFERROR(MATCH(H36,INDIRECT(BW36),0)>0,FALSE),FALSE),TRUE) -> TRUE | CB36: =IF(I36<>"",IF(AND(G36<>"",H36<>"",BX36<>"",BX36<>'EXT-100 Part Numbers'!$AY$13),IFERROR(MATCH(I36,INDIRECT(BX36),0)>0,FALSE),FALSE),TRUE) -> TRUE | CC36: =IF(J36<>"",IF(AND(G36<>"",H36<>"",I36<>"",BP36<>"",BP36<>'EXT-100 Part Numbers'!$AE$14),IFERROR(MATCH(J36,INDIRECT(BP36),0)>0,FALSE),FALSE),TRUE) -> TRUE
B37: 28 | N37: TRUE | O37: TRUE | P37: TRUE | Q37: TRUE | R37: TRUE | S37: TRUE | T37: TRUE | U37: TRUE | V37: TRUE | W37: FALSE | X37: FALSE | Y37: =IF(AND(L37<>References!$D$4,X37),'EXT-100 Part Numbers'!$R$2,"") ->  | AG37: ='EXT-100 Part Numbers'!E28 -> 10136226 | AH37: =IF(COUNTIF(K:K,AG37) > 0,_xlfn.CEILING.MATH(SUMIF(K:K,AG37,BR:BR)*SUMIF(K:K,AG37,M:M)/INDEX('EXT-100 Part Numbers'!H:H,MATCH(AG37,'EXT-100 Part Numbers'!E:E,0))),"") ->  | AI37: =IF(AH37<>"",IF(_xlfn.CEILING.MATH(SUMIF(K:K,AG37,BR:BR)/INDEX('EXT-100 Part Numbers'!H:H,MATCH(AG37,'EXT-100 Part Numbers'!E:E,0)))>0,_xlfn.CEILING.MATH(SUMIF(K:K,AG37,BR:BR)/INDEX('EXT-100 Part Numbers'!H:H,MATCH(AG37,'EXT-100 Part Numbers'!E:E,0))),"???") & " " & IF(AH37=1,AL37,IF(AL37="Reel in a box","Reels in a box",AL37 & IF(RIGHT(AL37,1)="x","es","s"))),"") ->  | AJ37: =IF(AH37<>"",INDEX('EXT-100 Part Numbers'!$B$2:$B$238,MATCH(AG37,'EXT-100 Part Numbers'!$E$2:$E$238,0)) & ", " & INDEX('EXT-100 Part Numbers'!$C$2:$C$238,MATCH(AG37,'EXT-100 Part Numbers'!$E$2:$E$238,0)),"") ->  | AK37: =IF(AH37<>"",INDEX('EXT-100 Part Numbers'!$G$2:$G$238,MATCH(AG37,'EXT-100 Part Numbers'!$E$2:$E$238,0)),"") ->  | AL37: =IF(AH37<>"", INDEX('EXT-100 Part Numbers'!$F$2:$F$238,MATCH(AG37,'EXT-100 Part Numbers'!$E$2:$E$238,0)),"") ->  | AN37: 0 | AO37: TRUE | AP37: TRUE | AQ37: =IF(AND(I37<>"",J37<>""),INDEX('EXT-100 Part Numbers'!$E$2:$E$192,MATCH(I37 & " (" & J37 & ")",'EXT-100 Part Numbers'!$A$2:$A$192,0)),"") ->  | AR37: =IFERROR(IF(AND(I37<>"",J37<>"",F37<='EXT-100 Part Numbers'!$AP$3,F37*M37>'EXT-100 Part Numbers'!$AP$2),INDEX('EXT-100 Part Numbers'!$E$193:$E$211,MATCH(I37 & " (" & J37 & ")",'EXT-100 Part Numbers'!$A$193:$A$211,0)),""),"") ->  | AS37: =IF(AND(I37<>"",J37<>"",OR(AND(AR37<>"",F37>'EXT-100 Part Numbers'!$AP$3),AND(AR37="",F37*M37>'EXT-100 Part Numbers'!$AP$2))),INDEX('EXT-100 Part Numbers'!$E$212:$E$238,MATCH(I37,'EXT-100 Part Numbers'!$B$212:$B$238,0)),"") ->  | AT37: =IFERROR(INDEX('EXT-100 Part Numbers'!$B$2:$B$211,MATCH(AQ37,'EXT-100 Part Numbers'!$E$2:$E$211,0)),"") ->  | AU37: =IF(AT37<>"",CONVERT(IFERROR(INDEX('EXT-100 Part Numbers'!$L$2:$L$27,MATCH(AT37,'EXT-100 Part Numbers'!$K$4:$K$27,0)),MIN('EXT-100 Part Numbers'!$L$2:$L$27)),"C",IF($E$7='EXT-100 Part Numbers'!$AK$2,"F","C")),-400) -> -400 | AV37: =IF(AT37<>"",CONVERT(IFERROR(INDEX('EXT-100 Part Numbers'!$M$2:$M$27,MATCH(AT37,'EXT-100 Part Numbers'!$K$4:$K$27,0)),MAX('EXT-100 Part Numbers'!$M$2:$M$27)),"C",IF($E$7='EXT-100 Part Numbers'!$AK$2,"F","C")),400) -> 400 | AW37: =IF(E37='EXT-100 Part Numbers'!$AG$2,'EXT-100 Part Numbers'!$AH$2,IF(E37='EXT-100 Part Numbers'!$AG$3,'EXT-100 Part Numbers'!$AH$3,IF(E37='EXT-100 Part Numbers'!$AG$4,'EXT-100 Part Numbers'!$AH$4,0))) -> 0 | AY37: =IF(AS37<>"",INDEX('EXT-100 Part Numbers'!$B$2:$B$238,MATCH(AS37,'EXT-100 Part Numbers'!$E$2:$E$238,0)) & ", " & SUBSTITUTE(INDEX('EXT-100 Part Numbers'!$C$2:$C$238,MATCH(AS37,'EXT-100 Part Numbers'!$E$2:$E$238,0)),"REPLACEME",J37),"") ->  | BE37: =IF(BA37<>"",INDEX('EXT-100 Part Numbers'!$F$2:$F$238,MATCH(BA37,'EXT-100 Part Numbers'!$E$2:$E$238,0)),"") ->  | BF37: =IF(BA37<>"", INDEX('EXT-100 Part Numbers'!$G$2:$G$238,MATCH(BA37,'EXT-100 Part Numbers'!$E$2:$E$238,0)),"") ->  | BH37: =IF(L37=References!$D$3,M37/$BH$5,0) -> 0 | BI37: 0 | BJ37: 0 | BK37: 0 | BL37: 0 | BM37: 0 | BN37: 0 | BP37: =IF(IFERROR(MATCH(I37,ColorSet1Cables,0),0)>0,'EXT-100 Part Numbers'!$U$14,IF(IFERROR(MATCH(I37,ColorSet2Cables,0),0)>0,'EXT-100 Part Numbers'!$V$14,IF(IFERROR(MATCH(I37,ColorSet3Cables,0),0)>0,'EXT-100 Part Numbers'!$W$14,IF(IFERROR(MATCH(I37,ColorSet4Cables,0),0)>0,'EXT-100 Part Numbers'!$X$14,IF(IFERROR(MATCH(I37,ColorSet5Cables,0),0)>0,'EXT-100 Part Numbers'!$Y$14,IF(IFERROR(MATCH(I37,ColorSet6Cables,0),0)>0,'EXT-100 Part Numbers'!$Z$14,IF(IFERROR(MATCH(I37,ColorSet7Cables,0),0)>0,'EXT-100 Part Numbers'!$AA$14,IF(IFERROR(MATCH(I37,ColorSet8Cables,0),0)>0,'EXT-100 Part Numbers'!$AB$14,IF(IFERROR(MATCH(I37,ColorSet9Cables,0),0)>0,'EXT-100 Part Numbers'!$AC$14,IF(IFERROR(MATCH(I37,ColorSet10Cables,0),0)>0,'EXT-100 Part Numbers'!$AD$14,IF(IFERROR(MATCH(I37,ColorSet11Cables,0),0)>0,'EXT-100 Part Numbers'!$U$35,IF(IFERROR(MATCH(I37,ColorSet12Cables,0),0)>0,'EXT-100 Part Numbers'!$V$35,'EXT-100 Part Numbers'!$AE$14)))))))))))) -> NoColorSelection | BQ37: =IF(AND(BP37<>'EXT-100 Part Numbers'!$AE$14,COUNTA(INDIRECT(BP37))=1),INDIRECT(BP37),"") ->  | BT37: 0 | BU37: 0 | BW37: =IF(G37="",'EXT-100 Part Numbers'!$I$22,IFERROR(INDEX('EXT-100 Part Numbers'!$J$2:$J$4,MATCH(G37,EXTCategories,0)),'EXT-100 Part Numbers'!$I$22)) -> EXT100FlameRatingUnspecified | BX37: =IF(AND(G37="",H37=""),'EXT-100 Part Numbers'!$AY$13,IFERROR(INDEX('EXT-100 Part Numbers'!$AZ$2:$AZ$11,MATCH(G37 & " " & H37,'EXT-100 Part Numbers'!$AY$2:$AY$11,0)),'EXT-100 Part Numbers'!$I$22)) -> EXT100NoCatNoFlame | BY37: =IF(AND(BX37<>'EXT-100 Part Numbers'!$I$22,BX37<>'EXT-100 Part Numbers'!$AY$13,COUNTA(INDIRECT(BX37))=1),INDIRECT(BX37),"") ->  | BZ37: =IFERROR(INDEX('EXT-100 Part Numbers'!$N$2:$N$27,MATCH(AT37,'EXT-100 Part Numbers'!$K$2:$K$27,0)),OutdoorEnvironment)<>OutdoorEnvironment -> FALSE | CA37: =IF(H37<>"",IF(AND(G37<>"",BW37<>"",BW37<>'EXT-100 Part Numbers'!$I$22),IFERROR(MATCH(H37,INDIRECT(BW37),0)>0,FALSE),FALSE),TRUE) -> TRUE | CB37: =IF(I37<>"",IF(AND(G37<>"",H37<>"",BX37<>"",BX37<>'EXT-100 Part Numbers'!$AY$13),IFERROR(MATCH(I37,INDIRECT(BX37),0)>0,FALSE),FALSE),TRUE) -> TRUE | CC37: =IF(J37<>"",IF(AND(G37<>"",H37<>"",I37<>"",BP37<>"",BP37<>'EXT-100 Part Numbers'!$AE$14),IFERROR(MATCH(J37,INDIRECT(BP37),0)>0,FALSE),FALSE),TRUE) -> TRUE
B38: 29 | N38: TRUE | O38: TRUE | P38: TRUE | Q38: TRUE | R38: TRUE | S38: TRUE | T38: TRUE | U38: TRUE | V38: TRUE | W38: FALSE | X38: FALSE | Y38: =IF(AND(L38<>References!$D$4,X38),'EXT-100 Part Numbers'!$R$2,"") ->  | AG38: ='EXT-100 Part Numbers'!E29 -> 10136230 | AH38: =IF(COUNTIF(K:K,AG38) > 0,_xlfn.CEILING.MATH(SUMIF(K:K,AG38,BR:BR)*SUMIF(K:K,AG38,M:M)/INDEX('EXT-100 Part Numbers'!H:H,MATCH(AG38,'EXT-100 Part Numbers'!E:E,0))),"") ->  | AI38: =IF(AH38<>"",IF(_xlfn.CEILING.MATH(SUMIF(K:K,AG38,BR:BR)/INDEX('EXT-100 Part Numbers'!H:H,MATCH(AG38,'EXT-100 Part Numbers'!E:E,0)))>0,_xlfn.CEILING.MATH(SUMIF(K:K,AG38,BR:BR)/INDEX('EXT-100 Part Numbers'!H:H,MATCH(AG38,'EXT-100 Part Numbers'!E:E,0))),"???") & " " & IF(AH38=1,AL38,IF(AL38="Reel in a box","Reels in a box",AL38 & IF(RIGHT(AL38,1)="x","es","s"))),"") ->  | AJ38: =IF(AH38<>"",INDEX('EXT-100 Part Numbers'!$B$2:$B$238,MATCH(AG38,'EXT-100 Part Numbers'!$E$2:$E$238,0)) & ", " & INDEX('EXT-100 Part Numbers'!$C$2:$C$238,MATCH(AG38,'EXT-100 Part Numbers'!$E$2:$E$238,0)),"") ->  | AK38: =IF(AH38<>"",INDEX('EXT-100 Part Numbers'!$G$2:$G$238,MATCH(AG38,'EXT-100 Part Numbers'!$E$2:$E$238,0)),"") ->  | AL38: =IF(AH38<>"", INDEX('EXT-100 Part Numbers'!$F$2:$F$238,MATCH(AG38,'EXT-100 Part Numbers'!$E$2:$E$238,0)),"") ->  | AN38: 0 | AO38: TRUE | AP38: TRUE | AQ38: =IF(AND(I38<>"",J38<>""),INDEX('EXT-100 Part Numbers'!$E$2:$E$192,MATCH(I38 & " (" & J38 & ")",'EXT-100 Part Numbers'!$A$2:$A$192,0)),"") ->  | AR38: =IFERROR(IF(AND(I38<>"",J38<>"",F38<='EXT-100 Part Numbers'!$AP$3,F38*M38>'EXT-100 Part Numbers'!$AP$2),INDEX('EXT-100 Part Numbers'!$E$193:$E$211,MATCH(I38 & " (" & J38 & ")",'EXT-100 Part Numbers'!$A$193:$A$211,0)),""),"") ->  | AS38: =IF(AND(I38<>"",J38<>"",OR(AND(AR38<>"",F38>'EXT-100 Part Numbers'!$AP$3),AND(AR38="",F38*M38>'EXT-100 Part Numbers'!$AP$2))),INDEX('EXT-100 Part Numbers'!$E$212:$E$238,MATCH(I38,'EXT-100 Part Numbers'!$B$212:$B$238,0)),"") ->  | AT38: =IFERROR(INDEX('EXT-100 Part Numbers'!$B$2:$B$211,MATCH(AQ38,'EXT-100 Part Numbers'!$E$2:$E$211,0)),"") ->  | AU38: =IF(AT38<>"",CONVERT(IFERROR(INDEX('EXT-100 Part Numbers'!$L$2:$L$27,MATCH(AT38,'EXT-100 Part Numbers'!$K$4:$K$27,0)),MIN('EXT-100 Part Numbers'!$L$2:$L$27)),"C",IF($E$7='EXT-100 Part Numbers'!$AK$2,"F","C")),-400) -> -400 | AV38: =IF(AT38<>"",CONVERT(IFERROR(INDEX('EXT-100 Part Numbers'!$M$2:$M$27,MATCH(AT38,'EXT-100 Part Numbers'!$K$4:$K$27,0)),MAX('EXT-100 Part Numbers'!$M$2:$M$27)),"C",IF($E$7='EXT-100 Part Numbers'!$AK$2,"F","C")),400) -> 400 | AW38: =IF(E38='EXT-100 Part Numbers'!$AG$2,'EXT-100 Part Numbers'!$AH$2,IF(E38='EXT-100 Part Numbers'!$AG$3,'EXT-100 Part Numbers'!$AH$3,IF(E38='EXT-100 Part Numbers'!$AG$4,'EXT-100 Part Numbers'!$AH$4,0))) -> 0 | AY38: =IF(AS38<>"",INDEX('EXT-100 Part Numbers'!$B$2:$B$238,MATCH(AS38,'EXT-100 Part Numbers'!$E$2:$E$238,0)) & ", " & SUBSTITUTE(INDEX('EXT-100 Part Numbers'!$C$2:$C$238,MATCH(AS38,'EXT-100 Part Numbers'!$E$2:$E$238,0)),"REPLACEME",J38),"") ->  | BE38: =IF(BA38<>"",INDEX('EXT-100 Part Numbers'!$F$2:$F$238,MATCH(BA38,'EXT-100 Part Numbers'!$E$2:$E$238,0)),"") ->  | BF38: =IF(BA38<>"", INDEX('EXT-100 Part Numbers'!$G$2:$G$238,MATCH(BA38,'EXT-100 Part Numbers'!$E$2:$E$238,0)),"") ->  | BH38: =IF(L38=References!$D$3,M38/$BH$5,0) -> 0 | BI38: 0 | BJ38: 0 | BK38: 0 | BL38: 0 | BM38: 0 | BN38: 0 | BP38: =IF(IFERROR(MATCH(I38,ColorSet1Cables,0),0)>0,'EXT-100 Part Numbers'!$U$14,IF(IFERROR(MATCH(I38,ColorSet2Cables,0),0)>0,'EXT-100 Part Numbers'!$V$14,IF(IFERROR(MATCH(I38,ColorSet3Cables,0),0)>0,'EXT-100 Part Numbers'!$W$14,IF(IFERROR(MATCH(I38,ColorSet4Cables,0),0)>0,'EXT-100 Part Numbers'!$X$14,IF(IFERROR(MATCH(I38,ColorSet5Cables,0),0)>0,'EXT-100 Part Numbers'!$Y$14,IF(IFERROR(MATCH(I38,ColorSet6Cables,0),0)>0,'EXT-100 Part Numbers'!$Z$14,IF(IFERROR(MATCH(I38,ColorSet7Cables,0),0)>0,'EXT-100 Part Numbers'!$AA$14,IF(IFERROR(MATCH(I38,ColorSet8Cables,0),0)>0,'EXT-100 Part Numbers'!$AB$14,IF(IFERROR(MATCH(I38,ColorSet9Cables,0),0)>0,'EXT-100 Part Numbers'!$AC$14,IF(IFERROR(MATCH(I38,ColorSet10Cables,0),0)>0,'EXT-100 Part Numbers'!$AD$14,IF(IFERROR(MATCH(I38,ColorSet11Cables,0),0)>0,'EXT-100 Part Numbers'!$U$35,IF(IFERROR(MATCH(I38,ColorSet12Cables,0),0)>0,'EXT-100 Part Numbers'!$V$35,'EXT-100 Part Numbers'!$AE$14)))))))))))) -> NoColorSelection | BQ38: =IF(AND(BP38<>'EXT-100 Part Numbers'!$AE$14,COUNTA(INDIRECT(BP38))=1),INDIRECT(BP38),"") ->  | BT38: 0 | BU38: 0 | BW38: =IF(G38="",'EXT-100 Part Numbers'!$I$22,IFERROR(INDEX('EXT-100 Part Numbers'!$J$2:$J$4,MATCH(G38,EXTCategories,0)),'EXT-100 Part Numbers'!$I$22)) -> EXT100FlameRatingUnspecified | BX38: =IF(AND(G38="",H38=""),'EXT-100 Part Numbers'!$AY$13,IFERROR(INDEX('EXT-100 Part Numbers'!$AZ$2:$AZ$11,MATCH(G38 & " " & H38,'EXT-100 Part Numbers'!$AY$2:$AY$11,0)),'EXT-100 Part Numbers'!$I$22)) -> EXT100NoCatNoFlame | BY38: =IF(AND(BX38<>'EXT-100 Part Numbers'!$I$22,BX38<>'EXT-100 Part Numbers'!$AY$13,COUNTA(INDIRECT(BX38))=1),INDIRECT(BX38),"") ->  | BZ38: =IFERROR(INDEX('EXT-100 Part Numbers'!$N$2:$N$27,MATCH(AT38,'EXT-100 Part Numbers'!$K$2:$K$27,0)),OutdoorEnvironment)<>OutdoorEnvironment -> FALSE | CA38: =IF(H38<>"",IF(AND(G38<>"",BW38<>"",BW38<>'EXT-100 Part Numbers'!$I$22),IFERROR(MATCH(H38,INDIRECT(BW38),0)>0,FALSE),FALSE),TRUE) -> TRUE | CB38: =IF(I38<>"",IF(AND(G38<>"",H38<>"",BX38<>"",BX38<>'EXT-100 Part Numbers'!$AY$13),IFERROR(MATCH(I38,INDIRECT(BX38),0)>0,FALSE),FALSE),TRUE) -> TRUE | CC38: =IF(J38<>"",IF(AND(G38<>"",H38<>"",I38<>"",BP38<>"",BP38<>'EXT-100 Part Numbers'!$AE$14),IFERROR(MATCH(J38,INDIRECT(BP38),0)>0,FALSE),FALSE),TRUE) -> TRUE
B39: 30 | N39: TRUE | O39: TRUE | P39: TRUE | Q39: TRUE | R39: TRUE | S39: TRUE | T39: TRUE | U39: TRUE | V39: TRUE | W39: FALSE | X39: FALSE | Y39: =IF(AND(L39<>References!$D$4,X39),'EXT-100 Part Numbers'!$R$2,"") ->  | AG39: ='EXT-100 Part Numbers'!E30 -> 10136749 | AH39: =IF(COUNTIF(K:K,AG39) > 0,_xlfn.CEILING.MATH(SUMIF(K:K,AG39,BR:BR)*SUMIF(K:K,AG39,M:M)/INDEX('EXT-100 Part Numbers'!H:H,MATCH(AG39,'EXT-100 Part Numbers'!E:E,0))),"") ->  | AI39: =IF(AH39<>"",IF(_xlfn.CEILING.MATH(SUMIF(K:K,AG39,BR:BR)/INDEX('EXT-100 Part Numbers'!H:H,MATCH(AG39,'EXT-100 Part Numbers'!E:E,0)))>0,_xlfn.CEILING.MATH(SUMIF(K:K,AG39,BR:BR)/INDEX('EXT-100 Part Numbers'!H:H,MATCH(AG39,'EXT-100 Part Numbers'!E:E,0))),"???") & " " & IF(AH39=1,AL39,IF(AL39="Reel in a box","Reels in a box",AL39 & IF(RIGHT(AL39,1)="x","es","s"))),"") ->  | AJ39: =IF(AH39<>"",INDEX('EXT-100 Part Numbers'!$B$2:$B$238,MATCH(AG39,'EXT-100 Part Numbers'!$E$2:$E$238,0)) & ", " & INDEX('EXT-100 Part Numbers'!$C$2:$C$238,MATCH(AG39,'EXT-100 Part Numbers'!$E$2:$E$238,0)),"") ->  | AK39: =IF(AH39<>"",INDEX('EXT-100 Part Numbers'!$G$2:$G$238,MATCH(AG39,'EXT-100 Part Numbers'!$E$2:$E$238,0)),"") ->  | AL39: =IF(AH39<>"", INDEX('EXT-100 Part Numbers'!$F$2:$F$238,MATCH(AG39,'EXT-100 Part Numbers'!$E$2:$E$238,0)),"") ->  | AN39: 0 | AO39: TRUE | AP39: TRUE | AQ39: =IF(AND(I39<>"",J39<>""),INDEX('EXT-100 Part Numbers'!$E$2:$E$192,MATCH(I39 & " (" & J39 & ")",'EXT-100 Part Numbers'!$A$2:$A$192,0)),"") ->  | AR39: =IFERROR(IF(AND(I39<>"",J39<>"",F39<='EXT-100 Part Numbers'!$AP$3,F39*M39>'EXT-100 Part Numbers'!$AP$2),INDEX('EXT-100 Part Numbers'!$E$193:$E$211,MATCH(I39 & " (" & J39 & ")",'EXT-100 Part Numbers'!$A$193:$A$211,0)),""),"") ->  | AS39: =IF(AND(I39<>"",J39<>"",OR(AND(AR39<>"",F39>'EXT-100 Part Numbers'!$AP$3),AND(AR39="",F39*M39>'EXT-100 Part Numbers'!$AP$2))),INDEX('EXT-100 Part Numbers'!$E$212:$E$238,MATCH(I39,'EXT-100 Part Numbers'!$B$212:$B$238,0)),"") ->  | AT39: =IFERROR(INDEX('EXT-100 Part Numbers'!$B$2:$B$211,MATCH(AQ39,'EXT-100 Part Numbers'!$E$2:$E$211,0)),"") ->  | AU39: =IF(AT39<>"",CONVERT(IFERROR(INDEX('EXT-100 Part Numbers'!$L$2:$L$27,MATCH(AT39,'EXT-100 Part Numbers'!$K$4:$K$27,0)),MIN('EXT-100 Part Numbers'!$L$2:$L$27)),"C",IF($E$7='EXT-100 Part Numbers'!$AK$2,"F","C")),-400) -> -400 | AV39: =IF(AT39<>"",CONVERT(IFERROR(INDEX('EXT-100 Part Numbers'!$M$2:$M$27,MATCH(AT39,'EXT-100 Part Numbers'!$K$4:$K$27,0)),MAX('EXT-100 Part Numbers'!$M$2:$M$27)),"C",IF($E$7='EXT-100 Part Numbers'!$AK$2,"F","C")),400) -> 400 | AW39: =IF(E39='EXT-100 Part Numbers'!$AG$2,'EXT-100 Part Numbers'!$AH$2,IF(E39='EXT-100 Part Numbers'!$AG$3,'EXT-100 Part Numbers'!$AH$3,IF(E39='EXT-100 Part Numbers'!$AG$4,'EXT-100 Part Numbers'!$AH$4,0))) -> 0 | AY39: =IF(AS39<>"",INDEX('EXT-100 Part Numbers'!$B$2:$B$238,MATCH(AS39,'EXT-100 Part Numbers'!$E$2:$E$238,0)) & ", " & SUBSTITUTE(INDEX('EXT-100 Part Numbers'!$C$2:$C$238,MATCH(AS39,'EXT-100 Part Numbers'!$E$2:$E$238,0)),"REPLACEME",J39),"") ->  | BE39: =IF(BA39<>"",INDEX('EXT-100 Part Numbers'!$F$2:$F$238,MATCH(BA39,'EXT-100 Part Numbers'!$E$2:$E$238,0)),"") ->  | BF39: =IF(BA39<>"", INDEX('EXT-100 Part Numbers'!$G$2:$G$238,MATCH(BA39,'EXT-100 Part Numbers'!$E$2:$E$238,0)),"") ->  | BH39: =IF(L39=References!$D$3,M39/$BH$5,0) -> 0 | BI39: 0 | BJ39: 0 | BK39: 0 | BL39: 0 | BM39: 0 | BN39: 0 | BP39: =IF(IFERROR(MATCH(I39,ColorSet1Cables,0),0)>0,'EXT-100 Part Numbers'!$U$14,IF(IFERROR(MATCH(I39,ColorSet2Cables,0),0)>0,'EXT-100 Part Numbers'!$V$14,IF(IFERROR(MATCH(I39,ColorSet3Cables,0),0)>0,'EXT-100 Part Numbers'!$W$14,IF(IFERROR(MATCH(I39,ColorSet4Cables,0),0)>0,'EXT-100 Part Numbers'!$X$14,IF(IFERROR(MATCH(I39,ColorSet5Cables,0),0)>0,'EXT-100 Part Numbers'!$Y$14,IF(IFERROR(MATCH(I39,ColorSet6Cables,0),0)>0,'EXT-100 Part Numbers'!$Z$14,IF(IFERROR(MATCH(I39,ColorSet7Cables,0),0)>0,'EXT-100 Part Numbers'!$AA$14,IF(IFERROR(MATCH(I39,ColorSet8Cables,0),0)>0,'EXT-100 Part Numbers'!$AB$14,IF(IFERROR(MATCH(I39,ColorSet9Cables,0),0)>0,'EXT-100 Part Numbers'!$AC$14,IF(IFERROR(MATCH(I39,ColorSet10Cables,0),0)>0,'EXT-100 Part Numbers'!$AD$14,IF(IFERROR(MATCH(I39,ColorSet11Cables,0),0)>0,'EXT-100 Part Numbers'!$U$35,IF(IFERROR(MATCH(I39,ColorSet12Cables,0),0)>0,'EXT-100 Part Numbers'!$V$35,'EXT-100 Part Numbers'!$AE$14)))))))))))) -> NoColorSelection | BQ39: =IF(AND(BP39<>'EXT-100 Part Numbers'!$AE$14,COUNTA(INDIRECT(BP39))=1),INDIRECT(BP39),"") ->  | BT39: 0 | BU39: 0 | BW39: =IF(G39="",'EXT-100 Part Numbers'!$I$22,IFERROR(INDEX('EXT-100 Part Numbers'!$J$2:$J$4,MATCH(G39,EXTCategories,0)),'EXT-100 Part Numbers'!$I$22)) -> EXT100FlameRatingUnspecified | BX39: =IF(AND(G39="",H39=""),'EXT-100 Part Numbers'!$AY$13,IFERROR(INDEX('EXT-100 Part Numbers'!$AZ$2:$AZ$11,MATCH(G39 & " " & H39,'EXT-100 Part Numbers'!$AY$2:$AY$11,0)),'EXT-100 Part Numbers'!$I$22)) -> EXT100NoCatNoFlame | BY39: =IF(AND(BX39<>'EXT-100 Part Numbers'!$I$22,BX39<>'EXT-100 Part Numbers'!$AY$13,COUNTA(INDIRECT(BX39))=1),INDIRECT(BX39),"") ->  | BZ39: =IFERROR(INDEX('EXT-100 Part Numbers'!$N$2:$N$27,MATCH(AT39,'EXT-100 Part Numbers'!$K$2:$K$27,0)),OutdoorEnvironment)<>OutdoorEnvironment -> FALSE | CA39: =IF(H39<>"",IF(AND(G39<>"",BW39<>"",BW39<>'EXT-100 Part Numbers'!$I$22),IFERROR(MATCH(H39,INDIRECT(BW39),0)>0,FALSE),FALSE),TRUE) -> TRUE | CB39: =IF(I39<>"",IF(AND(G39<>"",H39<>"",BX39<>"",BX39<>'EXT-100 Part Numbers'!$AY$13),IFERROR(MATCH(I39,INDIRECT(BX39),0)>0,FALSE),FALSE),TRUE) -> TRUE | CC39: =IF(J39<>"",IF(AND(G39<>"",H39<>"",I39<>"",BP39<>"",BP39<>'EXT-100 Part Numbers'!$AE$14),IFERROR(MATCH(J39,INDIRECT(BP39),0)>0,FALSE),FALSE),TRUE) -> TRUE
B40: 31 | N40: TRUE | O40: TRUE | P40: TRUE | Q40: TRUE | R40: TRUE | S40: TRUE | T40: TRUE | U40: TRUE | V40: TRUE | W40: FALSE | X40: FALSE | Y40: =IF(AND(L40<>References!$D$4,X40),'EXT-100 Part Numbers'!$R$2,"") ->  | AG40: ='EXT-100 Part Numbers'!E31 -> 10137364 | AH40: =IF(COUNTIF(K:K,AG40) > 0,_xlfn.CEILING.MATH(SUMIF(K:K,AG40,BR:BR)*SUMIF(K:K,AG40,M:M)/INDEX('EXT-100 Part Numbers'!H:H,MATCH(AG40,'EXT-100 Part Numbers'!E:E,0))),"") ->  | AI40: =IF(AH40<>"",IF(_xlfn.CEILING.MATH(SUMIF(K:K,AG40,BR:BR)/INDEX('EXT-100 Part Numbers'!H:H,MATCH(AG40,'EXT-100 Part Numbers'!E:E,0)))>0,_xlfn.CEILING.MATH(SUMIF(K:K,AG40,BR:BR)/INDEX('EXT-100 Part Numbers'!H:H,MATCH(AG40,'EXT-100 Part Numbers'!E:E,0))),"???") & " " & IF(AH40=1,AL40,IF(AL40="Reel in a box","Reels in a box",AL40 & IF(RIGHT(AL40,1)="x","es","s"))),"") ->  | AJ40: =IF(AH40<>"",INDEX('EXT-100 Part Numbers'!$B$2:$B$238,MATCH(AG40,'EXT-100 Part Numbers'!$E$2:$E$238,0)) & ", " & INDEX('EXT-100 Part Numbers'!$C$2:$C$238,MATCH(AG40,'EXT-100 Part Numbers'!$E$2:$E$238,0)),"") ->  | AK40: =IF(AH40<>"",INDEX('EXT-100 Part Numbers'!$G$2:$G$238,MATCH(AG40,'EXT-100 Part Numbers'!$E$2:$E$238,0)),"") ->  | AL40: =IF(AH40<>"", INDEX('EXT-100 Part Numbers'!$F$2:$F$238,MATCH(AG40,'EXT-100 Part Numbers'!$E$2:$E$238,0)),"") ->  | AN40: 0 | AO40: TRUE | AP40: TRUE | AQ40: =IF(AND(I40<>"",J40<>""),INDEX('EXT-100 Part Numbers'!$E$2:$E$192,MATCH(I40 & " (" & J40 & ")",'EXT-100 Part Numbers'!$A$2:$A$192,0)),"") ->  | AR40: =IFERROR(IF(AND(I40<>"",J40<>"",F40<='EXT-100 Part Numbers'!$AP$3,F40*M40>'EXT-100 Part Numbers'!$AP$2),INDEX('EXT-100 Part Numbers'!$E$193:$E$211,MATCH(I40 & " (" & J40 & ")",'EXT-100 Part Numbers'!$A$193:$A$211,0)),""),"") ->  | AS40: =IF(AND(I40<>"",J40<>"",OR(AND(AR40<>"",F40>'EXT-100 Part Numbers'!$AP$3),AND(AR40="",F40*M40>'EXT-100 Part Numbers'!$AP$2))),INDEX('EXT-100 Part Numbers'!$E$212:$E$238,MATCH(I40,'EXT-100 Part Numbers'!$B$212:$B$238,0)),"") ->  | AT40: =IFERROR(INDEX('EXT-100 Part Numbers'!$B$2:$B$211,MATCH(AQ40,'EXT-100 Part Numbers'!$E$2:$E$211,0)),"") ->  | AU40: =IF(AT40<>"",CONVERT(IFERROR(INDEX('EXT-100 Part Numbers'!$L$2:$L$27,MATCH(AT40,'EXT-100 Part Numbers'!$K$4:$K$27,0)),MIN('EXT-100 Part Numbers'!$L$2:$L$27)),"C",IF($E$7='EXT-100 Part Numbers'!$AK$2,"F","C")),-400) -> -400 | AV40: =IF(AT40<>"",CONVERT(IFERROR(INDEX('EXT-100 Part Numbers'!$M$2:$M$27,MATCH(AT40,'EXT-100 Part Numbers'!$K$4:$K$27,0)),MAX('EXT-100 Part Numbers'!$M$2:$M$27)),"C",IF($E$7='EXT-100 Part Numbers'!$AK$2,"F","C")),400) -> 400 | AW40: =IF(E40='EXT-100 Part Numbers'!$AG$2,'EXT-100 Part Numbers'!$AH$2,IF(E40='EXT-100 Part Numbers'!$AG$3,'EXT-100 Part Numbers'!$AH$3,IF(E40='EXT-100 Part Numbers'!$AG$4,'EXT-100 Part Numbers'!$AH$4,0))) -> 0 | AY40: =IF(AS40<>"",INDEX('EXT-100 Part Numbers'!$B$2:$B$238,MATCH(AS40,'EXT-100 Part Numbers'!$E$2:$E$238,0)) & ", " & SUBSTITUTE(INDEX('EXT-100 Part Numbers'!$C$2:$C$238,MATCH(AS40,'EXT-100 Part Numbers'!$E$2:$E$238,0)),"REPLACEME",J40),"") ->  | BE40: =IF(BA40<>"",INDEX('EXT-100 Part Numbers'!$F$2:$F$238,MATCH(BA40,'EXT-100 Part Numbers'!$E$2:$E$238,0)),"") ->  | BF40: =IF(BA40<>"", INDEX('EXT-100 Part Numbers'!$G$2:$G$238,MATCH(BA40,'EXT-100 Part Numbers'!$E$2:$E$238,0)),"") ->  | BH40: =IF(L40=References!$D$3,M40/$BH$5,0) -> 0 | BI40: 0 | BJ40: 0 | BK40: 0 | BL40: 0 | BM40: 0 | BN40: 0 | BP40: =IF(IFERROR(MATCH(I40,ColorSet1Cables,0),0)>0,'EXT-100 Part Numbers'!$U$14,IF(IFERROR(MATCH(I40,ColorSet2Cables,0),0)>0,'EXT-100 Part Numbers'!$V$14,IF(IFERROR(MATCH(I40,ColorSet3Cables,0),0)>0,'EXT-100 Part Numbers'!$W$14,IF(IFERROR(MATCH(I40,ColorSet4Cables,0),0)>0,'EXT-100 Part Numbers'!$X$14,IF(IFERROR(MATCH(I40,ColorSet5Cables,0),0)>0,'EXT-100 Part Numbers'!$Y$14,IF(IFERROR(MATCH(I40,ColorSet6Cables,0),0)>0,'EXT-100 Part Numbers'!$Z$14,IF(IFERROR(MATCH(I40,ColorSet7Cables,0),0)>0,'EXT-100 Part Numbers'!$AA$14,IF(IFERROR(MATCH(I40,ColorSet8Cables,0),0)>0,'EXT-100 Part Numbers'!$AB$14,IF(IFERROR(MATCH(I40,ColorSet9Cables,0),0)>0,'EXT-100 Part Numbers'!$AC$14,IF(IFERROR(MATCH(I40,ColorSet10Cables,0),0)>0,'EXT-100 Part Numbers'!$AD$14,IF(IFERROR(MATCH(I40,ColorSet11Cables,0),0)>0,'EXT-100 Part Numbers'!$U$35,IF(IFERROR(MATCH(I40,ColorSet12Cables,0),0)>0,'EXT-100 Part Numbers'!$V$35,'EXT-100 Part Numbers'!$AE$14)))))))))))) -> NoColorSelection | BQ40: =IF(AND(BP40<>'EXT-100 Part Numbers'!$AE$14,COUNTA(INDIRECT(BP40))=1),INDIRECT(BP40),"") ->  | BT40: 0 | BU40: 0 | BW40: =IF(G40="",'EXT-100 Part Numbers'!$I$22,IFERROR(INDEX('EXT-100 Part Numbers'!$J$2:$J$4,MATCH(G40,EXTCategories,0)),'EXT-100 Part Numbers'!$I$22)) -> EXT100FlameRatingUnspecified | BX40: =IF(AND(G40="",H40=""),'EXT-100 Part Numbers'!$AY$13,IFERROR(INDEX('EXT-100 Part Numbers'!$AZ$2:$AZ$11,MATCH(G40 & " " & H40,'EXT-100 Part Numbers'!$AY$2:$AY$11,0)),'EXT-100 Part Numbers'!$I$22)) -> EXT100NoCatNoFlame | BY40: =IF(AND(BX40<>'EXT-100 Part Numbers'!$I$22,BX40<>'EXT-100 Part Numbers'!$AY$13,COUNTA(INDIRECT(BX40))=1),INDIRECT(BX40),"") ->  | BZ40: =IFERROR(INDEX('EXT-100 Part Numbers'!$N$2:$N$27,MATCH(AT40,'EXT-100 Part Numbers'!$K$2:$K$27,0)),OutdoorEnvironment)<>OutdoorEnvironment -> FALSE | CA40: =IF(H40<>"",IF(AND(G40<>"",BW40<>"",BW40<>'EXT-100 Part Numbers'!$I$22),IFERROR(MATCH(H40,INDIRECT(BW40),0)>0,FALSE),FALSE),TRUE) -> TRUE | CB40: =IF(I40<>"",IF(AND(G40<>"",H40<>"",BX40<>"",BX40<>'EXT-100 Part Numbers'!$AY$13),IFERROR(MATCH(I40,INDIRECT(BX40),0)>0,FALSE),FALSE),TRUE) -> TRUE | CC40: =IF(J40<>"",IF(AND(G40<>"",H40<>"",I40<>"",BP40<>"",BP40<>'EXT-100 Part Numbers'!$AE$14),IFERROR(MATCH(J40,INDIRECT(BP40),0)>0,FALSE),FALSE),TRUE) -> TRUE
B41: 32 | N41: TRUE | O41: TRUE | P41: TRUE | Q41: TRUE | R41: TRUE | S41: TRUE | T41: TRUE | U41: TRUE | V41: TRUE | W41: FALSE | X41: FALSE | Y41: =IF(AND(L41<>References!$D$4,X41),'EXT-100 Part Numbers'!$R$2,"") ->  | AG41: ='EXT-100 Part Numbers'!E32 -> 10136748 | AH41: =IF(COUNTIF(K:K,AG41) > 0,_xlfn.CEILING.MATH(SUMIF(K:K,AG41,BR:BR)*SUMIF(K:K,AG41,M:M)/INDEX('EXT-100 Part Numbers'!H:H,MATCH(AG41,'EXT-100 Part Numbers'!E:E,0))),"") ->  | AI41: =IF(AH41<>"",IF(_xlfn.CEILING.MATH(SUMIF(K:K,AG41,BR:BR)/INDEX('EXT-100 Part Numbers'!H:H,MATCH(AG41,'EXT-100 Part Numbers'!E:E,0)))>0,_xlfn.CEILING.MATH(SUMIF(K:K,AG41,BR:BR)/INDEX('EXT-100 Part Numbers'!H:H,MATCH(AG41,'EXT-100 Part Numbers'!E:E,0))),"???") & " " & IF(AH41=1,AL41,IF(AL41="Reel in a box","Reels in a box",AL41 & IF(RIGHT(AL41,1)="x","es","s"))),"") ->  | AJ41: =IF(AH41<>"",INDEX('EXT-100 Part Numbers'!$B$2:$B$238,MATCH(AG41,'EXT-100 Part Numbers'!$E$2:$E$238,0)) & ", " & INDEX('EXT-100 Part Numbers'!$C$2:$C$238,MATCH(AG41,'EXT-100 Part Numbers'!$E$2:$E$238,0)),"") ->  | AK41: =IF(AH41<>"",INDEX('EXT-100 Part Numbers'!$G$2:$G$238,MATCH(AG41,'EXT-100 Part Numbers'!$E$2:$E$238,0)),"") ->  | AL41: =IF(AH41<>"", INDEX('EXT-100 Part Numbers'!$F$2:$F$238,MATCH(AG41,'EXT-100 Part Numbers'!$E$2:$E$238,0)),"") ->  | AN41: 0 | AO41: TRUE | AP41: TRUE | AQ41: =IF(AND(I41<>"",J41<>""),INDEX('EXT-100 Part Numbers'!$E$2:$E$192,MATCH(I41 & " (" & J41 & ")",'EXT-100 Part Numbers'!$A$2:$A$192,0)),"") ->  | AR41: =IFERROR(IF(AND(I41<>"",J41<>"",F41<='EXT-100 Part Numbers'!$AP$3,F41*M41>'EXT-100 Part Numbers'!$AP$2),INDEX('EXT-100 Part Numbers'!$E$193:$E$211,MATCH(I41 & " (" & J41 & ")",'EXT-100 Part Numbers'!$A$193:$A$211,0)),""),"") ->  | AS41: =IF(AND(I41<>"",J41<>"",OR(AND(AR41<>"",F41>'EXT-100 Part Numbers'!$AP$3),AND(AR41="",F41*M41>'EXT-100 Part Numbers'!$AP$2))),INDEX('EXT-100 Part Numbers'!$E$212:$E$238,MATCH(I41,'EXT-100 Part Numbers'!$B$212:$B$238,0)),"") ->  | AT41: =IFERROR(INDEX('EXT-100 Part Numbers'!$B$2:$B$211,MATCH(AQ41,'EXT-100 Part Numbers'!$E$2:$E$211,0)),"") ->  | AU41: =IF(AT41<>"",CONVERT(IFERROR(INDEX('EXT-100 Part Numbers'!$L$2:$L$27,MATCH(AT41,'EXT-100 Part Numbers'!$K$4:$K$27,0)),MIN('EXT-100 Part Numbers'!$L$2:$L$27)),"C",IF($E$7='EXT-100 Part Numbers'!$AK$2,"F","C")),-400) -> -400 | AV41: =IF(AT41<>"",CONVERT(IFERROR(INDEX('EXT-100 Part Numbers'!$M$2:$M$27,MATCH(AT41,'EXT-100 Part Numbers'!$K$4:$K$27,0)),MAX('EXT-100 Part Numbers'!$M$2:$M$27)),"C",IF($E$7='EXT-100 Part Numbers'!$AK$2,"F","C")),400) -> 400 | AW41: =IF(E41='EXT-100 Part Numbers'!$AG$2,'EXT-100 Part Numbers'!$AH$2,IF(E41='EXT-100 Part Numbers'!$AG$3,'EXT-100 Part Numbers'!$AH$3,IF(E41='EXT-100 Part Numbers'!$AG$4,'EXT-100 Part Numbers'!$AH$4,0))) -> 0 | AY41: =IF(AS41<>"",INDEX('EXT-100 Part Numbers'!$B$2:$B$238,MATCH(AS41,'EXT-100 Part Numbers'!$E$2:$E$238,0)) & ", " & SUBSTITUTE(INDEX('EXT-100 Part Numbers'!$C$2:$C$238,MATCH(AS41,'EXT-100 Part Numbers'!$E$2:$E$238,0)),"REPLACEME",J41),"") ->  | BE41: =IF(BA41<>"",INDEX('EXT-100 Part Numbers'!$F$2:$F$238,MATCH(BA41,'EXT-100 Part Numbers'!$E$2:$E$238,0)),"") ->  | BF41: =IF(BA41<>"", INDEX('EXT-100 Part Numbers'!$G$2:$G$238,MATCH(BA41,'EXT-100 Part Numbers'!$E$2:$E$238,0)),"") ->  | BH41: =IF(L41=References!$D$3,M41/$BH$5,0) -> 0 | BI41: 0 | BJ41: 0 | BK41: 0 | BL41: 0 | BM41: 0 | BN41: 0 | BP41: =IF(IFERROR(MATCH(I41,ColorSet1Cables,0),0)>0,'EXT-100 Part Numbers'!$U$14,IF(IFERROR(MATCH(I41,ColorSet2Cables,0),0)>0,'EXT-100 Part Numbers'!$V$14,IF(IFERROR(MATCH(I41,ColorSet3Cables,0),0)>0,'EXT-100 Part Numbers'!$W$14,IF(IFERROR(MATCH(I41,ColorSet4Cables,0),0)>0,'EXT-100 Part Numbers'!$X$14,IF(IFERROR(MATCH(I41,ColorSet5Cables,0),0)>0,'EXT-100 Part Numbers'!$Y$14,IF(IFERROR(MATCH(I41,ColorSet6Cables,0),0)>0,'EXT-100 Part Numbers'!$Z$14,IF(IFERROR(MATCH(I41,ColorSet7Cables,0),0)>0,'EXT-100 Part Numbers'!$AA$14,IF(IFERROR(MATCH(I41,ColorSet8Cables,0),0)>0,'EXT-100 Part Numbers'!$AB$14,IF(IFERROR(MATCH(I41,ColorSet9Cables,0),0)>0,'EXT-100 Part Numbers'!$AC$14,IF(IFERROR(MATCH(I41,ColorSet10Cables,0),0)>0,'EXT-100 Part Numbers'!$AD$14,IF(IFERROR(MATCH(I41,ColorSet11Cables,0),0)>0,'EXT-100 Part Numbers'!$U$35,IF(IFERROR(MATCH(I41,ColorSet12Cables,0),0)>0,'EXT-100 Part Numbers'!$V$35,'EXT-100 Part Numbers'!$AE$14)))))))))))) -> NoColorSelection | BQ41: =IF(AND(BP41<>'EXT-100 Part Numbers'!$AE$14,COUNTA(INDIRECT(BP41))=1),INDIRECT(BP41),"") ->  | BT41: 0 | BU41: 0 | BW41: =IF(G41="",'EXT-100 Part Numbers'!$I$22,IFERROR(INDEX('EXT-100 Part Numbers'!$J$2:$J$4,MATCH(G41,EXTCategories,0)),'EXT-100 Part Numbers'!$I$22)) -> EXT100FlameRatingUnspecified | BX41: =IF(AND(G41="",H41=""),'EXT-100 Part Numbers'!$AY$13,IFERROR(INDEX('EXT-100 Part Numbers'!$AZ$2:$AZ$11,MATCH(G41 & " " & H41,'EXT-100 Part Numbers'!$AY$2:$AY$11,0)),'EXT-100 Part Numbers'!$I$22)) -> EXT100NoCatNoFlame | BY41: =IF(AND(BX41<>'EXT-100 Part Numbers'!$I$22,BX41<>'EXT-100 Part Numbers'!$AY$13,COUNTA(INDIRECT(BX41))=1),INDIRECT(BX41),"") ->  | BZ41: =IFERROR(INDEX('EXT-100 Part Numbers'!$N$2:$N$27,MATCH(AT41,'EXT-100 Part Numbers'!$K$2:$K$27,0)),OutdoorEnvironment)<>OutdoorEnvironment -> FALSE | CA41: =IF(H41<>"",IF(AND(G41<>"",BW41<>"",BW41<>'EXT-100 Part Numbers'!$I$22),IFERROR(MATCH(H41,INDIRECT(BW41),0)>0,FALSE),FALSE),TRUE) -> TRUE | CB41: =IF(I41<>"",IF(AND(G41<>"",H41<>"",BX41<>"",BX41<>'EXT-100 Part Numbers'!$AY$13),IFERROR(MATCH(I41,INDIRECT(BX41),0)>0,FALSE),FALSE),TRUE) -> TRUE | CC41: =IF(J41<>"",IF(AND(G41<>"",H41<>"",I41<>"",BP41<>"",BP41<>'EXT-100 Part Numbers'!$AE$14),IFERROR(MATCH(J41,INDIRECT(BP41),0)>0,FALSE),FALSE),TRUE) -> TRUE
B42: 33 | N42: TRUE | O42: TRUE | P42: TRUE | Q42: TRUE | R42: TRUE | S42: TRUE | T42: TRUE | U42: TRUE | V42: TRUE | W42: FALSE | X42: FALSE | Y42: =IF(AND(L42<>References!$D$4,X42),'EXT-100 Part Numbers'!$R$2,"") ->  | AG42: ='EXT-100 Part Numbers'!E33 -> 10137365 | AH42: =IF(COUNTIF(K:K,AG42) > 0,_xlfn.CEILING.MATH(SUMIF(K:K,AG42,BR:BR)*SUMIF(K:K,AG42,M:M)/INDEX('EXT-100 Part Numbers'!H:H,MATCH(AG42,'EXT-100 Part Numbers'!E:E,0))),"") ->  | AI42: =IF(AH42<>"",IF(_xlfn.CEILING.MATH(SUMIF(K:K,AG42,BR:BR)/INDEX('EXT-100 Part Numbers'!H:H,MATCH(AG42,'EXT-100 Part Numbers'!E:E,0)))>0,_xlfn.CEILING.MATH(SUMIF(K:K,AG42,BR:BR)/INDEX('EXT-100 Part Numbers'!H:H,MATCH(AG42,'EXT-100 Part Numbers'!E:E,0))),"???") & " " & IF(AH42=1,AL42,IF(AL42="Reel in a box","Reels in a box",AL42 & IF(RIGHT(AL42,1)="x","es","s"))),"") ->  | AJ42: =IF(AH42<>"",INDEX('EXT-100 Part Numbers'!$B$2:$B$238,MATCH(AG42,'EXT-100 Part Numbers'!$E$2:$E$238,0)) & ", " & INDEX('EXT-100 Part Numbers'!$C$2:$C$238,MATCH(AG42,'EXT-100 Part Numbers'!$E$2:$E$238,0)),"") ->  | AK42: =IF(AH42<>"",INDEX('EXT-100 Part Numbers'!$G$2:$G$238,MATCH(AG42,'EXT-100 Part Numbers'!$E$2:$E$238,0)),"") ->  | AL42: =IF(AH42<>"", INDEX('EXT-100 Part Numbers'!$F$2:$F$238,MATCH(AG42,'EXT-100 Part Numbers'!$E$2:$E$238,0)),"") ->  | AN42: 0 | AO42: TRUE | AP42: TRUE | AQ42: =IF(AND(I42<>"",J42<>""),INDEX('EXT-100 Part Numbers'!$E$2:$E$192,MATCH(I42 & " (" & J42 & ")",'EXT-100 Part Numbers'!$A$2:$A$192,0)),"") ->  | AR42: =IFERROR(IF(AND(I42<>"",J42<>"",F42<='EXT-100 Part Numbers'!$AP$3,F42*M42>'EXT-100 Part Numbers'!$AP$2),INDEX('EXT-100 Part Numbers'!$E$193:$E$211,MATCH(I42 & " (" & J42 & ")",'EXT-100 Part Numbers'!$A$193:$A$211,0)),""),"") ->  | AS42: =IF(AND(I42<>"",J42<>"",OR(AND(AR42<>"",F42>'EXT-100 Part Numbers'!$AP$3),AND(AR42="",F42*M42>'EXT-100 Part Numbers'!$AP$2))),INDEX('EXT-100 Part Numbers'!$E$212:$E$238,MATCH(I42,'EXT-100 Part Numbers'!$B$212:$B$238,0)),"") ->  | AT42: =IFERROR(INDEX('EXT-100 Part Numbers'!$B$2:$B$211,MATCH(AQ42,'EXT-100 Part Numbers'!$E$2:$E$211,0)),"") ->  | AU42: =IF(AT42<>"",CONVERT(IFERROR(INDEX('EXT-100 Part Numbers'!$L$2:$L$27,MATCH(AT42,'EXT-100 Part Numbers'!$K$4:$K$27,0)),MIN('EXT-100 Part Numbers'!$L$2:$L$27)),"C",IF($E$7='EXT-100 Part Numbers'!$AK$2,"F","C")),-400) -> -400 | AV42: =IF(AT42<>"",CONVERT(IFERROR(INDEX('EXT-100 Part Numbers'!$M$2:$M$27,MATCH(AT42,'EXT-100 Part Numbers'!$K$4:$K$27,0)),MAX('EXT-100 Part Numbers'!$M$2:$M$27)),"C",IF($E$7='EXT-100 Part Numbers'!$AK$2,"F","C")),400) -> 400 | AW42: =IF(E42='EXT-100 Part Numbers'!$AG$2,'EXT-100 Part Numbers'!$AH$2,IF(E42='EXT-100 Part Numbers'!$AG$3,'EXT-100 Part Numbers'!$AH$3,IF(E42='EXT-100 Part Numbers'!$AG$4,'EXT-100 Part Numbers'!$AH$4,0))) -> 0 | AY42: =IF(AS42<>"",INDEX('EXT-100 Part Numbers'!$B$2:$B$238,MATCH(AS42,'EXT-100 Part Numbers'!$E$2:$E$238,0)) & ", " & SUBSTITUTE(INDEX('EXT-100 Part Numbers'!$C$2:$C$238,MATCH(AS42,'EXT-100 Part Numbers'!$E$2:$E$238,0)),"REPLACEME",J42),"") ->  | BE42: =IF(BA42<>"",INDEX('EXT-100 Part Numbers'!$F$2:$F$238,MATCH(BA42,'EXT-100 Part Numbers'!$E$2:$E$238,0)),"") ->  | BF42: =IF(BA42<>"", INDEX('EXT-100 Part Numbers'!$G$2:$G$238,MATCH(BA42,'EXT-100 Part Numbers'!$E$2:$E$238,0)),"") ->  | BH42: =IF(L42=References!$D$3,M42/$BH$5,0) -> 0 | BI42: 0 | BJ42: 0 | BK42: 0 | BL42: 0 | BM42: 0 | BN42: 0 | BP42: =IF(IFERROR(MATCH(I42,ColorSet1Cables,0),0)>0,'EXT-100 Part Numbers'!$U$14,IF(IFERROR(MATCH(I42,ColorSet2Cables,0),0)>0,'EXT-100 Part Numbers'!$V$14,IF(IFERROR(MATCH(I42,ColorSet3Cables,0),0)>0,'EXT-100 Part Numbers'!$W$14,IF(IFERROR(MATCH(I42,ColorSet4Cables,0),0)>0,'EXT-100 Part Numbers'!$X$14,IF(IFERROR(MATCH(I42,ColorSet5Cables,0),0)>0,'EXT-100 Part Numbers'!$Y$14,IF(IFERROR(MATCH(I42,ColorSet6Cables,0),0)>0,'EXT-100 Part Numbers'!$Z$14,IF(IFERROR(MATCH(I42,ColorSet7Cables,0),0)>0,'EXT-100 Part Numbers'!$AA$14,IF(IFERROR(MATCH(I42,ColorSet8Cables,0),0)>0,'EXT-100 Part Numbers'!$AB$14,IF(IFERROR(MATCH(I42,ColorSet9Cables,0),0)>0,'EXT-100 Part Numbers'!$AC$14,IF(IFERROR(MATCH(I42,ColorSet10Cables,0),0)>0,'EXT-100 Part Numbers'!$AD$14,IF(IFERROR(MATCH(I42,ColorSet11Cables,0),0)>0,'EXT-100 Part Numbers'!$U$35,IF(IFERROR(MATCH(I42,ColorSet12Cables,0),0)>0,'EXT-100 Part Numbers'!$V$35,'EXT-100 Part Numbers'!$AE$14)))))))))))) -> NoColorSelection | BQ42: =IF(AND(BP42<>'EXT-100 Part Numbers'!$AE$14,COUNTA(INDIRECT(BP42))=1),INDIRECT(BP42),"") ->  | BT42: 0 | BU42: 0 | BW42: =IF(G42="",'EXT-100 Part Numbers'!$I$22,IFERROR(INDEX('EXT-100 Part Numbers'!$J$2:$J$4,MATCH(G42,EXTCategories,0)),'EXT-100 Part Numbers'!$I$22)) -> EXT100FlameRatingUnspecified | BX42: =IF(AND(G42="",H42=""),'EXT-100 Part Numbers'!$AY$13,IFERROR(INDEX('EXT-100 Part Numbers'!$AZ$2:$AZ$11,MATCH(G42 & " " & H42,'EXT-100 Part Numbers'!$AY$2:$AY$11,0)),'EXT-100 Part Numbers'!$I$22)) -> EXT100NoCatNoFlame | BY42: =IF(AND(BX42<>'EXT-100 Part Numbers'!$I$22,BX42<>'EXT-100 Part Numbers'!$AY$13,COUNTA(INDIRECT(BX42))=1),INDIRECT(BX42),"") ->  | BZ42: =IFERROR(INDEX('EXT-100 Part Numbers'!$N$2:$N$27,MATCH(AT42,'EXT-100 Part Numbers'!$K$2:$K$27,0)),OutdoorEnvironment)<>OutdoorEnvironment -> FALSE | CA42: =IF(H42<>"",IF(AND(G42<>"",BW42<>"",BW42<>'EXT-100 Part Numbers'!$I$22),IFERROR(MATCH(H42,INDIRECT(BW42),0)>0,FALSE),FALSE),TRUE) -> TRUE | CB42: =IF(I42<>"",IF(AND(G42<>"",H42<>"",BX42<>"",BX42<>'EXT-100 Part Numbers'!$AY$13),IFERROR(MATCH(I42,INDIRECT(BX42),0)>0,FALSE),FALSE),TRUE) -> TRUE | CC42: =IF(J42<>"",IF(AND(G42<>"",H42<>"",I42<>"",BP42<>"",BP42<>'EXT-100 Part Numbers'!$AE$14),IFERROR(MATCH(J42,INDIRECT(BP42),0)>0,FALSE),FALSE),TRUE) -> TRUE
B43: 34 | N43: TRUE | O43: TRUE | P43: TRUE | Q43: TRUE | R43: TRUE | S43: TRUE | T43: TRUE | U43: TRUE | V43: TRUE | W43: FALSE | X43: FALSE | Y43: =IF(AND(L43<>References!$D$4,X43),'EXT-100 Part Numbers'!$R$2,"") ->  | AG43: ='EXT-100 Part Numbers'!E34 -> 10141073 | AH43: =IF(COUNTIF(K:K,AG43) > 0,_xlfn.CEILING.MATH(SUMIF(K:K,AG43,BR:BR)*SUMIF(K:K,AG43,M:M)/INDEX('EXT-100 Part Numbers'!H:H,MATCH(AG43,'EXT-100 Part Numbers'!E:E,0))),"") ->  | AI43: =IF(AH43<>"",IF(_xlfn.CEILING.MATH(SUMIF(K:K,AG43,BR:BR)/INDEX('EXT-100 Part Numbers'!H:H,MATCH(AG43,'EXT-100 Part Numbers'!E:E,0)))>0,_xlfn.CEILING.MATH(SUMIF(K:K,AG43,BR:BR)/INDEX('EXT-100 Part Numbers'!H:H,MATCH(AG43,'EXT-100 Part Numbers'!E:E,0))),"???") & " " & IF(AH43=1,AL43,IF(AL43="Reel in a box","Reels in a box",AL43 & IF(RIGHT(AL43,1)="x","es","s"))),"") ->  | AJ43: =IF(AH43<>"",INDEX('EXT-100 Part Numbers'!$B$2:$B$238,MATCH(AG43,'EXT-100 Part Numbers'!$E$2:$E$238,0)) & ", " & INDEX('EXT-100 Part Numbers'!$C$2:$C$238,MATCH(AG43,'EXT-100 Part Numbers'!$E$2:$E$238,0)),"") ->  | AK43: =IF(AH43<>"",INDEX('EXT-100 Part Numbers'!$G$2:$G$238,MATCH(AG43,'EXT-100 Part Numbers'!$E$2:$E$238,0)),"") ->  | AL43: =IF(AH43<>"", INDEX('EXT-100 Part Numbers'!$F$2:$F$238,MATCH(AG43,'EXT-100 Part Numbers'!$E$2:$E$238,0)),"") ->  | AN43: 0 | AO43: TRUE | AP43: TRUE | AQ43: =IF(AND(I43<>"",J43<>""),INDEX('EXT-100 Part Numbers'!$E$2:$E$192,MATCH(I43 & " (" & J43 & ")",'EXT-100 Part Numbers'!$A$2:$A$192,0)),"") ->  | AR43: =IFERROR(IF(AND(I43<>"",J43<>"",F43<='EXT-100 Part Numbers'!$AP$3,F43*M43>'EXT-100 Part Numbers'!$AP$2),INDEX('EXT-100 Part Numbers'!$E$193:$E$211,MATCH(I43 & " (" & J43 & ")",'EXT-100 Part Numbers'!$A$193:$A$211,0)),""),"") ->  | AS43: =IF(AND(I43<>"",J43<>"",OR(AND(AR43<>"",F43>'EXT-100 Part Numbers'!$AP$3),AND(AR43="",F43*M43>'EXT-100 Part Numbers'!$AP$2))),INDEX('EXT-100 Part Numbers'!$E$212:$E$238,MATCH(I43,'EXT-100 Part Numbers'!$B$212:$B$238,0)),"") ->  | AT43: =IFERROR(INDEX('EXT-100 Part Numbers'!$B$2:$B$211,MATCH(AQ43,'EXT-100 Part Numbers'!$E$2:$E$211,0)),"") ->  | AU43: =IF(AT43<>"",CONVERT(IFERROR(INDEX('EXT-100 Part Numbers'!$L$2:$L$27,MATCH(AT43,'EXT-100 Part Numbers'!$K$4:$K$27,0)),MIN('EXT-100 Part Numbers'!$L$2:$L$27)),"C",IF($E$7='EXT-100 Part Numbers'!$AK$2,"F","C")),-400) -> -400 | AV43: =IF(AT43<>"",CONVERT(IFERROR(INDEX('EXT-100 Part Numbers'!$M$2:$M$27,MATCH(AT43,'EXT-100 Part Numbers'!$K$4:$K$27,0)),MAX('EXT-100 Part Numbers'!$M$2:$M$27)),"C",IF($E$7='EXT-100 Part Numbers'!$AK$2,"F","C")),400) -> 400 | AW43: =IF(E43='EXT-100 Part Numbers'!$AG$2,'EXT-100 Part Numbers'!$AH$2,IF(E43='EXT-100 Part Numbers'!$AG$3,'EXT-100 Part Numbers'!$AH$3,IF(E43='EXT-100 Part Numbers'!$AG$4,'EXT-100 Part Numbers'!$AH$4,0))) -> 0 | AY43: =IF(AS43<>"",INDEX('EXT-100 Part Numbers'!$B$2:$B$238,MATCH(AS43,'EXT-100 Part Numbers'!$E$2:$E$238,0)) & ", " & SUBSTITUTE(INDEX('EXT-100 Part Numbers'!$C$2:$C$238,MATCH(AS43,'EXT-100 Part Numbers'!$E$2:$E$238,0)),"REPLACEME",J43),"") ->  | BE43: =IF(BA43<>"",INDEX('EXT-100 Part Numbers'!$F$2:$F$238,MATCH(BA43,'EXT-100 Part Numbers'!$E$2:$E$238,0)),"") ->  | BF43: =IF(BA43<>"", INDEX('EXT-100 Part Numbers'!$G$2:$G$238,MATCH(BA43,'EXT-100 Part Numbers'!$E$2:$E$238,0)),"") ->  | BH43: =IF(L43=References!$D$3,M43/$BH$5,0) -> 0 | BI43: 0 | BJ43: 0 | BK43: 0 | BL43: 0 | BM43: 0 | BN43: 0 | BP43: =IF(IFERROR(MATCH(I43,ColorSet1Cables,0),0)>0,'EXT-100 Part Numbers'!$U$14,IF(IFERROR(MATCH(I43,ColorSet2Cables,0),0)>0,'EXT-100 Part Numbers'!$V$14,IF(IFERROR(MATCH(I43,ColorSet3Cables,0),0)>0,'EXT-100 Part Numbers'!$W$14,IF(IFERROR(MATCH(I43,ColorSet4Cables,0),0)>0,'EXT-100 Part Numbers'!$X$14,IF(IFERROR(MATCH(I43,ColorSet5Cables,0),0)>0,'EXT-100 Part Numbers'!$Y$14,IF(IFERROR(MATCH(I43,ColorSet6Cables,0),0)>0,'EXT-100 Part Numbers'!$Z$14,IF(IFERROR(MATCH(I43,ColorSet7Cables,0),0)>0,'EXT-100 Part Numbers'!$AA$14,IF(IFERROR(MATCH(I43,ColorSet8Cables,0),0)>0,'EXT-100 Part Numbers'!$AB$14,IF(IFERROR(MATCH(I43,ColorSet9Cables,0),0)>0,'EXT-100 Part Numbers'!$AC$14,IF(IFERROR(MATCH(I43,ColorSet10Cables,0),0)>0,'EXT-100 Part Numbers'!$AD$14,IF(IFERROR(MATCH(I43,ColorSet11Cables,0),0)>0,'EXT-100 Part Numbers'!$U$35,IF(IFERROR(MATCH(I43,ColorSet12Cables,0),0)>0,'EXT-100 Part Numbers'!$V$35,'EXT-100 Part Numbers'!$AE$14)))))))))))) -> NoColorSelection | BQ43: =IF(AND(BP43<>'EXT-100 Part Numbers'!$AE$14,COUNTA(INDIRECT(BP43))=1),INDIRECT(BP43),"") ->  | BT43: 0 | BU43: 0 | BW43: =IF(G43="",'EXT-100 Part Numbers'!$I$22,IFERROR(INDEX('EXT-100 Part Numbers'!$J$2:$J$4,MATCH(G43,EXTCategories,0)),'EXT-100 Part Numbers'!$I$22)) -> EXT100FlameRatingUnspecified | BX43: =IF(AND(G43="",H43=""),'EXT-100 Part Numbers'!$AY$13,IFERROR(INDEX('EXT-100 Part Numbers'!$AZ$2:$AZ$11,MATCH(G43 & " " & H43,'EXT-100 Part Numbers'!$AY$2:$AY$11,0)),'EXT-100 Part Numbers'!$I$22)) -> EXT100NoCatNoFlame | BY43: =IF(AND(BX43<>'EXT-100 Part Numbers'!$I$22,BX43<>'EXT-100 Part Numbers'!$AY$13,COUNTA(INDIRECT(BX43))=1),INDIRECT(BX43),"") ->  | BZ43: =IFERROR(INDEX('EXT-100 Part Numbers'!$N$2:$N$27,MATCH(AT43,'EXT-100 Part Numbers'!$K$2:$K$27,0)),OutdoorEnvironment)<>OutdoorEnvironment -> FALSE | CA43: =IF(H43<>"",IF(AND(G43<>"",BW43<>"",BW43<>'EXT-100 Part Numbers'!$I$22),IFERROR(MATCH(H43,INDIRECT(BW43),0)>0,FALSE),FALSE),TRUE) -> TRUE | CB43: =IF(I43<>"",IF(AND(G43<>"",H43<>"",BX43<>"",BX43<>'EXT-100 Part Numbers'!$AY$13),IFERROR(MATCH(I43,INDIRECT(BX43),0)>0,FALSE),FALSE),TRUE) -> TRUE | CC43: =IF(J43<>"",IF(AND(G43<>"",H43<>"",I43<>"",BP43<>"",BP43<>'EXT-100 Part Numbers'!$AE$14),IFERROR(MATCH(J43,INDIRECT(BP43),0)>0,FALSE),FALSE),TRUE) -> TRUE
